Workbook

Sheet Database
B1: Table 1 - Precast Product Data
B3: Description | C3: Cell | D3: Unit | E3: Hand Set | F3: Flat Wall | G3: Manhole | H3: Manhole | I3: Manhole | J3: Manhole | K3: Manhole | L3: Manhole | M3: Manhole | N3: Manhole | O3: Manhole | P3: Manhole | Q3: Riser Section | R3: Riser Section | S3: Riser Section | T3: Riser Section | U3: Riser Section | V3: Riser Section | W3: Riser Section | X3: Riser Section | Y3: Riser Section | Z3: 8" Flat Wall | AA3: 8" Flat Wall | AB3: 8" Flat Wall | AC3: 8" Flat Wall | AD3: 8" Flat Wall | AE3: 8" Flat Wall | AF3: 8" Flat Wall | AG3: 8" Flat Wall | AH3: 8" Flat Wall | AI3: 8" Flat Wall | AJ3: 8" Flat Wall | AK3: 8" Flat Wall | AL3: 8" Flat Wall | AM3: 8" Flat Wall | AN3: 8" Flat Wall | AO3: 8" Flat Wall | AP3: 8" Flat Wall | AQ3: 8" Flat Wall | AR3: 8" Flat Wall | AS3: 8" Flat Wall | AT3: 8" Flat Wall | AU3: 8" Flat Wall | AV3: 8" Flat Wall | AW3: 8" Flat Wall | AX3: 8" Flat Wall | AY3: 8" Flat Wall | AZ3: 8" Flat Wall | BA3: 8" Flat Wall | BB3: 8" Flat Wall | BC3: 8" Flat Wall | BD3: 8" Flat Wall | BE3: 8" Flat Wall | BF3: 8" Flat Wall | BG3: 8" Flat Wall | BH3: 8" Flat Wall | BI3: 8" Flat Wall | BJ3: 8" Flat Wall | BK3: 8" Flat Wall | BL3: 10" Flat Wall | BM3: 8" Flat Wall | BN3: 8" Flat Wall | BO3: 8" Flat Wall | BP3: 8" Flat Wall | BQ3: 8" Flat Wall | BR3: 8" Flat Wall | BS3: 8" Flat Wall | BT3: 8" Flat Wall | BU3: 8" Flat Wall | BV3: 6" Flat Wall | BW3: 6" Flat Wall | BX3: 6" Flat Wall | BY3: 6" Flat Wall | BZ3: 6" Panel Form | CA3: 6" Flat Wall | CB3: 6" Flat Wall | CC3: 6" Panel Form | CD3: 6" Flat Wall | CE3: 6" Panel Form | CF3: 6" Panel Form | CG3: 6" Panel Form | CH3: 6" Panel Form | CI3: 6" Flat Wall | CJ3: 6" Flat Wall | CK3: 6" Flat Wall | CL3: 6" Flat Wall | CM3: 6" Flat Wall | CN3: 6" Flat Wall | CO3: 6" Flat Wall | CP3: 6" Flat Wall | CQ3: 6" Flat Wall | CR3: 6" Flat Wall | CS3: 6" Flat Wall | CT3: 6" Flat Wall | CU3: 6" Flat Wall | CV3: 6" Flat Wall | CW3: 6" Flat Wall | CX3: 6" Flat Wall | CY3: 6" Flat Wall | CZ3: 6" Flat Wall | DA3: 6" Flat Wall | DB3: 6" Flat Wall | DC3: 6" Flat Wall TDOT | DD3: 8" Flat Wall TDOT | DE3: 8" Flat Wall TDOT | DF3: 8" Flat Wall TDOT | DG3: 8" Flat Wall TDOT | DH3: 8" Flat Wall TDOT | DI3: 8" Flat Wall TDOT | DJ3: 9" Flat Wall TDOT | DK3: 8" Flat Wall TDOT | DL3: 8" Flat Wall TDOT | DM3: 8" Flat Wall TDOT | DN3: 9" Flat Wall INDOT | DO3: 9" Flat Wall INDOT | DP3: 9" Flat Wall INDOT | DQ3: 9" Flat Wall INDOT | DR3: 9" Flat Wall INDOT | DS3: 9" Flat Wall INDOT | DT3: KO Manhole | DU3: KO Manhole | DV3: KO Manhole | DW3: KO Manhole | DX3: KO Manhole | DY3: KO Manhole | DZ3: KO 8"-10" Wall Taper | EA3: KO 8" Wall | EB3: KO 8" Wall | EC3: KO 8" Wall | ED3: KO 8" Wall | EE3: KO 8" Wall | EF3: KO 6" Wall | EG3: KO 6" Wall | EH3: KO 6" Wall | EI3: KO 6" Wall
B4: Structure Size | C4: Reference | E4: Panel Form Structure | F4: Standard GT or Tank | G4: 36" Dia. | H4: 48" Dia. | I4: 60" Dia. | J4: 66" Dia. | K4: 72" Dia. | L4: 84" Dia. | M4: 96" Dia. | N4: 108" Dia. | O4: 120" Dia. | P4: 144" Dia. | Q4: 36" Dia. (Component Only) | R4: 48" Dia. (Component Only) | S4: 60" Dia. (Component Only) | T4: 66" Dia. (Component Only) | U4: 72" Dia. (Component Only) | V4: 96" Dia. (Component Only) | W4: 108" Dia. (Component Only) | X4: 120" Dia. (Component Only) | Y4: 144" Dia. (Component Only) | Z4: 24"x24" (8"W) | AA4: 15"x27" (8"W Panel Form) | AB4: 18"x30" (8"W Panel Form) | AC4: 24"x30" (8"W) | AD4: 18"x36" (8"W Panel Form) | AE4: 24"x36" (8"W) | AF4: 32"x32" (8"W) | AG4: 36"x36" (8"W) | AH4: 24"x40" (8"W Panel Form) | AI4: 24"x48" (8"W Panel Form) | AJ4: 36"x48" (8"W) | AK4: 48"x48" (8"W) | AL4: 24"x54" (8"W Panel Form) | AM4: 30"x54" (8"W Panel Form) | AN4: 36"x54" (8"W Panel Form) | AO4: 48"x54" (8"W Panel Form) | AP4: 54"x54" (8"W Panel Form) | AQ4: 16"x60" (8"W Panel Form) | AR4: 24"x60" (8"W Panel Form) | AS4: 30"x60" (8"W Panel Form) | AT4: 36"x60" (8"W Panel Form) | AU4: 48"x60" (8"W Panel Form) | AV4: 54"x60" (8"W Panel Form) | AW4: 60"x60" (8"W Panel Form) | AX4: 24"x72" (8"W) | AY4: 48"x72" (8"W Panel Form) | AZ4: 60"x72" (8"W Panel Form) | BA4: 72"x72" (8"W Panel Form) | BB4: 36"x84" (8"W Panel Form) | BC4: 84"x84" (8"W Panel Form) | BD4: 30"x96" (8"W Panel Form) | BE4: 36"x96" (8"W Panel Form) | BF4: 48"x96" (8"W Panel Form) | BG4: 72"x96" (8"W Panel Form) | BH4: 96"x96" (8"W Panel Form) | BI4: 24"x120" (8"W Panel Form) | BJ4: 36"x120" (8"W Panel Form) | BK4: 48"x120" (8"W Panel Form) | BL4: 108"x108" (10"W Panel Form) | BM4: 48"x48" (8"W/12"F KY TY C MH) | BN4: 48"x54" (8"W/12"F KY TY C MH) | BO4: 48"x60" (8"W/12"F KY TY C MH) | BP4: 48"x66" (8"W/12"F KY TY C MH) | BQ4: 48"x72" (8"W/12"F KY TY C MH) | BR4: 72"x72" (8"W/12"F KY TY C MH) | BS4: 48"x90" (8"W/12"F KY TY C MH) | BT4: 48"x96" (8"W/12"F KY TY C MH) | BU4: 48"x108" (8"W/12"F KY TY C MH) | BV4: 18"x18" (6"W) | BW4: 24"x24" (6"W) | BX4: 28"x28" (6"W) | BY4: 30"x30" (6"W) | BZ4: 30"x30" (6"W/8"F Panel Form) | CA4: 18"x36" (6"W ODOT Panel Form) | CB4: 24"x36" (6"W) | CC4: 24"x36" (6"W/8"F Panel Form) | CD4: 36"x36" (6"W Panel Form) | CE4: 24"x46" (6"W/8"F Panel Form) | CF4: 30"x46" (6"W/8"F) | CG4: 24"x48" (6"W Panel Form) | CH4: 30"x48" (6"W/8"F Panel Form) | CI4: 36"x48" (6"W Panel Form) | CJ4: 48"x48" (6"W Panel Form) | CK4: 27"x57" (6"W ODOT Panel Form) | CL4: 30"x60" (6"W Panel Form) | CM4: 36"x60" (6"W Panel Form) | CN4: 48"x60" (6"W Panel Form) | CO4: 60"x60" (6"W Panel Form) | CP4: 15"x61" (6"W/8"F INDOT Panel Form) | CQ4: 28"x64" (6"W) | CR4: 32"x64" (6"W ODOT Panel Form) | CS4: 24"x72" (6"W Panel Form) | CT4: 36"x72" (6"W Panel Form) | CU4: 48"x72" (6"W Panel Form) | CV4: 60"x72" (6"W Panel Form) | CW4: 72"x72" (6"W Panel Form) | CX4: 28"x97" (6"W) | CY4: 28"x98" (6"W) | CZ4: 72"x96" (6"W) | DA4: 60"x120" (6"W) | DB4: 72"x144" (6"W) | DC4: 36"x96" (6"W TDOT Panel Form) | DD4: 26"x32" (8"W TDOT Panel Form) | DE4: 32"x32" (8"W TDOT) | DF4: 36"x48" (8"W TDOT) | DG4: 48"x48" (8"W TDOT) | DH4: 62"x62" (8"W TDOT Panel Form) | DI4: 32"x80" (8"W TDOT Panel Form) | DJ4: 84"x84" (9"W TDOT Panel Form) | DK4: 36"x96" (8"W TDOT Panel Form) | DL4: 48"x96" (8"W TDOT Panel Form) | DM4: 62"x96" (8"W TDOT Panel Form) | DN4: 24"x40" (9"W INDOT Panel Form) | DO4: 24"x87" (9"W INDOT Panel Form) | DP4: 72"x57" (9"W INDOT Panel Form) | DQ4: 72"x78" (9"W INDOT Panel Form) | DR4: 72"x106" (9"W INDOT Panel Form) | DS4: 72"x134" (9"W INDOT Panel Form) | DT4: KO 48" Dia. x 2' (3-Way) | DU4: KO 48" Dia. x 2' (4-Way) | DV4: KO 48" Dia. x 3' (3-Way) | DW4: KO 48" Dia. x 3' (4-Way) | DX4: KO 60" Dia. x 4.5' (3-Way) | DY4: KO 72" Dia. x 5' (3-Way) | DZ4: KO 24"x24" x 3' (9"W Taper) | EA4: KO 24"x24" x 2.5' (8"W) | EB4: KO 24"x30" x 3' (8"W) | EC4: KO 24"x36" x 3' (8"W) | ED4: KO 36"x36" x 3.5' (8"W) | EE4: KO 48"x48" x 4.5' (8"W) | EF4: KO 18"x18" x 2' (6"W) | EG4: KO 24"x24" x 2.5' (6"W) | EH4: KO 24"x36" x 3.5' (6"W) | EI4: KO 30"x30" x 3.5' (6"W)
B5: Structure Diamater | C5: Dia (inches) | D5: Inch | G5: 36 | H5: 48 | I5: 60 | J5: 66 | K5: 72 | L5: 84 | M5: 96 | N5: 108 | O5: 120 | P5: 144 | Q5: 36 | R5: 48 | S5: 60 | T5: 66 | U5: 72 | V5: 96 | W5: 108 | X5: 120 | Y5: 144 | DT5: 48 | DU5: 48 | DV5: 48 | DW5: 48 | DX5: 60 | DY5: 72
B6: Structure Width | C6: Width (inches) | D6: Inch | Z6: 24 | AA6: 15 | AB6: 18 | AC6: 24 | AD6: 18 | AE6: 24 | AF6: 32 | AG6: 36 | AH6: 24 | AI6: 24 | AJ6: 36 | AK6: 48 | AL6: 24 | AM6: 30 | AN6: 36 | AO6: 48 | AP6: 54 | AQ6: 16 | AR6: 24 | AS6: 30 | AT6: 36 | AU6: 48 | AV6: 54 | AW6: 60 | AX6: 24 | AY6: 48 | AZ6: 60 | BA6: 72 | BB6: 36 | BC6: 84 | BD6: 30 | BE6: 36 | BF6: 48 | BG6: 72 | BH6: 96 | BI6: 24 | BJ6: 36 | BK6: 48 | BL6: 108 | BM6: 48 | BN6: 48 | BO6: 48 | BP6: 48 | BQ6: 48 | BR6: 72 | BS6: 48 | BT6: 48 | BU6: 48 | BV6: 18 | BW6: 24 | BX6: 28 | BY6: 30 | BZ6: 30 | CA6: 18 | CB6: 24 | CC6: 24 | CD6: 36 | CE6: 24 | CF6: 30 | CG6: 24 | CH6: 30 | CI6: 36 | CJ6: 48 | CK6: 27 | CL6: 30 | CM6: 36 | CN6: 48 | CO6: 60 | CP6: 15 | CQ6: 28 | CR6: 32 | CS6: 24 | CT6: 36 | CU6: 48 | CV6: 48 | CW6: 72 | CX6: 28 | CY6: 28 | CZ6: 72 | DA6: 60 | DB6: 72 | DC6: 72 | DD6: 26 | DE6: 32 | DF6: 36 | DG6: 48 | DH6: 62 | DI6: 32 | DJ6: 84 | DK6: 36 | DL6: 48 | DM6: 62 | DN6: 24 | DO6: 24 | DP6: 72 | DQ6: 72 | DR6: 72 | DS6: 72 | DZ6: 24 | EA6: 24 | EB6: 24 | EC6: 24 | ED6: 36 | EE6: 48 | EF6: 18 | EG6: 24 | EH6: 24 | EI6: 30
B7: Structure Length | C7: Length (inches) | D7: Inch | Z7: 24 | AA7: 27 | AB7: 30 | AC7: 30 | AD7: 36 | AE7: 36 | AF7: 32 | AG7: 36 | AH7: 40 | AI7: 48 | AJ7: 48 | AK7: 48 | AL7: 54 | AM7: 54 | AN7: 54 | AO7: 54 | AP7: 54 | AQ7: 60 | AR7: 60 | AS7: 60 | AT7: 60 | AU7: 60 | AV7: 60 | AW7: 60 | AX7: 72 | AY7: 72 | AZ7: 72 | BA7: 72 | BB7: 84 | BC7: 84 | BD7: 96 | BE7: 96 | BF7: 96 | BG7: 96 | BH7: 96 | BI7: 120 | BJ7: 120 | BK7: 120 | BL7: 108 | BM7: 48 | BN7: 48 | BO7: 60 | BP7: 66 | BQ7: 72 | BR7: 72 | BS7: 90 | BT7: 96 | BU7: 108 | BV7: 18 | BW7: 24 | BX7: 28 | BY7: 30 | BZ7: 30 | CA7: 36 | CB7: 36 | CC7: 36 | CD7: 36 | CE7: 46 | CF7: 46 | CG7: 48 | CH7: 48 | CI7: 48 | CJ7: 48 | CK7: 57 | CL7: 60 | CM7: 60 | CN7: 60 | CO7: 60 | CP7: 61 | CQ7: 64 | CR7: 64 | CS7: 72 | CT7: 72 | CU7: 72 | CV7: 72 | CW7: 72 | CX7: 97 | CY7: 98 | CZ7: 96 | DA7: 120 | DB7: 144 | DC7: 96 | DD7: 32 | DE7: 32 | DF7: 48 | DG7: 48 | DH7: 62 | DI7: 80 | DJ7: 84 | DK7: 96 | DL7: 96 | DM7: 96 | DN7: 40 | DO7: 87 | DP7: 57 | DQ7: 78 | DR7: 106 | DS7: 134 | DZ7: 24 | EA7: 24 | EB7: 30 | EC7: 36 | ED7: 36 | EE7: 48 | EF7: 18 | EG7: 24 | EH7: 36 | EI7: 30
B8: Standard Base Thickness | C8: Base | D8: Inch | G8: 6 | H8: 6 | I8: 8 | J8: 8 | K8: 8 | L8: 8 | M8: 18 | N8: 12 | O8: 18 | P8: 14 | Z8: 8 | AA8: 8 | AB8: 8 | AC8: 8 | AD8: 8 | AE8: 8 | AF8: 8 | AG8: 8 | AH8: 8 | AI8: 8 | AJ8: 8 | AK8: 8 | AL8: 8 | AM8: 8 | AN8: 8 | AO8: 8 | AP8: 8 | AQ8: 8 | AR8: 8 | AS8: 8 | AT8: 8 | AU8: 8 | AV8: 8 | AW8: 8 | AX8: 8 | AY8: 8 | AZ8: 8 | BA8: 8 | BB8: 8 | BC8: 8 | BD8: 8 | BE8: 8 | BF8: 8 | BG8: 8 | BH8: 8 | BI8: 8 | BJ8: 8 | BK8: 8 | BL8: 10 | BM8: 12 | BN8: 12 | BO8: 12 | BP8: 12 | BQ8: 12 | BR8: 12 | BS8: 12 | BT8: 12 | BU8: 12 | BV8: 6 | BW8: 6 | BX8: 6 | BY8: 6 | BZ8: 8 | CA8: 6 | CB8: 6 | CC8: 8 | CD8: 6 | CE8: 8 | CF8: 8 | CG8: 6 | CH8: 8 | CI8: 6 | CJ8: 6 | CK8: 6 | CL8: 6 | CM8: 6 | CN8: 6 | CO8: 6 | CP8: 8 | CQ8: 6 | CR8: 6 | CS8: 6 | CT8: 6 | CU8: 6 | CV8: 6 | CW8: 6 | CX8: 6 | CY8: 6 | CZ8: 6 | DA8: 6 | DB8: 6 | DC8: 6 | DD8: 8 | DE8: 8 | DF8: 8 | DG8: 8 | DH8: 8 | DI8: 8 | DJ8: 8 | DK8: 8 | DL8: 8 | DM8: 8 | DN8: 9 | DO8: 9 | DP8: 12 | DQ8: 12 | DR8: 12 | DS8: 12
B9: Standard Top Thickness | C9: Lid | D9: Inch | G9: 6 | H9: 8 | I9: 8 | J9: 8 | K9: 10 | L9: 12 | M9: 12 | N9: 12 | O9: 12 | P9: 12 | Z9: 8 | AA9: 8 | AB9: 8 | AC9: 8 | AD9: 8 | AE9: 8 | AF9: 8 | AG9: 8 | AH9: 8 | AI9: 8 | AJ9: 8 | AK9: 8 | AL9: 8 | AM9: 8 | AN9: 8 | AO9: 8 | AP9: 8 | AQ9: 8 | AR9: 8 | AS9: 8 | AT9: 8 | AU9: 8 | AV9: 8 | AW9: 8 | AX9: 8 | AY9: 8 | AZ9: 8 | BA9: 8 | BB9: 8 | BC9: 8 | BD9: 8 | BE9: 8 | BF9: 8 | BG9: 8 | BH9: 8 | BI9: 8 | BJ9: 8 | BK9: 8 | BL9: 12 | BM9: 8 | BN9: 8 | BO9: 8 | BP9: 8 | BQ9: 8 | BR9: 8 | BS9: 8 | BT9: 8 | BU9: 8 | BV9: 6 | BW9: 6 | BX9: 6 | BY9: 6 | BZ9: 6 | CA9: 6 | CB9: 6 | CC9: 6 | CD9: 6 | CE9: 6 | CF9: 6 | CG9: 6 | CH9: 6 | CI9: 6 | CJ9: 6 | CK9: 6 | CL9: 6 | CM9: 6 | CN9: 6 | CO9: 6 | CP9: 6 | CQ9: 6 | CR9: 6 | CS9: 6 | CT9: 6 | CU9: 6 | CV9: 6 | CW9: 6 | CX9: 6 | CY9: 6 | CZ9: 8 | DA9: 8 | DB9: 8 | DC9: 10 | DD9: 8 | DE9: 10 | DF9: 10 | DG9: 10 | DH9: 10 | DI9: 10 | DJ9: 10 | DK9: 10 | DL9: 10 | DM9: 10 | DN9: 9 | DO9: 9 | DP9: 9 | DQ9: 9 | DR9: 9 | DS9: 9
B10: Standard Wall Thickness | C10: Walls | D10: Inch | G10: 4 | H10: 5 | I10: 6 | J10: 6.5 | K10: 7 | L10: 8 | M10: 9 | N10: 10 | O10: 11 | P10: 12 | Z10: 8 | AA10: 8 | AB10: 8 | AC10: 8 | AD10: 8 | AE10: 8 | AF10: 8 | AG10: 8 | AH10: 8 | AI10: 8 | AJ10: 8 | AK10: 8 | AL10: 8 | AM10: 8 | AN10: 8 | AO10: 8 | AP10: 8 | AQ10: 8 | AR10: 8 | AS10: 8 | AT10: 8 | AU10: 8 | AV10: 8 | AW10: 8 | AX10: 8 | AY10: 8 | AZ10: 8 | BA10: 8 | BB10: 8 | BC10: 8 | BD10: 8 | BE10: 8 | BF10: 8 | BG10: 8 | BH10: 8 | BI10: 8 | BJ10: 8 | BK10: 8 | BL10: 10 | BM10: 8 | BN10: 8 | BO10: 8 | BP10: 8 | BQ10: 8 | BR10: 8 | BS10: 8 | BT10: 8 | BU10: 8 | BV10: 6 | BW10: 6 | BX10: 6 | BY10: 6 | BZ10: 6 | CA10: 6 | CB10: 6 | CC10: 6 | CD10: 6 | CE10: 6 | CF10: 6 | CG10: 6 | CH10: 6 | CI10: 6 | CJ10: 6 | CK10: 6 | CL10: 6 | CM10: 6 | CN10: 6 | CO10: 6 | CP10: 6 | CQ10: 6 | CR10: 6 | CS10: 6 | CT10: 6 | CU10: 6 | CV10: 6 | CW10: 6 | CX10: 6 | CY10: 6 | CZ10: 6 | DA10: 6 | DB10: 6 | DC10: 6 | DD10: 8 | DE10: 8 | DF10: 8 | DG10: 8 | DH10: 8 | DI10: 8 | DJ10: 9 | DK10: 8 | DL10: 8 | DM10: 8 | DN10: 9 | DO10: 9 | DP10: 9 | DQ10: 9 | DR10: 9 | DS10: 9
B11: Outside Perimter | C11: Perimeter (Feet) | D11: Feet | G11: 11.51 | H11: 15.19 | I11: 18.86 | J11: 20.67 | K11: 22.52 | L11: 26.17 | M11: 29.86 | N11: 33.49 | O11: 37.19 | P11: 44 | Q11: 11.51 | R11: 15.19 | S11: 18.86 | T11: 20.67 | U11: 22.52 | V11: 29.86 | W11: 33.49 | X11: 37.19 | Y11: 44 | DT11: 15.19 | DU11: 15.19 | DV11: 15.19 | DW11: 15.19 | DX11: 18.86 | DY11: 22.52 | DZ11: 13.33 | EA11: 13.33 | EB11: 14.33 | EC11: 15.33 | ED11: 17.33 | EE11: 21.33 | EF11: 10 | EG11: 12 | EH11: 14 | EI11: 14
B12: Stack-It Structure Size Translation | C12: Stack-It Structure Size Translation | D12: Size | G12: 36" 4W 6F | H12: 48" 5W 6F | I12: 60" 6W 8F | J12: 66" 6.5W 8F | K12: 72" 7W 8F | L12: 84" 8W 8F | M12: 96" 9W 8F | N12: 108" 10W 12F | O12: 120" 11W 12F | P12: 144" 13W 12F | Z12: 24" x 24" 8W 8F | AA12: 15" x 27" 8W 8F | AB12: 18" x 30" 8W 8F | AC12: 24" x 30" 8W 8F | AD12: 18" x 36" 8W 8F | AE12: 24" x 36" 8W 8F | AF12: 32" x 32" 8W 8F | AG12: 36" x 36" 8W 8F | AH12: 24" x 40" 8W 8F | AI12: 24" x 48" 8W 8F | AJ12: 36" x 48" 8W 8F | AK12: 48" x 48" 8W 8F | AL12: 24" x 54" 8W 8F | AM12: 30" x 54" 8W 8F | AN12: 36" x 54" 8W 8F | AO12: 48" x 54" 8W 8F | AP12: 54" x 54" 8W 8F | AQ12: 16" x 60" 8W 8F | AR12: 24" x 60" 8W 8F | AS12: 30" x 60" 8W 8F | AT12: 36" x 60" 8W 8F | AU12: 48" x 60" 8W 8F | AV12: 54" x 60" 8W 8F | AW12: 60" x 60" 8W 8F | AX12: 24" x 72" 8W 8F | AY12: 48" x 72" 8W 8F | AZ12: 60" x 72" 8W 8F | BA12: 72" x 72" 8W 8F | BB12: 36" x 84" 8W 8F | BC12: 84" x 84" 8W 8F | BD12: 30" x 96" 8W 8F | BE12: 36" x 96" 8W 8F | BF12: 48" x 96" 8W 8F | BG12: 72" x 96" 8W 8F | BH12: 96" x 96" 8W 8F | BI12: 24" x 120" 8W 8F | BJ12: 36" x 120" 8W 8F | BK12: 48" x 120" 8W 8F | BL12: 108" x 108" 10W 10F | BM12: 48" x 48" 8W 12F | BN12: 48" x 54" 8W 12F | BO12: 48" x 60" 8W 12F | BP12: 48" x 66" 8W 12F | BQ12: 48" x 72" 8W 12F | BR12: 72" x 72" 8W 12F | BS12: 48" x 90" 8W 12F | BT12: 48" x 96" 8W 12F | BU12: 48" x 108" 8W 12F | BV12: 18" x 18" 6W 6F | BW12: 24" x 24" 6W 6F | BX12: 28" x 28" 6W 6F | BY12: 30" x 30" 6W 6F | BZ12: 30" x 30" 6W 8F | CA12: 18" x 36" 6W 6F | CB12: 24" x 36" 6W 6F | CC12: 24" x 36" 6W 8F | CD12: 36" x 36" 6W 6F | CE12: 24" x 46" 6W 8F | CF12: 30" x 46" 6W 8F | CG12: 24" x 48" 6W 6F | CH12: 30" x 48" 6W 8F | CI12: 36" x 48" 6W 6F | CJ12: 48" x 48" 6W 6F | CK12: 27" x 57" 6W 6F | CL12: 30" x 60" 6W 6F | CM12: 36" x 60" 6W 6F | CN12: 48" x 60" 6W 6F | CO12: 60" x 60" 6W 6F | CP12: 15" x 61" 6W 8F | CQ12: 28" x 64" 6W 6F | CR12: 32" x 64" 6W 6F | CS12: 24" x 72" 6W 6F | CT12: 36" x 72" 6W 6F | CU12: 48" x 72" 6W 6F | CV12: 60" x 72" 6W 6F | CW12: 72" x 72" 6W 6F | CX12: 28" x 97" 6W 6F | CY12: 28" x 98" 6W 6F | CZ12: 72" x 96" 6W 6F | DA12: 60" x 120" 6W 6F | DB12: 72" x 144" 6W 6F | DC12: 36" x 96" 6W 6F | DD12: 26" x 32" 8W 8F | DE12: 32" x 32" 8W 8F | DF12: 36" x 48" 8W 8F | DG12: 48" x 48" 8W 8F | DH12: 62" x 62" 8W 8F | DI12: 32" x 80" 8W 8F | DJ12: 84" x 84" 9W 8F | DK12: 36" x 96" 8W 8F | DL12: 48" x 96" 8W 8F | DM12: 62" x 96" 8W 8F | DN12: 24" x 40" 9W 9F | DO12: 24" x 87" 9W 9F | DP12: 72" x 57" 9W 12F | DQ12: 72" x 78" 9W 12F | DR12: 72" x 106" 9W 12F | DS12: 72" x 134" 9W 12F
B13: Structure Type | C13: Structure Type | E13: Flat Wall | F13: Flat Wall | G13: Round | H13: Round | I13: Round | J13: Round | K13: Round | L13: Round | M13: Round | N13: Round | O13: Round | P13: Round | Q13: Round | R13: Round | S13: Round | T13: Round | U13: Round | V13: Round | W13: Round | X13: Round | Y13: Round | Z13: Flat Wall | AA13: Flat Wall | AB13: Flat Wall | AC13: Flat Wall | AD13: Flat Wall | AE13: Flat Wall | AF13: Flat Wall | AG13: Flat Wall | AH13: Flat Wall | AI13: Flat Wall | AJ13: Flat Wall | AK13: Flat Wall | AL13: Flat Wall | AM13: Flat Wall | AN13: Flat Wall | AO13: Flat Wall | AP13: Flat Wall | AQ13: Flat Wall | AR13: Flat Wall | AS13: Flat Wall | AT13: Flat Wall | AU13: Flat Wall | AV13: Flat Wall | AW13: Flat Wall | AX13: Flat Wall | AY13: Flat Wall | AZ13: Flat Wall | BA13: Flat Wall | BB13: Flat Wall | BC13: Flat Wall | BD13: Flat Wall | BE13: Flat Wall | BF13: Flat Wall | BG13: Flat Wall | BH13: Flat Wall | BI13: Flat Wall | BJ13: Flat Wall | BK13: Flat Wall | BL13: Flat Wall | BM13: Flat Wall | BN13: Flat Wall | BO13: Flat Wall | BP13: Flat Wall | BQ13: Flat Wall | BR13: Flat Wall | BS13: Flat Wall | BT13: Flat Wall | BU13: Flat Wall | BV13: Flat Wall | BW13: Flat Wall | BX13: Flat Wall | BY13: Flat Wall | BZ13: Flat Wall | CA13: Flat Wall | CB13: Flat Wall | CC13: Flat Wall | CD13: Flat Wall | CE13: Flat Wall | CF13: Flat Wall | CG13: Flat Wall | CH13: Flat Wall | CI13: Flat Wall | CJ13: Flat Wall | CK13: Flat Wall | CL13: Flat Wall | CM13: Flat Wall | CN13: Flat Wall | CO13: Flat Wall | CP13: Flat Wall | CQ13: Flat Wall | CR13: Flat Wall | CS13: Flat Wall | CT13: Flat Wall | CU13: Flat Wall | CV13: Flat Wall | CW13: Flat Wall | CX13: Flat Wall | CY13: Flat Wall | CZ13: Flat Wall | DA13: Flat Wall | DB13: Flat Wall | DC13: Flat Wall | DD13: Flat Wall | DE13: Flat Wall | DF13: Flat Wall | DG13: Flat Wall | DH13: Flat Wall | DI13: Flat Wall | DJ13: Flat Wall | DK13: Flat Wall | DL13: Flat Wall | DM13: Flat Wall | DN13: Flat Wall | DO13: Flat Wall | DP13: Flat Wall | DQ13: Flat Wall | DR13: Flat Wall | DS13: Flat Wall | DT13: Round Knockout | DU13: Round Knockout | DV13: Round Knockout | DW13: Round Knockout | DX13: Round Knockout | DY13: Round Knockout | DZ13: FW Knockout | EA13: FW Knockout | EB13: FW Knockout | EC13: FW Knockout | ED13: FW Knockout | EE13: FW Knockout | EF13: FW Knockout | EG13: FW Knockout | EH13: FW Knockout | EI13: FW Knockout
B14: Top Slab Default | C14: Top/Trans Slab Required | D14: Yes/No | E14: Yes Top | F14: Yes Top | G14: Yes Top | H14: Yes Top | I14: Yes Top | J14: Yes Top | K14: Yes Top | L14: Yes Top | M14: Yes Top | N14: Yes Top | O14: Yes Top | P14: Yes Top | Q14: No Top | R14: No Top | S14: No Top | T14: No Top | U14: No Top | V14: No Top | W14: No Top | X14: No Top | Y14: No Top | Z14: No Top | AA14: No Top | AB14: No Top | AC14: No Top | AD14: No Top | AE14: No Top | AF14: No Top | AG14: No Top | AH14: No Top | AI14: No Top | AJ14: No Top | AK14: Yes Top | AL14: Yes Top | AM14: Yes Top | AN14: Yes Top | AO14: Yes Top | AP14: Yes Top | AQ14: No Top | AR14: Yes Top | AS14: Yes Top | AT14: Yes Top | AU14: Yes Top | AV14: Yes Top | AW14: Yes Top | AX14: Yes Top | AY14: Yes Top | AZ14: Yes Top | BA14: Yes Top | BB14: Yes Top | BC14: Yes Top | BD14: Yes Top | BE14: Yes Top | BF14: Yes Top | BG14: Yes Top | BH14: Yes Top | BI14: Yes Top | BJ14: Yes Top | BK14: Yes Top | BL14: Yes Top | BM14: Yes Top | BN14: Yes Top | BO14: Yes Top | BP14: Yes Top | BQ14: Yes Top | BR14: Yes Top | BS14: Yes Top | BT14: Yes Top | BU14: Yes Top | BV14: No Top | BW14: No Top | BX14: No Top | BY14: No Top | BZ14: No Top | CA14: No Top | CB14: No Top | CC14: No Top | CD14: No Top | CE14: No Top | CF14: No Top | CG14: No Top | CH14: No Top | CI14: No Top | CJ14: No Top | CK14: No Top | CL14: No Top | CM14: No Top | CN14: No Top | CO14: No Top | CP14: No Top | CQ14: No Top | CR14: No Top | CS14: No Top | CT14: No Top | CU14: No Top | CV14: No Top | CW14: No Top | CX14: No Top | CY14: No Top | CZ14: Yes Top | DA14: Yes Top | DB14: Yes Top | DC14: Yes Top | DD14: No Top | DE14: Yes Top | DF14: Yes Top | DG14: Yes Top | DH14: Yes Top | DI14: No Top | DJ14: Yes Top | DK14: Yes Top | DL14: Yes Top | DM14: Yes Top | DN14: No Top | DO14: No Top | DP14: Yes Top | DQ14: Yes Top | DR14: Yes Top | DS14: Yes Top | DT14: Yes Top | DU14: Yes Top | DV14: Yes Top | DW14: Yes Top | DX14: Yes Top | DY14: Yes Top | DZ14: No Top | EA14: No Top | EB14: No Top | EC14: No Top | ED14: No Top | EE14: Yes Top | EF14: No Top | EG14: No Top | EH14: No Top | EI14: No Top
B15: Base Price Inside Height | C15: Base Price Depth | D15: Feet | Z15: 3 | AA15: 2 | AB15: 2 | AC15: 3 | AD15: 2 | AE15: 3 | AF15: 3 | AG15: 3 | AH15: 3 | AI15: 2.5 | AJ15: 3 | AK15: 3 | AL15: 3 | AM15: 3 | AN15: 3 | AO15: 3 | AP15: 3 | AQ15: 3 | AR15: 3 | AS15: 3 | AT15: 3 | AU15: 3 | AV15: 4 | AW15: 4 | AX15: 3 | AY15: 4 | AZ15: 4 | BA15: 4 | BB15: 4 | BC15: 4 | BD15: 4 | BE15: 4 | BF15: 4 | BG15: 4 | BH15: 4 | BI15: 3 | BJ15: 4 | BK15: 4 | BL15: 4 | BM15: 4 | BN15: 4.75 | BO15: 5 | BP15: 5.5 | BQ15: 6 | BR15: 6 | BS15: 7.5 | BT15: 7.5 | BU15: 8 | BV15: 2 | BW15: 2.5 | BX15: 4 | BY15: 4 | BZ15: 4 | CA15: 2.5 | CB15: 4 | CC15: 3 | CD15: 3 | CE15: 3 | CF15: 4 | CG15: 3 | CH15: 3 | CI15: 3 | CJ15: 3 | CK15: 3 | CL15: 4 | CM15: 4 | CN15: 4 | CO15: 4 | CP15: 3 | CQ15: 4 | CR15: 3 | CS15: 4 | CT15: 4 | CU15: 4 | CV15: 4 | CW15: 4 | CX15: 4 | CY15: 4 | CZ15: 4 | DA15: 4 | DB15: 4 | DC15: 4 | DD15: 3 | DE15: 3 | DF15: 3 | DG15: 3 | DH15: 4 | DI15: 3.25 | DJ15: 4 | DK15: 4 | DL15: 4 | DM15: 4 | DN15: 2 | DO15: 2.33 | DP15: 4 | DQ15: 5.75 | DR15: 8.1 | DS15: 10.42
B16: Flat Wall Base Price | C16: Flat Wall Base | D16: Dollar | Z16: 661 | AA16: 667 | AB16: 751 | AC16: 733 | AD16: 831 | AE16: 804 | AF16: 921 | AG16: 921 | AH16: 1293 | AI16: 1270 | AJ16: 1072 | AK16: 1182 | AL16: 1550 | AM16: 1688 | AN16: 1827 | AO16: 2103 | AP16: 2241 | AQ16: 1467 | AR16: 1659 | AS16: 1804 | AT16: 1947 | AU16: 2235 | AV16: 2884 | AW16: 3052 | AX16: 1502 | AY16: 3029 | AZ16: 3386 | BA16: 3743 | BB16: 2959 | BC16: 4483 | BD16: 3044 | BE16: 3246 | BF16: 3651 | BG16: 4461 | BH16: 5269 | BI16: 2748 | BJ16: 3822 | BK16: 4273 | BL16: 7908 | BM16: 2739 | BN16: 3269 | BO16: 3595 | BP16: 4056 | BQ16: 4543 | BR16: 5616 | BS16: 6142 | BT16: 6409 | BU16: 6778 | BV16: 445 | BW16: 510 | BX16: 790 | BY16: 813 | BZ16: 991 | CA16: 656 | CB16: 690 | CC16: 840 | CD16: 1255 | CE16: 1232 | CF16: 1137 | CG16: 1192 | CH16: 1369 | CI16: 1460 | CJ16: 1609 | CK16: 1167 | CL16: 1818 | CM16: 1960 | CN16: 2246 | CO16: 2532 | CP16: 1010 | CQ16: 1266 | CR16: 1351 | CS16: 1629 | CT16: 1890 | CU16: 2153 | CV16: 2415 | CW16: 2678 | CX16: 1824 | CY16: 1824 | CZ16: 3321 | DA16: 3510 | DB16: 4509 | DC16: 2310 | DD16: 921 | DE16: 921 | DF16: 1072 | DG16: 1182 | DH16: 3164 | DI16: 2364 | DJ16: 4941 | DK16: 3246 | DL16: 3651 | DM16: 4122 | DN16: 1162 | DO16: 2119 | DP16: 4213 | DQ16: 6326 | DR16: 9658 | DS16: 13537
B17: Flat Wall Concrete Lid Adder | C17: Flat Wall Lid Adder | D17: Dollar | Z17: 170 | AA17: 217 | AB17: 253 | AC17: 196 | AD17: 287 | AE17: 221 | AF17: 275 | AG17: 275 | AH17: 364 | AI17: 415 | AJ17: 339 | AK17: 398 | AL17: 455 | AM17: 524 | AN17: 591 | AO17: 726 | AP17: 792 | AQ17: 396 | AR17: 494 | AS17: 567 | AT17: 640 | AU17: 790 | AV17: 864 | AW17: 936 | AX17: 456 | AY17: 914 | AZ17: 1087 | BA17: 1106 | BB17: 844 | BC17: 1623 | BD17: 837 | BE17: 947 | BF17: 1164 | BG17: 1600 | BH17: 2035 | BI17: 884 | BJ17: 1148 | BK17: 1413 | BL17: 3758 | BM17: 465 | BN17: 726 | BO17: 789 | BP17: 847 | BQ17: 914 | BR17: 1258 | BS17: 1101 | BT17: 1260 | BU17: 1447 | BV17: 142 | BW17: 153 | BX17: 176 | BY17: 187 | BZ17: 187 | CA17: 173 | CB17: 156 | CC17: 156 | CD17: 375 | CE17: 298 | CF17: 317 | CG17: 290 | CH17: 354 | CI17: 462 | CJ17: 543 | CK17: 327 | CL17: 488 | CM17: 553 | CN17: 683 | CO17: 812 | CP17: 239 | CQ17: 335 | CR17: 406 | CS17: 369 | CT17: 490 | CU17: 613 | CV17: 735 | CW17: 858 | CX17: 455 | CY17: 455 | CZ17: 0 | DA17: 0 | DB17: 0 | DC17: 1166 | DD17: 275 | DE17: 330 | DF17: 407 | DG17: 478 | DH17: 1356 | DI17: 1495 | DJ17: 2999 | DK17: 1136 | DL17: 1397 | DM17: 2513 | DN17: 444 | DO17: 804 | DP17: 1231 | DQ17: 1575 | DR17: 2034 | DS17: 2494
B18: Plain Concrete VF Adder Rate | C18: VF Adder Rate | D18: Dollar | G18: 74 | H18: 102 | I18: 167 | J18: 239 | K18: 255 | L18: 404 | M18: 472 | N18: 699 | O18: 776 | P18: 1079 | Z18: 164 | AA18: 225 | AB18: 249 | AC18: 179 | AD18: 272 | AE18: 194 | AF18: 215 | AG18: 215 | AH18: 313 | AI18: 342 | AJ18: 244 | AK18: 261 | AL18: 365 | AM18: 388 | AN18: 413 | AO18: 459 | AP18: 483 | AQ18: 357 | AR18: 413 | AS18: 425 | AT18: 434 | AU18: 459 | AV18: 505 | AW18: 530 | AX18: 349 | AY18: 530 | AZ18: 576 | BA18: 621 | BB18: 530 | BC18: 716 | BD18: 552 | BE18: 576 | BF18: 622 | BG18: 717 | BH18: 810 | BI18: 593 | BJ18: 670 | BK18: 716 | BL18: 1148 | BM18: 305 | BN18: 459 | BO18: 483 | BP18: 505 | BQ18: 530 | BR18: 622 | BS18: 600 | BT18: 623 | BU18: 669 | BV18: 120 | BW18: 125 | BX18: 159 | BY18: 162 | BZ18: 162 | CA18: 192 | CB18: 138 | CC18: 138 | CD18: 293 | CE18: 280 | CF18: 165 | CG18: 273 | CH18: 307 | CI18: 333 | CJ18: 356 | CK18: 280 | CL18: 348 | CM18: 368 | CN18: 409 | CO18: 450 | CP18: 257 | CQ18: 243 | CR18: 315 | CS18: 318 | CT18: 328 | CU18: 385 | CV18: 420 | CW18: 455 | CX18: 343 | CY18: 343 | CZ18: 405 | DA18: 432 | DB18: 513 | DC18: 420 | DD18: 215 | DE18: 215 | DF18: 244 | DG18: 261 | DH18: 546 | DI18: 497 | DJ18: 814 | DK18: 576 | DL18: 622 | DM18: 676 | DN18: 358 | DO18: 564 | DP18: 643 | DQ18: 735 | DR18: 857 | DS18: 980
B19: Flat Wall Base Slab Deduct | C19: Base Slab Deduct | D19: Dollar | Z19: 128 | AA19: 217 | AB19: 253 | AC19: 147 | AD19: 287 | AE19: 166 | AF19: 207 | AG19: 207 | AH19: 364 | AI19: 415 | AJ19: 254 | AK19: 299 | AL19: 455 | AM19: 524 | AN19: 591 | AO19: 726 | AP19: 792 | AQ19: 396 | AR19: 494 | AS19: 567 | AT19: 640 | AU19: 790 | AV19: 864 | AW19: 936 | AX19: 456 | AY19: 914 | AZ19: 1087 | BA19: 1106 | BB19: 844 | BC19: 1623 | BD19: 837 | BE19: 947 | BF19: 1164 | BG19: 1600 | BH19: 2035 | BI19: 884 | BJ19: 1148 | BK19: 1413 | BL19: 3132 | BM19: 996 | BN19: 1089 | BO19: 1182 | BP19: 1276 | BQ19: 1370 | BR19: 1882 | BS19: 1650 | BT19: 1882 | BU19: 1929 | BV19: 106 | BW19: 115 | BX19: 132 | BY19: 141 | BZ19: 165 | CA19: 173 | CB19: 117 | CC19: 160 | CD19: 283 | CE19: 298 | CF19: 213 | CG19: 290 | CH19: 471 | CI19: 347 | CJ19: 408 | CK19: 327 | CL19: 488 | CM19: 553 | CN19: 683 | CO19: 812 | CP19: 239 | CQ19: 251 | CR19: 406 | CS19: 369 | CT19: 490 | CU19: 613 | CV19: 735 | CW19: 858 | CX19: 455 | CY19: 455 | CZ19: 638 | DA19: 668 | DB19: 921 | DC19: 630 | DD19: 207 | DE19: 207 | DF19: 254 | DG19: 299 | DH19: 985 | DI19: 1246 | DJ19: 2499 | DK19: 947 | DL19: 1164 | DM19: 2094 | DN19: 444 | DO19: 804 | DP19: 1641 | DQ19: 2100 | DR19: 2713 | DS19: 3325
B20: KO Base Price | C20: KO Base Price | D20: Dollar | DT20: 480 | DU20: 480 | DV20: 550 | DW20: 550 | DX20: 1155 | DY20: 1870 | DZ20: 597 | EA20: 597 | EB20: 733 | EC20: 804 | ED20: 1171 | EE20: 1574 | EF20: 445 | EG20: 573 | EH20: 690 | EI20: 813
B21: KO Base Weight | C21: KO Base Weight | D21: LBS | DT21: 2600 | DU21: 2425 | DV21: 3095 | DW21: 2925 | DX21: 6300 | DY21: 9350 | DZ21: 3200 | EA21: 2588 | EB21: 3025 | EC21: 3342 | ED21: 4357 | EE21: 6500 | EF21: 1170 | EG21: 1735 | EH21: 2550 | EI21: 2565
B22: KO Base Inside Height | C22: KO Base Height Inches | D22: Inches | DT22: 24 | DU22: 24 | DV22: 36 | DW22: 36 | DX22: 54 | DY22: 60 | DZ22: 36 | EA22: 30 | EB22: 36 | EC22: 36 | ED22: 42 | EE22: 54 | EF22: 24 | EG22: 30 | EH22: 42 | EI22: 42
B23: KO Base Product ID | C23: KO Base Product ID | D23: Product ID | DT23: Input Here | DU23: Input Here | DV23: Input Here | DW23: Input Here | DX23: Input Here | DY23: Input Here | DZ23: Input Here | EA23: Input Here | EB23: Input Here | EC23: Input Here | ED23: Input Here | EE23: Input Here | EF23: Input Here | EG23: Input Here | EH23: Input Here | EI23: Input Here
B24: KO Concrete Lid Adder | C24: KO Lid Price | D24: Dollar | DT24: 257 | DU24: 257 | DV24: 257 | DW24: 257 | DX24: 396 | DY24: 706 | DZ24: 170 | EA24: 170 | EB24: 196 | EC24: 221 | ED24: 275 | EE24: 398 | EF24: 142 | EG24: 153 | EH24: 156 | EI24: 187
B25: KO Lid Weight | C25: KO Lid Weight | D25: LBS | DT25: 1545 | DU25: 1545 | DV25: 1545 | DW25: 1545 | DX25: 2710 | DY25: 4935 | DZ25: 1112 | EA25: 1112 | EB25: 1279 | EC25: 1446 | ED25: 1880 | EE25: 2847 | EF25: 804 | EG25: 1112 | EH25: 1446 | EI25: 1471
B26: KO Lid Height | C26: KO Lid Height Inches | D26: Inch | DT26: 12 | DU26: 12 | DV26: 12 | DW26: 12 | DX26: 13 | DY26: 15 | DZ26: 8 | EA26: 8 | EB26: 8 | EC26: 8 | ED26: 8 | EE26: 8 | EF26: 6 | EG26: 6 | EH26: 6 | EI26: 6
B27: Lid for KO Structure (18"x18" Opening) | C27: 18x18 | D27: Product ID | DT27: Input Here | DU27: Input Here | DV27: Input Here | DW27: Input Here | DX27: Input Here | DY27: Input Here | DZ27: Input Here | EA27: Input Here | EF27: Not Available
B28: Lid for KO Structure (18"x36" Opening) | C28: 18x36 | D28: Product ID | DT28: Input Here | DU28: Input Here | DV28: Input Here | DW28: Input Here | DX28: Input Here | DY28: Input Here | DZ28: Not Available | EA28: Not Available | EB28: Not Available | EF28: Not Available | EG28: Not Available | EI28: Not Available
B29: Lid for KO Structure (24"x24" Opening) | C29: 24x24 | D29: Product ID | DT29: Input Here | DU29: Input Here | DV29: Input Here | DW29: Input Here | DX29: Input Here | DY29: Input Here | DZ29: Not Available | EA29: Not Available | EF29: Not Available | EG29: Not Available
B30: Lid for KO Structure (24"x30" Opening) | C30: 24x30 | D30: Product ID | DT30: Input Here | DU30: Input Here | DV30: Input Here | DW30: Input Here | DX30: Input Here | DY30: Input Here | DZ30: Not Available | EA30: Not Available | EB30: Not Available | EF30: Not Available | EG30: Not Available
B31: Lid for KO Structure (24"x36" Opening) | C31: 24x36 | D31: Product ID | DT31: Input Here | DU31: Input Here | DV31: Input Here | DW31: Input Here | DX31: Input Here | DY31: Input Here | DZ31: Not Available | EA31: Not Available | EB31: Not Available | EC31: Not Available | EF31: Not Available | EG31: Not Available | EH31: Not Available | EI31: Not Available
B32: Lid for KO Structure (30"x30" Opening) | C32: 30x30 | D32: Product ID | DT32: Input Here | DU32: Input Here | DV32: Input Here | DW32: Input Here | DX32: Input Here | DY32: Input Here | DZ32: Not Available | EA32: Not Available | EB32: Not Available | EC32: Not Available | EF32: Not Available | EG32: Not Available | EH32: Not Available | EI32: Not Available
B33: Lid for KO Structure (33"x33" Opening) | C33: 33x33 | D33: Product ID | DT33: Input Here | DU33: Input Here | DV33: Input Here | DW33: Input Here | DX33: Not Available | DY33: Not Available | DZ33: Not Available | EA33: Not Available | EB33: Not Available | EC33: Not Available | ED33: Not Available | EE33: Not Available | EF33: Not Available | EG33: Not Available | EH33: Not Available | EI33: Not Available
B34: Lid for KO Structure (36"x36" Opening) | C34: 36x36 | D34: Product ID | DT34: Not Available | DU34: Not Available | DV34: Not Available | DW34: Not Available | DX34: Input Here | DY34: Input Here | DZ34: Not Available | EA34: Not Available | EB34: Not Available | EC34: Not Available | ED34: Not Available | EF34: Not Available | EG34: Not Available | EH34: Not Available | EI34: Not Available
B35: Lid for KO Structure (48"x48" Opening) | C35: 48x48 | D35: Product ID | DT35: Not Available | DU35: Not Available | DV35: Not Available | DW35: Not Available | DX35: Not Available | DY35: Input Here | DZ35: Not Available | EA35: Not Available | EB35: Not Available | EC35: Not Available | ED35: Not Available | EE35: Not Available | EF35: Not Available | EG35: Not Available | EH35: Not Available | EI35: Not Available
B36: Lid for KO Structure (24" Dia. Opening) | C36: 24 Dia | D36: Product ID | DT36: Input Here | DU36: Input Here | DV36: Input Here | DW36: Input Here | DX36: Input Here | DY36: Input Here | DZ36: Input Here | EA36: Input Here | EF36: Not Available
B37: Lid for KO Structure (30" Dia. Opening) | C37: 30 Dia | D37: Product ID | DT37: Input Here | DU37: Input Here | DV37: Input Here | DW37: Input Here | DX37: Input Here | DY37: Input Here | DZ37: Not Available | EA37: Not Available | EB37: Not Available | EC37: Not Available | EF37: Not Available | EG37: Not Available | EH37: Not Available
B38: Lid for KO Structure (36" Dia. Opening) | C38: 36 Dia | D38: Product ID | DT38: Input Here | DU38: Input Here | DV38: Input Here | DW38: Input Here | DX38: Input Here | DY38: Input Here | DZ38: Not Available | EA38: Not Available | EB38: Not Available | EC38: Not Available | EF38: Not Available | EG38: Not Available | EH38: Not Available | EI38: Not Available
B39: Lid for KO Structure (48" Dia. Opening) | C39: 48 Dia | D39: Product ID | DT39: Not Available | DU39: Not Available | DV39: Not Available | DW39: Not Available | DX39: Input Here | DY39: Input Here | DZ39: Not Available | EA39: Not Available | EB39: Not Available | EC39: Not Available | ED39: Not Available | EF39: Not Available | EG39: Not Available | EH39: Not Available
B40: 12" Plain Riser Price | C40: KO Riser Price | D40: Dollar | DT40: 102 | DU40: 102 | DV40: 102 | DW40: 102 | DX40: 167 | DY40: 255 | DZ40: 164 | EA40: 164 | EB40: 179 | EC40: 194 | ED40: 215 | EE40: 261 | EF40: 120 | EG40: 125 | EH40: 138 | EI40: 162
B41: 12" Plain Riser Weight | C41: KO Riser Weight | D41: LBS | DT41: 867 | DU41: 867 | DV41: 867 | DW41: 867 | DX41: 1300 | DY41: 1810 | DZ41: 1068 | EA41: 1068 | EB41: 1170 | EC41: 1268 | ED41: 1475 | EE41: 1877 | EF41: 600 | EG41: 750 | EH41: 900 | EI41: 900
B42: 12" Plain Riser Product ID | C42: Riser Product ID | D42: Product ID | DT42: Input Riser Here | DU42: Input Riser Here | DV42: Input Riser Here | DW42: Input Riser Here | DX42: Input Riser Here | DY42: Input Riser Here | DZ42: Input Riser Here | EA42: Input Riser Here | EB42: Input Riser Here | EC42: Input Riser Here | ED42: Input Riser Here | EE42: Input Riser Here | EF42: Input Riser Here | EG42: Input Riser Here | EH42: Input Riser Here | EI42: Input Riser Here
B43: 24" Plain Riser Price | C43: KO Riser Price | D43: Dollar | DT43: 204 | DU43: 204 | DV43: 204 | DW43: 204 | DX43: 334 | DY43: 510 | DZ43: 328 | EA43: 328 | EB43: 358 | EC43: 388 | ED43: 430 | EE43: 522 | EF43: 240 | EG43: 250 | EH43: 276 | EI43: 324
B44: 24" Plain Riser Weight | C44: KO Riser Weight | D44: LBS | DT44: 1734 | DU44: 1734 | DV44: 1734 | DW44: 1734 | DX44: 2600 | DY44: 3620 | DZ44: 2135 | EA44: 2135 | EB44: 2340 | EC44: 2535 | ED44: 2950 | EE44: 3754 | EF44: 1200 | EG44: 1500 | EH44: 1800 | EI44: 1800
B45: 24" Plain Riser Product ID | C45: Riser Product ID | D45: Product ID | DT45: Input Riser Here | DU45: Input Riser Here | DV45: Input Riser Here | DW45: Input Riser Here | DX45: Input Riser Here | DY45: Input Riser Here | DZ45: Input Riser Here | EA45: Input Riser Here | EB45: Input Riser Here | EC45: Input Riser Here | ED45: Input Riser Here | EE45: Input Riser Here | EF45: Input Riser Here | EG45: Input Riser Here | EH45: Input Riser Here | EI45: Input Riser Here
B46: 36" Plain Riser Price | C46: KO Riser Price | D46: Dollar | DT46: 306 | DU46: 306 | DV46: 306 | DW46: 306 | DX46: 501 | DY46: 765
B47: 36" Plain Riser Weight | C47: KO Riser Weight | D47: LBS | DT47: 2601 | DU47: 2601 | DV47: 2601 | DW47: 2601 | DX47: 3900 | DY47: 5430
B48: 36" Plain Riser Product ID | C48: Riser Product ID | D48: Product ID | DT48: Input Riser Here | DU48: Input Riser Here | DV48: Input Riser Here | DW48: Input Riser Here | DX48: Input Riser Here | DY48: Input Riser Here
B49: 48" Plain Riser Price | C49: KO Riser Price | D49: Dollar | DT49: 408 | DU49: 408 | DV49: 408 | DW49: 408 | DX49: 668 | DY49: 1020
B50: 48" Plain Riser Weight | C50: KO Riser Weight | D50: LBS | DT50: 3468 | DU50: 3468 | DV50: 3468 | DW50: 3468 | DX50: 5200 | DY50: 7194
B51: 48" Plain Riser Product ID | C51: Riser Product ID | D51: Product ID | DT51: Input Riser Here | DU51: Input Riser Here | DV51: Input Riser Here | DW51: Input Riser Here | DX51: Input Riser Here | DY51: Input Riser Here
B52: 60" Plain Riser Price | C52: KO Riser Price | D52: Dollar | DT52: 510 | DU52: 510 | DV52: 510 | DW52: 510 | DX52: 853 | DY52: 1275
B53: 60" Plain Riser Weight | C53: KO Riser Weight | D53: LBS | DT53: 4335 | DU53: 4335 | DV53: 4335 | DW53: 4335 | DX53: 6500 | DY53: 8992
B54: 60" Plain Riser Product ID | C54: Riser Product ID | D54: Product ID | DT54: Input Riser Here | DU54: Input Riser Here | DV54: Input Riser Here | DW54: Input Riser Here | DX54: Input Riser Here | DY54: Input Riser Here
B55: 72" Plain Riser Price | C55: KO Riser Price | D55: Dollar | DX55: 1002 | DY55: 1530
B56: 72" Plain Riser Weight | C56: KO Riser Weight | D56: LBS | DX56: 7800 | DY56: 10791
B57: 72" Plain Riser Product ID | C57: Riser Product ID | D57: Product ID | DX57: Input Riser Here | DY57: Input Riser Here
B58: Standard Base Slab Extension | C58: Base Ext | D58: Inch | G58: 7 | H58: 8 | I58: 7 | J58: 10.5 | K58: 8 | L58: 14 | M58: 14 | N58: 8 | O58: 14 | P58: 8 | BM58: 8 | BN58: 8 | BO58: 8 | BP58: 8 | BQ58: 8 | BR58: 8 | BS58: 8 | BT58: 8 | BU58: 8 | DP58: 6 | DQ58: 6 | DR58: 6 | DS58: 6
B59: 2' Plain Base & Top | C59: 2 | D59: Dollar | G59: 438.9 | H59: 626 | I59: 1163 | J59: 1680.6 | K59: 1923 | L59: 3546.2 | M59: 4866 | N59: 7262 | O59: 8115 | P59: 12067
B60: 3' Plain Base & Top | C60: 3 | D60: Dollar | G60: 518.1 | H60: 735 | I60: 1340 | J60: 1932.7 | K60: 2190 | L60: 3961 | M60: 5333 | N60: 7951.3 | O60: 8879 | P60: 13116
B61: 4' Plain Base & Top | C61: 4 | D61: Dollar | G61: 600.1 | H61: 848 | I61: 1525 | J61: 2195.1 | K61: 2469 | L61: 4401.5 | M61: 5838 | N61: 8696.8 | O61: 9706 | P61: 14259
B62: 5' Plain Base & Top | C62: 5 | D62: Dollar | G62: 651.6 | H62: 918 | I62: 1634 | J62: 2350 | K62: 2628 | L62: 4630 | M62: 6067 | N62: 9032.5 | O62: 10076 | P62: 14735
B63: 6' Plain Base & Top | C63: 6 | D63: Dollar | G63: 718.6 | H63: 1010 | I63: 1782 | J63: 2561.3 | K63: 2851 | L63: 4974.1 | M63: 6453 | N63: 9602.7 | O63: 10708 | P63: 15600
B64: 7' Plain Base & Top | C64: 7 | D64: Dollar | G64: 773.5 | H64: 1085 | I64: 1901 | J64: 2729.8 | K64: 3027 | L64: 5238.4 | M64: 6739 | N64: 10023.9 | O64: 11174 | P64: 16225
B65: 8' Plain Base & Top | C65: 8 | D65: Dollar | G65: 831.8 | H65: 1165 | I65: 2030 | J65: 2914 | K65: 3221 | L65: 5538.3 | M65: 7074 | N65: 10517.6 | O65: 11721 | P65: 16971
B66: 9' Plain Base & Top | C66: 9 | D66: Dollar | G66: 876.5 | H66: 1226 | I66: 2126 | J66: 3050.8 | K66: 3363 | L66: 5747.5 | M66: 7296 | N66: 10845.1 | O66: 12083 | P66: 17452
B67: 10' Plain Base & Top | C67: 10 | D67: Dollar | G67: 927.6 | H67: 1296 | I67: 2238 | J67: 3209.7 | K67: 3530 | L67: 6002.6 | M67: 7579 | N67: 11262.2 | O67: 12545 | P67: 18079
B68: Plain VF of Riser | C68: VF Adder Rate | D68: Dollar | G68: 74 | H68: 102 | I68: 167 | J68: 239.1 | K68: 255 | L68: 404.2 | M68: 472 | N68: 699 | O68: 776 | P68: 1079
B69: Plain Base Slab Deduct | C69: Round Base Slab Deduct | D69: Dollar | G69: 139.5 | H69: 202 | I69: 414 | J69: 548.6 | K69: 591 | L69: 1072.7 | M69: 1901 | N69: 2563.9 | O69: 2950 | P69: 4308
B70: Plain Lid Slab | C70: Round Lid Slab Deduct | D70: Dollar | G70: 196.2 | H70: 257 | I70: 396 | J70: 646.7 | K70: 706 | L70: 1319.6 | M70: 1559 | N70: 2101.6 | O70: 2418 | P70: 3539
B71: Standard Plain Base Extension | C71: Base Ext Adder | D71: Dollar | G71: 90.2 | H71: 111 | I71: 202 | J71: 460.7 | K71: 286 | L71: 617.9 | M71: 681 | N71: 750 | O71: 866 | P71: 1025 | BM71: 480 | BN71: 500 | BO71: 520 | BP71: 540 | BQ71: 560 | BR71: 640 | BS71: 621 | BT71: 640 | BU71: 660
B72: 8" Plain Invert | C72: 8 | D72: Dollar | G72: 81 | H72: 120 | I72: 196 | J72: 272.7 | K72: 295
B73: 10" Plain Invert | C73: 10 | D73: Dollar | G73: 96.7 | H73: 143 | I73: 235 | J73: 331.8 | K73: 359
B74: 12" Plain Invert | C74: 12 | D74: Dollar | G74: 109.4 | H74: 162 | I74: 271 | J74: 388.3 | K74: 420
B75: 15" Plain Invert | C75: 15 | D75: Dollar | G75: 125.6 | H75: 186 | I75: 317 | J75: 466 | K75: 504
B76: 18" Plain Invert | C76: 18 | D76: Dollar | G76: 137.1 | H76: 203 | I76: 355 | J76: 535.2 | K76: 579
B77: 24" Plain Invert | C77: 24 | D77: Dollar | G77: n/a | H77: 217 | I77: 406 | J77: 650.8 | K77: 704
B78: 30" Plain Invert | C78: 30 | D78: Dollar | G78: n/a | H78: 203 | I78: 423 | J78: 735.8 | K78: 796
B79: 36" Plain Invert | C79: 36 | D79: Dollar | G79: n/a | H79: n/a | I79: 406 | J79: 788.5 | K79: 853
B80: 42" Plain Invert | C80: 42 | D80: Dollar | G80: n/a | H80: n/a | I80: 355 | J80: 810.7 | K80: 877
B81: 48" Plain Invert | C81: 48 | D81: Dollar | G81: n/a | H81: n/a | I81: n/a | J81: n/a | K81: 867
B82: 2' Xypex Base & Top | C82: 2 | D82: Dollar | G82: 540.5 | H82: 771 | I82: 1409 | J82: 2006.6 | K82: 2296 | L82: 4181 | M82: 5737 | N82: 8467.5 | O82: 9462 | P82: 13938
B83: 3' Xypex Base & Top | C83: 3 | D83: Dollar | G83: 640.8 | H83: 909 | I83: 1572 | J83: 2238.1 | K83: 2536 | L83: 4539.6 | M83: 6112 | N83: 9029.5 | O83: 10083 | P83: 14776
B84: 4' Xypex Base & Top | C84: 4 | D84: Dollar | G84: 743.8 | H84: 1051 | I84: 1857 | J84: 2393.4 | K84: 2692 | L84: 5212.8 | M84: 6914 | N84: 10186 | O84: 11368 | P84: 16538
B85: 5' Xypex Base & Top | C85: 5 | D85: Dollar | G85: 817 | H85: 1151 | I85: 2009 | J85: 2845.4 | K85: 3182 | L85: 5529.7 | M85: 7246 | N85: 10663.1 | O85: 11895 | P85: 17219
B86: 6' Xypex Base & Top | C86: 6 | D86: Dollar | G86: 904.3 | H86: 1271 | I86: 2201 | J86: 3112.9 | K86: 3465 | L86: 5963 | M86: 7736 | N86: 11374.8 | O86: 12684 | P86: 18287
B87: 7' Xypex Base & Top | C87: 7 | D87: Dollar | G87: 980.2 | H87: 1375 | I87: 2362 | J87: 3337.6 | K87: 3701 | L87: 6315.8 | M87: 8125 | N87: 11937.4 | O87: 13307 | P87: 19117
B88: 8' Xypex Base & Top | C88: 8 | D88: Dollar | G88: 1059.6 | H88: 1484 | I88: 2535 | J88: 3579 | K88: 3956 | L88: 6703.3 | M88: 8562 | N88: 12572.5 | O88: 14011 | P88: 20067
B89: 9' Xypex Base & Top | C89: 9 | D89: Dollar | G89: 1125.3 | H89: 1574 | I89: 2674 | J89: 3771.9 | K89: 4158 | L89: 7001.6 | M89: 8888 | N89: 13041.4 | O89: 14530 | P89: 20751
B90: 10' Xypex Base & Top | C90: 10 | D90: Dollar | G90: 1196.6 | H90: 1672 | I90: 2829 | J90: 3987.1 | K90: 4385 | L90: 7345 | M90: 9274 | N90: 13600.8 | O90: 15150 | P90: 21583
B91: Xypex VF of Riser | C91: VF Adder Rate | D91: Dollar | G91: 95.1 | H91: 131 | I91: 211 | J91: 295.4 | K91: 315 | L91: 492.4 | M91: 575 | N91: 840.4 | O91: 933 | P91: 1284
B92: Xypex Base Slab Deduct | C92: Round Base Slab Deduct | D92: Dollar | G92: 171.2 | H92: 248 | I92: 509 | J92: 676.7 | K92: 729 | L92: 1305.8 | M92: 2314 | N92: 3121 | O92: 3591 | P92: 5206
B93: Xypex Lid Slab | C93: Round Lid Slab Deduct | D93: Dollar | G93: 233.6 | H93: 306 | I93: 471 | J93: 769.4 | K93: 840 | L93: 1559.1 | M93: 1842 | N93: 2484 | O93: 2858 | P93: 4154
B94: Xypex Plain Base Extension | C94: Base Ext Adder | D94: Dollar | G94: 113.8 | H94: 140 | I94: 242 | J94: 547.7 | K94: 340 | L94: 735.8 | M94: 811 | N94: 915 | O94: 1025 | P94: 1175
B95: 8" Xypex Invert | C95: 8 | D95: Dollar | G95: 96.6 | H95: 143 | I95: 233 | J95: 324.4 | K95: 351
B96: 10" Xypex Invert | C96: 10 | D96: Dollar | G96: 114.9 | H96: 170 | I96: 280 | J96: 395.6 | K96: 428
B97: 12" Xypex Invert | C97: 12 | D97: Dollar | G97: 130.3 | H97: 193 | I97: 322 | J97: 462.3 | K97: 500
B98: 15" Xypex Invert | C98: 15 | D98: Dollar | G98: 149.9 | H98: 222 | I98: 378 | J98: 553.8 | K98: 599
B99: 18" Xypex Invert | C99: 18 | D99: Dollar | G99: 163.4 | H99: 242 | I99: 423 | J99: 636.9 | K99: 689
B100: 24" Xypex Invert | C100: 24 | D100: Dollar | G100: n/a | H100: 258 | I100: 484 | J100: 774.7 | K100: 838
B101: 30" Xypex Invert | C101: 30 | D101: Dollar | G101: n/a | H101: 242 | I101: 504 | J101: 875.3 | K101: 947
B102: 36" Xypex Invert | C102: 36 | D102: Dollar | G102: n/a | H102: n/a | I102: 484 | J102: 939.2 | K102: 1016
B103: 42" Xypex Invert | C103: 42 | D103: Dollar | G103: n/a | H103: n/a | I103: 423 | J103: 965 | K103: 1044
B104: 48" Xypex Invert | C104: 48 | D104: Dollar | G104: n/a | H104: n/a | I104: n/a | J104: n/a | K104: 1032
B105: 2' Con-Block MIC Base & Top | C105: 2 | D105: Dollar | G105: 632.3 | H105: 902 | I105: 1631 | J105: 2299.4 | K105: 2631 | L105: 4751.6 | M105: 6520 | N105: 9553.8 | O105: 10676 | P105: 15622
B106: 3' Con-Block MIC Base & Top | C106: 3 | D106: Dollar | G106: 751.4 | H106: 1066 | I106: 1890 | J106: 2658.2 | K106: 3012 | L106: 5335.1 | M106: 7183 | N106: 10512.5 | O106: 11739 | P106: 17059
B107: 4' Con-Block MIC Base & Top | C107: 4 | D107: Dollar | G107: 873.3 | H107: 1234 | I107: 2156 | J107: 3028.1 | K107: 3406 | L107: 5943.4 | M107: 7883 | N107: 11526.4 | O107: 12864 | P107: 18590
B108: 5' Con-Block MIC Base & Top | C108: 5 | D108: Dollar | G108: 965.3 | H108: 1360 | I108: 2347 | J108: 3290.7 | K108: 3680 | L108: 6340.2 | M108: 8308 | N108: 12130.6 | O108: 13532 | P108: 19454
B109: 6' Con-Block MIC Base & Top | C109: 6 | D109: Dollar | G109: 1071.5 | H109: 1506 | I109: 2578 | J109: 3608.8 | K109: 4017 | L109: 6852.6 | M109: 8890 | N109: 12970.1 | O109: 14463 | P109: 20706
B110: 7' Con-Block MIC Base & Top | C110: 7 | D110: Dollar | G110: 1166.3 | H110: 1636 | I110: 2778 | J110: 3885 | K110: 4308 | L110: 7285.1 | M110: 9372 | N110: 13659.8 | O110: 15227 | P110: 21719
B111: 8' Con-Block MIC Base & Top | C111: 8 | D111: Dollar | G111: 1264.5 | H111: 1771 | I111: 2990 | J111: 4177 | K111: 4617 | L111: 7752.4 | M111: 9902 | N111: 14422.8 | O111: 16073 | P111: 22853
B112: 9' Con-Block MIC Base & Top | C112: 9 | D112: Dollar | G112: 1349 | H112: 1887 | I112: 3168 | J112: 4420.5 | K112: 4873 | L112: 8130.4 | M112: 10321 | N112: 15018.7 | O112: 16733 | P112: 23721
B113: 10' Con-Block MIC Base & Top | C113: 10 | D113: Dollar | G113: 1439.3 | H113: 2011 | I113: 3361 | J113: 4686.3 | K113: 5154 | L113: 8552.8 | M113: 10799 | N113: 15705.1 | O113: 17494 | P113: 24736
B114: Con-Block MIC VF of Riser | C114: VF Adder Rate | D114: Dollar | G114: 113.9 | H114: 157 | I114: 249 | J114: 347 | K114: 370 | L114: 572 | M114: 668 | N114: 967.4 | O114: 1074 | P114: 1467
B115: Con-Block MIC Base Slab Deduct | C115: Round Base Slab Deduct | D115: Dollar | G115: 199.5 | H115: 289 | I115: 593 | J115: 786.2 | K115: 847 | L115: 1515.7 | M115: 2686 | N115: 3622.5 | O115: 4168 | P115: 6013
B116: Con-Block MIC Lid Slab | C116: Round Lid Slab Deduct | D116: Dollar | G116: 275.6 | H116: 361 | I116: 556 | J116: 907.7 | K116: 991 | L116: 1829.2 | M116: 2161 | N116: 2914.2 | O116: 3353 | P116: 4847
B117: Con-Block MIC Plain Base Extension | C117: Base Ext Adder | D117: Dollar | G117: 134.9 | H117: 166 | I117: 279 | J117: 626.6 | K117: 389 | L117: 841.9 | M117: 928 | N117: 1050 | O117: 1168 | P117: 1311
B118: 8" Con-Block MIC Invert | C118: 8 | D118: Dollar | G118: 114.1 | H118: 169 | I118: 275 | J118: 382.7 | K118: 414
B119: 10" Con-Block MIC Invert | C119: 10 | D119: Dollar | G119: 135.9 | H119: 201 | I119: 330 | J119: 466.8 | K119: 505
B120: 12" Con-Block MIC Invert | C120: 12 | D120: Dollar | G120: 153.9 | H120: 228 | I120: 380 | J120: 545.4 | K120: 590
B121: 15" Con-Block MIC Invert | C121: 15 | D121: Dollar | G121: 176.9 | H121: 262 | I121: 446 | J121: 653.6 | K121: 707
B122: 18" Con-Block MIC Invert | C122: 18 | D122: Dollar | G122: 192.4 | H122: 285 | I122: 499 | J122: 751.5 | K122: 813
B123: 24" Con-Block MIC Invert | C123: 24 | D123: Dollar | G123: n/a | H123: 304 | I123: 571 | J123: 914.3 | K123: 989
B124: 30" Con-Block MIC Invert | C124: 30 | D124: Dollar | G124: n/a | H124: 285 | I124: 594 | J124: 1033.4 | K124: 1118
B125: 36" Con-Block MIC Invert | C125: 36 | D125: Dollar | G125: n/a | H125: n/a | I125: 571 | J125: 1107.4 | K125: 1198
B126: 42" Con-Block MIC Invert | C126: 42 | D126: Dollar | G126: n/a | H126: n/a | I126: 499 | J126: 1138.8 | K126: 1232
B127: 48" Con-Block MIC Invert | C127: 48 | D127: Dollar | G127: n/a | H127: n/a | I127: n/a | J127: n/a | K127: 1217
B128: 2' Con-Block MIC + Xypex Base & Top | C128: 2 | D128: Dollar | G128: 734.7 | H128: 1048 | I128: 1877 | J128: 2625.3 | K128: 3004 | L128: 5386.3 | M128: 7391 | N128: 10760.2 | O128: 12024 | P128: 17493
B129: 3' Con-Block MIC + Xypex Base & Top | C129: 3 | D129: Dollar | G129: 874.8 | H129: 1241 | I129: 2121 | J129: 2964.4 | K129: 3359 | L129: 5913.7 | M129: 7962 | N129: 11590.7 | O129: 12943 | P129: 18719
B130: 4' Con-Block MIC + Xypex Base & Top | C130: 4 | D130: Dollar | G130: 1016.9 | H130: 1437 | I130: 2488 | J130: 3467.3 | K130: 3900 | L130: 6755.3 | M130: 8960 | N130: 13015.6 | O130: 14526 | P130: 20869
B131: 5' Con-Block MIC + Xypex Base & Top | C131: 5 | D131: Dollar | G131: 1130 | H131: 1592 | I131: 2723 | J131: 3786.1 | K131: 4234 | L131: 7239.9 | M131: 9487 | N131: 13762.1 | O131: 15352 | P131: 21937
B132: 6' Con-Block MIC + Xypex Base & Top | C132: 6 | D132: Dollar | G132: 1257.2 | H132: 1767 | I132: 2996 | J132: 4160.4 | K132: 4631 | L132: 7841.5 | M132: 10173 | N132: 14742.2 | O132: 16439 | P132: 23393
B133: 7' Con-Block MIC + Xypex Base & Top | C133: 7 | D133: Dollar | G133: 1373 | H133: 1926 | I133: 3240 | J133: 4492.8 | K133: 4982 | L133: 8362.4 | M133: 10758 | N133: 15574.1 | O133: 17361 | P133: 24610
B134: 8' Con-Block MIC + Xypex Base & Top | C134: 8 | D134: Dollar | G134: 1492.2 | H134: 2090 | I134: 3495 | J134: 4841 | K134: 5351 | L134: 8918.1 | M134: 11391 | N134: 16478.5 | O134: 18364 | P134: 25948
B135: 9' Con-Block MIC + Xypex Base & Top | C135: 9 | D135: Dollar | G135: 1597.8 | H135: 2235 | I135: 3716 | J135: 5141.7 | K135: 5668 | L135: 9383.7 | M135: 11912 | N135: 17215.9 | O135: 19181 | P135: 27021
B136: 10' Con-Block MIC + Xypex Base & Top | C136: 10 | D136: Dollar | G136: 1709.1 | H136: 2388 | I136: 3953 | J136: 5463.7 | K136: 6009 | L136: 9895.3 | M136: 12494 | N136: 18043.7 | O136: 20099 | P136: 28240
B137: Con-Block MIC + Xypex VF of Riser | C137: VF Adder Rate | D137: Dollar | G137: 134.9 | H137: 186 | I137: 293 | J137: 403.2 | K137: 430 | L137: 660.2 | M137: 771 | N137: 1108.8 | O137: 1231 | P137: 1671
B138: Con-Block MIC + Xypex Base Slab Deduct | C138: Round Base Slab Deduct | D138: Dollar | G138: 231.3 | H138: 335 | I138: 668 | J138: 910.6 | K138: 981 | L138: 1749.3 | M138: 3100 | N138: 4179.6 | O138: 4809 | P138: 6911
B139: Con-Block MIC + Xypex Lid Slab | C139: Round Lid Slab Deduct | D139: Dollar | G139: 313 | H139: 410 | I139: 631 | J139: 1031.3 | K139: 1126 | L139: 2068.7 | M139: 2444 | N139: 3295.7 | O139: 3792 | P139: 5462
B140: Con-Block MIC + Xypex Plain Base Ext. | C140: Base Ext Adder | D140: Dollar | G140: 158.5 | H140: 195 | I140: 319 | J140: 715.2 | K140: 444 | L140: 959.9 | M140: 1058 | N140: 1200 | O140: 1327 | P140: 1461
B141: 8" Con-Block MIC + Xypex Invert | C141: 8 | D141: Dollar | G141: 129.6 | H141: 192 | I141: 312 | J141: 434.4 | K141: 470
B142: 10" Con-Block MIC + Xypex Invert | C142: 10 | D142: Dollar | G142: 154.1 | H142: 228 | I142: 375 | J142: 529.6 | K142: 573
B143: 12" Con-Block MIC + Xypex Invert | C143: 12 | D143: Dollar | G143: 174.8 | H143: 259 | I143: 432 | J143: 619.4 | K143: 670
B144: 15" Con-Block MIC + Xypex Invert | C144: 15 | D144: Dollar | G144: 200.5 | H144: 297 | I144: 506 | J144: 742.4 | K144: 803
B145: 18" Con-Block MIC + Xypex Invert | C145: 18 | D145: Dollar | G145: 218.7 | H145: 324 | I145: 567 | J145: 853.2 | K145: 923
B146: 24" Con-Block MIC + Xypex Invert | C146: 24 | D146: Dollar | G146: n/a | H146: 346 | I146: 648 | J146: 1038.2 | K146: 1123
B147: 30" Con-Block MIC + Xypex Invert | C147: 30 | D147: Dollar | G147: n/a | H147: 324 | I147: 675 | J147: 1172.9 | K147: 1269
B148: 36" Con-Block MIC + Xypex Invert | C148: 36 | D148: Dollar | G148: n/a | H148: n/a | I148: 648 | J148: 1258 | K148: 1361
B149: 42" Con-Block MIC + Xypex Invert | C149: 42 | D149: Dollar | G149: n/a | H149: n/a | I149: 567 | J149: 1293.1 | K149: 1399
B150: 48" Con-Block MIC + Xypex Invert | C150: 48 | D150: Dollar | G150: n/a | H150: n/a | I150: n/a | J150: n/a | K150: 1382
B154: Table 2 - Transition Structures
B156: Description | C156: Cell | D156: Unit
B157: Structure Size | C157: Reference | E157: Yes Top | F157: No Top | G157: Trans 48"R W/Top | H157: Trans 60"R W/Top | I157: Trans 24"x24" Riser | J157: Trans 24"x24" W/Top | K157: Trans 24"x30" Riser | L157: Trans 24"x30" W/Top | M157: Trans 24"x36" Riser | N157: Trans 24"x36" W/Top | O157: Trans 36"x36" Riser | P157: Trans 36"x36" W/Top
B158: Structure Diamater | C158: Dia (inches) | D158: Inch | G158: 48 | H158: 60
B159: Structure Width | C159: Width (inches) | D159: Inch | I159: 24 | J159: 24 | K159: 24 | L159: 24 | M159: 24 | N159: 24 | O159: 36 | P159: 36
B160: Structure Length | C160: Length (inches) | D160: Inch | I160: 24 | J160: 24 | K160: 30 | L160: 30 | M160: 36 | N160: 36 | O160: 36 | P160: 36
B161: Standard Top Thickness | C161: Lid | D161: Inch | G161: 8 | H161: 8 | J161: 8 | L161: 8 | N161: 8 | P161: 8
B162: Standard Wall Thickness | C162: Walls | D162: Inch | G162: 5 | H162: 6 | I162: 8 | J162: 8 | K162: 8 | L162: 8 | M162: 8 | N162: 8 | O162: 8 | P162: 8
B163: Standard Top Avg. Weight | C163: Top Weight | D163: LBS | G163: 1660 | H163: 2527 | J163: 1120 | L163: 1279 | N163: 1448 | P163: 1866
B164: Standard Riser Avg. VF Weight | C164: Riser VF Weight | D164: LBS | G164: 860 | H164: 1300 | I164: 1070 | J164: 1070 | K164: 1168 | L164: 1168 | M164: 1266 | N164: 1266 | O164: 1458 | P164: 1458
B165: Structure Type | C165: Structure Type | G165: Round | H165: Round | I165: Flat Wall | J165: Flat Wall | K165: Flat Wall | L165: Flat Wall | M165: Flat Wall | N165: Flat Wall | O165: Flat Wall | P165: Flat Wall
B166: Transition Status | C166: Transition Status | E166: Top Slab | F166: No Top | G166: Transition | H166: Transition | I166: Transition | J166: Transition | K166: Transition | L166: Transition | M166: Transition | N166: Transition | O166: Transition | P166: Transition
B167: Pipe Chamber Top or Transition Used? | C167: Pipe Chamber Top Status | E167: Top Slab | F167: No Top | G167: Yes Top | H167: Yes Top | I167: Yes Top | J167: Yes Top | K167: Yes Top | L167: Yes Top | M167: Yes Top | N167: Yes Top | O167: Yes Top | P167: Yes Top
B168: Top Slab Over Transition Riser | C168: Trans. Top | D168: Dollar | G168: 257 | H168: 396 | J168: 170 | L168: 196 | N168: 221 | P168: 275
B169: Plain Concrete VF Adder Rate | C169: Trans. Riser | D169: Dollar | G169: 102 | H169: 167 | I169: 164 | J169: 164 | K169: 179 | L169: 179 | M169: 194 | N169: 194 | O169: 215 | P169: 215
B170: Xypex Top Slab Over Transition Riser | C170: Trans. Top | D170: Dollar | G170: 306 | H170: 471
B171: Xypex Concrete VF Adder Rate | C171: Trans. Riser | D171: Dollar | G171: 131 | H171: 211
B172: MIC Top Slab Over Transition Riser | C172: Trans. Top | D172: Dollar | G172: 361 | H172: 556
B173: MIC Concrete VF Adder Rate | C173: Trans. Riser | D173: Dollar | G173: 157 | H173: 249
B174: MIC+Xypex Top Slab Over Transition Riser | C174: Trans. Top | D174: Dollar | G174: 410 | H174: 631
B175: MIC+Xypex Concrete VF Adder Rate | C175: Trans. Riser | D175: Dollar | G175: 186 | H175: 293
B179: Table 3 - Casting Product Data
C180: Cell | AFL180: Blank Slot 1 Description | AFM180: Blank Slot 2 Description | AFN180: Blank Slot 3 Description | AFO180: Blank Slot 4 Description | AFP180: Blank Slot 5 Description | AFQ180: Blank Slot 6 Description | AFR180: Blank Slot 7 Description | AFS180: Blank Slot 8 Description | AFT180: Blank Slot 9 Description | AFU180: Blank Slot 10 Description
B181: Casting Make & Model | C181: Reference | D181: Unit | E181: No Casting | F181: Halliday H1W 36 x 48 | G181: Hatch Model | H181: Trench Drain F/G (Per LF) Model | I181: EJ 1578 F/C Plain | J181: EJ 1578 F/C "Cleanout" | K181: HOE MC-82 F/C Plain | L181: HOE MC-162 F/C Plain | M181: HOE MC-260 F/C Plain | N181: HOE MC-260 F/C "Storm" | O181: HOE MC-260 F/C "Sanitary" | P181: HOE MC-260 F/C "Grease" | Q181: HOE MC-260 F/C "Water" | R181: HOE MC-260 F/Vented Cover | S181: HOE MC-350 F/C Plain | T181: HOE MC-350 F/C "Storm" | U181: HOE MC-350 F/C "Sanitary" | V181: HOE MC-350 F/C "Grease" | W181: HOE MC-350 F/C "Water" | X181: HOE MC-350 F/Vented Cover | Y181: HOE MC-350 F/C "LFUCG SAN" | Z181: HOE MC-350 F/C "FSD" | AA181: HOE MC-350-Self Seal F/C | AB181: HOE WT-350-SAN F/C | AC181: HOE WT-350-SAN F/C "LFUCG" | AD181: HOE MC-295 F/C Plain | AE181: HOE MC-295 F/C "Storm" | AF181: HOE MC-295 F/C "Sanitary" | AG181: HOE MC-295 F/C "Grease" | AH181: HOE MC-295 F/C "Water" | AI181: HOE MC-295 F/C Vented | AJ181: HOE MC-315 F/C Plain | AK181: HOE MC-315 F/C "Storm" | AL181: HOE MC-315 F/C "Sanitary" | AM181: HOE MC-315 F/C "Grease" | AN181: HOE MC-315 F/C "Water" | AO181: HOE MC-315 F/C "Oil/Water" | AP181: HOE MC-315 F/Vented Cover | AQ181: HOE MC-315 F/C "iCast Storm" | AR181: HOE MC-315 F/C "iCast Sanitary" | AS181: HOE MC-315 F/C "iCast Grease" | AT181: HOE MC-315 F/C "iCast Oil/Water" | AU181: HOE MC-315 F/C "Henderson Storm" | AV181: HOE MC-315 F/C "Henderson WW" | AW181: HOE MC-315 F/C "RWRA Sanitary" | AX181: HOE MC-315-Self Seal SAN F/C | AY181: HOE WT-315-SAN F/C | AZ181: HOE MC-420 F/C Plain | BA181: HOE MC-420 F/C "Storm" | BB181: HOE MC-420 F/C LOU-MSD "Storm" | BC181: HOE MC-420 F/C "Sanitary" | BD181: HOE MC-420 F/C LOU-MSD "Sanitary" | BE181: HOE MC-420 F/C "Lagrange" | BF181: HOE WT-420 F/C "Sanitary" | BG181: HOE MC-285 F/C Plain | BH181: HOE MC-285 F/C "Storm" | BI181: HOE MC-285 F/C "Sanitary" | BJ181: HOE MC-285 F/C "Water" | BK181: HOE MC-285 F/Vented Cover | BL181: HOE MC-375 F/C Plain | BM181: HOE MC-375 F/C "Storm" | BN181: HOE MC-375 F/C "Sanitary" | BO181: HOE MC-375 F/C "Water" | BP181: HOE MC-375 F/Vented Cover | BQ181: HOE MC-375 F/C "BGMU Sanitary" | BR181: HOE MC-375 F/C "Grease" | BS181: HOE MC-375 F/C "Oil/Water" | BT181: HOE MC-375 F/C "Bio Clean" | BU181: HOE MC-375 F/C "iCast Storm" | BV181: HOE MC-375 F/C "iCast Sanitary" | BW181: HOE MC-375 F/C "iCast Grease" | BX181: HOE MC-375 F/C "iCast Oil/Water" | BY181: HOE MC-375-Self Seal SAN F/C | BZ181: HOE WT-375-SAN F/C | CA181: HOE MC-680 F/C Plain | CB181: HOE MC-680 F/C "Electric" | CC181: HOE MC-680 F/C "Communication" | CD181: HOE MC-780 F/C Plain | CE181: HOE MC-780 F/C "Electric" | CF181: HOE MC-780 F/C "Communication" | CG181: HOE MC-455 F/C Plain | CH181: HOE MC-747 F/C Plain | CI181: HOE MC-900 F/C Plain | CJ181: HOE MCS-295-B F/Bar Grt. (Cast In) | CK181: HOE MCS-295 F/C Plain (Cast In) | CL181: HOE MCS-295 F/C "Storm" (Cast In) | CM181: HOE MCS-295 F/C "Sanitary" (Cast In) | CN181: HOE MCS-295 F/C "Water" (Cast In) | CO181: HOE MCS-295 F/C "Vented" (Cast In) | CP181: HOE MCS-206-B F/Bar Grt. (Cast In) | CQ181: HOE MCS-288-B F/Bar Grt. (Cast In) | CR181: HOE MCS-288 F/C Plain (Cast In) | CS181: HOE MCS-288 F/C "Storm" (Cast In) | CT181: HOE MCS-288 F/C "Sanitary" (Cast In) | CU181: HOE MCS-288 F/C "Water" (Cast In) | CV181: HOE MCS-288 F/C Vented (Cast In) | CW181: HOE MCS-288-BH F/6" Beehive Grt. (Cast In) | CX181: HOE MCS-288-BH F/9" Beehive Grt. (Cast In) | CY181: HOE MCS-290-B F/Bar Grt. (Cast In) | CZ181: HOE MCS-290 F/C Plain (Cast In) | DA181: HOE MCS-290 F/C "Storm" (Cast In) | DB181: HOE MCS-290 F/C "Sanitary" (Cast In) | DC181: HOE MCS-290 F/C "Water" (Cast In) | DD181: HOE MCS-290 F/C Vented (Cast In) | DE181: HOE MCS-455-B F/Bar Grt. (Cast In) | DF181: HOE MCS-455 F/C Plain (Cast In) | DG181: HOE MCS-455 F/C "Sanitary" (Cast In) | DH181: HOE MCS-455 F/C "Water" (Cast In) | DI181: HOE MCS-520 F/Bar Grt. (Cast In) | DJ181: HOE MCS-520 F/C Plain (Cast In) | DK181: HOE MCS-747 F/Bar Grt. (Cast In) | DL181: HOE MCS-747 F/C Plain (Cast In) | DM181: HOE MCS-900 /Bar Grt. (Cast In) | DN181: HOE MCS-900 /C Plain (Cast In) | DO181: HOE MCB-82 F/Bar Grt. | DP181: HOE MCB-162 F/Bar Grt. | DQ181: HOE MCB-260-B F/Bar Grt. | DR181: HOE MCB-260-R F/Radial Grt. | DS181: HOE MCB-260-BH F/7" Beehive Grt. | DT181: HOE MCB-315-B F/Bar Grt. | DU181: HOE MCB-315-R F/Radial Grt. | DV181: HOE MCB-315-BH F/7" Beehive Grt. | DW181: HOE MCB-350-B F/Bar Grt. | DX181: HOE MCB-350-R F/Radial Grt. | DY181: HOE MCB-350-BH F/7" Beehive Grate | DZ181: HOE MCB-295-B F/Bar Grt. | EA181: HOE MCB-295-R F/Radial Grt. | EB181: HOE MCB-295-BH F/7" Beehive Grate | EC181: HOE MCB-420 F/G | ED181: HOE MCB-285-B F/Bar Grt. | EE181: HOE MCB-285-BH F/6" Beehive Grt. | EF181: HOE MCB-375-B F/Bar Grt. | EG181: HOE MCB-375-BH F/6" Beehive Grt. | EH181: HOE MCB-3759-BH F/9" Beehive Grt. | EI181: HOE MCB-520 F/Bar Grt. | EJ181: HOE MCB-455 F/Bar Grt. | EK181: HOE MCB-747 F/Bar Grt. | EL181: HOE MCB-900 F/Bar Grt. | EM181: HOE 165-A F/G | EN181: HOE 280T F/G | EO181: HOE 280T F/G (Cast In) | EP181: HOE 280-BH F/G | EQ181: HOE 280-BH F/G (Cast In) | ER181: HOE 280-Solid F/C | ES181: HOE 280-Solid F/C (Cast In) | ET181: HOE 280T ADA F/G | EU181: HOE 280T ADA F/G (Cast In) | EV181: HOE 320 F/G | EW181: HOE MCS-320 F/G (Cast In) | EX181: HOE 342 F/G | EY181: HOE 342 ADA F/G | EZ181: HOE 275-A F/G | FA181: HOE 275 DBL F/G | FB181: HOE-460 F/G | FC181: HOE 326-BH F/6.25" Beehive Grt. | FD181: HOE 326-BH F/6.25" Beehive Grt. (Cast In) | FE181: HOE 580-A F/G | FF181: HOE 580-LV F/G | FG181: HOE 518 F/G | FH181: HOE 518-DBL F/G | FI181: HOE 468 F/G | FJ181: HOE MCS-468 Reversible F/G (Cast In) | FK181: HOE MCS-468 Reversible F/Solid Cover (Cast In) | FL181: HOE 918 F/G | FM181: HOE 595 F/G | FN181: HOE 598 F/G | FO181: HOE MCS-718 F/G (Cast In) | FP181: HOE-165 Angle F/G (Recessed) | FQ181: HOE-165 Angle F/G (Cast In) | FR181: HOE-315 Angle F/G (Recessed) | FS181: HOE-315 Angle F/G (Cast In) | FT181: HOE-555 Angle F/G (Recessed) | FU181: HOE-555 Angle F/G (Cast In) | FV181: HOE-700 Angle F/G (Recessed) | FW181: HOE-700 Angle F/G (Cast In) | FX181: HOE 465 Set | FY181: HOE 360 Flat Set | FZ181: HOE 360 L Vane Set | GA181: HOE 399 Set | GB181: HOE 470 Flat Set | GC181: HOE 470 L Vane Set | GD181: HOE 525 Flat Set | GE181: HOE 525 L Vane Set | GF181: HOE 525 Vane Set | GG181: HOE 525-DBL Flat Set | GH181: HOE 525-DBL L Vane Set | GI181: HOE 525-Triple Flat Set | GJ181: HOE 525-Triple L Vane Set | GK181: HOE-405 Concave F/G | GL181: HOE-449 Concave F/G | GM181: HOE-410 Roll Curb F/G | GN181: HOE-698 Roll Curb F/G | GO181: EJ 4510 Roll Curb F/G | GP181: HOE KY-206 F/C (KY TY1) | GQ181: HOE KY-206 F/C (KY TY1 Cast In) | GR181: HOE KY-510 F/C (KY TY2) | GS181: HOE KY-316 Set (DBI 1) | GT181: HOE KY-398 Set (DBI 2) | GU181: HOE KY-328 Set (DBI 3) | GV181: HOE KY-410 Set (DBI 4) | GW181: HOE KY-460 Set (DBI 5A) | GX181: HOE KY-460 Set (DBI 5B) | GY181: HOE KY-460 Set (DBI 5C) | GZ181: HOE KY-460 Set (DBI 5D) | HA181: HOE KY-460 Set (DBI 5E) | HB181: HOE KY-460 Set (DBI 5F) | HC181: HOE KY-426 Set (DBI 6A) | HD181: HOE KY-426 Set (DBI 6B) | HE181: HOE KY-426 Set (DBI 6C) | HF181: HOE KY-426 Set (DBI 6D) | HG181: HOE KY-426 Set (DBI 6E) | HH181: HOE KY-426 Set (DBI 6F) | HI181: HOE KY-328 Set (DBI 7 Cast In) | HJ181: HOE KY-550 F/G (DBI 10) | HK181: HOE KY-460-11 F/G | HL181: HOE DBI 12 F/G (Per LF) | HM181: HOE DBI 12A F/G (Per LF) | HN181: HOE KY-230-G F/G (GRADE) | HO181: HOE KY-230-S F/G (SAG) | HP181: HOE KY-210 F/Radial Grt. (DBI 14 Cast In) | HQ181: HOE KY-215 F/Beehive Grt. (DBI 15 Cast In) | HR181: HOE KY Single Safety Inlet (2 Grates) | HS181: HOE KY Double Safety Inlet (4 Grates) | HT181: HOE-169G (Bolt-On Plain Grate) | HU181: HOE-169G (Bolt-On Galvanized Grate) | HV181: HOE-269G (Bolt-On Plain Grate) | HW181: HOE-269G (Bolt-On Galvanized Grate) | HX181: HOE-729G (Bolt-On Plain Grate) | HY181: HOE-729G (Bolt-On Galvanized Grate) | HZ181: HOE-1249G (Bolt-On Plain Grate) | IA181: HOE-1249G (Bolt-On Galvanized Grate) | IB181: HOE-1799G (Bolt-On Plain Grate) | IC181: HOE-1799G (Bolt-On Galvanized Grate) | ID181: HOE KY-161 (12"-18" SBO1) | IE181: HOE KY-300 (24" SBO1) | IF181: HOE KY-272 (12"-18" SFBIO) | IG181: HOE KY-454 (24" SFBIO) | IH181: HOE KY-796 (30" SFBIO) | II181: HOE KY-1218 (36" SFBIO) | IJ181: HOE KY-298 (SBIO TY1) | IK181: HOE KY-206-SB (SBIO TY2) | IL181: HOE KY-345 Set (MBBI) | IM181: HOE KY-206 F/C (CBI A Cast In) | IN181: HOE KY-345 Set (CBI B) | IO181: HOE KY-465 Set (CBI TY F) | IP181: JRH 1-1/2" X 8" TD Angle F/G (Per LF) | IQ181: JRH 1-1/2" X 10" TD Angle F/G (Per LF) | IR181: JRH 1-1/2" X 12" TD Angle F/G (Per LF) | IS181: JRH 1-1/2" X 14" TD Angle F/G (Per LF) | IT181: JRH 1-1/2" X 17" TD Angle F/G (Per LF) | IU181: JRH 1-1/2" X 20" TD Angle F/G (Per LF) | IV181: JRH 1-1/2" X 26" TD Angle F/G (Per LF) | IW181: JRH 1-1/2" X 8" TD Iron F/G (Per LF) | IX181: JRH 1-1/2" X 10" TD Iron F/G (Per LF) | IY181: JRH 1-1/2" X 12" TD Iron F/G (Per LF) | IZ181: JRH 1-1/2" X 14" TD Iron F/G (Per LF) | JA181: JRH 1-1/2" X 17" TD Iron F/G (Per LF) | JB181: JRH 1-1/2" X 20" TD Iron F/G (Per LF) | JC181: JRH 1-1/2" X 26" TD Iron F/G (Per LF) | JD181: INDOT Type 2 F/G Set | JE181: INDOT Type 3 F/C Set | JF181: INDOT Type 4 F/C Set | JG181: INDOT Type 5 F/G Set | JH181: INDOT Type 5 F/G Dbl Set | JI181: INDOT Type 7 BH Grate | JJ181: INDOT Type 8 Casting Set | JK181: INDOT Type 10 Casting Set | JL181: INDOT Type 12A (Single) Casting | JM181: INDOT Type 12 (Double) Casting | JN181: INDOT Type 13 F/G Set | JO181: INDOT Type 14 F/G Set | JP181: INDOT Type 15 Casting Set | JQ181: EJ 6500 Grate | JR181: JBS 1020 F/C "Drain" | JS181: JBS 1020 F/C "Sewer" | JT181: JBS 1045 F/C Plain (Cast In) | JU181: JBS 1065 F/C "Storm" | JV181: JBS 1065 F/C "Storm" (Cast In) | JW181: JBS 1072 F/C Plain | JX181: JBS 1072 F/C Plain (Cast In) | JY181: JBS 1072 F/C "Storm" | JZ181: JBS 1072 F/C "Storm" (Cast In) | KA181: JBS 1072 F/C "Sanitary" | KB181: JBS 1072 F/C "Sanitary" (Cast In) | KC181: JBS 1072 F/C "Grease" | KD181: JBS 1072 F/C "Grease" (Cast In) | KE181: JBS 1077 F/C "KY Storm" | KF181: JBS 1077 F/C "KY Storm" (Cast In) | KG181: JBS 1090 BDWT F/C "MSD Lou" | KH181: JBS 1090 BDWT F/C "Sanitary" | KI181: JBS 1095 F/C "Lagrange Storm" | KJ181: JBS 1095 F/C "Lagrange Sewer" | KK181: JBS 1095 F/C "MSD Lou Storm" | KL181: JBS 1095 F/C "MSD Lou Sewer" | KM181: JBS 1110 F/C "Storm" | KN181: JBS 1110 F/C "Sanitary" | KO181: JBS 1111 F/C "Plain" (Cast In) | KP181: JBS 1111 F/C "Storm" (Cast In) | KQ181: JBS 1111 F/C "Sanitary" (Cast In) | KR181: JBS 1123 WT F/C "Sanitary" | KS181: JBS 1123 Mod. BDWT F/C "KY Storm" | KT181: JBS 1123 Mod. Non WT F/C "KY Storm" | KU181: JBS 1123 Mod. BDWT F/C "KY SAN" | KV181: JBS 1123 Mod. Non WT F/C "KY SAN" | KW181: JBS 1132 F/C "Electric" | KX181: JBS 1132 F/C "Communication" | KY181: JBS 1140M F/C "Storm" | KZ181: JBS 1140M F/C "Sanitary" | LA181: JBS 1140M F/C "Lex. Sanitary" | LB181: JBS 1140M F/C "RWRA SAN" | LC181: JBS 1140M BDWT F/C "Sanitary" | LD181: JBS 1140M BDWT F/C "Lex. Sanitary" | LE181: JBS 1144 F/C "Storm" | LF181: JBS 1144 F/C "Sanitary" | LG181: JBS 1150 F/C Plain | LH181: JBS 1150 F/C "Storm" | LI181: JBS 1150 F/C "Sanitary" | LJ181: JBS 1150 BDWT F/C "Sanitary" | LK181: JBS 1152M F/C "BGMU" | LL181: JBS 1154 F/C "Storm" | LM181: JBS 1154 F/C "Storm" (Cast In) | LN181: JBS 1154 F/C "Sanitary" | LO181: JBS 1154 F/C "Sanitary" (Cast In) | LP181: JBS 1155 F/C Plain | LQ181: JBS 1155 F/C "Storm" | LR181: JBS 1155 F/C "Sanitary" | LS181: JBS 1155 BDWT F/C "Sanitary" | LT181: JBS 1220 F/C Plain | LU181: JBS 1220 F/C Plain (Cast In) | LV181: JBS 1220 F/C "Electric" | LW181: JBS 1220 F/C "Electric" (Cast In) | LX181: JBS 1225 F/C Plain | LY181: JBS 1225 F/C Plain (Cast In) | LZ181: JBS 1247DM F/C "Storm" | MA181: JBS 1247DM F/C "Sanitary" | MB181: JBS 1247DM Self-Seal F/C "Sanitary" | MC181: JBS 1247DM Self-Seal F/C "Gtown" | MD181: JBS 1247DM BDWT F/C "Sanitary" | ME181: JBS 2020 F/G | MF181: JBS 2072 F/G | MG181: JBS 2072 F/G (Cast In) | MH181: JBS 2110 F/G | MI181: JBS 2111 F/G (Cast In) | MJ181: JBS 2140 F/G | MK181: JBS 2150 F/G | ML181: JBS 2214 F/G (Cast In) | MM181: JBS 2215 F/G (Cast In) | MN181: JBS 2220 F/G | MO181: JBS 2220 F/G (Cast In) | MP181: JBS 2225 F/G | MQ181: JBS 2225 F/G (Cast In) | MR181: JBS 2230 F/G | MS181: JBS 2230 F/G (Cast In) | MT181: JBS 2272 Beehive F/G | MU181: JBS 2272 Beehive F/G (Cast In) | MV181: JBS 2280 Beehive F/G | MW181: JBS 3061 F/G (Cast In) | MX181: JBS 3062 F/G (Cast In) | MY181: JBS 3070N F/G | MZ181: JBS 3080 Set | NA181: JBS 3080 Vane Set | NB181: JBS 3080 Double Set | NC181: JBS 3080 Double Vane Set | ND181: JBS 3080 Triple Set | NE181: JBS 3080 Triple Vane Set | NF181: JBS 3085 Set | NG181: JBS 3101 Single Set | NH181: JBS 3101 Vane Single Set | NI181: JBS 3101 Double Set | NJ181: JBS 3101-V Vane Double Set | NK181: JBS 3101 Triple Set | NL181: JBS 3101-V Vane Triple Set | NM181: JBS 3103 Single Set | NN181: JBS 3103-V Vane Single Set | NO181: JBS 3103 Double Set | NP181: JBS 3103-V Vane Double Set | NQ181: JBS 3103 Triple Set | NR181: JBS 3103-V Vane Triple Set | NS181: JBS 3104 Single Set | NT181: JBS 3104-V Vane Single Set | NU181: JBS 3104 Double Set | NV181: JBS 3104-V Vane Double Set | NW181: JBS 3104 Triple Set | NX181: JBS 3104-V Vane Triple Set | NY181: JBS 3105-V Set | NZ181: JBS 3106 Set Reg. Grate | OA181: JBS 3106-V Set | OB181: JBS 3123 Single Set | OC181: JBS 3123 Mod. Single Set | OD181: JBS 3123 Mod. Double Set | OE181: JBS 3123-13 Single Set | OF181: JBS 3123-32 Single Set | OG181: JBS 3123-32 Double Set | OH181: JBS 3123-41 Single Set | OI181: JBS 3123-41 Double Set | OJ181: JBS 3123-41 Quad Set | OK181: JBS 3126 Roll Curb F/G | OL181: JBS 3157 Flat Set | OM181: JBS 3157-V Set | ON181: JBS 3158 Flat Set | OO181: JBS 3158-V Set | OP181: JBS 3223-V (TDOT #10LPC) | OQ181: JBS 3300 Single Set | OR181: JBS 3300-V Vane Single Set | OS181: JBS 3300 Double Set | OT181: JBS 3300-V Vane Double Set | OU181: JBS 3300 Triple Set | OV181: JBS 3300-V Vane Triple Set | OW181: JBS 3305 Roll Curb F/G | OX181: JBS 3305MOD Roll Curb F/G | OY181: JBS 3411 F/G | OZ181: JBS 3413 F/G (Cast In) | PA181: JBS 3450 F/G | PB181: JBS 3700 F/G (Cast In) | PC181: JBS 4012 F/G | PD181: JBS 4073 F/G | PE181: JBS 4073 F/G (Cast In) | PF181: JBS 4074 F/G | PG181: JBS 4074 F/G (Cast In) | PH181: JBS 4075 F/G | PI181: JBS 4075 F/G (Cast In) | PJ181: JBS 4076X F/G | PK181: JBS 4076X F/G (Cast In) | PL181: JBS 4077 F/G | PM181: JBS 4078 F/G | PN181: JBS 4190 F/G (Cast In) | PO181: JBS 4200 Single Grate | PP181: JBS 4200 Double Grate Set | PQ181: JBS 4200 Quad Grate Set | PR181: JBS 4220 F/G | PS181: JBS 4250 F/G | PT181: JBS 4254 F/G | PU181: JBS 4254 F/G (Cast In) | PV181: JBS 4260 F/G | PW181: JBS 4275-Regular F/G | PX181: JBS 4275-Vane F/G | PY181: JBS 4300 F/G | PZ181: JBS 4310 F/G | QA181: JBS 4310 Double F/G Set | QB181: JBS 4315 F/G | QC181: JBS 4315 F/G (Cast In) | QD181: JBS 4315 ADA F/G | QE181: JBS 4315 ADA F/G (Cast In) | QF181: JBS 4330 F/G | QG181: JBS 4475D Grate Only | QH181: JBS 4480 Beehive F/G | QI181: JBS 5830 F/G (Per LF, Cast In) | QJ181: JBS 5830 Bolted F/G (Per LF, Cast In) | QK181: JBS 8006 F/G "Water" | QL181: JBS 8110 F/C "Water Meter" (Cast In) | QM181: JBS 8121 F/C "Water Meter" (Cast In) | QN181: JBS 8122 F/C "Water Meter" (Cast In) | QO181: JBS 8310 F/C "Plain" | QP181: JBS TDOT Type 38 Grate | QQ181: JBS TDOT Type 39 Grate | QR181: JBS TDOT Type 40 Grate | QS181: JBS 30" TDOT 3:1 "U" Cross Drain EW Grate | QT181: JBS 30" TDOT 4:1 "U" Cross Drain EW Grate | QU181: JBS 30" TDOT 6:1 "U" Cross Drain EW Grate | QV181: JBS 36" TDOT 3:1 "U" Cross Drain EW Grate | QW181: JBS 36" TDOT 4:1 "U" Cross Drain EW Grate | QX181: JBS 36" TDOT 6:1 "U" Cross Drain EW Grate | QY181: JBS 42" TDOT 3:1 "U" Cross Drain EW Grate | QZ181: JBS 42" TDOT 4:1 "U" Cross Drain EW Grate | RA181: JBS 42" TDOT 6:1 "U" Cross Drain EW Grate | RB181: JBS 48" TDOT 3:1 "U" Cross Drain EW Grate | RC181: JBS 48" TDOT 4:1 "U" Cross Drain EW Grate | RD181: JBS 48" TDOT 6:1 "U" Cross Drain EW Grate | RE181: JBS 15" TDOT 6:1 Safety Side Drain EW (2 Grate Set) | RF181: JBS 18" TDOT 6:1 Safety Side Drain EW (3 Grate Set) | RG181: JBS 24" TDOT 6:1 Safety Side Drain EW (3 Grate Set) | RH181: JBS 30" TDOT 6:1 Safety Side Drain EW (4 Grate Set) | RI181: JBS 36" TDOT 6:1 Safety Side Drain EW (5 Grate Set) | RJ181: JBS 42" TDOT 6:1 Safety Side Drain EW (6 Grate Set) | RK181: JBS 48" TDOT 6:1 Safety Side Drain EW (7 Grate Set) | RL181: JBS 18" TDOT 12:1 Safety Side Drain EW Grate Set | RM181: LSQ-24-P Plain Trash Rack | RN181: LSQ-24-G Galvanized Trash Rack | RO181: LSQ-24-AL Aluminum Trash Rack | RP181: LSQ-36-P Plain Trash Rack | RQ181: LSQ-36-G Galvanized Trash Rack | RR181: LSQ-36-AL Aluminum Trash Rack | RS181: LSQ-3648-P Plain Trash Rack | RT181: LSQ-3648-G Galvanized Trash Rack | RU181: LSQ-3648-AL Aluminum Trash Rack | RV181: LSQ-48-P Plain Trash Rack | RW181: LSQ-48-G Galvanized Trash Rack | RX181: LSQ-48-AL Aluminum Trash Rack | RY181: LSQ-60-P Plain Trash Rack | RZ181: LSQ-60-G Galvanized Trash Rack | SA181: LSQ-60-AL Aluminum Trash Rack | SB181: LSQ-72-P Plain Trash Rack | SC181: LSQ-72-G Galvanized Trash Rack | SD181: LSQ-72-AL Aluminum Trash Rack | SE181: LDR-36-P Plain Trash Rack | SF181: LDR-36-G Galvanized Trash Rack | SG181: LDR-36-AL Aluminum Trash Rack | SH181: LDR-48-P Plain Trash Rack | SI181: LDR-48-G Galvanized Trash Rack | SJ181: LDR-48-AL Aluminum Trash Rack | SK181: LDR-60-P Plain Trash Rack | SL181: LDR-60-G Galvanized Trash Rack | SM181: LDR-60-AL Aluminum Trash Rack | SN181: LDR-72-P Plain Trash Rack | SO181: LDR-72-G Galvanized Trash Rack | SP181: LDR-72-AL Aluminum Trash Rack | SQ181: LFG-36-P Plain Flat Grate | SR181: LFG-36-G Galvanized Flat Grate | SS181: LFG-36-AL Aluminum Flat Grate | ST181: LFG-3648-P Plain Flat Grate | SU181: LFG-3648-G Galvanized Flat Grate | SV181: LFG-3648-AL Aluminum Flat Grate | SW181: LFG-48-P Plain Flat Grate | SX181: LFG-48-G Galvanized Flat Grate | SY181: LFG-48-AL Aluminum Flat Grate | SZ181: LFG-60-P Plain Flat Grate | TA181: LFG-60-G Galvanized Flat Grate | TB181: LFG-60-AL Aluminum Flat Grate | TC181: LFG-72-P Plain Flat Grate | TD181: LFG-72-G Galvanized Flat Grate | TE181: LFG-72-AL Aluminum Flat Grate | TF181: LFS-36-P Plain Flush Grate | TG181: LFS-36-G Galvanized Flush Grate | TH181: LFS-36-AL Aluminum Flush Grate | TI181: LFS-48-P Plain Flush Grate | TJ181: LFS-48-G Galvanized Flush Grate | TK181: LFS-48-AL Aluminum Flush Grate | TL181: LFS-60-P Plain Flush Grate | TM181: LFS-60-G Galvanized Flush Grate | TN181: LFS-60-AL Aluminum Flush Grate | TO181: LFS-72-P Plain Flush Grate | TP181: LFS-72-G Galvanized Flush Grate | TQ181: LFS-72-AL Aluminum Flush Grate | TR181: LFR-36-P Plain Flush Grate | TS181: LFR-36-G Galvanized Flush Grate | TT181: LFR-36-AL Aluminum Flush Grate | TU181: LFR-48-P Plain Flush Grate | TV181: LFR-48-G Galvanized Flush Grate | TW181: LFR-48-AL Aluminum Flush Grate | TX181: LFR-60-P Plain Flush Grate | TY181: LFR-60-G Galvanized Flush Grate | TZ181: LFR-60-AL Aluminum Flush Grate | UA181: LFR-72-P Plain Flush Grate | UB181: LFR-72-G Galvanized Flush Grate | UC181: LFR-72-AL Aluminum Flush Grate | UD181: Halla 12" FES Trash Guard | UE181: Halla 15" FES Trash Guard | UF181: Halla 18" FES Trash Guard | UG181: Halla 24" FES Trash Guard | UH181: Halla 30" FES Trash Guard | UI181: Halla 36" FES Trash Guard | UJ181: Halliday Products S1R 24in X 24in Hatch | UK181: Halliday Products S1R 24in X 30in Hatch | UL181: Halliday Products S1R 24in X 36in Hatch | UM181: Halliday Products S1R 24in X 42in Hatch | UN181: Halliday Products S1R 24in X 48in Hatch | UO181: Halliday Products S1R 29in X 59in Hatch | UP181: Halliday Products S1R 30in X 30in Hatch | UQ181: Halliday Products S1R 30in X 36in Hatch | UR181: Halliday Products S1R 30in X 42in Hatch | US181: Halliday Products S1R 30in X 48in Hatch | UT181: Halliday Products S1R 30in X 54in Hatch | UU181: Halliday Products S1R 30in X 60in Hatch | UV181: Halliday Products S1R 36in X 36in Hatch | UW181: Halliday Products S1R 36in X 42in Hatch | UX181: Halliday Products S1R 36in X 48in Hatch | UY181: Halliday Products S1R 36in X 54in Hatch | UZ181: Halliday Products S1R 36in X 60in Hatch | VA181: Halliday Products S1R 36in X 66in Hatch | VB181: Halliday Products S1R 36in X 72in Hatch | VC181: Halliday Products S1R 42in X 42in Hatch | VD181: Halliday Products S2R 42in X 42in Hatch | VE181: Halliday Products S2R 44in X 68in Hatch | VF181: Halliday Products S2R 48in X 42in Hatch | VG181: Halliday Products S2R 48in X 48in Hatch | VH181: Halliday Products S2R 54in X 42in Hatch | VI181: Halliday Products S2R 54in X 48in Hatch | VJ181: Halliday Products S2R 54in X 52in Hatch | VK181: Halliday Products S2R 54in X 54in Hatch | VL181: Halliday Products S2R 58in X 58in Hatch | VM181: Halliday Products S2R 60in X 30in Hatch | VN181: Halliday Products S2R 60in X 36in Hatch | VO181: Halliday Products S2R 60in X 42in Hatch | VP181: Halliday Products S2R 60in X 48in Hatch | VQ181: Halliday Products S2R 60in X 54in Hatch | VR181: Halliday Products S2R 60in X 60in Hatch | VS181: Halliday Products S2R 66in X 36in Hatch | VT181: Halliday Products S2R 66in X 42in Hatch | VU181: Halliday Products S2R 66in X 48in Hatch | VV181: Halliday Products S2R 66in X 54in Hatch | VW181: Halliday Products S2R 66in X 60in Hatch | VX181: Halliday Products S2R 66in X 66in Hatch | VY181: Halliday Products S2R 72in X 36in Hatch | VZ181: Halliday Products S2R 72in X 42in Hatch | WA181: Halliday Products S2R 72in X 48in Hatch | WB181: Halliday Products S2R 72in X 54in Hatch | WC181: Halliday Products S2R 72in X 60in Hatch | WD181: Halliday Products S1S 24in X 24in Hatch | WE181: Halliday Products S1S 24in X 30in Hatch | WF181: Halliday Products S1S 24in X 36in Hatch | WG181: Halliday Products S1S 24in X 42in Hatch | WH181: Halliday Products S1S 24in X 48in Hatch | WI181: Halliday Products S1S 30in X 30in Hatch | WJ181: Halliday Products S1S 30in X 36in Hatch | WK181: Halliday Products S1S 30in X 42in Hatch | WL181: Halliday Products S1S 30in X 48in Hatch | WM181: Halliday Products S1S 30in X 54in Hatch | WN181: Halliday Products S1S 30in X 60in Hatch | WO181: Halliday Products S1S 36in X 36in Hatch | WP181: Halliday Products S1S 36in X 42in Hatch | WQ181: Halliday Products S1S 36in X 48in Hatch | WR181: Halliday Products S1S 36in X 54in Hatch | WS181: Halliday Products S1S 36in X 60in Hatch | WT181: Halliday Products S1S 36in X 66in Hatch | WU181: Halliday Products S1S 36in X 72in Hatch | WV181: Halliday Products S1S 42in X 42in Hatch | WW181: Halliday Products S2S 36in X 54in Hatch | WX181: Halliday Products S2S 42in X 42in Hatch | WY181: Halliday Products S2S 48in X 42in Hatch | WZ181: Halliday Products S2S 48in X 48in Hatch | XA181: Halliday Products S2S 54in X 42in Hatch | XB181: Halliday Products S2S 54in X 48in Hatch | XC181: Halliday Products S2S 54in X 54in Hatch | XD181: Halliday Products S2S 60in X 30in Hatch | XE181: Halliday Products S2S 60in X 36in Hatch | XF181: Halliday Products S2S 60in X 42in Hatch | XG181: Halliday Products S2S 60in X 48in Hatch | XH181: Halliday Products S2S 60in X 54in Hatch | XI181: Halliday Products S2S 60in X 60in Hatch | XJ181: Halliday Products S2S 66in X 36in Hatch | XK181: Halliday Products S2S 66in X 42in Hatch | XL181: Halliday Products S2S 66in X 48in Hatch | XM181: Halliday Products S2S 66in X 54in Hatch | XN181: Halliday Products S2S 66in X 60in Hatch | XO181: Halliday Products S2S 66in X 66in Hatch | XP181: Halliday Products S2S 72in X 36in Hatch | XQ181: Halliday Products S2S 72in X 42in Hatch | XR181: Halliday Products S2S 72in X 48in Hatch | XS181: Halliday Products S2S 72in X 54in Hatch | XT181: Halliday Products S2S 72in X 60in Hatch | XU181: Halliday Products W1R 24in X 24in Hatch | XV181: Halliday Products W1R 24in X 30in Hatch | XW181: Halliday Products W1R 24in X 36in Hatch | XX181: Halliday Products W1R 24in X 42in Hatch | XY181: Halliday Products W1R 24in X 48in Hatch | XZ181: Halliday Products W1R 30in X 30in Hatch | YA181: Halliday Products W1R 30in X 36in Hatch | YB181: Halliday Products W1R 30in X 42in Hatch | YC181: Halliday Products W1R 30in X 48in Hatch | YD181: Halliday Products W1R 30in X 54in Hatch | YE181: Halliday Products W1R 30in X 60in Hatch | YF181: Halliday Products W1R 36in X 36in Hatch | YG181: Halliday Products W1R 36in X 42in Hatch | YH181: Halliday Products W1R 36in X 48in Hatch | YI181: Halliday Products W1R 36in X 54in Hatch | YJ181: Halliday Products W1R 36in X 60in Hatch | YK181: Halliday Products W1R 36in X 66in Hatch | YL181: Halliday Products W1R 36in X 72in Hatch | YM181: Halliday Products W1R 42in X 42in Hatch | YN181: Halliday Products W2R 42in X 42in Hatch | YO181: Halliday Products W2R 48in X 42in Hatch | YP181: Halliday Products W2R 48in X 48in Hatch | YQ181: Halliday Products W2R 54in X 42in Hatch | YR181: Halliday Products W2R 54in X 48in Hatch | YS181: Halliday Products W2R 54in X 54in Hatch | YT181: Halliday Products W2R 58in X 34in Hatch | YU181: Halliday Products W2R 60in X 30in Hatch | YV181: Halliday Products W2R 60in X 36in Hatch | YW181: Halliday Products W2R 60in X 42in Hatch | YX181: Halliday Products W2R 60in X 48in Hatch | YY181: Halliday Products W2R 60in X 54in Hatch | YZ181: Halliday Products W2R 60in X 60in Hatch | ZA181: Halliday Products W2R 66in X 36in Hatch | ZB181: Halliday Products W2R 66in X 42in Hatch | ZC181: Halliday Products W2R 66in X 48in Hatch | ZD181: Halliday Products W2R 66in X 54in Hatch | ZE181: Halliday Products W2R 66in X 60in Hatch | ZF181: Halliday Products W2R 66in X 66in Hatch | ZG181: Halliday Products W2R 72in X 36in Hatch | ZH181: Halliday Products W2R 72in X 42in Hatch | ZI181: Halliday Products W2R 72in X 48in Hatch | ZJ181: Halliday Products W2R 72in X 54in Hatch | ZK181: Halliday Products W2R 72in X 60in Hatch | ZL181: Halliday Products W1S 24in X 24in Hatch | ZM181: Halliday Products W1S 24in X 30in Hatch | ZN181: Halliday Products W1S 24in X 36in Hatch | ZO181: Halliday Products W1S 24in X 42in Hatch | ZP181: Halliday Products W1S 24in X 48in Hatch | ZQ181: Halliday Products W1S 30in X 30in Hatch | ZR181: Halliday Products W1S 30in X 36in Hatch | ZS181: Halliday Products W1S 30in X 42in Hatch | ZT181: Halliday Products W1S 30in X 48in Hatch | ZU181: Halliday Products W1S 30in X 54in Hatch | ZV181: Halliday Products W1S 30in X 60in Hatch | ZW181: Halliday Products W1S 36in X 36in Hatch | ZX181: Halliday Products W1S 36in X 42in Hatch | ZY181: Halliday Products W1S 36in X 48in Hatch | ZZ181: Halliday Products W1S 36in X 54in Hatch | AAA181: Halliday Products W1S 36in X 60in Hatch | AAB181: Halliday Products W1S 36in X 66in Hatch | AAC181: Halliday Products W1S 36in X 72in Hatch | AAD181: Halliday Products W1S 36in X 78in Hatch | AAE181: Halliday Products W1S 42in X 42in Hatch | AAF181: Halliday Products W1S 42in X 60in Hatch | AAG181: Halliday Products W1S 60in X 60in Hatch | AAH181: Halliday Products W2S 42in X 42in Hatch | AAI181: Halliday Products W2S 48in X 42in Hatch | AAJ181: Halliday Products W2S 48in X 48in Hatch | AAK181: Halliday Products W2S 54in X 42in Hatch | AAL181: Halliday Products W2S 54in X 48in Hatch | AAM181: Halliday Products W2S 54in X 54in Hatch | AAN181: Halliday Products W2S 60in X 30in Hatch | AAO181: Halliday Products W2S 60in X 36in Hatch | AAP181: Halliday Products W2S 60in X 42in Hatch | AAQ181: Halliday Products W2S 60in X 48in Hatch | AAR181: Halliday Products W2S 60in X 54in Hatch | AAS181: Halliday Products W2S 60in X 60in Hatch | AAT181: Halliday Products W2S 66in X 36in Hatch | AAU181: Halliday Products W2S 66in X 42in Hatch | AAV181: Halliday Products W2S 66in X 48in Hatch | AAW181: Halliday Products W2S 66in X 54in Hatch | AAX181: Halliday Products W2S 66in X 60in Hatch | AAY181: Halliday Products W2S 66in X 66in Hatch | AAZ181: Halliday Products W2S 72in X 36in Hatch | ABA181: Halliday Products W2S 72in X 42in Hatch | ABB181: Halliday Products W2S 72in X 48in Hatch | ABC181: Halliday Products W2S 72in X 54in Hatch | ABD181: Halliday Products W2S 72in X 60in Hatch | ABE181: Halliday Products W2S 78in X 48in Hatch | ABF181: Halliday Products W2S 96in X 72in Hatch | ABG181: Halliday Products W1C 24in X 24in Hatch | ABH181: Halliday Products W1C 24in X 30in Hatch | ABI181: Halliday Products W1C 24in X 36in Hatch | ABJ181: Halliday Products W1C 24in X 42in Hatch | ABK181: Halliday Products W1C 24in X 48in Hatch | ABL181: Halliday Products W1C 30in X 30in Hatch | ABM181: Halliday Products W1C 30in X 36in Hatch | ABN181: Halliday Products W1C 30in X 42in Hatch | ABO181: Halliday Products W1C 30in X 48in Hatch | ABP181: Halliday Products W1C 30in X 54in Hatch | ABQ181: Halliday Products W1C 30in X 60in Hatch | ABR181: Halliday Products W1C 36in X 36in Hatch | ABS181: Halliday Products W1C 36in X 42in Hatch | ABT181: Halliday Products W1C 36in X 48in Hatch | ABU181: Halliday Products W1C 36in X 54in Hatch | ABV181: Halliday Products W1C 36in X 60in Hatch | ABW181: Halliday Products W1C 36in X 66in Hatch | ABX181: Halliday Products W1C 36in X 72in Hatch | ABY181: Halliday Products W1C 42in X 42in Hatch | ABZ181: Halliday Products W2C 42in X 42in Hatch | ACA181: Halliday Products W2C 48in X 42in Hatch | ACB181: Halliday Products W2C 48in X 48in Hatch | ACC181: Halliday Products W2C 54in X 42in Hatch | ACD181: Halliday Products W2C 54in X 48in Hatch | ACE181: Halliday Products W2C 54in X 54in Hatch | ACF181: Halliday Products W2C 60in X 30in Hatch | ACG181: Halliday Products W2C 60in X 36in Hatch | ACH181: Halliday Products W2C 60in X 42in Hatch | ACI181: Halliday Products W2C 60in X 48in Hatch | ACJ181: Halliday Products W2C 60in X 54in Hatch | ACK181: Halliday Products W2C 60in X 60in Hatch | ACL181: Halliday Products W2C 66in X 36in Hatch | ACM181: Halliday Products W2C 66in X 42in Hatch | ACN181: Halliday Products W2C 66in X 48in Hatch | ACO181: Halliday Products W2C 66in X 54in Hatch | ACP181: Halliday Products W2C 66in X 60in Hatch | ACQ181: Halliday Products W2C 66in X 66in Hatch | ACR181: Halliday Products W2C 72in X 36in Hatch | ACS181: Halliday Products W2C 72in X 42in Hatch | ACT181: Halliday Products W2C 72in X 48in Hatch | ACU181: Halliday Products W2C 72in X 54in Hatch | ACV181: Halliday Products W2C 72in X 60in Hatch | ACW181: Halliday Products H1R 24in X 24in Hatch | ACX181: Halliday Products H1R 24in X 30in Hatch | ACY181: Halliday Products H1R 24in X 36in Hatch | ACZ181: Halliday Products H1R 24in X 42in Hatch | ADA181: Halliday Products H1R 24in X 48in Hatch | ADB181: Halliday Products H1R 30in X 30in Hatch | ADC181: Halliday Products H1R 30in X 36in Hatch | ADD181: Halliday Products H1R 30in X 42in Hatch | ADE181: Halliday Products H1R 30in X 48in Hatch | ADF181: Halliday Products H1R 36in X 36in Hatch | ADG181: Halliday Products H1R 36in X 42in Hatch | ADH181: Halliday Products H1R 36in X 48in Hatch | ADI181: Halliday Products H2R 42in X 42in Hatch | ADJ181: Halliday Products H2R 48in X 42in Hatch | ADK181: Halliday Products H2R 48in x 48in Hatch | ADL181: Halliday Products H2R 54in X 42in Hatch | ADM181: Halliday Products H2R 54in X 48in Hatch | ADN181: Halliday Products H2R 60in X 48in Hatch | ADO181: Halliday Products H2R 60in X 60in Hatch | ADP181: Halliday Products H2R 72in X 48in Hatch | ADQ181: Halliday Products H2R 72in X 60in Hatch | ADR181: Halliday Products H2R 72in X 72in Hatch | ADS181: Halliday Products H1W 24in X 24in Hatch | ADT181: Halliday Products H1W 24in X 30in Hatch | ADU181: Halliday Products H1W 24in X 36in Hatch | ADV181: Halliday Products H1W 24in X 42in Hatch | ADW181: Halliday Products H1W 24in X 48in Hatch | ADX181: Halliday Products H1W 30in X 30in Hatch | ADY181: Halliday Products H1W 30in X 36in Hatch | ADZ181: Halliday Products H1W 30in X 42in Hatch | AEA181: Halliday Products H1W 30in X 48in Hatch | AEB181: Halliday Products H1W 36" x 36" Hatch | AEC181: Halliday Products H1W 36in X 42in Hatch | AED181: Halliday Products H1W 36in X 48in Hatch | AEE181: Halliday Products H1W 36" x 60" Hatch | AEF181: Halliday Products H2W 36in x 80in Hatch | AEG181: Halliday Products H2W 42in X 42in Hatch | AEH181: Halliday Products H2W 48in X 42in Hatch | AEI181: Halliday Products H2W 48in X 48in Hatch | AEJ181: Halliday Products H2W 54in X 42in Hatch | AEK181: Halliday Products H2W 54in X 48in Hatch | AEL181: Halliday Products H2W 60in X 48in Hatch | AEM181: Halliday Products H2W 60in X 60in Hatch | AEN181: Halliday Products H2W 72in X 48in Hatch | AEO181: Halliday Products H2W 72in X 60in Hatch | AEP181: Halliday Products H1C 24in X 24in Hatch | AEQ181: Halliday Products H1C 24in X 30in Hatch | AER181: Halliday Products H1C 24in X 36in Hatch | AES181: Halliday Products H1C 24in X 42in Hatch | AET181: Halliday Products H1C 24in X 48in Hatch | AEU181: Halliday Products H1C 30in X 30in Hatch | AEV181: Halliday Products H1C 30in X 36in Hatch | AEW181: Halliday Products H1C 30in X 42in Hatch | AEX181: Halliday Products H1C 30in X 48in Hatch | AEY181: Halliday Products H1C 36in X 36in Hatch | AEZ181: Halliday Products H1C 36in X 42in Hatch | AFA181: Halliday Products H1C 36in X 48in Hatch | AFB181: Halliday Products H2C 42in X 42in Hatch | AFC181: Halliday Products H2C 48in X 42in Hatch | AFD181: Halliday Products H2C 48in X 48in Hatch | AFE181: Halliday Products H2C 54in X 42in Hatch | AFF181: Halliday Products H2C 54in X 48in Hatch | AFG181: Halliday Products H2C 60in X 48in Hatch | AFH181: Halliday Products H2C 60in X 60in Hatch | AFI181: Halliday Products H2C 72in X 48in Hatch | AFJ181: Halliday Products H2C 72in X 60in Hatch | AFK181: Halliday Products H2C 72in X 72in Hatch | AFL181: Input Description 1 | AFM181: Input Description 2 | AFN181: Input Description 3 | AFO181: Input Description 4 | AFP181: Input Description 5 | AFQ181: Input Description 6 | AFR181: Input Description 7 | AFS181: Input Description 8 | AFT181: Input Description 9 | AFU181: Input Description 10
B182: Casting Frame Height Above Str. | C182: Casting Height | D182: Inch | E182: 0 | I182: 8 | J182: 8 | K182: 4 | L182: 4 | M182: 4 | N182: 4 | O182: 4 | P182: 4 | Q182: 4 | R182: 4 | S182: 7 | T182: 7 | U182: 7 | V182: 7 | W182: 7 | X182: 7 | Y182: 7 | Z182: 7 | AA182: 7 | AB182: 7 | AC182: 7 | AD182: 4 | AE182: 4 | AF182: 4 | AG182: 4 | AH182: 4 | AI182: 4 | AJ182: 7 | AK182: 7 | AL182: 7 | AM182: 7 | AN182: 7 | AO182: 7 | AP182: 7 | AQ182: 7 | AR182: 7 | AS182: 7 | AT182: 7 | AU182: 7 | AV182: 7 | AW182: 7 | AX182: 7 | AY182: 7 | AZ182: 7 | BA182: 7 | BB182: 7 | BC182: 7 | BD182: 7 | BE182: 7 | BF182: 7 | BG182: 4 | BH182: 4 | BI182: 4 | BJ182: 4 | BK182: 4 | BL182: 7 | BM182: 7 | BN182: 7 | BO182: 7 | BP182: 7 | BQ182: 7 | BR182: 7 | BS182: 7 | BT182: 7 | BU182: 7 | BV182: 7 | BW182: 7 | BX182: 7 | BY182: 7 | BZ182: 7 | CA182: 5.625 | CB182: 5.625 | CC182: 5.625 | CD182: 10 | CE182: 10 | CF182: 10 | CG182: 4 | CH182: 6 | CI182: 6 | CJ182: 0 | CK182: 0 | CL182: 0 | CM182: 0 | CN182: 0 | CO182: 0 | CP182: 0 | CQ182: 0 | CR182: 0 | CS182: 0 | CT182: 0 | CU182: 0 | CV182: 0 | CW182: 0 | CX182: 0 | CY182: 0 | CZ182: 0 | DA182: 0 | DB182: 0 | DC182: 0 | DD182: 0 | DE182: 0 | DF182: 0 | DG182: 0 | DH182: 0 | DI182: 0 | DJ182: 0 | DK182: 0 | DL182: 0 | DM182: 0 | DN182: 0 | DO182: 4 | DP182: 4 | DQ182: 4 | DR182: 4 | DS182: 4 | DT182: 7 | DU182: 7 | DV182: 7 | DW182: 7 | DX182: 7 | DY182: 7 | DZ182: 4 | EA182: 4 | EB182: 4 | EC182: 7 | ED182: 4 | EE182: 4 | EF182: 7 | EG182: 7 | EH182: 7 | EI182: 4 | EJ182: 4 | EK182: 6 | EL182: 6 | EM182: 4 | EN182: 4 | EO182: 0 | EP182: 4 | EQ182: 0 | ER182: 4 | ES182: 0 | ET182: 4 | EU182: 0 | EV182: 4 | EW182: 0 | EX182: 6 | EY182: 6 | EZ182: 3.5 | FA182: 3.5 | FB182: 4 | FC182: 4 | FD182: 0 | FE182: 5.5 | FF182: 5.5 | FG182: 4 | FH182: 4 | FI182: 4 | FJ182: 4 | FK182: 0 | FL182: 4 | FM182: 3 | FN182: 4 | FO182: 0 | FP182: 0 | FQ182: 0 | FR182: 0 | FS182: 0 | FT182: 0 | FU182: 0 | FV182: 0 | FW182: 0 | FX182: 5 | FY182: 6 | FZ182: 6 | GA182: 8 | GB182: 6 | GC182: 6 | GD182: 6 | GE182: 6 | GF182: 6 | GG182: 6 | GH182: 6 | GI182: 6 | GJ182: 6 | GK182: 6 | GL182: 5 | GM182: 3.5 | GN182: 3.5 | GO182: 6.25 | GP182: 4 | GQ182: 0 | GR182: 8 | GS182: 0 | GT182: 0 | GU182: 0 | GV182: 0 | GW182: 0 | GX182: 0 | GY182: 0 | GZ182: 0 | HA182: 0 | HB182: 0 | HC182: 0 | HD182: 0 | HE182: 0 | HF182: 0 | HG182: 0 | HH182: 0 | HI182: 0 | HJ182: 5 | HK182: 3.75 | HL182: 0 | HM182: 0 | HN182: 0 | HO182: 0 | HP182: 0 | HQ182: 0 | ID182: 0 | IE182: 0 | IF182: 0 | IG182: 0 | IH182: 0 | II182: 0 | IJ182: 0 | IK182: 0 | IL182: 0 | IM182: 0 | IN182: 0 | IO182: 5 | JD182: 8 | JF182: 7 | JG182: 8 | JH182: 8 | JI182: 0 | JJ182: 8 | JK182: 8 | JN182: 8 | JO182: 7 | JP182: 8 | JQ182: 0 | JR182: 6.75 | JS182: 6.75 | JT182: 0 | JU182: 0 | JV182: 0 | JW182: 4 | JX182: 4 | JY182: 4 | JZ182: 4 | KA182: 4 | KB182: 4 | KC182: 4 | KD182: 4 | KE182: 4 | KF182: 4 | KG182: 7.5 | KH182: 7.5 | KI182: 7 | KJ182: 7 | KK182: 7 | KL182: 7 | KM182: 7.25 | KN182: 7.25 | KP182: 0 | KR182: 7.5 | KS182: 8 | KT182: 8 | KU182: 8 | KV182: 8 | KW182: 10 | KX182: 10 | KY182: 7 | KZ182: 7 | LA182: 7 | LB182: 7 | LC182: 7 | LD182: 7 | LE182: 4 | LF182: 4 | LG182: 7.25 | LH182: 7.25 | LI182: 7.25 | LJ182: 7.25 | LK182: 8 | LL182: 4 | LM182: 4 | LN182: 4 | LO182: 4 | LP182: 6 | LQ182: 6 | LR182: 6 | LS182: 6 | LT182: 4 | LU182: 0 | LV182: 4 | LW182: 0 | LX182: 4 | LY182: 0 | LZ182: 7 | MA182: 7 | MB182: 7 | MC182: 7 | MD182: 7 | ME182: 6.75 | MF182: 4 | MG182: 0 | MH182: 7.25 | MI182: 0 | MJ182: 7 | MK182: 7.25 | ML182: 0 | MM182: 0 | MN182: 4 | MO182: 0 | MP182: 4 | MQ182: 0 | MR182: 4.25 | MS182: 0 | MT182: 4 | MU182: 0 | MV182: 4 | MW182: 0 | MX182: 0 | MY182: 6.25 | MZ182: 6.5 | NA182: 6.5 | NB182: 6.5 | NC182: 6.5 | ND182: 6.5 | NE182: 6.5 | NF182: 5 | NG182: 6 | NH182: 6 | NI182: 6 | NJ182: 6 | NK182: 6 | NL182: 6 | NM182: 6 | NN182: 6 | NO182: 6 | NP182: 6 | NQ182: 6 | NR182: 6 | NS182: 5 | NT182: 5 | NU182: 5 | NV182: 5 | NW182: 5 | NX182: 5 | NY182: 7 | NZ182: 5.5 | OA182: 5.5 | OB182: 5 | OC182: 5 | OD182: 5 | OE182: 5 | OF182: 5 | OG182: 5 | OH182: 5 | OI182: 5 | OJ182: 5 | OK182: 3 | OL182: 7 | OM182: 7 | ON182: 5.5 | OO182: 5.5 | OP182: 5 | OQ182: 7.5 | OR182: 7.5 | OS182: 7.5 | OT182: 7.5 | OU182: 7.5 | OV182: 7.5 | OW182: 7.63 | OX182: 7.25 | OY182: 3.75 | OZ182: 0 | PA182: 0 | PB182: 0 | PC182: 7 | PD182: 4 | PE182: 0 | PF182: 4 | PG182: 0 | PH182: 3.37 | PI182: 0 | PJ182: 3 | PK182: 0 | PL182: 5 | PM182: 6 | PN182: 0 | PO182: 0 | PP182: 0 | PQ182: 0 | PR182: 6 | PS182: 4 | PT182: 4 | PU182: 0 | PV182: 4 | PW182: 5.5 | PX182: 5.5 | PY182: 6 | PZ182: 6 | QA182: 6 | QB182: 4 | QC182: 0 | QD182: 4 | QE182: 0 | QF182: 6 | QG182: 0 | QH182: 0 | QI182: 0 | QJ182: 0 | QK182: 6 | QL182: 0 | QM182: 0 | QN182: 0 | QO182: 3 | QP182: 0 | QQ182: 0 | QR182: 0
B183: Casting Set Cost (Not Selling Price =>) | C183: Casting Price | D183: Dollar | F183: 1593 | I183: =I184+I185 -> 176.59 | J183: =J184+J185 -> 176.59 | K183: =K184+K185 -> 222 | L183: =L184+L185 -> 222 | M183: =M184+M185 -> 293.88 | N183: 293.88 | O183: 293.88 | P183: 293.88 | Q183: 279.88 | R183: 399.83 | S183: 326.69 | T183: =T184+T185 -> 326.69 | U183: =U184+U185 -> 326.69 | V183: =V184+V185 -> 326.69 | W183: 311.12 | X183: =X184+X185 -> 432.64 | Y183: =Y184+Y185 -> 326.69 | Z183: =Z184+Z185 -> 326.69 | AA183: =AA184+AA185 -> 359.48 | AB183: 414.96 | AC183: 414.96 | AD183: =AD184+AD185 -> 330.8 | AE183: 330.8 | AF183: 330.8 | AG183: 330.8 | AH183: 330.8 | AI183: 330.8 | AJ183: =AJ184+AJ185 -> 305.23 | AK183: =AK184+AK185 -> 305.23 | AL183: =AL184+AL185 -> 305.23 | AM183: =AM184+AM185 -> 305.23 | AN183: 305.23 | AO183: 305.23 | AP183: 411.18 | AQ183: =AQ184+AQ185 -> 330.52 | AR183: =AR184+AR185 -> 330.52 | AS183: =AS184+AS185 -> 330.52 | AT183: =AT184+AT185 -> 330.52 | AU183: 312.79 | AV183: 315.26 | AW183: 305.23 | AX183: 372.08 | AY183: 414.96 | AZ183: =AZ184+AZ185 -> 368.29 | BA183: 368.29 | BB183: 368.29 | BC183: 368.29 | BD183: 368.29 | BE183: 368.29 | BF183: 462.9 | BG183: =BG184+BG185 -> 353.17 | BH183: 353.17 | BI183: 353.17 | BJ183: 336.35 | BK183: 459.12 | BL183: 353.17 | BM183: 353.17 | BN183: 353.17 | BO183: 353.17 | BP183: 459.12 | BQ183: 353.17 | BR183: 358.87 | BS183: 358.87 | BT183: 412.89 | BU183: =BU184+BU185 -> 358.87 | BV183: =BV184+BV185 -> 358.87 | BW183: =BW184+BW185 -> 358.87 | BX183: =BX184+BX185 -> 358.87 | BY183: 425.73 | BZ183: 504.51 | CA183: =CA184+CA185 -> 797.16 | CB183: 797.16 | CC183: 797.16 | CD183: 797.16 | CE183: 797.16 | CF183: 797.16 | CG183: 548.67 | CH183: 1094.76 | CI183: 2002.97 | CJ183: 417.2 | CK183: 330.8 | CL183: 330.8 | CM183: 330.8 | CN183: 330.8 | CO183: 436.75 | CP183: 351.89 | CQ183: 359 | CR183: 356.95 | CS183: 356.95 | CT183: 356.95 | CU183: 356.95 | CV183: 462.9 | CW183: 372.08 | CX183: 566.24 | CY183: 359.75 | CZ183: 293.88 | DA183: 293.88 | DB183: 293.88 | DC183: 293.88 | DD183: 399.83 | DF183: 631.55 | DG183: 631.55 | DH183: 631.55 | DO183: =DO184+DO185 -> 285.64 | DP183: =DP184+DP185 -> 360.72 | DQ183: 367.03 | DR183: 385.95 | DS183: 428.84 | DT183: 375.86 | DU183: =DU184+DU185 -> 426.32 | DV183: 437.67 | DW183: 399.84 | DX183: 418.76 | DY183: 461.65 | DZ183: 385.99 | EA183: 434.5 | EB183: 445.42 | EC183: 469.19 | ED183: 359.45 | EE183: 368.3 | EF183: 359.45 | EG183: =EG184+EG185 -> 368.3 | EH183: =EH184+EH185 -> 562.46 | EK183: 1094.76 | EL183: 2002.97 | EM183: 245.96 | EN183: 290.09 | EO183: =EO184+EO185 -> 290.09 | EP183: 331.72 | EQ183: 331.72 | ER183: 331.72 | ES183: =ES184+ES185 -> 331.72 | ET183: =ET184+ET185 -> 331.72 | EU183: =EU184+EU185 -> 331.72 | EV183: 409.92 | EX183: 551.19 | EY183: 551.19 | EZ183: 542.36 | FA183: 1379.83 | FB183: 560.72 | FC183: 504.51 | FD183: =FD184+FD185 -> 504.51 | FE183: 568.86 | FF183: 568.86 | FG183: 469.21 | FH183: 1022.4 | FI183: 627.9 | FJ183: 772.08 | FK183: 1001.3 | FL183: 2005.75 | FM183: 755.63 | FN183: 1302.38 | FP183: 251.01 | FQ183: 251.01 | FR183: 475.53 | FS183: 475.53 | FT183: 869.02 | FU183: 869.02 | FV183: 807.21 | FW183: 807.21 | FX183: =FX184+FX185+FX186 -> 586.51 | FY183: =FY184+FY185+FY186 -> 525.97 | FZ183: =FZ184+FZ185+FZ186 -> 525.97 | GA183: =GA184+GA185+GA186 -> 629.44 | GB183: =GB184+GB185+GB186 -> 755.51 | GC183: 755.51 | GD183: 624.35 | GE183: 624.35 | GF183: 624.35 | GG183: 1344.54 | GH183: 1344.54 | GI183: 2016.81 | GJ183: 2016.81 | GK183: 822.42 | GM183: =GM184+GM185 -> 580.21 | GN183: 1054.44 | GO183: 880.07 | GP183: 283.8 | GQ183: =GQ184+GQ185 -> 283.8 | GR183: 712.62 | GS183: 439.45 | GT183: 535.76 | GU183: 595.94 | GV183: 782.57 | GW183: 644.18 | GX183: =GX184+GX185 -> 644.18 | GY183: 644.18 | GZ183: 644.18 | HA183: 644.18 | HB183: 644.18 | HC183: 873.92 | HD183: 873.92 | HE183: 873.92 | HF183: 873.92 | HG183: 873.92 | HH183: =HH184+HH185 -> 873.92 | HI183: 595.94 | HJ183: 1015.33 | HK183: 561.28 | HL183: 128.67 | HM183: 151.36 | HN183: 353.16 | HO183: 706.32 | HP183: 428.83 | HQ183: 435.14 | HR183: 561.91 | HS183: 1123.82 | HT183: 332.3 | HU183: 459.92 | HV183: 528.53 | HW183: 749.2 | HX183: 1341.19 | HY183: 1761.36 | HZ183: 2310.35 | IA183: 3055.59 | IB183: 3366.2 | IC183: 4257.1 | ID183: 216.71 | IE183: 469.52 | IF183: 373.23 | IG183: 626.06 | IH183: 1127.07 | II183: 1715.62 | IJ183: 475.56 | IK183: 355.17 | IL183: =IL184+IL185 -> 534.8 | IM183: =IM184+IM185 -> 283.8 | IN183: =IN184+IN185 -> 534.8 | IO183: =IO184+IO185+IO186 -> 586.51 | IP183: 74.43 | IQ183: 84.52 | IR183: 88.29 | IS183: 94.61 | IT183: 124.87 | IU183: 145.05 | IV183: 184.15 | IW183: 108.47 | IX183: 115.83 | IY183: 121.09 | IZ183: 127.4 | JA183: 157.67 | JB183: 177.84 | JC183: 216.95 | JD183: =JD184+JD185 -> 754.9 | JE183: =JE184+JE185 -> 658.99 | JF183: =JF184+JF185 -> 370.78 | JG183: 1133.13 | JH183: 2266.26 | JI183: 298.92 | JJ183: =JJ184+JJ185+JJ186 -> 630.31 | JK183: =JK184+JK185+JK186 -> 746.54 | JL183: 908.08 | JM183: 2064.96 | JN183: =JN184+JN185 -> 623.07 | JO183: =JO184+JO185 -> 1126.85 | JP183: 1042.86 | JQ183: 540.66 | JR183: 552.3 | JS183: 552.3 | JW183: 285.6 | JX183: 285.6 | JY183: 285.6 | JZ183: 285.6 | KA183: 285.6 | KB183: 285.6 | KC183: 295.05 | KD183: 295.05 | KE183: 279.3 | KF183: 279.3 | KG183: 431.55 | KH183: 456.75 | KI183: 354.9 | KJ183: 354.9 | KK183: 333.9 | KL183: 333.9 | KM183: 302.4 | KN183: 302.4 | KR183: 790.65 | KS183: 731.85 | KT183: 633.15 | KU183: 731.85 | KV183: 633.15 | KW183: 842.1 | KX183: 842.1 | KY183: 311.85 | KZ183: 311.85 | LA183: 311.85 | LB183: 311.85 | LC183: 397.95 | LD183: 397.95 | LE183: 348.6 | LF183: 348.6 | LG183: 349.65 | LH183: 349.65 | LI183: 342.3 | LJ183: 439.95 | LK183: 321.3 | LL183: 362.25 | LM183: 362.25 | LN183: 362.25 | LO183: 362.25 | LP183: 306.6 | LQ183: 306.6 | LR183: 298.2 | LS183: 409.5 | LT183: 479.85 | LU183: 479.85 | LZ183: 323.4 | MA183: 323.4 | MB183: 348.6 | MC183: 348.6 | MD183: 449.4 | MF183: 338.1 | MG183: 338.1 | MH183: 311.85 | MJ183: 357 | MK183: 350.7 | ML183: 289.8 | MM183: 305.55 | MN183: 528.15 | MO183: 528.15 | MR183: 413.7 | MS183: 413.7 | MT183: 321.3 | MU183: 321.3 | MY183: 868.35 | MZ183: 567 | NA183: 567 | NB183: 1134 | NC183: 1134 | ND183: 1701 | NE183: 1701 | NF183: 584.85 | NG183: 763.35 | NH183: 763.35 | NI183: 1621.2 | NJ183: 1621.2 | NK183: 2480.1 | NL183: 2480.1 | NM183: 751.8 | NN183: 751.8 | NO183: 1600.2 | NP183: 1600.2 | NQ183: 2446.5 | NR183: 2446.5 | NS183: 702.45 | NT183: 702.45 | NU183: 1494.15 | NV183: 1494.15 | NW183: 2291.1 | NX183: 2291.1 | NY183: 441 | NZ183: 710.85 | OA183: 668.85 | OB183: 837.9 | OC183: 837.9 | OD183: 1675.8 | OE183: 903 | OF183: 861 | OG183: 1722 | OH183: 851.55 | OI183: 1703.1 | OJ183: 3406.2 | OL183: 441 | OM183: 441 | ON183: 670.95 | OO183: 670.95 | OP183: 568.05 | OQ183: 680.4 | OR183: 680.4 | OS183: 1456.35 | OT183: 1456.35 | OU183: 2233.35 | OV183: 2233.35 | OX183: 719.25 | OY183: 558.6 | OZ183: 350.7 | PA183: 451.5 | PB183: 767.55 | PC183: 997.5 | PD183: 837.9 | PE183: 837.9 | PH183: 286.65 | PI183: 286.65 | PJ183: 183.75 | PK183: 183.75 | PO183: 580.65 | PP183: 1161.3 | PQ183: 2322.6 | PR183: 708.75 | PT183: 436.8 | PU183: 436.8 | PV183: 837.9 | PW183: 541.8 | PX183: 504 | PY183: 691.95 | PZ183: 691.95 | QA183: 691.95 | QB183: 573.3 | QC183: 573.3 | QG183: 337.05 | QH183: 584.85 | QI183: 117.6 | QJ183: 151.2 | QK183: 190 | QP183: 682.5 | QQ183: 892.5 | RM183: 485.59 | RN183: 569.79 | RO183: 716.52 | RP183: 845.97 | RQ183: 962.26 | RR183: 1175.57 | RS183: 980.52 | RT183: 1114.54 | RU183: 1360.28 | RV183: 1114.54 | RW183: 1114.54 | RX183: 1360.28 | RY183: 2467.44 | RZ183: 2774.25 | SA183: 3404.07 | SB183: 3710.23 | SC183: 4046.45 | SD183: 5729.51 | SE183: 1053.56 | SF183: 1146.1 | SG183: 1321.14 | SH183: 1113.72 | SI183: 1212.43 | SJ183: 1399.14 | SK183: 1781.56 | SL183: 1975.88 | SM183: 2343.47 | SN183: 2779.91 | SO183: 3026.9 | SP183: 4376.95 | SQ183: 667.93 | SR183: 749.39 | SS183: 898.16 | ST183: 878.41 | SU183: 994.14 | SV183: 1137.59 | SW183: 1014.56 | SX183: 1161.72 | SY183: 1369.18 | SZ183: 2285.52 | TA183: 2657.87 | TB183: 3329.57 | TC183: 3378.22 | TD183: 3723.37 | TE183: 5406.42 | TF183: 705.73 | TG183: 763.56 | TH183: 872.96 | TI183: 1033.46 | TJ183: 1149.12 | TK183: 1367.92 | TL183: 2339.07 | TM183: 2666.79 | TN183: 3286.73 | TO183: 2960.53 | TP183: 3252.13 | TQ183: 4845.93 | TR183: 705.73 | TS183: 763.56 | TT183: 872.96 | TU183: 1197.32 | TV183: 1341.9 | TW183: 1615.41 | TX183: 2339.07 | TY183: 2666.79 | TZ183: 3286.73 | UA183: 2960.53 | UB183: 3252.13 | UC183: 4845.93 | UD183: 276.15 | UE183: 323.4 | UF183: 373.8 | UG183: 550.2 | UH183: 746.55 | UI183: 897.75
B184: Frame Cost | C184: Frame Cost | D184: Dollar | I184: 104.69 | J184: 104.69 | K184: 111 | L184: 111 | M184: 177.84 | N184: 177.84 | O184: 177.84 | P184: 177.84 | Q184: 177.84 | R184: 177.84 | S184: 210.65 | T184: 210.65 | U184: 210.65 | V184: 210.65 | W184: 210.65 | X184: 210.65 | Y184: 210.65 | Z184: 210.65 | AA184: 210.65 | AD184: 118.56 | AE184: 118.56 | AF184: 118.56 | AG184: 118.56 | AH184: 118.56 | AI184: 118.56 | AJ184: 186.67 | AK184: 186.67 | AL184: 186.67 | AM184: 186.67 | AN184: 186.67 | AP184: 186.67 | AQ184: 186.67 | AR184: 186.67 | AS184: 186.67 | AT184: 186.67 | AU184: 186.67 | AV184: 186.67 | AW184: 186.67 | AZ184: 191.71 | BA184: 191.71 | BB184: 191.71 | BC184: 191.71 | BD184: 191.71 | BE184: 191.71 | BG184: 180.37 | BH184: 180.37 | BI184: 180.37 | BJ184: 180.37 | BK184: 180.37 | BL184: 180.37 | BM184: 180.37 | BN184: 180.37 | BO184: 180.37 | BP184: 180.37 | BQ184: 180.37 | BR184: 180.37 | BU184: 180.37 | BV184: 180.37 | BW184: 180.37 | BX184: 180.37 | CA184: 407.4 | CB184: 407.4 | CC184: 407.4 | CD184: 407.4 | CE184: 407.4 | CF184: 407.4 | CG184: 253.53 | CH184: 492.57 | CI184: 974.76 | CK184: 212.24 | CL184: 212.24 | CM184: 212.24 | CN184: 212.24 | CO184: 212.24 | CR184: 184.15 | CS184: 184.15 | CT184: 184.15 | CU184: 184.15 | CV184: 184.15 | CW184: 184.15 | CX184: 184.15 | CZ184: 177.84 | DA184: 177.84 | DB184: 177.84 | DC184: 177.84 | DD184: 177.84 | DO184: 111 | DP184: 179.1 | DQ184: 177.84 | DR184: 177.84 | DS184: 177.84 | DT184: 186.67 | DU184: 186.67 | DV184: 186.67 | DW184: 210.65 | DX184: 210.65 | DY184: 210.65 | DZ184: 204.08 | EA184: 204.08 | EB184: 204.08 | EC184: 191.71 | ED184: 180.37 | EE184: 180.37 | EF184: 180.37 | EG184: 180.37 | EH184: 180.37 | EK184: 492.57 | EL184: 974.76 | EM184: 81.99 | EN184: 131.17 | EO184: 131.17 | EP184: 131.17 | EQ184: 131.17 | ER184: 131.17 | ES184: 131.17 | ET184: 131.17 | EU184: 131.17 | EV184: 177.84 | EX184: 330.45 | EZ184: 361.99 | FA184: 587.75 | FB184: 236.57 | FC184: 176.58 | FD184: 176.58 | FE184: 334.24 | FF184: 334.24 | FG184: 239.65 | FH184: 563.29 | FI184: 251.16 | FJ184: 323.01 | FL184: 687.53 | FM184: 224.51 | FP184: 87.04 | FQ184: 87.04 | FR184: 190.46 | FS184: 190.46 | FT184: 259.83 | FU184: 259.83 | FV184: 317.84 | FW184: 317.84 | FX184: 175.32 | FY184: 228.3 | FZ184: 228.3 | GA184: 274.09 | GB184: 292.62 | GC184: 292.62 | GD184: 232.08 | GE184: 232.08 | GF184: 232.08 | GG184: 560.01 | GH184: 560.01 | GI184: 840.02 | GJ184: 840.02 | GM184: 283.8 | GN184: 461.63 | GO184: 478.34 | GP184: 147.58 | GQ184: 147.58 | GS184: 95.11 | GT184: 119.2 | GU184: 95.11 | GV184: 125.22 | GW184: 124.01 | GX184: 124.01 | GY184: 124.01 | GZ184: 124.01 | HA184: 124.01 | HB184: 124.01 | HC184: 125.06 | HD184: 125.06 | HE184: 125.06 | HF184: 125.06 | HG184: 125.06 | HH184: 125.06 | HI184: 95.11 | HJ184: 507.03 | HK184: 237.13 | HL184: 41.63 | HN184: 176.58 | HO184: 353.16 | HP184: 204.32 | HQ184: 204.32 | IL184: 219.48 | IM184: 147.58 | IN184: 219.48 | IO184: 175.32 | JD184: 479.64 | JE184: 491.6 | JF184: 203.93 | JJ184: 284.27 | JK184: 320.54 | JN184: 418.7 | JO184: 680.45
B185: Cover/Grate Cost | C185: Cover/Grate Cost | D185: Dollar | I185: 71.9 | J185: 71.9 | K185: 111 | L185: 111 | M185: 116.04 | N185: 116.04 | O185: 116.04 | P185: 116.04 | Q185: 116.04 | R185: 221.99 | S185: 116.04 | T185: 116.04 | U185: 116.04 | V185: 116.04 | W185: 116.04 | X185: 221.99 | Y185: 116.04 | Z185: 116.04 | AA185: 148.83 | AD185: 212.24 | AE185: 212.24 | AF185: 212.24 | AG185: 212.24 | AH185: 212.24 | AI185: 212.24 | AJ185: 118.56 | AK185: 118.56 | AL185: 118.56 | AM185: 118.56 | AN185: 118.56 | AP185: 224.51 | AQ185: 143.85 | AR185: 143.85 | AS185: 143.85 | AT185: 143.85 | AU185: 126.12 | AV185: 128.59 | AW185: 118.56 | AZ185: 176.58 | BA185: 176.58 | BB185: 176.58 | BC185: 176.58 | BD185: 176.58 | BE185: 176.58 | BG185: 172.8 | BH185: 172.8 | BI185: 172.8 | BJ185: 172.8 | BK185: 278.75 | BL185: 172.8 | BM185: 172.8 | BN185: 172.8 | BO185: 172.8 | BP185: 278.75 | BQ185: 172.8 | BR185: 178.5 | BU185: 178.5 | BV185: 178.5 | BW185: 178.5 | BX185: 178.5 | CA185: 389.76 | CB185: 389.76 | CC185: 389.76 | CD185: 389.76 | CE185: 389.76 | CF185: 389.76 | CG185: 295.14 | CH185: 602.19 | CI185: 1028.21 | CK185: 118.56 | CL185: 118.56 | CM185: 118.56 | CN185: 118.56 | CO185: 224.51 | CR185: 172.8 | CS185: 172.8 | CT185: 172.8 | CU185: 172.8 | CV185: 278.75 | CW185: 187.93 | CX185: 382.09 | CZ185: 116.04 | DA185: 116.04 | DB185: 116.04 | DC185: 116.04 | DD185: 221.99 | DO185: 174.64 | DP185: 181.62 | DQ185: 189.19 | DR185: 208.11 | DS185: 251 | DT185: 189.19 | DU185: 239.65 | DV185: 251 | DW185: 189.19 | DX185: 208.11 | DY185: 251 | DZ185: 181.91 | EA185: 230.42 | EB185: 241.34 | EC185: 277.48 | ED185: 179.08 | EE185: 187.93 | EF185: 179.08 | EG185: 187.93 | EH185: 382.09 | EK185: 602.19 | EL185: 1028.21 | EM185: 163.97 | EN185: 158.92 | EO185: 158.92 | EP185: 200.55 | EQ185: 200.55 | ER185: 200.55 | ES185: 200.55 | ET185: 200.55 | EU185: 200.55 | EV185: 232.08 | EX185: 220.74 | EZ185: 180.37 | FA185: 792.08 | FB185: 324.15 | FC185: 327.93 | FD185: 327.93 | FE185: 234.62 | FF185: 234.62 | FG185: 229.56 | FH185: 459.11 | FI185: 376.74 | FJ185: 449.07 | FL185: 1318.22 | FM185: 531.12 | FP185: 163.97 | FQ185: 163.97 | FR185: 285.07 | FS185: 285.07 | FT185: 609.19 | FU185: 609.19 | FV185: 489.37 | FW185: 489.37 | FX185: 248.48 | FY185: 162.71 | FZ185: 162.71 | GA185: 164.94 | GB185: 211.89 | GC185: 211.89 | GD185: 228.3 | GE185: 228.3 | GF185: 228.3 | GG185: 456.59 | GH185: 456.59 | GI185: 684.88 | GJ185: 684.88 | GM185: 296.41 | GN185: 592.81 | GO185: 401.73 | GP185: 136.22 | GQ185: 136.22 | GS185: 344.34 | GT185: 416.56 | GU185: 500.83 | GV185: 657.35 | GW185: 520.17 | GX185: 520.17 | GY185: 520.17 | GZ185: 520.17 | HA185: 520.17 | HB185: 520.17 | HC185: 748.86 | HD185: 748.86 | HE185: 748.86 | HF185: 748.86 | HG185: 748.86 | HH185: 748.86 | HI185: 500.83 | HJ185: 508.3 | HK185: 324.15 | HL185: 87.04 | HN185: 176.58 | HO185: 353.16 | HP185: 224.51 | HQ185: 230.82 | IL185: 315.32 | IM185: 136.22 | IN185: 315.32 | IO185: 248.48 | JD185: 275.26 | JE185: 167.39 | JF185: 166.85 | JJ185: 126.08 | JK185: 206.04 | JN185: 204.37 | JO185: 446.4
B186: Curb Box Cost | C186: Curb Box Cost | D186: Dollar | FX186: 162.71 | FY186: 134.96 | FZ186: 134.96 | GA186: 190.41 | GB186: 251 | GC186: 251 | GD186: 163.97 | GE186: 163.97 | GF186: 163.97 | GG186: 327.94 | GH186: 327.94 | GI186: 491.91 | GJ186: 491.91 | IO186: 162.71 | JJ186: 219.96 | JK186: 219.96
B187: Casting Clear Opening | C187: Clear Opening | D187: Inch | I187: 9.75 | J187: 9.75 | K187: 11 | L187: 20.25 | M187: 21 | N187: 21 | O187: 21 | P187: 21 | Q187: 21 | R187: 21 | S187: 21 | T187: 21 | U187: 21 | V187: 21 | W187: 21 | X187: 21 | Y187: 21 | Z187: 21 | AA187: 21 | AB187: 21 | AC187: 21 | AD187: 21 | AE187: 21 | AF187: 21 | AG187: 21 | AH187: 21 | AI187: 21 | AJ187: 21 | AK187: 21 | AL187: 21 | AM187: 21 | AN187: 21 | AO187: 21 | AP187: 21 | AQ187: 21 | AR187: 21 | AS187: 21 | AT187: 21 | AU187: 21 | AV187: 21 | AW187: 21 | AX187: 21 | AY187: 21 | AZ187: 22 | BA187: 22 | BB187: 22 | BC187: 22 | BD187: 22 | BE187: 22 | BF187: 22 | BG187: 24 | BH187: 24 | BI187: 24 | BJ187: 24 | BK187: 24 | BL187: 24 | BM187: 24 | BN187: 24 | BO187: 24 | BP187: 24 | BQ187: 24 | BR187: 24 | BS187: 24 | BT187: 24 | BU187: 24 | BV187: 24 | BW187: 24 | BX187: 24 | BY187: 24 | BZ187: 24 | CA187: 30 | CB187: 30 | CC187: 30 | CD187: 30 | CE187: 30 | CF187: 30 | CG187: 32 | CH187: 36 | CI187: 48 | CJ187: 21 | CK187: 21 | CL187: 21 | CM187: 21 | CN187: 21 | CO187: 21 | CP187: 23.5 | CQ187: 24 | CR187: 24 | CS187: 24 | CT187: 24 | CU187: 24 | CV187: 24 | CW187: 24 | CX187: 24 | CY187: 21 | CZ187: 21 | DA187: 21 | DB187: 21 | DC187: 21 | DD187: 21 | DE187: 32.25 | DF187: 32.25 | DG187: 32.25 | DH187: 32.25 | DI187: 30 | DJ187: 30 | DK187: 36 | DL187: 36 | DM187: 48 | DN187: 48 | DO187: 11 | DP187: 20.25 | DQ187: 21 | DR187: 21 | DS187: 21 | DT187: 21 | DU187: 21 | DV187: 21 | DW187: 21 | DX187: 21 | DY187: 21 | DZ187: 21 | EA187: 21 | EB187: 21 | EC187: 22 | ED187: 24 | EE187: 24 | EF187: 24 | EG187: 24 | EH187: 24 | EI187: 30 | EJ187: 32.25 | EK187: 36 | EL187: 48 | EM187: 18 X 18 | EN187: 22 X 22 | EO187: 22 X 22 | EP187: 22 X 22 | EQ187: 22 X 22 | ER187: 22 X 22 | ES187: 22 X 22 | ET187: 22 X 22 | EU187: 22 X 22 | EV187: 24 X 24 | EW187: 24 X 24 | EX187: 22 X 22 | EY187: 22 X 22 | EZ187: 20 X 26 | FA187: 26 X 46 | FB187: 21.375 X 27.875 | FC187: 24 X 24 | FD187: 24 X 24 | FE187: 15.25 X 35.75 | FF187: 15.25 X 35.75 | FG187: 22 X 34 | FH187: 34 X 48 | FI187: 30 X 30 | FJ187: 30 X 30 | FK187: 30 X 30 | FL187: 48.625X48.625 | FM187: 33.25 X 33.25 | FN187: 36 X 36 | FO187: 36 X 36 | FP187: 15.5 X 15.5 | FQ187: 15.5 X 15.5 | FR187: 25.5 X 25.5 | FS187: 25.5 X 25.5 | FT187: 36 X 36 | FU187: 36 X 36 | FV187: 24 X 35 | FW187: 24 X 35 | FX187: 22 X 22 | FY187: 17.5 X 20.25 | FZ187: 17.5 X 20.25 | GA187: 20.88 X 22 | GB187: 14.75 X 36 | GC187: 14.75 X 36 | GD187: 24.25 X 33.25 | GE187: 24.25 X 33.25 | GF187: 24.25 X 33.25 | GG187: (2) 24.25 X 33.25 | GH187: (2) 24.25 X 33.25 | GI187: (3) 24.25 X 33.25 | GJ187: (3) 24.25 X 33.25 | GK187: 24 X 24 | GL187: 23 X 31 | GM187: 23.375 X 20 | GN187: 23.378 X 44 | GO187: 21.25 X 34.31 | GP187: 23.5 | GQ187: 23.5 | GR187: 26 | GS187: 36 X 36 | GT187: 36 X 48 | GU187: 36 X 36 | GV187: 36 X 48 | GW187: 36 X 48 | GX187: 36 X 48 | GY187: 36 X 48 | GZ187: 36 X 48 | HA187: 36 X 48 | HB187: 36 X 48 | HC187: 36 X 48 | HD187: 36 X 48 | HE187: 36 X 48 | HF187: 36 X 48 | HG187: 36 X 48 | HH187: 36 X 48 | HI187: 36 X 36 | HJ187: 16 X 28 | HK187: 21 X 28 | HL187: 12 X 12 | HM187: 12 X 12 | HN187: 15.75 X 27.75 | HO187: (2) 15.75 X 27.75 | HP187: 20 | HQ187: 20 | HR187: n/a | HS187: n/a | HT187: n/a | HU187: n/a | HV187: n/a | HW187: n/a | HX187: n/a | HY187: n/a | HZ187: n/a | IA187: n/a | IB187: n/a | IC187: n/a | ID187: n/a | IE187: n/a | IF187: n/a | IG187: n/a | IH187: n/a | II187: n/a | IJ187: n/a | IK187: n/a | IL187: 24 X 24 | IM187: 23.5 | IN187: 24 X 24 | IO187: 24 X 24 | IP187: 6 x 12 | IQ187: 8 x 12 | IR187: 10 x 12 | IS187: 12 x 12 | IT187: 15 x 12 | IU187: 18 x 12 | IV187: 24 x 12 | IW187: 6 x 12 | IX187: 8 x 12 | IY187: 10 x 12 | IZ187: 12 x 12 | JA187: 15 x 12 | JB187: 18 x 12 | JC187: 24 x 12 | JD187: 20 X 20 | JE187: 22 | JF187: 21.625 | JG187: 19.5 X 44 | JH187: 19.5 X 44 | JI187: 30 X 30 | JJ187: 20 X 22 | JK187: 22 X 33 | JL187: 24 X 72 | JM187: 24 X 35 | JN187: 14 X 27.5 | JO187: 13 X 60 | JP187: 28 X 42 | JQ187: 22 X 22 | JR187: 22 | JS187: 22 | JT187: 22.5 | JU187: 22 | JV187: 22 | JW187: 24.25 | JX187: 24.25 | JY187: 24.25 | JZ187: 24.25 | KA187: 24.25 | KB187: 24.25 | KC187: 24.25 | KD187: 24.25 | KE187: 23.5 | KF187: 23.5 | KG187: 21.75 | KH187: 21.75 | KI187: 22 | KJ187: 22 | KK187: 22 | KL187: 22 | KM187: 21.5 | KN187: 21.5 | KO187: 21.5 | KP187: 21.5 | KQ187: 21.5 | KR187: 24 | KS187: 24 | KT187: 24 | KU187: 24 | KV187: 24 | KW187: 30 | KX187: 30 | KY187: 21 | KZ187: 21 | LA187: 21 | LB187: 21 | LC187: 21 | LD187: 21 | LE187: 20.62 | LF187: 20.62 | LG187: 24.12 | LH187: 24.12 | LI187: 24.12 | LJ187: 24 | LK187: 24 | LL187: 24.12 | LM187: 24.12 | LN187: 24.12 | LO187: 24.12 | LP187: 24.12 | LQ187: 24.12 | LR187: 24.12 | LS187: 24.12 | LT187: 30 | LU187: 30 | LV187: 30 | LW187: 30 | LX187: 32.25 | LY187: 32.25 | LZ187: 24 | MA187: 24 | MB187: 24 | MC187: 24 | MD187: 24 | ME187: 22 | MF187: 24.25 | MG187: 24.25 | MH187: 21.5 | MI187: 21.5 | MJ187: 21 | MK187: 24.12 | ML187: 20 | MM187: 20 | MN187: 30 | MO187: 30 | MP187: 32.25 | MQ187: 32.25 | MR187: 24 X 24 | MS187: 24 X 24 | MT187: 24.25 | MU187: 24.25 | MV187: 24.13 | MW187: 24 X 48 | MX187: 24 X 48 | MY187: 21.25 X 34.31 | MZ187: 24.75 X33.75 | NA187: 24.75 X33.75 | NB187: 24.75 X33.75 | NC187: 24.75 X33.75 | ND187: 24.75 X33.75 | NE187: 24.75 X33.75 | NF187: 24 X 24 | NG187: 30X30 | NH187: 30X30 | NI187: (2) 30X30 | NJ187: (2) 30X30 | NK187: (3) 30X30 | NL187: (3) 30X30 | NM187: 30X30 | NN187: 30X30 | NO187: (2) 30X30 | NP187: (2) 30X30 | NQ187: (3) 30X30 | NR187: (3) 30X30 | NS187: 30 X 29.75 | NT187: 30 X 29.75 | NU187: (2) 30 X 29.75 | NV187: (2) 30 X 29.75 | NW187: (3) 30 X 29.75 | NX187: (3) 30 X 29.75 | NY187: 20.5 X 29 | NZ187: 24 X 35.62 | OA187: 24 X 35.62 | OB187: 28 X 34 | OC187: 28 X 34 | OD187: (2) 28 X 34 | OE187: 28 X 34 | OF187: 28 X 34 | OG187: (2) 28 X 34 | OH187: 28 X 34 | OI187: (2) 28 X 34 | OJ187: (4) 28 X 34 | OK187: 15 X 43 | OL187: 20.5 X 29 | OM187: 20.5 X 29 | ON187: 24 X 35.62 | OO187: 24 X 35.62 | OP187: 19 x 34 | OQ187: 28 X 29.56 | OR187: 28 X 29.56 | OS187: (2) 28 X 29.56 | OT187: (2) 28 X 29.56 | OU187: (3) 28 X 29.56 | OV187: (3) 28 X 29.56 | OW187: 29.25 X 29.25 | OX187: 23.25 X 24.25 | OY187: 21 X 28 | OZ187: 15.75 X 27.75 | PA187: 24 X 24 | PB187: 24 X 36 | PC187: 22 X 22 | PD187: 36 X 36 | PE187: 36 X 36 | PF187: 35.75 X 35.75 | PG187: 35.75 X 35.75 | PH187: 22.75 X 22.75 | PI187: 22.75 X 22.75 | PJ187: 17 X 17 | PK187: 17 X 17 | PL187: 45 X 48 | PM187: 24 X 48 | PN187: 24 X 24 | PO187: 32 X 32 | PP187: (2) 32 X 32 | PQ187: (4) 32 X 32 | PR187: 26 x 26 | PS187: 24 X 30 | PT187: 22 X 34 | PU187: 22 X 34 | PV187: 34 X 34 | PW187: 15 X 35.62 | PX187: 15 X 35.62 | PY187: 30 X 30 | PZ187: 30 X 30 | QA187: 30 X 62 | QB187: 30 X 30 | QC187: 30 X 30 | QD187: 30 X 30 | QE187: 30 X 30 | QF187: 26 X 26 | QG187: 30 X 30 | QH187: 24 X 24 | QI187: 12 X 12 | QJ187: 12 X 12 | QK187: 11.25 X 13.5 | QL187: 12 X 20 | QM187: 12 X 29.75 | QN187: 12 X 29.75 | QO187: 22.5 X 22.5 | QP187: 32 X 32 | QQ187: 48 X 48 | QR187: 48 X 96 | QS187: n/a | QT187: n/a | QU187: n/a | QV187: n/a | QW187: n/a | QX187: n/a | QY187: n/a | QZ187: n/a | RA187: n/a | RB187: n/a | RC187: n/a | RD187: n/a | RE187: n/a | RF187: n/a | RG187: n/a | RH187: n/a | RI187: n/a | RJ187: n/a | RK187: n/a | RL187: n/a | RM187: 24 X 24 | RN187: 24 X 24 | RO187: 24 X 24 | RP187: 36 X 36 | RQ187: 36 X 36 | RR187: 36 X 36 | RS187: 36 X 48 | RT187: 36 X 48 | RU187: 36 X 48 | RV187: 48 X 48 | RW187: 48 X 48 | RX187: 48 X 48 | RY187: 60 X 60 | RZ187: 60 X 60 | SA187: 60 X 60 | SB187: 72 X 72 | SC187: 72 X 72 | SD187: 72 X 72 | SE187: 36 | SF187: 36 | SG187: 36 | SH187: 48 | SI187: 48 | SJ187: 48 | SK187: 60 | SL187: 60 | SM187: 60 | SN187: 72 | SO187: 72 | SP187: 72 | SQ187: 36 X 36 | SR187: 36 X 36 | SS187: 36 X 36 | ST187: 36 X 48 | SU187: 36 X 48 | SV187: 36 X 48 | SW187: 48 X 48 | SX187: 48 X 48 | SY187: 48 X 48 | SZ187: 60 X 60 | TA187: 60 X 60 | TB187: 60 X 60 | TC187: 72 X 72 | TD187: 72 X 72 | TE187: 72 X 72 | TF187: 36 X 36 | TG187: 36 X 36 | TH187: 36 X 36 | TI187: 48 X 48 | TJ187: 48 X 48 | TK187: 48 X 48 | TL187: 60 X 60 | TM187: 60 X 60 | TN187: 60 X 60 | TO187: 72 X 72 | TP187: 72 X 72 | TQ187: 72 X 72 | TR187: 36 | TS187: 36 | TT187: 36 | TU187: 48 | TV187: 48 | TW187: 48 | TX187: 60 | TY187: 60 | TZ187: 60 | UA187: 72 | UB187: 72 | UC187: 72 | UD187: n/a | UE187: n/a | UF187: n/a | UG187: n/a | UH187: n/a | UI187: n/a | UJ187: 24 X 24 | UK187: 24 X 30 | UL187: 24 X 36 | UM187: 24 X 42 | UN187: 24 X 48 | UO187: 29 X 59 | UP187: 30 X 30 | UQ187: 30 X 36 | UR187: 30 X 42 | US187: 30 X 48 | UT187: 30 X 54 | UU187: 30 X 60 | UV187: 36 X 36 | UW187: 36 X 42 | UX187: 36 X 48 | UY187: 36 X 54 | UZ187: 36 X 60 | VA187: 36 X 66 | VB187: 36 X 72 | VC187: 42 X 42 | VD187: 42 X 42 | VE187: 44 X 68 | VF187: 48 X 42 | VG187: 48 X 48 | VH187: 54 X 42 | VI187: 54 X 48 | VJ187: 54 X 52 | VK187: 54 X 54 | VL187: 58 X 58 | VM187: 60 X 30 | VN187: 60 X 36 | VO187: 60 X 42 | VP187: 60 X 48 | VQ187: 60 X 54 | VR187: 60 X 60 | VS187: 66 X 36 | VT187: 66 X 42 | VU187: 66 X 48 | VV187: 66 X 54 | VW187: 66 X 60 | VX187: 66 X 66 | VY187: 72 X 36 | VZ187: 72 X 42 | WA187: 72 X 48 | WB187: 72 X 54 | WC187: 72 X 60 | WD187: 24 X 24 | WE187: 24 X 30 | WF187: 24 X 36 | WG187: 24 X 42 | WH187: 24 X 48 | WI187: 30 X 30 | WJ187: 30 X 36 | WK187: 30 X 42 | WL187: 30 X 48 | WM187: 30 X 54 | WN187: 30 X 60 | WO187: 36 X 36 | WP187: 36 X 42 | WQ187: 36 X 48 | WR187: 36 X 54 | WS187: 36 X 60 | WT187: 36 X 66 | WU187: 36 X 72 | WV187: 42 X 42 | WW187: 36 X 54 | WX187: 42 X 42 | WY187: 48 X 42 | WZ187: 48 X 48 | XA187: 54 X 42 | XB187: 54 X 48 | XC187: 54 X 54 | XD187: 60 X 30 | XE187: 60 X 36 | XF187: 60 X 42 | XG187: 60 X 48 | XH187: 60 X 54 | XI187: 60 X 60 | XJ187: 66 X 36 | XK187: 66 X 42 | XL187: 66 X 48 | XM187: 66 X 54 | XN187: 66 X 60 | XO187: 66 X 66 | XP187: 72 X 36 | XQ187: 72 X 42 | XR187: 72 X 48 | XS187: 72 X 54 | XT187: 72 X 60 | XU187: 24 X 24 | XV187: 24 X 30 | XW187: 24 X 36 | XX187: 24 X 42 | XY187: 24 X 48 | XZ187: 30 X 30 | YA187: 30 X 36 | YB187: 30 X 42 | YC187: 30 X 48 | YD187: 30 X 54 | YE187: 30 X 60 | YF187: 36 X 36 | YG187: 36 X 42 | YH187: 36 X 48 | YI187: 36 X 54 | YJ187: 36 X 60 Cast-In | YK187: 36 X 66 | YL187: 36 X 72 | YM187: 42 X 42 | YN187: 42 X 42 | YO187: 48 X 42 | YP187: 48 X 48 | YQ187: 52 X 42 | YR187: 54 X 48 | YS187: 54 X 54 | YT187: 58 X 34 | YU187: 60 X 30 | YV187: 60 X 36 | YW187: 60 X 42 | YX187: 60 X 48 | YY187: 60 X 54 | YZ187: 60 X 36 | ZA187: 66 X 36 | ZB187: 66 X 42 | ZC187: 66 X 48 | ZD187: 66 X 54 | ZE187: 66 X 60 | ZF187: 66 X 66 | ZG187: 72 X 36 | ZH187: 72 X 42 | ZI187: 72 X 48 | ZJ187: 72 X 54 | ZK187: 72 X 60 | ZL187: 24 X 24 | ZM187: 24 X 30 | ZN187: 24 X 36 | ZO187: 24 X 42 | ZP187: 24 X 48 | ZQ187: 30 X 30 | ZR187: 30 X 36 | ZS187: 30 X 42 | ZT187: 30 X 48 | ZU187: 30 X 54 | ZV187: 30 X 60 | ZW187: 36 X 36 | ZX187: 36 X 42 | ZY187: 36 X 48 | ZZ187: 36 X 54 | AAA187: 36 X 60 | AAB187: 36 X 66 | AAC187: 36 X 72 | AAD187: 36 X 78 | AAE187: 42 X 42 | AAF187: 42 X 60 | AAG187: 60 X 60 | AAH187: 42 X 42 | AAI187: 48 X 42 | AAJ187: 48 X 48 | AAK187: 54 X 42 | AAL187: 54 X 48 | AAM187: 54 X 54 | AAN187: 60 X 30 | AAO187: 60 X 36 | AAP187: 60 X 42 | AAQ187: 60 X 48 | AAR187: 60 X 54 | AAS187: 60 X 60 | AAT187: 66 X 36 | AAU187: 66 X 42 | AAV187: 66 X 48 | AAW187: 66 X 54 | AAX187: 66 X 60 | AAY187: 66 X 66 | AAZ187: 72 X 36 | ABA187: 72 X 42 | ABB187: 72 X 48 | ABC187: 72 X 54 | ABD187: 72 X 60 | ABE187: 78 X 48 | ABF187: 96 X 72 | ABG187: 24 X 24 | ABH187: 24 X 30 | ABI187: 24 X 36 | ABJ187: 24 X 42 | ABK187: 24 X 48 | ABL187: 30 X 30 | ABM187: 30 X 36 | ABN187: 30 X 42 | ABO187: 30 X 48 | ABP187: 30 X 54 | ABQ187: 30 X 60 | ABR187: 36 X 36 | ABS187: 36 X 42 | ABT187: 36 X 48 | ABU187: 36 X 54 | ABV187: 36 X 60 | ABW187: 36 X 66 | ABX187: 36 X 72 | ABY187: 42 X 42 | ABZ187: 42 X 42 | ACA187: 48 X 42 | ACB187: 48 X 48 | ACC187: 54 X 42 | ACD187: 54 X 48 | ACE187: 54 X 54 | ACF187: 60 X 30 | ACG187: 60 X 36 | ACH187: 60 X 42 | ACI187: 60 X 48 | ACJ187: 60 X 54 | ACK187: 60 X 60 | ACL187: 66 X 36 | ACM187: 66 X 42 | ACN187: 66 X 48 | ACO187: 66 X 54 | ACP187: 66 X 60 | ACQ187: 66 X 66 | ACR187: 72 X 36 | ACS187: 72 X 42 | ACT187: 72 X 48 | ACU187: 72 X 54 | ACV187: 72 X 60 | ACW187: 24 X 24 | ACX187: 24 X 30 | ACY187: 24 X 36 | ACZ187: 24 X 42 | ADA187: 24 X 48 | ADB187: 30 X 30 | ADC187: 30 X 36 | ADD187: 30 X 42 | ADE187: 30 X 48 | ADF187: 36 X 36 | ADG187: 36 X 42 | ADH187: 36 X 48 | ADI187: 42 X 42 | ADJ187: 48 X 42 | ADK187: 48 X 48 | ADL187: 54 X 42 | ADM187: 54 X 48 | ADN187: 60 X 48 | ADO187: 60 X 60 | ADP187: 72 X 48 | ADQ187: 72 X 60 | ADR187: 72 X 72 | ADS187: 24 X 24 | ADT187: 24 X 30 | ADU187: 24 X 36 | ADV187: 24 X 42 | ADW187: 24 X 48 | ADX187: 30 X 30 | ADY187: 30 X 36 | ADZ187: 30 X 42 | AEA187: 30 X 48 | AEB187: 36 X 36 | AEC187: 36 X 42 | AED187: 36 X 48 | AEE187: 36 X 60 | AEF187: 36 X 80 | AEG187: 42 X 42 | AEH187: 48 X 42 | AEI187: 48 X 48 | AEJ187: 54 X 42 | AEK187: 54 X 48 | AEL187: 60 X 48 | AEM187: 60 X 60 | AEN187: 72 X 48 | AEO187: 72 X 60 | AEP187: 24 X 24 | AEQ187: 24 X 30 | AER187: 24 X 36 | AES187: 24 X 42 | AET187: 24 X 48 | AEU187: 30 X 30 | AEV187: 30 X 36 | AEW187: 30 X 42 | AEX187: 30 X 48 | AEY187: 36 X 36 | AEZ187: 36 X 42 | AFA187: 36 X 48 | AFB187: 42 X 42 | AFC187: 48 X 42 | AFD187: 48 X 48 | AFE187: 54 X 42 | AFF187: 54 X 48 | AFG187: 60 X 48 | AFH187: 60 X 60 | AFI187: 72 X 48 | AFJ187: 72 X 60 | AFK187: 72 X 72
B188: Precast Opening Size | C188: Precast Opening Size | D188: Inch | I188: 10 Dia. | J188: 10 Dia. | K188: 12 Dia. | L188: 21 Dia. | M188: 24 Dia. | N188: 24 Dia. | O188: 24 Dia. | P188: 24 Dia. | Q188: 24 Dia. | R188: 24 Dia. | S188: 24 Dia. | T188: 24 Dia. | U188: 24 Dia. | V188: 24 Dia. | W188: 24 Dia. | X188: 24 Dia. | Y188: 24 Dia. | Z188: 24 Dia. | AA188: 24 Dia. | AB188: 24 Dia. | AC188: 24 Dia. | AD188: 24 Dia. | AE188: 24 Dia. | AF188: 24 Dia. | AG188: 24 Dia. | AH188: 24 Dia. | AI188: 24 Dia. | AJ188: 24 Dia. | AK188: 24 Dia. | AL188: 24 Dia. | AM188: 24 Dia. | AN188: 24 Dia. | AO188: 24 Dia. | AP188: 24 Dia. | AQ188: 24 Dia. | AR188: 24 Dia. | AS188: 24 Dia. | AT188: 24 Dia. | AU188: 24 Dia. | AV188: 24 Dia. | AW188: 24 Dia. | AX188: 24 Dia. | AY188: 24 Dia. | AZ188: 24 Dia. | BA188: 24 Dia. | BB188: 24 Dia. | BC188: 24 Dia. | BD188: 24 Dia. | BE188: 24 Dia. | BF188: 24 Dia. | BG188: 24 Dia. | BH188: 24 Dia. | BI188: 24 Dia. | BJ188: 24 Dia. | BK188: 24 Dia. | BL188: 24 Dia. | BM188: 24 Dia. | BN188: 24 Dia. | BO188: 24 Dia. | BP188: 24 Dia. | BQ188: 24 Dia. | BR188: 24 Dia. | BS188: 24 Dia. | BT188: 24 Dia. | BU188: 24 Dia. | BV188: 24 Dia. | BW188: 24 Dia. | BX188: 24 Dia. | BY188: 24 Dia. | BZ188: 24 Dia. | CA188: 30 Dia. | CB188: 30 Dia. | CC188: 30 Dia. | CD188: 30 Dia. | CE188: 30 Dia. | CF188: 30 Dia. | CG188: 30 Dia. | CH188: 36 Dia. | CI188: 48 Dia. | CJ188: 24 Dia. Cast-In | CK188: 24 Dia. Cast-In | CL188: 24 Dia. Cast-In | CM188: 24 Dia. Cast-In | CN188: 24 Dia. Cast-In | CO188: 24 Dia. Cast-In | CP188: 24 Dia. Cast-In | CQ188: 24 Dia. Cast-In | CR188: 24 Dia. Cast-In | CS188: 24 Dia. Cast-In | CT188: 24 Dia. Cast-In | CU188: 24 Dia. Cast-In | CV188: 24 Dia. Cast-In | CW188: 24 Dia. Cast-In | CX188: 24 Dia. Cast-In | CY188: 24 Dia. Cast-In | CZ188: 24 Dia. Cast-In | DA188: 24 Dia. Cast-In | DB188: 24 Dia. Cast-In | DC188: 24 Dia. Cast-In | DD188: 24 Dia. Cast-In | DE188: 34 Dia. Cast-In | DF188: 34 Dia. Cast-In | DG188: 34 Dia. Cast-In | DH188: 34 Dia. Cast-In | DI188: 30 Dia. Cast-In | DJ188: 30 Dia. Cast-In | DK188: 36 Dia. Cast-In | DL188: 36 Dia. Cast-In | DM188: 48 Dia. Cast-In | DN188: 48 Dia. Cast-In | DO188: 12 Dia. | DP188: 21 Dia. | DQ188: 24 Dia. | DR188: 24 Dia. | DS188: 24 Dia. | DT188: 24 Dia. | DU188: 24 Dia. | DV188: 24 Dia. | DW188: 24 Dia. | DX188: 24 Dia. | DY188: 24 Dia. | DZ188: 24 Dia. | EA188: 24 Dia. | EB188: 24 Dia. | EC188: 24 Dia. | ED188: 24 Dia. | EE188: 24 Dia. | EF188: 24 Dia. | EG188: 24 Dia. | EH188: 24 Dia. | EI188: 30 Dia. | EJ188: 34 Dia. | EK188: 36 Dia. | EL188: 48 Dia. | EM188: 18x18 | EN188: 24x24 | EO188: 24x24 Cast-In | EP188: 24x24 | EQ188: 24x24 Cast-In | ER188: 24x24 | ES188: 24x24 Cast-In | ET188: 24x24 | EU188: 24x24 Cast-In | EV188: 24x24 | EW188: 24x24 Cast-In | EX188: 24x24 | EY188: 24x24 | EZ188: 24x30 | FA188: 30x48 | FB188: 24x30 | FC188: 24x24 | FD188: 24x24 Cast-In | FE188: 18x36 | FF188: 18x36 | FG188: 24x36 | FH188: 36x48 | FI188: 30x30 | FJ188: 30x30 Cast-In | FK188: 30x30 Cast-In | FL188: 48x48 | FM188: 36x36 | FN188: 36x36 | FO188: 36x36 Cast-In | FP188: 18x18 | FQ188: 18x18 Cast-In | FR188: 25.5x25.5 | FS188: 25.5x25.5 Cast-In | FT188: 36x36 | FU188: 36x36 Cast-In | FV188: 24x36 | FW188: 24x36 Cast-In | FX188: 24x24 | FY188: 24x30 | FZ188: 24x30 | GA188: 24x24 | GB188: 24x36 | GC188: 24x36 | GD188: 24x36 | GE188: 24x36 | GF188: 24x36 | GG188: 24x72 | GH188: 24x72 | GI188: 24x112 | GJ188: 24x112 | GK188: 24x24 | GL188: 24x32 | GM188: 24x24 | GN188: 24x48 | GO188: 24x36 | GP188: 24 Dia. | GQ188: 24 Dia. | GR188: 30 Dia. | GS188: 36x36 | GT188: 36x48 | GU188: 36x36 | GV188: 36x48 | GW188: 36x48 | GX188: 36x48 | GY188: 36x48 | GZ188: 36x48 | HA188: 36x48 | HB188: 36x48 | HC188: 36x48 | HD188: 36x48 | HE188: 36x48 | HF188: 36x48 | HG188: 36x48 | HH188: 36x48 | HI188: 36x36 Cast-In | HJ188: 16 X 28 | HK188: 24x30 | HL188: 12x12 Cast-In | HM188: 12x12 Cast-In | HN188: 16x28 | HO188: 16x60 | HP188: 20 Dia. Cast-In | HQ188: 20 Dia. Cast-In | HR188: n/a | HS188: n/a | HT188: n/a | HU188: n/a | HV188: n/a | HW188: n/a | HX188: n/a | HY188: n/a | HZ188: n/a | IA188: n/a | IB188: n/a | IC188: n/a | ID188: n/a | IE188: n/a | IF188: n/a | IG188: n/a | IH188: n/a | II188: n/a | IJ188: n/a | IK188: n/a | IL188: 24x24 | IM188: 24 Dia. Cast-In | IN188: 24x24 | IO188: 24x24 | IP188: 6x12 Cast-In | IQ188: 8x12 Cast-In | IR188: 10x12 Cast-In | IS188: 12x12 Cast-In | IT188: 15x12 Cast-In | IU188: 18x12 Cast-In | IV188: 24x12 Cast-In | IW188: 6x12 Cast-In | IX188: 8x12 Cast-In | IY188: 10x12 Cast-In | IZ188: 12x12 Cast-In | JA188: 15x12 Cast-In | JB188: 18x12 Cast-In | JC188: 24x12 Cast-In | JD188: 22x22 | JE188: 24 Dia. | JF188: 24 Dia. | JG188: 24x46 | JH188: 24x46 | JI188: 30x30 | JJ188: 22x22 | JK188: 24x36 | JL188: 24x72 | JM188: 24x36 | JN188: 17x30 | JO188: 15x61 | JP188: 30x46 | JQ188: 24x24 | JR188: 24 Dia. | JS188: 24 Dia. | JT188: 24 Dia. Cast-In | JU188: 24 Dia. | JV188: 24 Dia. Cast-In | JW188: 24 Dia. | JX188: 24 Dia. Cast-In | JY188: 24 Dia. | JZ188: 24 Dia. Cast-In | KA188: 24 Dia. | KB188: 24 Dia. Cast-In | KC188: 24 Dia. | KD188: 24 Dia. Cast-In | KE188: 24 Dia. | KF188: 24 Dia. Cast-In | KG188: 24 Dia. | KH188: 24 Dia. | KI188: 24 Dia. | KJ188: 24 Dia. | KK188: 24 Dia. | KL188: 24 Dia. | KM188: 24 Dia. | KN188: 24 Dia. | KO188: 21.5 Dia. Cast-In | KP188: 21.5 Dia. Cast-In | KQ188: 21.5 Dia. Cast-In | KR188: 24 Dia. | KS188: 24 Dia. | KT188: 24 Dia. | KU188: 24 Dia. | KV188: 24 Dia. | KW188: 30 Dia. | KX188: 30 Dia. | KY188: 24 Dia. | KZ188: 24 Dia. | LA188: 24 Dia. | LB188: 24 Dia. | LC188: 24 Dia. | LD188: 24 Dia. | LE188: 24 Dia. | LF188: 24 Dia. | LG188: 24 Dia. | LH188: 24 Dia. | LI188: 24 Dia. | LJ188: 24 Dia. | LK188: 24 Dia. | LL188: 24 Dia. | LM188: 24 Dia. Cast-In | LN188: 24 Dia. | LO188: 24 Dia. Cast-In | LP188: 24 Dia. | LQ188: 24 Dia. | LR188: 24 Dia. | LS188: 24 Dia. | LT188: 30 Dia. | LU188: 30 Dia. Cast-In | LV188: 30 Dia. | LW188: 30 Dia. Cast-In | LX188: 34 Dia. | LY188: 34 Dia. Cast-In | LZ188: 24 Dia. | MA188: 24 Dia. | MB188: 24 Dia. | MC188: 24 Dia. | MD188: 24 Dia. | ME188: 24 Dia. | MF188: 24 Dia. | MG188: 24 Dia. Cast-In | MH188: 24 Dia. | MI188: 21.5 Dia. Cast-In | MJ188: 24 Dia. | MK188: 24 Dia. | ML188: 24 Dia. Cast-In | MM188: 24 Dia. Cast-In | MN188: 30 Dia. | MO188: 30 Dia. Cast-In | MP188: 34 Dia. | MQ188: 34 Dia. Cast-In | MR188: 24x24 | MS188: 24x24 Cast-In | MT188: 24 Dia. | MU188: 24 Dia. Cast-In | MV188: 24 Dia. | MW188: 24x48 | MX188: 24x48 | MY188: 24x36 | MZ188: 24x36 | NA188: 24x36 | NB188: 24x72 | NC188: 24x72 | ND188: 24x112 | NE188: 24x112 | NF188: 24x24 | NG188: 30x30 | NH188: 30x30 | NI188: 30x63 | NJ188: 30x63 | NK188: 30x96 | NL188: 30x96 | NM188: 30x30 | NN188: 30x30 | NO188: 30x63 | NP188: 30x63 | NQ188: 30x96 | NR188: 30x96 | NS188: 30x30 | NT188: 30x30 | NU188: 30x63 | NV188: 30x63 | NW188: 30x96 | NX188: 30x96 | NY188: 24x30 | NZ188: 24x36 | OA188: 24x36 | OB188: 28x34 | OC188: 28x34 | OD188: (2) 28x34 | OE188: 28x34 | OF188: 28x34 | OG188: (2) 28x34 | OH188: 28x34 | OI188: (2) 28x34 | OJ188: (4) 28x34 | OK188: 15x43 | OL188: 24x30 | OM188: 24x30 | ON188: 24x36 | OO188: 24x36 | OP188: 20x34 | OQ188: 30x30 | OR188: 30x30 | OS188: 28x64 | OT188: 28x64 | OU188: 28x97 | OV188: 28x97 | OW188: 30x30 | OX188: 24x24 | OY188: 24x30 | OZ188: 16x28 Cast-In | PA188: 24x24 | PB188: 24x36 Cast-In | PC188: 24x24 | PD188: 36x36 | PE188: 36x36 Cast-In | PF188: 36x36 | PG188: 36x36 Cast-In | PH188: 24x24 | PI188: 24x24 Cast-In | PJ188: 18x18 | PK188: 18x18 Cast-In | PL188: 45x48 | PM188: 24x48 | PN188: 24x24 Cast-In | PO188: 32x32 | PP188: (2) 32x32 | PQ188: (4) 32x32 | PR188: 26x26 | PS188: 24x30 | PT188: 24x36 | PU188: 24x36 Cast-In | PV188: 36x36 | PW188: 18x36 | PX188: 18x36 | PY188: 30x30 | PZ188: 30x30 | QA188: 30x62 | QB188: 30x30 | QC188: 30x30 Cast-In | QD188: 30x30 | QE188: 30x30 Cast-In | QF188: 26x26 Cast-In | QG188: 30x30 | QH188: 24x24 | QI188: 12x12 Cast-In | QJ188: 12x12 Cast-In | QK188: 11x13 | QL188: 12x20 Cast-In | QM188: 12x30 Cast-In | QN188: 12x30 Cast-In | QO188: 22.5x22.5 | QP188: 32x32 | QQ188: 48x48 | QR188: 48x96 | QS188: n/a | QT188: n/a | QU188: n/a | QV188: n/a | QW188: n/a | QX188: n/a | QY188: n/a | QZ188: n/a | RA188: n/a | RB188: n/a | RC188: n/a | RD188: n/a | RE188: n/a | RF188: n/a | RG188: n/a | RH188: n/a | RI188: n/a | RJ188: n/a | RK188: n/a | RL188: n/a | RM188: 24x24 | RN188: 24x24 | RO188: 24x24 | RP188: 36x36 | RQ188: 36x36 | RR188: 36x36 | RS188: 36x48 | RT188: 36x48 | RU188: 36x48 | RV188: 48x48 | RW188: 48x48 | RX188: 48x48 | RY188: 60x60 | RZ188: 60x60 | SA188: 60x60 | SB188: 72x72 | SC188: 72x72 | SD188: 72x72 | SE188: 36 Dia. | SF188: 36 Dia. | SG188: 36 Dia. | SH188: 48 Dia. | SI188: 48 Dia. | SJ188: 48 Dia. | SK188: 60 Dia. | SL188: 60 Dia. | SM188: 60 Dia. | SN188: 72 Dia. | SO188: 72 Dia. | SP188: 72 Dia. | SQ188: 36x36 | SR188: 36x36 | SS188: 36x36 | ST188: 36x48 | SU188: 36x48 | SV188: 36x48 | SW188: 48x48 | SX188: 48x48 | SY188: 48x48 | SZ188: 60x60 | TA188: 60x60 | TB188: 60x60 | TC188: 72x72 | TD188: 72x72 | TE188: 72x72 | TF188: 36x36 | TG188: 36x36 | TH188: 36x36 | TI188: 48x48 | TJ188: 48x48 | TK188: 48x48 | TL188: 60x60 | TM188: 60x60 | TN188: 60x60 | TO188: 72x72 | TP188: 72x72 | TQ188: 72x72 | TR188: 36 Dia. | TS188: 36 Dia. | TT188: 36 Dia. | TU188: 48 Dia. | TV188: 48 Dia. | TW188: 48 Dia. | TX188: 60 Dia. | TY188: 60 Dia. | TZ188: 60 Dia. | UA188: 72 Dia. | UB188: 72 Dia. | UC188: 72 Dia. | UD188: n/a | UE188: n/a | UF188: n/a | UG188: n/a | UH188: n/a | UI188: n/a | UJ188: 24x24 Cast-In | UK188: 24x30 Cast-In | UL188: 24x36 Cast-In | UM188: 24x42 Cast-In | UN188: 24x48 Cast-In | UO188: 29x59 Cast-In | UP188: 30x30 Cast-In | UQ188: 30x36 Cast-In | UR188: 30x42 Cast-In | US188: 30x48 Cast-In | UT188: 30x54 Cast-In | UU188: 30x60 Cast-In | UV188: 36x36 Cast-In | UW188: 36x42 Cast-In | UX188: 36x48 Cast-In | UY188: 36x54 Cast-In | UZ188: 36x60 Cast-In | VA188: 36x66 Cast-In | VB188: 36x72 Cast-In | VC188: 42x42 Cast-In | VD188: 42x42 Cast-In | VE188: 44x68 Cast-In | VF188: 48x42 Cast-In | VG188: 48x48 Cast-In | VH188: 54x42 Cast-In | VI188: 54x48 Cast-In | VJ188: 54x52 Cast-In | VK188: 54x54 Cast-In | VL188: 58x58 Cast-In | VM188: 60x30 Cast-In | VN188: 60x36 Cast-In | VO188: 60x42 Cast-In | VP188: 60x48 Cast-In | VQ188: 60x54 Cast-In | VR188: 60x60 Cast-In | VS188: 66x36 Cast-In | VT188: 66x42 Cast-In | VU188: 66x48 Cast-In | VV188: 66x54 Cast-In | VW188: 66x60 Cast-In | VX188: 66x66 Cast-In | VY188: 72x36 Cast-In | VZ188: 72x42 Cast-In | WA188: 72x48 Cast-In | WB188: 72x54 Cast-In | WC188: 72x60 Cast-In | WD188: 24x24 Cast-In | WE188: 24x30 Cast-In | WF188: 24x36 Cast-In | WG188: 24x42 Cast-In | WH188: 24x48 Cast-In | WI188: 30x30 Cast-In | WJ188: 30x36 Cast-In | WK188: 30x42 Cast-In | WL188: 30x48 Cast-In | WM188: 30x54 Cast-In | WN188: 30x60 Cast-In | WO188: 36x36 Cast-In | WP188: 36x42 Cast-In | WQ188: 36x48 Cast-In | WR188: 36x54 Cast-In | WS188: 36x60 Cast-In | WT188: 36x66 Cast-In | WU188: 36x72 Cast-In | WV188: 42x42 Cast-In | WW188: 36x54 Cast-In | WX188: 42x42 Cast-In | WY188: 48x42 Cast-In | WZ188: 48x48 Cast-In | XA188: 54x42 Cast-In | XB188: 54x48 Cast-In | XC188: 54x54 Cast-In | XD188: 60x30 Cast-In | XE188: 60x36 Cast-In | XF188: 60x42 Cast-In | XG188: 60x48 Cast-In | XH188: 60x54 Cast-In | XI188: 60x60 Cast-In | XJ188: 66x36 Cast-In | XK188: 66x42 Cast-In | XL188: 66x48 Cast-In | XM188: 66x54 Cast-In | XN188: 66x60 Cast-In | XO188: 66x66 Cast-In | XP188: 72x36 Cast-In | XQ188: 72x42 Cast-In | XR188: 72x48 Cast-In | XS188: 72x54 Cast-In | XT188: 72x60 Cast-In | XU188: 24x24 Cast-In | XV188: 24x30 Cast-In | XW188: 24x36 Cast-In | XX188: 24x42 Cast-In | XY188: 24x48 Cast-In | XZ188: 30x30 Cast-In | YA188: 30x36 Cast-In | YB188: 30x42 Cast-In | YC188: 30x48 Cast-In | YD188: 30x54 Cast-In | YE188: 30x60 Cast-In | YF188: 36x36 Cast-In | YG188: 36x42 Cast-In | YH188: 36x48 Cast-In | YI188: 36x54 Cast-In | YJ188: 36x60 Cast-In | YK188: 36x66 Cast-In | YL188: 36x72 Cast-In | YM188: 42x42 Cast-In | YN188: 42x42 Cast-In | YO188: 48x42 Cast-In | YP188: 48x48 Cast-In | YQ188: 52x42 Cast-In | YR188: 54x48 Cast-In | YS188: 54x54 Cast-In | YT188: 58x34 Cast-In | YU188: 60x30 Cast-In | YV188: 60x36 Cast-In | YW188: 60x42 Cast-In | YX188: 60x48 Cast-In | YY188: 60x54 Cast-In | YZ188: 60x36 Cast-In | ZA188: 66x36 Cast-In | ZB188: 66x42 Cast-In | ZC188: 66x48 Cast-In | ZD188: 66x54 Cast-In | ZE188: 66x60 Cast-In | ZF188: 66x66 Cast-In | ZG188: 72x36 Cast-In | ZH188: 72x42 Cast-In | ZI188: 72x48 Cast-In | ZJ188: 72x54 Cast-In | ZK188: 72x60 Cast-In | ZL188: 24x24 Cast-In | ZM188: 24x30 Cast-In | ZN188: 24x36 Cast-In | ZO188: 24x42 Cast-In | ZP188: 24x48 Cast-In | ZQ188: 30x30 Cast-In | ZR188: 30x36 Cast-In | ZS188: 30x42 Cast-In | ZT188: 30x48 Cast-In | ZU188: 30x54 Cast-In | ZV188: 30x60 Cast-In | ZW188: 36x36 Cast-In | ZX188: 36x42 Cast-In | ZY188: 36x48 Cast-In | ZZ188: 36x54 Cast-In | AAA188: 36x60 Cast-In | AAB188: 36x66 Cast-In | AAC188: 36x72 Cast-In | AAD188: 36x78 Cast-In | AAE188: 42x42 Cast-In | AAF188: 42x60 Cast-In | AAG188: 60x60 Cast-In | AAH188: 42x42 Cast-In | AAI188: 48x42 Cast-In | AAJ188: 48x48 Cast-In | AAK188: 54x42 Cast-In | AAL188: 54x48 Cast-In | AAM188: 54x54 Cast-In | AAN188: 60x30 Cast-In | AAO188: 60x36 Cast-In | AAP188: 60x42 Cast-In | AAQ188: 60x48 Cast-In | AAR188: 60x54 Cast-In | AAS188: 60x60 Cast-In | AAT188: 66x36 Cast-In | AAU188: 66x42 Cast-In | AAV188: 66x48 Cast-In | AAW188: 66x54 Cast-In | AAX188: 66x60 Cast-In | AAY188: 66x66 Cast-In | AAZ188: 72x36 Cast-In | ABA188: 72x42 Cast-In | ABB188: 72x48 Cast-In | ABC188: 72x54 Cast-In | ABD188: 72x60 Cast-In | ABE188: 78x48 Cast-In | ABF188: 96x72 Cast-In | ABG188: 24x24 Cast-In | ABH188: 24x30 Cast-In | ABI188: 24x36 Cast-In | ABJ188: 24x42 Cast-In | ABK188: 24x48 Cast-In | ABL188: 30x30 Cast-In | ABM188: 30x36 Cast-In | ABN188: 30x42 Cast-In | ABO188: 30x48 Cast-In | ABP188: 30x54 Cast-In | ABQ188: 30x60 Cast-In | ABR188: 36x36 Cast-In | ABS188: 36x42 Cast-In | ABT188: 36x48 Cast-In | ABU188: 36x54 Cast-In | ABV188: 36x60 Cast-In | ABW188: 36x66 Cast-In | ABX188: 36x72 Cast-In | ABY188: 42x42 Cast-In | ABZ188: 42x42 Cast-In | ACA188: 48x42 Cast-In | ACB188: 48x48 Cast-In | ACC188: 54x42 Cast-In | ACD188: 54x48 Cast-In | ACE188: 54x54 Cast-In | ACF188: 60x30 Cast-In | ACG188: 60x36 Cast-In | ACH188: 60x42 Cast-In | ACI188: 60x48 Cast-In | ACJ188: 60x54 Cast-In | ACK188: 60x60 Cast-In | ACL188: 66x36 Cast-In | ACM188: 66x42 Cast-In | ACN188: 66x48 Cast-In | ACO188: 66x54 Cast-In | ACP188: 66x60 Cast-In | ACQ188: 66x66 Cast-In | ACR188: 72x36 Cast-In | ACS188: 72x42 Cast-In | ACT188: 72x48 Cast-In | ACU188: 72x54 Cast-In | ACV188: 72x60 Cast-In | ACW188: 24x24 Cast-In | ACX188: 24x30 Cast-In | ACY188: 24x36 Cast-In | ACZ188: 24x42 Cast-In | ADA188: 24x48 Cast-In | ADB188: 30x30 Cast-In | ADC188: 30x36 Cast-In | ADD188: 30x42 Cast-In | ADE188: 30x48 Cast-In | ADF188: 36x36 Cast-In | ADG188: 36x42 Cast-In | ADH188: 36x48 Cast-In | ADI188: 42x42 Cast-In | ADJ188: 48x42 Cast-In | ADK188: 48x48 Cast-In | ADL188: 54x42 Cast-In | ADM188: 54x48 Cast-In | ADN188: 60x48 Cast-In | ADO188: 60x60 Cast-In | ADP188: 72x48 Cast-In | ADQ188: 72x60 Cast-In | ADR188: 72x72 Cast-In | ADS188: 24x24 Cast-In | ADT188: 24x30 Cast-In | ADU188: 24x36 Cast-In | ADV188: 24x42 Cast-In | ADW188: 24x48 Cast-In | ADX188: 30x30 Cast-In | ADY188: 30x36 Cast-In | ADZ188: 30x42 Cast-In | AEA188: 30x48 Cast-In | AEB188: 36x36 Cast-In | AEC188: 36x42 Cast-In | AED188: 36x48 Cast-In | AEE188: 36x60 Cast-In | AEF188: 36x80 Cast-In | AEG188: 42x42 Cast-In | AEH188: 48x42 Cast-In | AEI188: 48x48 Cast-In | AEJ188: 54x42 Cast-In | AEK188: 54x48 Cast-In | AEL188: 60x48 Cast-In | AEM188: 60x60 Cast-In | AEN188: 72x48 Cast-In | AEO188: 72x60 Cast-In | AEP188: 24x24 Cast-In | AEQ188: 24x30 Cast-In | AER188: 24x36 Cast-In | AES188: 24x42 Cast-In | AET188: 24x48 Cast-In | AEU188: 30x30 Cast-In | AEV188: 30x36 Cast-In | AEW188: 30x42 Cast-In | AEX188: 30x48 Cast-In | AEY188: 36x36 Cast-In | AEZ188: 36x42 Cast-In | AFA188: 36x48 Cast-In | AFB188: 42x42 Cast-In | AFC188: 48x42 Cast-In | AFD188: 48x48 Cast-In | AFE188: 54x42 Cast-In | AFF188: 54x48 Cast-In | AFG188: 60x48 Cast-In | AFH188: 60x60 Cast-In | AFI188: 72x48 Cast-In | AFJ188: 72x60 Cast-In | AFK188: 72x72 Cast-In
B189: Grade Ring Compatibility | C189: Grade Ring Compatible | D189: Yes/No | I189: No | J189: No | K189: No | L189: No | M189: Yes | N189: Yes | O189: Yes | P189: Yes | Q189: Yes | R189: Yes | S189: Yes | T189: Yes | U189: Yes | V189: Yes | W189: Yes | X189: Yes | Y189: Yes | Z189: Yes | AA189: Yes | AB189: Yes | AC189: Yes | AD189: Yes | AE189: Yes | AF189: Yes | AG189: Yes | AH189: Yes | AI189: Yes | AJ189: Yes | AK189: Yes | AL189: Yes | AM189: Yes | AN189: Yes | AO189: Yes | AP189: Yes | AQ189: Yes | AR189: Yes | AS189: Yes | AT189: Yes | AU189: Yes | AV189: Yes | AW189: Yes | AX189: Yes | AY189: Yes | AZ189: Yes | BA189: Yes | BB189: Yes | BC189: Yes | BD189: Yes | BE189: Yes | BF189: Yes | BG189: Yes | BH189: Yes | BI189: Yes | BJ189: Yes | BK189: Yes | BL189: Yes | BM189: Yes | BN189: Yes | BO189: Yes | BP189: Yes | BQ189: Yes | BR189: Yes | BS189: Yes | BT189: Yes | BU189: Yes | BV189: Yes | BW189: Yes | BX189: Yes | BY189: Yes | BZ189: Yes | CA189: Yes | CB189: Yes | CC189: Yes | CD189: Yes | CE189: Yes | CF189: Yes | CG189: Yes | CH189: Yes | CI189: No | CJ189: No | CK189: No | CL189: No | CM189: No | CN189: No | CO189: No | CP189: No | CQ189: No | CR189: No | CS189: No | CT189: No | CU189: No | CV189: No | CW189: No | CX189: No | CY189: No | CZ189: No | DA189: No | DB189: No | DC189: No | DD189: No | DE189: No | DF189: No | DG189: No | DH189: No | DI189: No | DJ189: No | DK189: No | DL189: No | DM189: No | DN189: No | DO189: No | DP189: No | DQ189: Yes | DR189: Yes | DS189: Yes | DT189: Yes | DU189: Yes | DV189: Yes | DW189: Yes | DX189: Yes | DY189: Yes | DZ189: Yes | EA189: Yes | EB189: Yes | EC189: Yes | ED189: Yes | EE189: Yes | EF189: Yes | EG189: Yes | EH189: Yes | EI189: Yes | EJ189: Yes | EK189: Yes | EL189: Yes | EM189: Yes | EN189: Yes | EO189: Yes | EP189: Yes | EQ189: Yes | ER189: Yes | ES189: Yes | ET189: Yes | EU189: Yes | EV189: Yes | EW189: Yes | EX189: Yes | EY189: Yes | EZ189: Yes | FA189: No | FB189: Yes | FC189: Yes | FD189: Yes | FE189: Yes | FF189: Yes | FG189: Yes | FH189: No | FI189: Yes | FJ189: Yes | FK189: Yes | FL189: No | FM189: Yes | FN189: Yes | FO189: Yes | FP189: Yes | FQ189: Yes | FR189: No | FS189: No | FT189: Yes | FU189: Yes | FV189: Yes | FW189: Yes | FX189: Yes | FY189: Yes | FZ189: Yes | GA189: No | GB189: Yes | GC189: Yes | GD189: Yes | GE189: Yes | GF189: Yes | GG189: No | GH189: No | GI189: No | GJ189: No | GK189: Yes | GL189: No | GM189: Yes | GN189: No | GO189: Yes | GP189: Yes | GQ189: Yes | GR189: Yes | GS189: No | GT189: No | GU189: No | GV189: No | GW189: No | GX189: No | GY189: No | GZ189: No | HA189: No | HB189: No | HC189: No | HD189: No | HE189: No | HF189: No | HG189: No | HH189: No | HI189: No | HJ189: No | HK189: Yes | HL189: No | HM189: No | HN189: No | HO189: No | HP189: No | HQ189: No
B190: Top Slab or Cone Required | C190: Top Slab or Cone Required | D190: Yes/No | I190: Yes | J190: Yes | K190: Yes | L190: Yes | M190: Yes | N190: Yes | O190: Yes | P190: Yes | Q190: Yes | R190: Yes | S190: Yes | T190: Yes | U190: Yes | V190: Yes | W190: Yes | X190: Yes | Y190: Yes | Z190: Yes | AA190: Yes | AB190: Yes | AC190: Yes | AD190: Yes | AE190: Yes | AF190: Yes | AG190: Yes | AH190: Yes | AI190: Yes | AJ190: Yes | AK190: Yes | AL190: Yes | AM190: Yes | AN190: Yes | AO190: Yes | AP190: Yes | AQ190: Yes | AR190: Yes | AS190: Yes | AT190: Yes | AU190: Yes | AV190: Yes | AW190: Yes | AX190: Yes | AY190: Yes | AZ190: Yes | BA190: Yes | BB190: Yes | BC190: Yes | BD190: Yes | BE190: Yes | BF190: Yes | BG190: Yes | BH190: Yes | BI190: Yes | BJ190: Yes | BK190: Yes | BL190: Yes | BM190: Yes | BN190: Yes | BO190: Yes | BP190: Yes | BQ190: Yes | BR190: Yes | BS190: Yes | BT190: Yes | BU190: Yes | BV190: Yes | BW190: Yes | BX190: Yes | BY190: Yes | BZ190: Yes | CA190: Yes | CB190: Yes | CC190: Yes | CD190: Yes | CE190: Yes | CF190: Yes | CG190: Yes | CH190: Yes | CI190: No | CJ190: Yes | CK190: Yes | CL190: Yes | CM190: Yes | CN190: Yes | CO190: Yes | CP190: Yes | CQ190: Yes | CR190: Yes | CS190: Yes | CT190: Yes | CU190: Yes | CV190: Yes | CW190: Yes | CX190: Yes | CY190: Yes | CZ190: Yes | DA190: Yes | DB190: Yes | DC190: Yes | DD190: Yes | DE190: Yes | DF190: Yes | DG190: Yes | DH190: Yes | DI190: Yes | DJ190: Yes | DK190: Yes | DL190: Yes | DM190: Yes | DN190: Yes | DO190: Yes | DP190: Yes | DQ190: Yes | DR190: Yes | DS190: Yes | DT190: Yes | DU190: Yes | DV190: Yes | DW190: Yes | DX190: Yes | DY190: Yes | DZ190: Yes | EA190: Yes | EB190: Yes | EC190: Yes | ED190: Yes | EE190: Yes | EF190: Yes | EG190: Yes | EH190: Yes | EI190: Yes | EJ190: Yes | EK190: Yes | EL190: No | EM190: No | EN190: No | EO190: No | EP190: No | EQ190: No | ER190: No | ES190: No | ET190: No | EU190: No | EV190: No | EW190: No | EX190: No | EY190: No | EZ190: No | FA190: No | FB190: No | FC190: No | FD190: No | FE190: No | FF190: No | FG190: No | FH190: No | FI190: No | FJ190: No | FK190: No | FL190: No | FM190: No | FN190: No | FO190: No | FP190: No | FQ190: No | FR190: Yes | FS190: Yes | FT190: No | FU190: No | FV190: No | FW190: No | FX190: No | FY190: No | FZ190: No | GA190: No | GB190: No | GC190: No | GD190: No | GE190: No | GF190: No | GG190: No | GH190: No | GI190: No | GJ190: No | GK190: No | GL190: No | GM190: No | GN190: No | GO190: No | GP190: Yes | GQ190: Yes | GR190: Yes | GS190: No | GT190: No | GU190: No | GV190: No | GW190: No | GX190: No | GY190: No | GZ190: No | HA190: No | HB190: No | HC190: No | HD190: No | HE190: No | HF190: No | HG190: No | HH190: No | HI190: No | HJ190: Yes | HK190: No | HL190: No | HM190: No | HN190: Yes | HO190: Yes | HP190: Yes | HQ190: Yes
B191: Casting/Hatch Designation | C191: Designation: | D191: Designation | F191: Hatch | G191: Hatch | H191: Casting | I191: Casting | J191: Casting | K191: Casting | L191: Casting | M191: Casting | N191: Casting | O191: Casting | P191: Casting | Q191: Casting | R191: Casting | S191: Casting | T191: Casting | U191: Casting | V191: Casting | W191: Casting | X191: Casting | Y191: Casting | Z191: Casting | AA191: Casting | AB191: Casting | AC191: Casting | AD191: Casting | AE191: Casting | AF191: Casting | AG191: Casting | AH191: Casting | AI191: Casting | AJ191: Casting | AK191: Casting | AL191: Casting | AM191: Casting | AN191: Casting | AO191: Casting | AP191: Casting | AQ191: Casting | AR191: Casting | AS191: Casting | AT191: Casting | AU191: Casting | AV191: Casting | AW191: Casting | AX191: Casting | AY191: Casting | AZ191: Casting | BA191: Casting | BB191: Casting | BC191: Casting | BD191: Casting | BE191: Casting | BF191: Casting | BG191: Casting | BH191: Casting | BI191: Casting | BJ191: Casting | BK191: Casting | BL191: Casting | BM191: Casting | BN191: Casting | BO191: Casting | BP191: Casting | BQ191: Casting | BR191: Casting | BS191: Casting | BT191: Casting | BU191: Casting | BV191: Casting | BW191: Casting | BX191: Casting | BY191: Casting | BZ191: Casting | CA191: Casting | CB191: Casting | CC191: Casting | CD191: Casting | CE191: Casting | CF191: Casting | CG191: Casting | CH191: Casting | CI191: Casting | CJ191: Casting | CK191: Casting | CL191: Casting | CM191: Casting | CN191: Casting | CO191: Casting | CP191: Casting | CQ191: Casting | CR191: Casting | CS191: Casting | CT191: Casting | CU191: Casting | CV191: Casting | CW191: Casting | CX191: Casting | CY191: Casting | CZ191: Casting | DA191: Casting | DB191: Casting | DC191: Casting | DD191: Casting | DE191: Casting | DF191: Casting | DG191: Casting | DH191: Casting | DI191: Casting | DJ191: Casting | DK191: Casting | DL191: Casting | DM191: Casting | DN191: Casting | DO191: Casting | DP191: Casting | DQ191: Casting | DR191: Casting | DS191: Casting | DT191: Casting | DU191: Casting | DV191: Casting | DW191: Casting | DX191: Casting | DY191: Casting | DZ191: Casting | EA191: Casting | EB191: Casting | EC191: Casting | ED191: Casting | EE191: Casting | EF191: Casting | EG191: Casting | EH191: Casting | EI191: Casting | EJ191: Casting | EK191: Casting | EL191: Casting | EM191: Casting | EN191: Casting | EO191: Casting | EP191: Casting | EQ191: Casting | ER191: Casting | ES191: Casting | ET191: Casting | EU191: Casting | EV191: Casting | EW191: Casting | EX191: Casting | EY191: Casting | EZ191: Casting | FA191: Casting | FB191: Casting | FC191: Casting | FD191: Casting | FE191: Casting | FF191: Casting | FG191: Casting | FH191: Casting | FI191: Casting | FJ191: Casting | FK191: Casting | FL191: Casting | FM191: Casting | FN191: Casting | FO191: Casting | FP191: Casting | FQ191: Casting | FR191: Casting | FS191: Casting | FT191: Casting | FU191: Casting | FV191: Casting | FW191: Casting | FX191: Casting | FY191: Casting | FZ191: Casting | GA191: Casting | GB191: Casting | GC191: Casting | GD191: Casting | GE191: Casting | GF191: Casting | GG191: Casting | GH191: Casting | GI191: Casting | GJ191: Casting | GK191: Casting | GL191: Casting | GM191: Casting | GN191: Casting | GO191: Casting | GP191: Casting | GQ191: Casting | GR191: Casting | GS191: Casting | GT191: Casting | GU191: Casting | GV191: Casting | GW191: Casting | GX191: Casting | GY191: Casting | GZ191: Casting | HA191: Casting | HB191: Casting | HC191: Casting | HD191: Casting | HE191: Casting | HF191: Casting | HG191: Casting | HH191: Casting | HI191: Casting | HJ191: Casting | HK191: Casting | HL191: Casting | HM191: Casting | HN191: Casting | HO191: Casting | HP191: Casting | HQ191: Casting | HR191: Casting | HS191: Casting | HT191: Casting | HU191: Casting | HV191: Casting | HW191: Casting | HX191: Casting | HY191: Casting | HZ191: Casting | IA191: Casting | IB191: Casting | IC191: Casting | ID191: Casting | IE191: Casting | IF191: Casting | IG191: Casting | IH191: Casting | II191: Casting | IJ191: Casting | IK191: Casting | IL191: Casting | IM191: Casting | IN191: Casting | IO191: Casting | IP191: Casting | IQ191: Casting | IR191: Casting | IS191: Casting | IT191: Casting | IU191: Casting | IV191: Casting | IW191: Casting | IX191: Casting | IY191: Casting | IZ191: Casting | JA191: Casting | JB191: Casting | JC191: Casting | JD191: Casting | JE191: Casting | JF191: Casting | JG191: Casting | JH191: Casting | JI191: Casting | JJ191: Casting | JK191: Casting | JL191: Casting | JM191: Casting | JN191: Casting | JO191: Casting | JP191: Casting | JQ191: Casting | JR191: Casting | JS191: Casting | JT191: Casting | JU191: Casting | JV191: Casting | JW191: Casting | JX191: Casting | JY191: Casting | JZ191: Casting | KA191: Casting | KB191: Casting | KC191: Casting | KD191: Casting | KE191: Casting | KF191: Casting | KG191: Casting | KH191: Casting | KI191: Casting | KJ191: Casting | KK191: Casting | KL191: Casting | KM191: Casting | KN191: Casting | KO191: Casting | KP191: Casting | KQ191: Casting | KR191: Casting | KS191: Casting | KT191: Casting | KU191: Casting | KV191: Casting | KW191: Casting | KX191: Casting | KY191: Casting | KZ191: Casting | LA191: Casting | LB191: Casting | LC191: Casting | LD191: Casting | LE191: Casting | LF191: Casting | LG191: Casting | LH191: Casting | LI191: Casting | LJ191: Casting | LK191: Casting | LL191: Casting | LM191: Casting | LN191: Casting | LO191: Casting | LP191: Casting | LQ191: Casting | LR191: Casting | LS191: Casting | LT191: Casting | LU191: Casting | LV191: Casting | LW191: Casting | LX191: Casting | LY191: Casting | LZ191: Casting | MA191: Casting | MB191: Casting | MC191: Casting | MD191: Casting | ME191: Casting | MF191: Casting | MG191: Casting | MH191: Casting | MI191: Casting | MJ191: Casting | MK191: Casting | ML191: Casting | MM191: Casting | MN191: Casting | MO191: Casting | MP191: Casting | MQ191: Casting | MR191: Casting | MS191: Casting | MT191: Casting | MU191: Casting | MV191: Casting | MW191: Casting | MX191: Casting | MY191: Casting | MZ191: Casting | NA191: Casting | NB191: Casting | NC191: Casting | ND191: Casting | NE191: Casting | NF191: Casting | NG191: Casting | NH191: Casting | NI191: Casting | NJ191: Casting | NK191: Casting | NL191: Casting | NM191: Casting | NN191: Casting | NO191: Casting | NP191: Casting | NQ191: Casting | NR191: Casting | NS191: Casting | NT191: Casting | NU191: Casting | NV191: Casting | NW191: Casting | NX191: Casting | NY191: Casting | NZ191: Casting | OA191: Casting | OB191: Casting | OC191: Casting | OD191: Casting | OE191: Casting | OF191: Casting | OG191: Casting | OH191: Casting | OI191: Casting | OJ191: Casting | OK191: Casting | OL191: Casting | OM191: Casting | ON191: Casting | OO191: Casting | OP191: Casting | OQ191: Casting | OR191: Casting | OS191: Casting | OT191: Casting | OU191: Casting | OV191: Casting | OW191: Casting | OX191: Casting | OY191: Casting | OZ191: Casting | PA191: Casting | PB191: Casting | PC191: Casting | PD191: Casting | PE191: Casting | PF191: Casting | PG191: Casting | PH191: Casting | PI191: Casting | PJ191: Casting | PK191: Casting | PL191: Casting | PM191: Casting | PN191: Casting | PO191: Casting | PP191: Casting | PQ191: Casting | PR191: Casting | PS191: Casting | PT191: Casting | PU191: Casting | PV191: Casting | PW191: Casting | PX191: Casting | PY191: Casting | PZ191: Casting | QA191: Casting | QB191: Casting | QC191: Casting | QD191: Casting | QE191: Casting | QF191: Casting | QG191: Casting | QH191: Casting | QI191: Casting | QJ191: Casting | QK191: Casting | QL191: Casting | QM191: Casting | QN191: Casting | QO191: Casting | QP191: Casting | QQ191: Casting | QR191: Casting | QS191: Casting | QT191: Casting | QU191: Casting | QV191: Casting | QW191: Casting | QX191: Casting | QY191: Casting | QZ191: Casting | RA191: Casting | RB191: Casting | RC191: Casting | RD191: Casting | RE191: Casting | RF191: Casting | RG191: Casting | RH191: Casting | RI191: Casting | RJ191: Casting | RK191: Casting | RL191: Casting | RM191: Casting | RN191: Casting | RO191: Casting | RP191: Casting | RQ191: Casting | RR191: Casting | RS191: Casting | RT191: Casting | RU191: Casting | RV191: Casting | RW191: Casting | RX191: Casting | RY191: Casting | RZ191: Casting | SA191: Casting | SB191: Casting | SC191: Casting | SD191: Casting | SE191: Casting | SF191: Casting | SG191: Casting | SH191: Casting | SI191: Casting | SJ191: Casting | SK191: Casting | SL191: Casting | SM191: Casting | SN191: Casting | SO191: Casting | SP191: Casting | SQ191: Casting | SR191: Casting | SS191: Casting | ST191: Casting | SU191: Casting | SV191: Casting | SW191: Casting | SX191: Casting | SY191: Casting | SZ191: Casting | TA191: Casting | TB191: Casting | TC191: Casting | TD191: Casting | TE191: Casting | TF191: Casting | TG191: Casting | TH191: Casting | TI191: Casting | TJ191: Casting | TK191: Casting | TL191: Casting | TM191: Casting | TN191: Casting | TO191: Casting | TP191: Casting | TQ191: Casting | TR191: Casting | TS191: Casting | TT191: Casting | TU191: Casting | TV191: Casting | TW191: Casting | TX191: Casting | TY191: Casting | TZ191: Casting | UA191: Casting | UB191: Casting | UC191: Casting | UD191: Casting | UE191: Casting | UF191: Casting | UG191: Casting | UH191: Casting | UI191: Casting | UJ191: Hatch | UK191: Hatch | UL191: Hatch | UM191: Hatch | UN191: Hatch | UO191: Hatch | UP191: Hatch | UQ191: Hatch | UR191: Hatch | US191: Hatch | UT191: Hatch | UU191: Hatch | UV191: Hatch | UW191: Hatch | UX191: Hatch | UY191: Hatch | UZ191: Hatch | VA191: Hatch | VB191: Hatch | VC191: Hatch | VD191: Hatch | VE191: Hatch | VF191: Hatch | VG191: Hatch | VH191: Hatch | VI191: Hatch | VJ191: Hatch | VK191: Hatch | VL191: Hatch | VM191: Hatch | VN191: Hatch | VO191: Hatch | VP191: Hatch | VQ191: Hatch | VR191: Hatch | VS191: Hatch | VT191: Hatch | VU191: Hatch | VV191: Hatch | VW191: Hatch | VX191: Hatch | VY191: Hatch | VZ191: Hatch | WA191: Hatch | WB191: Hatch | WC191: Hatch | WD191: Hatch | WE191: Hatch | WF191: Hatch | WG191: Hatch | WH191: Hatch | WI191: Hatch | WJ191: Hatch | WK191: Hatch | WL191: Hatch | WM191: Hatch | WN191: Hatch | WO191: Hatch | WP191: Hatch | WQ191: Hatch | WR191: Hatch | WS191: Hatch | WT191: Hatch | WU191: Hatch | WV191: Hatch | WW191: Hatch | WX191: Hatch | WY191: Hatch | WZ191: Hatch | XA191: Hatch | XB191: Hatch | XC191: Hatch | XD191: Hatch | XE191: Hatch | XF191: Hatch | XG191: Hatch | XH191: Hatch | XI191: Hatch | XJ191: Hatch | XK191: Hatch | XL191: Hatch | XM191: Hatch | XN191: Hatch | XO191: Hatch | XP191: Hatch | XQ191: Hatch | XR191: Hatch | XS191: Hatch | XT191: Hatch | XU191: Hatch | XV191: Hatch | XW191: Hatch | XX191: Hatch | XY191: Hatch | XZ191: Hatch | YA191: Hatch | YB191: Hatch | YC191: Hatch | YD191: Hatch | YE191: Hatch | YF191: Hatch | YG191: Hatch | YH191: Hatch | YI191: Hatch | YJ191: Hatch | YK191: Hatch | YL191: Hatch | YM191: Hatch | YN191: Hatch | YO191: Hatch | YP191: Hatch | YQ191: Hatch | YR191: Hatch | YS191: Hatch | YT191: Hatch | YU191: Hatch | YV191: Hatch | YW191: Hatch | YX191: Hatch | YY191: Hatch | YZ191: Hatch | ZA191: Hatch | ZB191: Hatch | ZC191: Hatch | ZD191: Hatch | ZE191: Hatch | ZF191: Hatch | ZG191: Hatch | ZH191: Hatch | ZI191: Hatch | ZJ191: Hatch | ZK191: Hatch | ZL191: Hatch | ZM191: Hatch | ZN191: Hatch | ZO191: Hatch | ZP191: Hatch | ZQ191: Hatch | ZR191: Hatch | ZS191: Hatch | ZT191: Hatch | ZU191: Hatch | ZV191: Hatch | ZW191: Hatch | ZX191: Hatch | ZY191: Hatch | ZZ191: Hatch | AAA191: Hatch | AAB191: Hatch | AAC191: Hatch | AAD191: Hatch | AAE191: Hatch | AAF191: Hatch | AAG191: Hatch | AAH191: Hatch | AAI191: Hatch | AAJ191: Hatch | AAK191: Hatch | AAL191: Hatch | AAM191: Hatch | AAN191: Hatch | AAO191: Hatch | AAP191: Hatch | AAQ191: Hatch | AAR191: Hatch | AAS191: Hatch | AAT191: Hatch | AAU191: Hatch | AAV191: Hatch | AAW191: Hatch | AAX191: Hatch | AAY191: Hatch | AAZ191: Hatch | ABA191: Hatch | ABB191: Hatch | ABC191: Hatch | ABD191: Hatch | ABE191: Hatch | ABF191: Hatch | ABG191: Hatch | ABH191: Hatch | ABI191: Hatch | ABJ191: Hatch | ABK191: Hatch | ABL191: Hatch | ABM191: Hatch | ABN191: Hatch | ABO191: Hatch | ABP191: Hatch | ABQ191: Hatch | ABR191: Hatch | ABS191: Hatch | ABT191: Hatch | ABU191: Hatch | ABV191: Hatch | ABW191: Hatch | ABX191: Hatch | ABY191: Hatch | ABZ191: Hatch | ACA191: Hatch | ACB191: Hatch | ACC191: Hatch | ACD191: Hatch | ACE191: Hatch | ACF191: Hatch | ACG191: Hatch | ACH191: Hatch | ACI191: Hatch | ACJ191: Hatch | ACK191: Hatch | ACL191: Hatch | ACM191: Hatch | ACN191: Hatch | ACO191: Hatch | ACP191: Hatch | ACQ191: Hatch | ACR191: Hatch | ACS191: Hatch | ACT191: Hatch | ACU191: Hatch | ACV191: Hatch | ACW191: Hatch | ACX191: Hatch | ACY191: Hatch | ACZ191: Hatch | ADA191: Hatch | ADB191: Hatch | ADC191: Hatch | ADD191: Hatch | ADE191: Hatch | ADF191: Hatch | ADG191: Hatch | ADH191: Hatch | ADI191: Hatch | ADJ191: Hatch | ADK191: Hatch | ADL191: Hatch | ADM191: Hatch | ADN191: Hatch | ADO191: Hatch | ADP191: Hatch | ADQ191: Hatch | ADR191: Hatch | ADS191: Hatch | ADT191: Hatch | ADU191: Hatch | ADV191: Hatch | ADW191: Hatch | ADX191: Hatch | ADY191: Hatch | ADZ191: Hatch | AEA191: Hatch | AEB191: Hatch | AEC191: Hatch | AED191: Hatch | AEE191: Hatch | AEF191: Hatch | AEG191: Hatch | AEH191: Hatch | AEI191: Hatch | AEJ191: Hatch | AEK191: Hatch | AEL191: Hatch | AEM191: Hatch | AEN191: Hatch | AEO191: Hatch | AEP191: Hatch | AEQ191: Hatch | AER191: Hatch | AES191: Hatch | AET191: Hatch | AEU191: Hatch | AEV191: Hatch | AEW191: Hatch | AEX191: Hatch | AEY191: Hatch | AEZ191: Hatch | AFA191: Hatch | AFB191: Hatch | AFC191: Hatch | AFD191: Hatch | AFE191: Hatch | AFF191: Hatch | AFG191: Hatch | AFH191: Hatch | AFI191: Hatch | AFJ191: Hatch | AFK191: Hatch | AFL191: Casting | AFM191: Casting | AFN191: Casting | AFO191: Casting | AFP191: Casting | AFQ191: Casting | AFR191: Casting | AFS191: Casting | AFT191: Casting | AFU191: Casting
B192: Stock or Non-Stock Item Designation | C192: Stock or Non-Stock Item | F192: Non-Stock Hatch | G192: Non-Stock Hatch | H192: Non-Stock | I192: Non-Stock | J192: Non-Stock | K192: Non-Stock | L192: Non-Stock | M192: Non-Stock | N192: Non-Stock | O192: Non-Stock | P192: Non-Stock | Q192: Non-Stock | R192: Non-Stock | S192: Non-Stock | T192: Non-Stock | U192: Non-Stock | V192: Non-Stock | W192: Non-Stock | X192: Non-Stock | Y192: Non-Stock | Z192: Non-Stock | AA192: Non-Stock | AB192: Non-Stock | AC192: Non-Stock | AD192: Non-Stock | AE192: Non-Stock | AF192: Non-Stock | AG192: Non-Stock | AH192: Non-Stock | AI192: Non-Stock | AJ192: Stock | AK192: Stock | AL192: Stock | AM192: Stock | AN192: Stock | AO192: Stock | AP192: Non-Stock | AQ192: Non-Stock | AR192: Non-Stock | AS192: Non-Stock | AT192: Non-Stock | AU192: Stock | AV192: Stock | AW192: Stock | AX192: Non-Stock | AY192: Non-Stock | AZ192: Non-Stock | BA192: Non-Stock | BB192: Non-Stock | BC192: Non-Stock | BD192: Non-Stock | BE192: Non-Stock | BF192: Non-Stock | BG192: Non-Stock | BH192: Non-Stock | BI192: Non-Stock | BJ192: Non-Stock | BK192: Non-Stock | BL192: Stock | BM192: Stock | BN192: Stock | BO192: Non-Stock | BP192: Non-Stock | BQ192: Non-Stock | BR192: Stock | BS192: Stock | BT192: Non-Stock | BU192: Non-Stock | BV192: Non-Stock | BW192: Non-Stock | BX192: Non-Stock | BY192: Non-Stock | BZ192: Non-Stock | CA192: Non-Stock | CB192: Non-Stock | CC192: Non-Stock | CD192: Non-Stock | CE192: Non-Stock | CF192: Non-Stock | CG192: Non-Stock | CH192: Non-Stock | CI192: Non-Stock | CJ192: Stock | CK192: Stock | CL192: Stock | CM192: Stock | CN192: Stock | CO192: Non-Stock | CP192: Non-Stock | CQ192: Stock | CR192: Stock | CS192: Stock | CT192: Stock | CU192: Non-Stock | CV192: Non-Stock | CW192: Stock | CX192: Stock | CY192: Non-Stock | CZ192: Non-Stock | DA192: Non-Stock | DB192: Non-Stock | DC192: Non-Stock | DD192: Non-Stock | DE192: Non-Stock | DF192: Non-Stock | DG192: Non-Stock | DH192: Non-Stock | DI192: Non-Stock | DJ192: Non-Stock | DK192: Non-Stock | DL192: Non-Stock | DM192: Non-Stock | DN192: Non-Stock | DO192: Non-Stock | DP192: Non-Stock | DQ192: Non-Stock | DR192: Non-Stock | DS192: Non-Stock | DT192: Stock | DU192: Stock | DV192: Stock | DW192: Non-Stock | DX192: Non-Stock | DY192: Non-Stock | DZ192: Non-Stock | EA192: Non-Stock | EB192: Non-Stock | EC192: Non-Stock | ED192: Non-Stock | EE192: Non-Stock | EF192: Stock | EG192: Stock | EH192: Non-Stock | EI192: Non-Stock | EJ192: Non-Stock | EK192: Non-Stock | EL192: Non-Stock | EM192: Stock | EN192: Stock | EO192: Stock | EP192: Non-Stock | EQ192: Non-Stock | ER192: Non-Stock | ES192: Non-Stock | ET192: Non-Stock | EU192: Non-Stock | EV192: Non-Stock | EW192: Non-Stock | EX192: Non-Stock | EY192: Non-Stock | EZ192: Non-Stock | FA192: Non-Stock | FB192: Non-Stock | FC192: Non-Stock | FD192: Non-Stock | FE192: Non-Stock | FF192: Non-Stock | FG192: Non-Stock | FH192: Non-Stock | FI192: Stock | FJ192: Non-Stock | FK192: Non-Stock | FL192: Non-Stock | FM192: Non-Stock | FN192: Non-Stock | FO192: Non-Stock | FP192: Non-Stock | FQ192: Non-Stock | FR192: Non-Stock | FS192: Non-Stock | FT192: Non-Stock | FU192: Non-Stock | FV192: Non-Stock | FW192: Non-Stock | FX192: Stock | FY192: Non-Stock | FZ192: Non-Stock | GA192: Non-Stock | GB192: Non-Stock | GC192: Non-Stock | GD192: Stock | GE192: Stock | GF192: Stock | GG192: Non-Stock | GH192: Non-Stock | GI192: Non-Stock | GJ192: Non-Stock | GK192: Non-Stock | GL192: Non-Stock | GM192: Non-Stock | GN192: Non-Stock | GO192: Non-Stock | GP192: Stock | GQ192: Stock | GR192: Non-Stock | GS192: Non-Stock | GT192: Non-Stock | GU192: Non-Stock | GV192: Non-Stock | GW192: Non-Stock | GX192: Non-Stock | GY192: Non-Stock | GZ192: Non-Stock | HA192: Non-Stock | HB192: Non-Stock | HC192: Non-Stock | HD192: Non-Stock | HE192: Non-Stock | HF192: Non-Stock | HG192: Non-Stock | HH192: Non-Stock | HI192: Non-Stock | HJ192: Non-Stock | HK192: Stock | HL192: Non-Stock | HM192: Non-Stock | HN192: Non-Stock | HO192: Non-Stock | HP192: Non-Stock | HQ192: Non-Stock | HR192: Non-Stock | HS192: Non-Stock | HT192: Non-Stock | HU192: Non-Stock | HV192: Non-Stock | HW192: Non-Stock | HX192: Non-Stock | HY192: Non-Stock | HZ192: Non-Stock | IA192: Non-Stock | IB192: Non-Stock | IC192: Non-Stock | ID192: Non-Stock | IE192: Non-Stock | IF192: Non-Stock | IG192: Non-Stock | IH192: Non-Stock | II192: Non-Stock | IJ192: Non-Stock | IK192: Non-Stock | IL192: Non-Stock | IM192: Stock | IN192: Non-Stock | IO192: Stock | IP192: Non-Stock | IQ192: Non-Stock | IR192: Non-Stock | IS192: Non-Stock | IT192: Non-Stock | IU192: Non-Stock | IV192: Non-Stock | IW192: Non-Stock | IX192: Non-Stock | IY192: Non-Stock | IZ192: Non-Stock | JA192: Non-Stock | JB192: Non-Stock | JC192: Non-Stock | JD192: Non-Stock | JE192: Non-Stock | JF192: Non-Stock | JG192: Non-Stock | JH192: Non-Stock | JI192: Stock | JJ192: Non-Stock | JK192: Non-Stock | JL192: Non-Stock | JM192: Non-Stock | JN192: Non-Stock | JO192: Non-Stock | JP192: Non-Stock | JQ192: Non-Stock | JR192: Non-Stock | JS192: Non-Stock | JT192: Non-Stock | JU192: Non-Stock | JV192: Non-Stock | JW192: Non-Stock | JX192: Non-Stock | JY192: Non-Stock | JZ192: Non-Stock | KA192: Non-Stock | KB192: Non-Stock | KC192: Non-Stock | KD192: Non-Stock | KE192: Non-Stock | KF192: Non-Stock | KG192: Non-Stock | KH192: Non-Stock | KI192: Non-Stock | KJ192: Non-Stock | KK192: Non-Stock | KL192: Non-Stock | KM192: Non-Stock | KN192: Non-Stock | KO192: Non-Stock | KP192: Non-Stock | KQ192: Non-Stock | KR192: Non-Stock | KS192: Non-Stock | KT192: Non-Stock | KU192: Non-Stock | KV192: Non-Stock | KW192: Non-Stock | KX192: Non-Stock | KY192: Non-Stock | KZ192: Non-Stock | LA192: Non-Stock | LB192: Non-Stock | LC192: Non-Stock | LD192: Non-Stock | LE192: Non-Stock | LF192: Non-Stock | LG192: Non-Stock | LH192: Non-Stock | LI192: Non-Stock | LJ192: Non-Stock | LK192: Non-Stock | LL192: Non-Stock | LM192: Non-Stock | LN192: Non-Stock | LO192: Non-Stock | LP192: Non-Stock | LQ192: Non-Stock | LR192: Non-Stock | LS192: Non-Stock | LT192: Non-Stock | LU192: Non-Stock | LV192: Non-Stock | LW192: Non-Stock | LX192: Non-Stock | LY192: Non-Stock | LZ192: Non-Stock | MA192: Non-Stock | MB192: Non-Stock | MC192: Non-Stock | MD192: Non-Stock | ME192: Non-Stock | MF192: Non-Stock | MG192: Non-Stock | MH192: Non-Stock | MI192: Non-Stock | MJ192: Non-Stock | MK192: Non-Stock | ML192: Non-Stock | MM192: Non-Stock | MN192: Non-Stock | MO192: Non-Stock | MP192: Non-Stock | MQ192: Non-Stock | MR192: Non-Stock | MS192: Non-Stock | MT192: Non-Stock | MU192: Non-Stock | MV192: Non-Stock | MW192: Non-Stock | MX192: Non-Stock | MY192: Non-Stock | MZ192: Non-Stock | NA192: Non-Stock | NB192: Non-Stock | NC192: Non-Stock | ND192: Non-Stock | NE192: Non-Stock | NF192: Non-Stock | NG192: Non-Stock | NH192: Non-Stock | NI192: Non-Stock | NJ192: Non-Stock | NK192: Non-Stock | NL192: Non-Stock | NM192: Non-Stock | NN192: Non-Stock | NO192: Non-Stock | NP192: Non-Stock | NQ192: Non-Stock | NR192: Non-Stock | NS192: Non-Stock | NT192: Non-Stock | NU192: Non-Stock | NV192: Non-Stock | NW192: Non-Stock | NX192: Non-Stock | NY192: Non-Stock | NZ192: Non-Stock | OA192: Non-Stock | OB192: Non-Stock | OC192: Non-Stock | OD192: Non-Stock | OE192: Non-Stock | OF192: Non-Stock | OG192: Non-Stock | OH192: Non-Stock | OI192: Non-Stock | OJ192: Non-Stock | OK192: Non-Stock | OL192: Non-Stock | OM192: Non-Stock | ON192: Non-Stock | OO192: Non-Stock | OP192: Non-Stock | OQ192: Non-Stock | OR192: Non-Stock | OS192: Non-Stock | OT192: Non-Stock | OU192: Non-Stock | OV192: Non-Stock | OW192: Non-Stock | OX192: Non-Stock | OY192: Non-Stock | OZ192: Non-Stock | PA192: Non-Stock | PB192: Non-Stock | PC192: Non-Stock | PD192: Non-Stock | PE192: Non-Stock | PF192: Non-Stock | PG192: Non-Stock | PH192: Non-Stock | PI192: Non-Stock | PJ192: Non-Stock | PK192: Non-Stock | PL192: Non-Stock | PM192: Non-Stock | PN192: Non-Stock | PO192: Non-Stock | PP192: Non-Stock | PQ192: Non-Stock | PR192: Non-Stock | PS192: Non-Stock | PT192: Non-Stock | PU192: Non-Stock | PV192: Non-Stock | PW192: Non-Stock | PX192: Non-Stock | PY192: Non-Stock | PZ192: Non-Stock | QA192: Non-Stock | QB192: Non-Stock | QC192: Non-Stock | QD192: Non-Stock | QE192: Non-Stock | QF192: Non-Stock | QG192: Non-Stock | QH192: Non-Stock | QI192: Non-Stock | QJ192: Non-Stock | QK192: Non-Stock | QL192: Non-Stock | QM192: Non-Stock | QN192: Non-Stock | QO192: Non-Stock | QP192: Non-Stock | QQ192: Non-Stock | QR192: Non-Stock | QS192: Non-Stock | QT192: Non-Stock | QU192: Non-Stock | QV192: Non-Stock | QW192: Non-Stock | QX192: Non-Stock | QY192: Non-Stock | QZ192: Non-Stock | RA192: Non-Stock | RB192: Non-Stock | RC192: Non-Stock | RD192: Non-Stock | RE192: Non-Stock | RF192: Non-Stock | RG192: Non-Stock | RH192: Non-Stock | RI192: Non-Stock | RJ192: Non-Stock | RK192: Non-Stock | RL192: Non-Stock | RM192: Non-Stock | RN192: Non-Stock | RO192: Non-Stock | RP192: Non-Stock | RQ192: Non-Stock | RR192: Non-Stock | RS192: Non-Stock | RT192: Non-Stock | RU192: Non-Stock | RV192: Non-Stock | RW192: Non-Stock | RX192: Non-Stock | RY192: Non-Stock | RZ192: Non-Stock | SA192: Non-Stock | SB192: Non-Stock | SC192: Non-Stock | SD192: Non-Stock | SE192: Non-Stock | SF192: Non-Stock | SG192: Non-Stock | SH192: Non-Stock | SI192: Non-Stock | SJ192: Non-Stock | SK192: Non-Stock | SL192: Non-Stock | SM192: Non-Stock | SN192: Non-Stock | SO192: Non-Stock | SP192: Non-Stock | SQ192: Non-Stock | SR192: Non-Stock | SS192: Non-Stock | ST192: Non-Stock | SU192: Non-Stock | SV192: Non-Stock | SW192: Non-Stock | SX192: Non-Stock | SY192: Non-Stock | SZ192: Non-Stock | TA192: Non-Stock | TB192: Non-Stock | TC192: Non-Stock | TD192: Non-Stock | TE192: Non-Stock | TF192: Non-Stock | TG192: Non-Stock | TH192: Non-Stock | TI192: Non-Stock | TJ192: Non-Stock | TK192: Non-Stock | TL192: Non-Stock | TM192: Non-Stock | TN192: Non-Stock | TO192: Non-Stock | TP192: Non-Stock | TQ192: Non-Stock | TR192: Non-Stock | TS192: Non-Stock | TT192: Non-Stock | TU192: Non-Stock | TV192: Non-Stock | TW192: Non-Stock | TX192: Non-Stock | TY192: Non-Stock | TZ192: Non-Stock | UA192: Non-Stock | UB192: Non-Stock | UC192: Non-Stock | UD192: Non-Stock | UE192: Non-Stock | UF192: Non-Stock | UG192: Non-Stock | UH192: Non-Stock | UI192: Non-Stock | UJ192: Non-Stock | UK192: Non-Stock | UL192: Non-Stock | UM192: Non-Stock | UN192: Non-Stock | UO192: Non-Stock | UP192: Non-Stock | UQ192: Non-Stock | UR192: Non-Stock | US192: Non-Stock | UT192: Non-Stock | UU192: Non-Stock | UV192: Non-Stock | UW192: Non-Stock | UX192: Non-Stock | UY192: Non-Stock | UZ192: Non-Stock | VA192: Non-Stock | VB192: Non-Stock | VC192: Non-Stock | VD192: Non-Stock | VE192: Non-Stock | VF192: Non-Stock | VG192: Non-Stock | VH192: Non-Stock | VI192: Non-Stock | VJ192: Non-Stock | VK192: Non-Stock | VL192: Non-Stock | VM192: Non-Stock | VN192: Non-Stock | VO192: Non-Stock | VP192: Non-Stock | VQ192: Non-Stock | VR192: Non-Stock | VS192: Non-Stock | VT192: Non-Stock | VU192: Non-Stock | VV192: Non-Stock | VW192: Non-Stock | VX192: Non-Stock | VY192: Non-Stock | VZ192: Non-Stock | WA192: Non-Stock | WB192: Non-Stock | WC192: Non-Stock | WD192: Non-Stock | WE192: Non-Stock | WF192: Non-Stock | WG192: Non-Stock | WH192: Non-Stock | WI192: Non-Stock | WJ192: Non-Stock | WK192: Non-Stock | WL192: Non-Stock | WM192: Non-Stock | WN192: Non-Stock | WO192: Non-Stock | WP192: Non-Stock | WQ192: Non-Stock | WR192: Non-Stock | WS192: Non-Stock | WT192: Non-Stock | WU192: Non-Stock | WV192: Non-Stock | WW192: Non-Stock | WX192: Non-Stock | WY192: Non-Stock | WZ192: Non-Stock | XA192: Non-Stock | XB192: Non-Stock | XC192: Non-Stock | XD192: Non-Stock | XE192: Non-Stock | XF192: Non-Stock | XG192: Non-Stock | XH192: Non-Stock | XI192: Non-Stock | XJ192: Non-Stock | XK192: Non-Stock | XL192: Non-Stock | XM192: Non-Stock | XN192: Non-Stock | XO192: Non-Stock | XP192: Non-Stock | XQ192: Non-Stock | XR192: Non-Stock | XS192: Non-Stock | XT192: Non-Stock | XU192: Non-Stock | XV192: Non-Stock | XW192: Non-Stock | XX192: Non-Stock | XY192: Non-Stock | XZ192: Non-Stock | YA192: Non-Stock | YB192: Non-Stock | YC192: Non-Stock | YD192: Non-Stock | YE192: Non-Stock | YF192: Non-Stock | YG192: Non-Stock | YH192: Non-Stock | YI192: Non-Stock | YJ192: Non-Stock | YK192: Non-Stock | YL192: Non-Stock | YM192: Non-Stock | YN192: Non-Stock | YO192: Non-Stock | YP192: Non-Stock | YQ192: Non-Stock | YR192: Non-Stock | YS192: Non-Stock | YT192: Non-Stock | YU192: Non-Stock | YV192: Non-Stock | YW192: Non-Stock | YX192: Non-Stock | YY192: Non-Stock | YZ192: Non-Stock | ZA192: Non-Stock | ZB192: Non-Stock | ZC192: Non-Stock | ZD192: Non-Stock | ZE192: Non-Stock | ZF192: Non-Stock | ZG192: Non-Stock | ZH192: Non-Stock | ZI192: Non-Stock | ZJ192: Non-Stock | ZK192: Non-Stock | ZL192: Non-Stock | ZM192: Non-Stock | ZN192: Non-Stock | ZO192: Non-Stock | ZP192: Non-Stock | ZQ192: Non-Stock | ZR192: Non-Stock | ZS192: Non-Stock | ZT192: Non-Stock | ZU192: Non-Stock | ZV192: Non-Stock | ZW192: Non-Stock | ZX192: Non-Stock | ZY192: Non-Stock | ZZ192: Non-Stock | AAA192: Non-Stock | AAB192: Non-Stock | AAC192: Non-Stock | AAD192: Non-Stock | AAE192: Non-Stock | AAF192: Non-Stock | AAG192: Non-Stock | AAH192: Non-Stock | AAI192: Non-Stock | AAJ192: Non-Stock | AAK192: Non-Stock | AAL192: Non-Stock | AAM192: Non-Stock | AAN192: Non-Stock | AAO192: Non-Stock | AAP192: Non-Stock | AAQ192: Non-Stock | AAR192: Non-Stock | AAS192: Non-Stock | AAT192: Non-Stock | AAU192: Non-Stock | AAV192: Non-Stock | AAW192: Non-Stock | AAX192: Non-Stock | AAY192: Non-Stock | AAZ192: Non-Stock | ABA192: Non-Stock | ABB192: Non-Stock | ABC192: Non-Stock | ABD192: Non-Stock | ABE192: Non-Stock | ABF192: Non-Stock | ABG192: Non-Stock | ABH192: Non-Stock | ABI192: Non-Stock | ABJ192: Non-Stock | ABK192: Non-Stock | ABL192: Non-Stock | ABM192: Non-Stock | ABN192: Non-Stock | ABO192: Non-Stock | ABP192: Non-Stock | ABQ192: Non-Stock | ABR192: Non-Stock | ABS192: Non-Stock | ABT192: Non-Stock | ABU192: Non-Stock | ABV192: Non-Stock | ABW192: Non-Stock | ABX192: Non-Stock | ABY192: Non-Stock | ABZ192: Non-Stock | ACA192: Non-Stock | ACB192: Non-Stock | ACC192: Non-Stock | ACD192: Non-Stock | ACE192: Non-Stock | ACF192: Non-Stock | ACG192: Non-Stock | ACH192: Non-Stock | ACI192: Non-Stock | ACJ192: Non-Stock | ACK192: Non-Stock | ACL192: Non-Stock | ACM192: Non-Stock | ACN192: Non-Stock | ACO192: Non-Stock | ACP192: Non-Stock | ACQ192: Non-Stock | ACR192: Non-Stock | ACS192: Non-Stock | ACT192: Non-Stock | ACU192: Non-Stock | ACV192: Non-Stock | ACW192: Non-Stock | ACX192: Non-Stock | ACY192: Non-Stock | ACZ192: Non-Stock | ADA192: Non-Stock | ADB192: Non-Stock | ADC192: Non-Stock | ADD192: Non-Stock | ADE192: Non-Stock | ADF192: Non-Stock | ADG192: Non-Stock | ADH192: Non-Stock | ADI192: Non-Stock | ADJ192: Non-Stock | ADK192: Non-Stock | ADL192: Non-Stock | ADM192: Non-Stock | ADN192: Non-Stock | ADO192: Non-Stock | ADP192: Non-Stock | ADQ192: Non-Stock | ADR192: Non-Stock | ADS192: Non-Stock | ADT192: Non-Stock | ADU192: Non-Stock | ADV192: Non-Stock | ADW192: Non-Stock | ADX192: Non-Stock | ADY192: Non-Stock | ADZ192: Non-Stock | AEA192: Non-Stock | AEB192: Non-Stock | AEC192: Non-Stock | AED192: Non-Stock | AEE192: Non-Stock | AEF192: Non-Stock | AEG192: Non-Stock | AEH192: Non-Stock | AEI192: Non-Stock | AEJ192: Non-Stock | AEK192: Non-Stock | AEL192: Non-Stock | AEM192: Non-Stock | AEN192: Non-Stock | AEO192: Non-Stock | AEP192: Non-Stock | AEQ192: Non-Stock | AER192: Non-Stock | AES192: Non-Stock | AET192: Non-Stock | AEU192: Non-Stock | AEV192: Non-Stock | AEW192: Non-Stock | AEX192: Non-Stock | AEY192: Non-Stock | AEZ192: Non-Stock | AFA192: Non-Stock | AFB192: Non-Stock | AFC192: Non-Stock | AFD192: Non-Stock | AFE192: Non-Stock | AFF192: Non-Stock | AFG192: Non-Stock | AFH192: Non-Stock | AFI192: Non-Stock | AFJ192: Non-Stock | AFK192: Non-Stock | AFL192: Non-Stock | AFM192: Non-Stock | AFN192: Non-Stock | AFO192: Non-Stock | AFP192: Non-Stock | AFQ192: Non-Stock | AFR192: Non-Stock | AFS192: Non-Stock | AFT192: Non-Stock | AFU192: Non-Stock
B193: Cast In or Loose | C193: Cast In or Loose | F193: Cast In | G193: Cast In | H193: Cast In | I193: Loose | J193: Loose | K193: Loose | L193: Loose | M193: Loose | N193: Loose | O193: Loose | P193: Loose | Q193: Loose | R193: Loose | S193: Loose | T193: Loose | U193: Loose | V193: Loose | W193: Loose | X193: Loose | Y193: Loose | Z193: Loose | AA193: Loose | AB193: Loose | AC193: Loose | AD193: Loose | AE193: Loose | AF193: Loose | AG193: Loose | AH193: Loose | AI193: Loose | AJ193: Loose | AK193: Loose | AL193: Loose | AM193: Loose | AN193: Loose | AO193: Loose | AP193: Loose | AQ193: Loose | AR193: Loose | AS193: Loose | AT193: Loose | AU193: Loose | AV193: Loose | AW193: Loose | AX193: Loose | AY193: Loose | AZ193: Loose | BA193: Loose | BB193: Loose | BC193: Loose | BD193: Loose | BE193: Loose | BF193: Loose | BG193: Loose | BH193: Loose | BI193: Loose | BJ193: Loose | BK193: Loose | BL193: Loose | BM193: Loose | BN193: Loose | BO193: Loose | BP193: Loose | BQ193: Loose | BR193: Loose | BS193: Loose | BT193: Loose | BU193: Loose | BV193: Loose | BW193: Loose | BX193: Loose | BY193: Loose | BZ193: Loose | CA193: Loose | CB193: Loose | CC193: Loose | CD193: Loose | CE193: Loose | CF193: Loose | CG193: Loose | CH193: Loose | CI193: Loose | CJ193: Cast In | CK193: Cast In | CL193: Cast In | CM193: Cast In | CN193: Cast In | CO193: Cast In | CP193: Cast In | CQ193: Cast In | CR193: Cast In | CS193: Cast In | CT193: Cast In | CU193: Cast In | CV193: Cast In | CW193: Cast In | CX193: Cast In | CY193: Cast In | CZ193: Cast In | DA193: Cast In | DB193: Cast In | DC193: Cast In | DD193: Cast In | DE193: Cast In | DF193: Cast In | DG193: Cast In | DH193: Cast In | DI193: Cast In | DJ193: Cast In | DK193: Cast In | DL193: Cast In | DM193: Cast In | DN193: Cast In | DO193: Loose | DP193: Loose | DQ193: Loose | DR193: Loose | DS193: Loose | DT193: Loose | DU193: Loose | DV193: Loose | DW193: Loose | DX193: Loose | DY193: Loose | DZ193: Loose | EA193: Loose | EB193: Loose | EC193: Loose | ED193: Loose | EE193: Loose | EF193: Loose | EG193: Loose | EH193: Loose | EI193: Loose | EJ193: Loose | EK193: Loose | EL193: Loose | EM193: Loose | EN193: Loose | EO193: Cast In | EP193: Loose | EQ193: Cast In | ER193: Loose | ES193: Cast In | ET193: Loose | EU193: Cast In | EV193: Loose | EW193: Cast In | EX193: Loose | EY193: Loose | EZ193: Loose | FA193: Loose | FB193: Loose | FC193: Loose | FD193: Cast In | FE193: Loose | FF193: Loose | FG193: Loose | FH193: Loose | FI193: Loose | FJ193: Cast In | FK193: Cast In | FL193: Loose | FM193: Loose | FN193: Loose | FO193: Cast In | FP193: Loose | FQ193: Cast In | FR193: Loose | FS193: Cast In | FT193: Loose | FU193: Cast In | FV193: Loose | FW193: Cast In | FX193: Loose | FY193: Loose | FZ193: Loose | GA193: Loose | GB193: Loose | GC193: Loose | GD193: Loose | GE193: Loose | GF193: Loose | GG193: Loose | GH193: Loose | GI193: Loose | GJ193: Loose | GK193: Loose | GL193: Loose | GM193: Loose | GN193: Loose | GO193: Loose | GP193: Loose | GQ193: Cast In | GR193: Loose | GS193: Loose | GT193: Loose | GU193: Loose | GV193: Loose | GW193: Loose | GX193: Loose | GY193: Loose | GZ193: Loose | HA193: Loose | HB193: Loose | HC193: Loose | HD193: Loose | HE193: Loose | HF193: Loose | HG193: Loose | HH193: Loose | HI193: Cast In | HJ193: Loose | HK193: Loose | HL193: Cast In | HM193: Cast In | HN193: Loose | HO193: Loose | HP193: Cast In | HQ193: Cast In | HR193: Loose | HS193: Loose | HT193: Loose | HU193: Loose | HV193: Loose | HW193: Loose | HX193: Loose | HY193: Loose | HZ193: Loose | IA193: Loose | IB193: Loose | IC193: Loose | ID193: Loose | IE193: Loose | IF193: Loose | IG193: Loose | IH193: Loose | II193: Loose | IJ193: Loose | IK193: Loose | IL193: Loose | IM193: Cast In | IN193: Loose | IO193: Loose | IP193: Cast In | IQ193: Cast In | IR193: Cast In | IS193: Cast In | IT193: Cast In | IU193: Cast In | IV193: Cast In | IW193: Cast In | IX193: Cast In | IY193: Cast In | IZ193: Cast In | JA193: Cast In | JB193: Cast In | JC193: Cast In | JD193: Loose | JE193: Loose | JF193: Loose | JG193: Loose | JH193: Loose | JI193: Loose | JJ193: Loose | JK193: Loose | JL193: Loose | JM193: Loose | JN193: Loose | JO193: Loose | JP193: Loose | JQ193: Loose | JR193: Loose | JS193: Loose | JT193: Cast In | JU193: Loose | JV193: Cast In | JW193: Loose | JX193: Cast In | JY193: Loose | JZ193: Cast In | KA193: Loose | KB193: Cast In | KC193: Loose | KD193: Cast In | KE193: Loose | KF193: Cast In | KG193: Loose | KH193: Loose | KI193: Loose | KJ193: Loose | KK193: Loose | KL193: Loose | KM193: Loose | KN193: Loose | KO193: Cast In | KP193: Cast In | KQ193: Cast In | KR193: Loose | KS193: Loose | KT193: Loose | KU193: Loose | KV193: Loose | KW193: Loose | KX193: Loose | KY193: Loose | KZ193: Loose | LA193: Loose | LB193: Loose | LC193: Loose | LD193: Loose | LE193: Loose | LF193: Loose | LG193: Loose | LH193: Loose | LI193: Loose | LJ193: Loose | LK193: Loose | LL193: Loose | LM193: Cast In | LN193: Loose | LO193: Cast In | LP193: Loose | LQ193: Loose | LR193: Loose | LS193: Loose | LT193: Loose | LU193: Cast In | LV193: Loose | LW193: Cast In | LX193: Loose | LY193: Cast In | LZ193: Loose | MA193: Loose | MB193: Loose | MC193: Loose | MD193: Loose | ME193: Loose | MF193: Loose | MG193: Cast In | MH193: Loose | MI193: Cast In | MJ193: Loose | MK193: Loose | ML193: Cast In | MM193: Cast In | MN193: Loose | MO193: Cast In | MP193: Loose | MQ193: Cast In | MR193: Loose | MS193: Cast In | MT193: Loose | MU193: Cast In | MV193: Loose | MW193: Loose | MX193: Loose | MY193: Loose | MZ193: Loose | NA193: Loose | NB193: Loose | NC193: Loose | ND193: Loose | NE193: Loose | NF193: Loose | NG193: Loose | NH193: Loose | NI193: Loose | NJ193: Loose | NK193: Loose | NL193: Loose | NM193: Loose | NN193: Loose | NO193: Loose | NP193: Loose | NQ193: Loose | NR193: Loose | NS193: Loose | NT193: Loose | NU193: Loose | NV193: Loose | NW193: Loose | NX193: Loose | NY193: Loose | NZ193: Loose | OA193: Loose | OB193: Loose | OC193: Loose | OD193: Loose | OE193: Loose | OF193: Loose | OG193: Loose | OH193: Loose | OI193: Loose | OJ193: Loose | OK193: Loose | OL193: Loose | OM193: Loose | ON193: Loose | OO193: Loose | OP193: Loose | OQ193: Loose | OR193: Loose | OS193: Loose | OT193: Loose | OU193: Loose | OV193: Loose | OW193: Loose | OX193: Loose | OY193: Loose | OZ193: Cast In | PA193: Loose | PB193: Cast In | PC193: Loose | PD193: Loose | PE193: Cast In | PF193: Loose | PG193: Cast In | PH193: Loose | PI193: Cast In | PJ193: Loose | PK193: Cast In | PL193: Loose | PM193: Loose | PN193: Cast In | PO193: Loose | PP193: Loose | PQ193: Loose | PR193: Loose | PS193: Loose | PT193: Loose | PU193: Cast In | PV193: Loose | PW193: Loose | PX193: Loose | PY193: Loose | PZ193: Loose | QA193: Loose | QB193: Loose | QC193: Cast In | QD193: Loose | QE193: Cast In | QF193: Cast In | QG193: Loose | QH193: Loose | QI193: Cast In | QJ193: Cast In | QK193: Loose | QL193: Cast In | QM193: Cast In | QN193: Cast In | QO193: Loose | QP193: Loose | QQ193: Loose | QR193: Loose | QS193: Loose | QT193: Loose | QU193: Loose | QV193: Loose | QW193: Loose | QX193: Loose | QY193: Loose | QZ193: Loose | RA193: Loose | RB193: Loose | RC193: Loose | RD193: Loose | RE193: Loose | RF193: Loose | RG193: Loose | RH193: Loose | RI193: Loose | RJ193: Loose | RK193: Loose | RL193: Loose | RM193: Loose | RN193: Loose | RO193: Loose | RP193: Loose | RQ193: Loose | RR193: Loose | RS193: Loose | RT193: Loose | RU193: Loose | RV193: Loose | RW193: Loose | RX193: Loose | RY193: Loose | RZ193: Loose | SA193: Loose | SB193: Loose | SC193: Loose | SD193: Loose | SE193: Loose | SF193: Loose | SG193: Loose | SH193: Loose | SI193: Loose | SJ193: Loose | SK193: Loose | SL193: Loose | SM193: Loose | SN193: Loose | SO193: Loose | SP193: Loose | SQ193: Loose | SR193: Loose | SS193: Loose | ST193: Loose | SU193: Loose | SV193: Loose | SW193: Loose | SX193: Loose | SY193: Loose | SZ193: Loose | TA193: Loose | TB193: Loose | TC193: Loose | TD193: Loose | TE193: Loose | TF193: Loose | TG193: Loose | TH193: Loose | TI193: Loose | TJ193: Loose | TK193: Loose | TL193: Loose | TM193: Loose | TN193: Loose | TO193: Loose | TP193: Loose | TQ193: Loose | TR193: Loose | TS193: Loose | TT193: Loose | TU193: Loose | TV193: Loose | TW193: Loose | TX193: Loose | TY193: Loose | TZ193: Loose | UA193: Loose | UB193: Loose | UC193: Loose | UD193: Loose | UE193: Loose | UF193: Loose | UG193: Loose | UH193: Loose | UI193: Loose | UJ193: Cast In | UK193: Cast In | UL193: Cast In | UM193: Cast In | UN193: Cast In | UO193: Cast In | UP193: Cast In | UQ193: Cast In | UR193: Cast In | US193: Cast In | UT193: Cast In | UU193: Cast In | UV193: Cast In | UW193: Cast In | UX193: Cast In | UY193: Cast In | UZ193: Cast In | VA193: Cast In | VB193: Cast In | VC193: Cast In | VD193: Cast In | VE193: Cast In | VF193: Cast In | VG193: Cast In | VH193: Cast In | VI193: Cast In | VJ193: Cast In | VK193: Cast In | VL193: Cast In | VM193: Cast In | VN193: Cast In | VO193: Cast In | VP193: Cast In | VQ193: Cast In | VR193: Cast In | VS193: Cast In | VT193: Cast In | VU193: Cast In | VV193: Cast In | VW193: Cast In | VX193: Cast In | VY193: Cast In | VZ193: Cast In | WA193: Cast In | WB193: Cast In | WC193: Cast In | WD193: Cast In | WE193: Cast In | WF193: Cast In | WG193: Cast In | WH193: Cast In | WI193: Cast In | WJ193: Cast In | WK193: Cast In | WL193: Cast In | WM193: Cast In | WN193: Cast In | WO193: Cast In | WP193: Cast In | WQ193: Cast In | WR193: Cast In | WS193: Cast In | WT193: Cast In | WU193: Cast In | WV193: Cast In | WW193: Cast In | WX193: Cast In | WY193: Cast In | WZ193: Cast In | XA193: Cast In | XB193: Cast In | XC193: Cast In | XD193: Cast In | XE193: Cast In | XF193: Cast In | XG193: Cast In | XH193: Cast In | XI193: Cast In | XJ193: Cast In | XK193: Cast In | XL193: Cast In | XM193: Cast In | XN193: Cast In | XO193: Cast In | XP193: Cast In | XQ193: Cast In | XR193: Cast In | XS193: Cast In | XT193: Cast In | XU193: Cast In | XV193: Cast In | XW193: Cast In | XX193: Cast In | XY193: Cast In | XZ193: Cast In | YA193: Cast In | YB193: Cast In | YC193: Cast In | YD193: Cast In | YE193: Cast In | YF193: Cast In | YG193: Cast In | YH193: Cast In | YI193: Cast In | YJ193: Cast In | YK193: Cast In | YL193: Cast In | YM193: Cast In | YN193: Cast In | YO193: Cast In | YP193: Cast In | YQ193: Cast In | YR193: Cast In | YS193: Cast In | YT193: Cast In | YU193: Cast In | YV193: Cast In | YW193: Cast In | YX193: Cast In | YY193: Cast In | YZ193: Cast In | ZA193: Cast In | ZB193: Cast In | ZC193: Cast In | ZD193: Cast In | ZE193: Cast In | ZF193: Cast In | ZG193: Cast In | ZH193: Cast In | ZI193: Cast In | ZJ193: Cast In | ZK193: Cast In | ZL193: Cast In | ZM193: Cast In | ZN193: Cast In | ZO193: Cast In | ZP193: Cast In | ZQ193: Cast In | ZR193: Cast In | ZS193: Cast In | ZT193: Cast In | ZU193: Cast In | ZV193: Cast In | ZW193: Cast In | ZX193: Cast In | ZY193: Cast In | ZZ193: Cast In | AAA193: Cast In | AAB193: Cast In | AAC193: Cast In | AAD193: Cast In | AAE193: Cast In | AAF193: Cast In | AAG193: Cast In | AAH193: Cast In | AAI193: Cast In | AAJ193: Cast In | AAK193: Cast In | AAL193: Cast In | AAM193: Cast In | AAN193: Cast In | AAO193: Cast In | AAP193: Cast In | AAQ193: Cast In | AAR193: Cast In | AAS193: Cast In | AAT193: Cast In | AAU193: Cast In | AAV193: Cast In | AAW193: Cast In | AAX193: Cast In | AAY193: Cast In | AAZ193: Cast In | ABA193: Cast In | ABB193: Cast In | ABC193: Cast In | ABD193: Cast In | ABE193: Cast In | ABF193: Cast In | ABG193: Cast In | ABH193: Cast In | ABI193: Cast In | ABJ193: Cast In | ABK193: Cast In | ABL193: Cast In | ABM193: Cast In | ABN193: Cast In | ABO193: Cast In | ABP193: Cast In | ABQ193: Cast In | ABR193: Cast In | ABS193: Cast In | ABT193: Cast In | ABU193: Cast In | ABV193: Cast In | ABW193: Cast In | ABX193: Cast In | ABY193: Cast In | ABZ193: Cast In | ACA193: Cast In | ACB193: Cast In | ACC193: Cast In | ACD193: Cast In | ACE193: Cast In | ACF193: Cast In | ACG193: Cast In | ACH193: Cast In | ACI193: Cast In | ACJ193: Cast In | ACK193: Cast In | ACL193: Cast In | ACM193: Cast In | ACN193: Cast In | ACO193: Cast In | ACP193: Cast In | ACQ193: Cast In | ACR193: Cast In | ACS193: Cast In | ACT193: Cast In | ACU193: Cast In | ACV193: Cast In | ACW193: Cast In | ACX193: Cast In | ACY193: Cast In | ACZ193: Cast In | ADA193: Cast In | ADB193: Cast In | ADC193: Cast In | ADD193: Cast In | ADE193: Cast In | ADF193: Cast In | ADG193: Cast In | ADH193: Cast In | ADI193: Cast In | ADJ193: Cast In | ADK193: Cast In | ADL193: Cast In | ADM193: Cast In | ADN193: Cast In | ADO193: Cast In | ADP193: Cast In | ADQ193: Cast In | ADR193: Cast In | ADS193: Cast In | ADT193: Cast In | ADU193: Cast In | ADV193: Cast In | ADW193: Cast In | ADX193: Cast In | ADY193: Cast In | ADZ193: Cast In | AEA193: Cast In | AEB193: Cast In | AEC193: Cast In | AED193: Cast In | AEE193: Cast In | AEF193: Cast In | AEG193: Cast In | AEH193: Cast In | AEI193: Cast In | AEJ193: Cast In | AEK193: Cast In | AEL193: Cast In | AEM193: Cast In | AEN193: Cast In | AEO193: Cast In | AEP193: Cast In | AEQ193: Cast In | AER193: Cast In | AES193: Cast In | AET193: Cast In | AEU193: Cast In | AEV193: Cast In | AEW193: Cast In | AEX193: Cast In | AEY193: Cast In | AEZ193: Cast In | AFA193: Cast In | AFB193: Cast In | AFC193: Cast In | AFD193: Cast In | AFE193: Cast In | AFF193: Cast In | AFG193: Cast In | AFH193: Cast In | AFI193: Cast In | AFJ193: Cast In | AFK193: Cast In
B194: General Description for Quote | C194: Casting or Hatch Description for Quote | D194: Description | E194: No Casting | F194: Hatch | G194: Hatch | H194: TD Frame & Grate Casting (Per LF) | I194: Frame & Cover Casting | J194: Frame & Cover Casting | K194: Frame & Cover Casting | L194: Frame & Cover Casting | M194: Frame & Cover Casting | N194: Frame & Cover Casting | O194: Frame & Cover Casting | P194: Frame & Cover Casting | Q194: Frame & Cover Casting | R194: Frame & Cover Casting | S194: Frame & Cover Casting | T194: Frame & Cover Casting | U194: Frame & Cover Casting | V194: Frame & Cover Casting | W194: Frame & Cover Casting | X194: Frame & Cover Casting | Y194: Frame & Cover Casting | Z194: Frame & Cover Casting | AA194: Frame & Cover Casting | AB194: Frame & Cover Casting | AC194: Frame & Cover Casting | AD194: Frame & Cover Casting | AE194: Frame & Cover Casting | AF194: Frame & Cover Casting | AG194: Frame & Cover Casting | AH194: Frame & Cover Casting | AI194: Frame & Cover Casting | AJ194: Frame & Cover Casting | AK194: Frame & Cover Casting | AL194: Frame & Cover Casting | AM194: Frame & Cover Casting | AN194: Frame & Cover Casting | AO194: Frame & Cover Casting | AP194: Frame & Cover Casting | AQ194: Frame & Cover Casting | AR194: Frame & Cover Casting | AS194: Frame & Cover Casting | AT194: Frame & Cover Casting | AU194: Frame & Cover Casting | AV194: Frame & Cover Casting | AW194: Frame & Cover Casting | AX194: Frame & Cover Casting | AY194: Frame & Cover Casting | AZ194: Frame & Cover Casting | BA194: Frame & Cover Casting | BB194: Frame & Cover Casting | BC194: Frame & Cover Casting | BD194: Frame & Cover Casting | BE194: Frame & Cover Casting | BF194: Frame & Cover Casting | BG194: Frame & Cover Casting | BH194: Frame & Cover Casting | BI194: Frame & Cover Casting | BJ194: Frame & Cover Casting | BK194: Frame & Cover Casting | BL194: Frame & Cover Casting | BM194: Frame & Cover Casting | BN194: Frame & Cover Casting | BO194: Frame & Cover Casting | BP194: Frame & Cover Casting | BQ194: Frame & Cover Casting | BR194: Frame & Cover Casting | BS194: Frame & Cover Casting | BT194: Frame & Cover Casting | BU194: Frame & Cover Casting | BV194: Frame & Cover Casting | BW194: Frame & Cover Casting | BX194: Frame & Cover Casting | BY194: Frame & Cover Casting | BZ194: Frame & Cover Casting | CA194: Frame & Cover Casting | CB194: Frame & Cover Casting | CC194: Frame & Cover Casting | CD194: Frame & Cover Casting | CE194: Frame & Cover Casting | CF194: Frame & Cover Casting | CG194: Frame & Cover Casting | CH194: Frame & Cover Casting | CI194: Frame & Cover Casting | CJ194: Frame & Grate Casting | CK194: Frame & Cover Casting | CL194: Frame & Cover Casting | CM194: Frame & Cover Casting | CN194: Frame & Cover Casting | CO194: Frame & Cover Casting | CP194: Frame & Grate Casting | CQ194: Frame & Grate Casting | CR194: Frame & Cover Casting | CS194: Frame & Cover Casting | CT194: Frame & Cover Casting | CU194: Frame & Cover Casting | CV194: Frame & Cover Casting | CW194: Frame & Grate Casting | CX194: Frame & Grate Casting | CY194: Frame & Grate Casting | CZ194: Frame & Cover Casting | DA194: Frame & Cover Casting | DB194: Frame & Cover Casting | DC194: Frame & Cover Casting | DD194: Frame & Cover Casting | DE194: Frame & Grate Casting | DF194: Frame & Cover Casting | DG194: Frame & Cover Casting | DH194: Frame & Cover Casting | DI194: Frame & Grate Casting | DJ194: Frame & Cover Casting | DK194: Frame & Grate Casting | DL194: Frame & Cover Casting | DM194: Frame & Grate Casting | DN194: Frame & Cover Casting | DO194: Frame & Grate Casting | DP194: Frame & Grate Casting | DQ194: Frame & Grate Casting | DR194: Frame & Grate Casting | DS194: Frame & Grate Casting | DT194: Frame & Grate Casting | DU194: Frame & Grate Casting | DV194: Frame & Grate Casting | DW194: Frame & Grate Casting | DX194: Frame & Grate Casting | DY194: Frame & Grate Casting | DZ194: Frame & Grate Casting | EA194: Frame & Grate Casting | EB194: Frame & Grate Casting | EC194: Frame & Grate Casting | ED194: Frame & Grate Casting | EE194: Frame & Grate Casting | EF194: Frame & Grate Casting | EG194: Frame & Grate Casting | EH194: Frame & Grate Casting | EI194: Frame & Grate Casting | EJ194: Frame & Grate Casting | EK194: Frame & Grate Casting | EL194: Frame & Grate Casting | EM194: Frame & Grate Casting | EN194: Frame & Grate Casting | EO194: Frame & Grate Casting | EP194: Frame & Grate Casting | EQ194: Frame & Grate Casting | ER194: Frame & Cover Casting | ES194: Frame & Cover Casting | ET194: Frame & ADA Grate Casting | EU194: Frame & ADA Grate Casting | EV194: Frame & Grate Casting | EW194: Frame & Grate Casting | EX194: Frame & Grate Casting | EY194: Frame & ADA Grate Casting | EZ194: Frame & Grate Casting | FA194: Frame & Grate Casting | FB194: Frame & Grate Casting | FC194: Frame & Grate Casting | FD194: Frame & Grate Casting | FE194: Frame & Grate Casting | FF194: Frame & Grate Casting | FG194: Frame & Grate Casting | FH194: Frame & Grate Casting | FI194: Frame & Grate Casting | FJ194: Frame & Grate Casting | FK194: Frame & Grate Casting | FL194: Frame & Grate Casting | FM194: Frame & Grate Casting | FN194: Frame & Grate Casting | FO194: Frame & Grate Casting | FP194: Frame & Grate Casting | FQ194: Frame & Grate Casting | FR194: Frame & Grate Casting | FS194: Frame & Grate Casting | FT194: Frame & Grate Casting | FU194: Frame & Grate Casting | FV194: Frame & Grate Casting | FW194: Frame & Grate Casting | FX194: Curb Casting | FY194: Curb Casting | FZ194: Curb Casting | GA194: Curb Casting | GB194: Curb Casting | GC194: Curb Casting | GD194: Curb Casting | GE194: Curb Casting | GF194: Curb Casting | GG194: Curb Casting | GH194: Curb Casting | GI194: Curb Casting | GJ194: Curb Casting | GK194: Frame & Concave Grate Casting | GL194: Frame & Concave Grate Casting | GM194: Curb Casting | GN194: Curb Casting | GO194: Curb Casting | GP194: KYTC Type 1 F/C Casting | GQ194: KYTC Type 1 F/C Casting | GR194: KYTC Type 2 F/C Casting | GS194: KYTC DBI 1 F/G Casting | GT194: KYTC DBI 2 F/G Casting | GU194: KYTC DBI 3 F/G Casting | GV194: KYTC DBI 4 F/G Casting | GW194: KYTC DBI 5 F/G Casting | GX194: KYTC DBI 5 F/G Casting | GY194: KYTC DBI 5 F/G Casting | GZ194: KYTC DBI 5 F/G Casting | HA194: KYTC DBI 5 F/G Casting | HB194: KYTC DBI 5 F/G Casting | HC194: KYTC DBI 6 F/G Casting | HD194: KYTC DBI 6 F/G Casting | HE194: KYTC DBI 6 F/G Casting | HF194: KYTC DBI 6 F/G Casting | HG194: KYTC DBI 6 F/G Casting | HH194: KYTC DBI 6 F/G Casting | HI194: KYTC DBI 7 F/G Casting | HJ194: KYTC DBI 10 F/G Casting | HK194: KYTC DBI 11 F/G Casting | HL194: KYTC DBI 12 F/G (Per LF) Casting | HM194: KYTC DBI 12A F/G (Per LF) Casting | HN194: KYTC DBI 13/16G F/G Casting | HO194: KYTC DBI 13/16S F/G Casting | HP194: KYTC DBI 14 F/G Casting | HQ194: KYTC DBI 15 F/G Casting | HR194: KY Single Safety Inlet Grates | HS194: KY Double Safety Inlet Grates | HT194: Bolt-On Plain Grate | HU194: Bolt-On Galvanized Grate | HV194: Bolt-On Plain Grate | HW194: Bolt-On Galvanized Grate | HX194: Bolt-On Plain Grate | HY194: Bolt-On Galvanized Grate | HZ194: Bolt-On Plain Grate | IA194: Bolt-On Galvanized Grate | IB194: Bolt-On Plain Grate | IC194: Bolt-On Galvanized Grate | ID194: KYTC SBO1 Grates | IE194: KYTC SBO1 Grates | IF194: KYTC SFBIO Grates | IG194: KYTC SFBIO Grates | IH194: KYTC SFBIO Grates | II194: KYTC SFBIO Grates | IJ194: KYTC SBIO Grates | IK194: KYTC SBIO Grates | IL194: KYTC MBBI F/G Casting | IM194: KYTC CBI TY A F/C Casting | IN194: KYTC CBI TY B F/G Casting | IO194: KYTC CBI TY F Curb Casting | IP194: 1-1/2" X 8" TD Angle F/G (Per LF) | IQ194: 1-1/2" X 10" TD Angle F/G (Per LF) | IR194: 1-1/2" X 12" TD Angle F/G (Per LF) | IS194: 1-1/2" X 14" TD Angle F/G (Per LF) | IT194: 1-1/2" X 17" TD Angle F/G (Per LF) | IU194: 1-1/2" X 20" TD Angle F/G | IV194: 1-1/2" X 26" TD Angle F/G (Per LF) | IW194: 1-1/2" X 8" TD Iron F/G (Per LF) | IX194: 1-1/2" X 10" TD Iron F/G (Per LF) | IY194: 1-1/2" X 12" TD Iron F/G (Per LF) | IZ194: 1-1/2" X 14" TD Iron F/G (Per LF) | JA194: 1-1/2" X 17" TD Iron F/G (Per LF) | JB194: 1-1/2" X 20" TD Iron F/G (Per LF) | JC194: 1-1/2" X 26" TD Iron F/G (Per LF) | JD194: INDOT Type 2 F/G Casting | JE194: INDOT Type 3 F/G Casting | JF194: INDOT Type 4 F/G Casting | JG194: INDOT Type 5 F/G Casting | JH194: INDOT Type 5 F/G Dbl Casting | JI194: INDOT Type 7 BH Grate | JJ194: INDOT Type 8 Curb Casting | JK194: INDOT Type 10 Curb Casting | JL194: INDOT Type 12A (Single) Casting | JM194: INDOT Type 12 (Double) Casting | JN194: INDOT Type 13 F/G Casting | JO194: INDOT Type 14 F/G Casting | JP194: INDOT Type 15 Curb Casting | JQ194: Grate Casting | JR194: Frame & Cover Casting | JS194: Frame & Cover Casting | JT194: Frame & Cover Casting | JU194: Frame & Cover Casting | JV194: Frame & Cover Casting | JW194: Frame & Cover Casting | JX194: Frame & Cover Casting | JY194: Frame & Cover Casting | JZ194: Frame & Cover Casting | KA194: Frame & Cover Casting | KB194: Frame & Cover Casting | KC194: Frame & Cover Casting | KD194: Frame & Cover Casting | KE194: Frame & Cover Casting | KF194: Frame & Cover Casting | KG194: Frame & Cover Casting | KH194: Frame & Cover Casting | KI194: Frame & Cover Casting | KJ194: Frame & Cover Casting | KK194: Frame & Cover Casting | KL194: Frame & Cover Casting | KM194: Frame & Cover Casting | KN194: Frame & Cover Casting | KO194: Frame & Cover Casting | KP194: Frame & Cover Casting | KQ194: Frame & Cover Casting | KR194: Frame & Cover Casting | KS194: Frame & Cover Casting | KT194: Frame & Cover Casting | KU194: Frame & Cover Casting | KV194: Frame & Cover Casting | KW194: Frame & Cover Casting | KX194: Frame & Cover Casting | KY194: Frame & Cover Casting | KZ194: Frame & Cover Casting | LA194: Frame & Cover Casting | LB194: Frame & Cover Casting | LC194: Frame & Cover Casting | LD194: Frame & Cover Casting | LE194: Frame & Cover Casting | LF194: Frame & Cover Casting | LG194: Frame & Cover Casting | LH194: Frame & Cover Casting | LI194: Frame & Cover Casting | LJ194: Frame & Cover Casting | LK194: Frame & Cover Casting | LL194: Frame & Cover Casting | LM194: Frame & Cover Casting | LN194: Frame & Cover Casting | LO194: Frame & Cover Casting | LP194: Frame & Cover Casting | LQ194: Frame & Cover Casting | LR194: Frame & Cover Casting | LS194: Frame & Cover Casting | LT194: Frame & Cover Casting | LU194: Frame & Cover Casting | LV194: Frame & Cover Casting | LW194: Frame & Cover Casting | LX194: Frame & Cover Casting | LY194: Frame & Cover Casting | LZ194: Frame & Cover Casting | MA194: Frame & Cover Casting | MB194: Frame & Cover Casting | MC194: Frame & Cover Casting | MD194: Frame & Cover Casting | ME194: Frame & Grate Casting | MF194: Frame & Grate Casting | MG194: Frame & Grate Casting | MH194: Frame & Grate Casting | MI194: Frame & Grate Casting | MJ194: Frame & Grate Casting | MK194: Frame & Grate Casting | ML194: Frame & Grate Casting | MM194: Frame & Grate Casting | MN194: Frame & Grate Casting | MO194: Frame & Grate Casting | MP194: Frame & Grate Casting | MQ194: Frame & Grate Casting | MR194: Frame & Grate Casting | MS194: Frame & Grate Casting | MT194: Frame & Grate Casting | MU194: Frame & Grate Casting | MV194: Frame & Grate Casting | MW194: Frame & Grate Casting | MX194: Frame & Grate Casting | MY194: Curb Casting | MZ194: Curb Casting | NA194: Curb Casting | NB194: Curb Casting | NC194: Curb Casting | ND194: Curb Casting | NE194: Curb Casting | NF194: Curb Casting | NG194: Curb Casting | NH194: Curb Casting | NI194: Curb Casting | NJ194: Curb Casting | NK194: Curb Casting | NL194: Curb Casting | NM194: Curb Casting | NN194: Curb Casting | NO194: Curb Casting | NP194: Curb Casting | NQ194: Curb Casting | NR194: Curb Casting | NS194: Curb Casting | NT194: Curb Casting | NU194: Curb Casting | NV194: Curb Casting | NW194: Curb Casting | NX194: Curb Casting | NY194: Curb Casting | NZ194: Curb Casting | OA194: Curb Casting | OB194: Curb Casting | OC194: Curb Casting | OD194: Curb Casting | OE194: Curb Casting | OF194: Curb Casting | OG194: Curb Casting | OH194: Curb Casting | OI194: Curb Casting | OJ194: Curb Casting | OK194: Roll Curb Casting | OL194: Curb Casting | OM194: Curb Casting | ON194: Curb Casting | OO194: Curb Casting | OP194: Frame & Grate Casting | OQ194: Curb Casting | OR194: Curb Casting | OS194: Curb Casting | OT194: Curb Casting | OU194: Curb Casting | OV194: Curb Casting | OW194: Roll Curb Casting | OX194: Roll Curb Casting | OY194: Frame & Grate Casting | OZ194: Frame & Grate Casting | PA194: Frame & Grate Casting | PB194: Frame & Grate Casting | PC194: Frame & Grate Casting | PD194: Frame & Grate Casting | PE194: Frame & Grate Casting | PF194: Frame & Grate Casting | PG194: Frame & Grate Casting | PH194: Frame & Grate Casting | PI194: Frame & Grate Casting | PJ194: Frame & Grate Casting | PK194: Frame & Grate Casting | PL194: Frame & Grate Casting | PM194: Frame & Grate Casting | PN194: Frame & Grate Casting | PO194: Grate Casting | PP194: Grate Casting | PQ194: Grate Casting | PR194: Frame & Grate Casting | PS194: Frame & Grate Casting | PT194: Frame & Grate Casting | PU194: Frame & Grate Casting | PV194: Frame & Grate Casting | PW194: Frame & Grate Casting | PX194: Frame & Grate Casting | PY194: Frame & Grate Casting | PZ194: Frame & Grate Casting | QA194: Frame & Grate Casting | QB194: Frame & Grate Casting | QC194: Frame & Grate Casting | QD194: Frame & ADA Grate Casting | QE194: Frame & ADA Grate Casting | QF194: Frame & Grate Casting | QG194: Frame & Grate Casting | QH194: Frame & Grate Casting | QI194: Frame & Grate (Per LF) Casting | QJ194: Frame & Grate (Per LF) Casting | QK194: Frame & Cover Casting | QL194: Frame & Cover Casting | QM194: Frame & Cover Casting | QN194: Frame & Cover Casting | QO194: Frame & Cover Casting | QP194: Grate Casting | QQ194: Grate Casting | QR194: Grate Casting | QS194: Grate Casting | QT194: Grate Casting | QU194: Grate Casting | QV194: Grate Casting | QW194: Grate Casting | QX194: Grate Casting | QY194: Grate Casting | QZ194: Grate Casting | RA194: Grate Casting | RB194: Grate Casting | RC194: Grate Casting | RD194: Grate Casting | RE194: Grate Set Casting | RF194: Grate Set Casting | RG194: Grate Set Casting | RH194: Grate Set Casting | RI194: Grate Set Casting | RJ194: Grate Set Casting | RK194: Grate Set Casting | RL194: Grate Set Casting | RM194: Trash Rack | RN194: Trash Rack | RO194: Trash Rack | RP194: Trash Rack | RQ194: Trash Rack | RR194: Trash Rack | RS194: Trash Rack | RT194: Trash Rack | RU194: Trash Rack | RV194: Trash Rack | RW194: Trash Rack | RX194: Trash Rack | RY194: Trash Rack | RZ194: Trash Rack | SA194: Trash Rack | SB194: Trash Rack | SC194: Trash Rack | SD194: Trash Rack | SE194: Trash Rack | SF194: Trash Rack | SG194: Trash Rack | SH194: Trash Rack | SI194: Trash Rack | SJ194: Trash Rack | SK194: Trash Rack | SL194: Trash Rack | SM194: Trash Rack | SN194: Trash Rack | SO194: Trash Rack | SP194: Trash Rack | SQ194: Grate | SR194: Grate | SS194: Grate | ST194: Grate | SU194: Grate | SV194: Grate | SW194: Grate | SX194: Grate | SY194: Grate | SZ194: Grate | TA194: Grate | TB194: Grate | TC194: Grate | TD194: Grate | TE194: Grate | TF194: Grate | TG194: Grate | TH194: Grate | TI194: Grate | TJ194: Grate | TK194: Grate | TL194: Grate | TM194: Grate | TN194: Grate | TO194: Grate | TP194: Grate | TQ194: Grate | TR194: Grate | TS194: Grate | TT194: Grate | TU194: Grate | TV194: Grate | TW194: Grate | TX194: Grate | TY194: Grate | TZ194: Grate | UA194: Grate | UB194: Grate | UC194: Grate | UD194: 12" FES Trash Guard | UE194: 15" FES Trash Guard | UF194: 18" FES Trash Guard | UG194: 24" FES Trash Guard | UH194: 30" FES Trash Guard | UI194: 36" FES Trash Guard | UJ194: Hatch | UK194: Hatch | UL194: Hatch | UM194: Hatch | UN194: Hatch | UO194: Hatch | UP194: Hatch | UQ194: Hatch | UR194: Hatch | US194: Hatch | UT194: Hatch | UU194: Hatch | UV194: Hatch | UW194: Hatch | UX194: Hatch | UY194: Hatch | UZ194: Hatch | VA194: Hatch | VB194: Hatch | VC194: Hatch | VD194: Hatch | VE194: Hatch | VF194: Hatch | VG194: Hatch | VH194: Hatch | VI194: Hatch | VJ194: Hatch | VK194: Hatch | VL194: Hatch | VM194: Hatch | VN194: Hatch | VO194: Hatch | VP194: Hatch | VQ194: Hatch | VR194: Hatch | VS194: Hatch | VT194: Hatch | VU194: Hatch | VV194: Hatch | VW194: Hatch | VX194: Hatch | VY194: Hatch | VZ194: Hatch | WA194: Hatch | WB194: Hatch | WC194: Hatch | WD194: Hatch | WE194: Hatch | WF194: Hatch | WG194: Hatch | WH194: Hatch | WI194: Hatch | WJ194: Hatch | WK194: Hatch | WL194: Hatch | WM194: Hatch | WN194: Hatch | WO194: Hatch | WP194: Hatch | WQ194: Hatch | WR194: Hatch | WS194: Hatch | WT194: Hatch | WU194: Hatch | WV194: Hatch | WW194: Hatch | WX194: Hatch | WY194: Hatch | WZ194: Hatch | XA194: Hatch | XB194: Hatch | XC194: Hatch | XD194: Hatch | XE194: Hatch | XF194: Hatch | XG194: Hatch | XH194: Hatch | XI194: Hatch | XJ194: Hatch | XK194: Hatch | XL194: Hatch | XM194: Hatch | XN194: Hatch | XO194: Hatch | XP194: Hatch | XQ194: Hatch | XR194: Hatch | XS194: Hatch | XT194: Hatch | XU194: Hatch | XV194: Hatch | XW194: Hatch | XX194: Hatch | XY194: Hatch | XZ194: Hatch | YA194: Hatch | YB194: Hatch | YC194: Hatch | YD194: Hatch | YE194: Hatch | YF194: Hatch | YG194: Hatch | YH194: Hatch | YI194: Hatch | YJ194: Hatch | YK194: Hatch | YL194: Hatch | YM194: Hatch | YN194: Hatch | YO194: Hatch | YP194: Hatch | YQ194: Hatch | YR194: Hatch | YS194: Hatch | YT194: Hatch | YU194: Hatch | YV194: Hatch | YW194: Hatch | YX194: Hatch | YY194: Hatch | YZ194: Hatch | ZA194: Hatch | ZB194: Hatch | ZC194: Hatch | ZD194: Hatch | ZE194: Hatch | ZF194: Hatch | ZG194: Hatch | ZH194: Hatch | ZI194: Hatch | ZJ194: Hatch | ZK194: Hatch | ZL194: Hatch | ZM194: Hatch | ZN194: Hatch | ZO194: Hatch | ZP194: Hatch | ZQ194: Hatch | ZR194: Hatch | ZS194: Hatch | ZT194: Hatch | ZU194: Hatch | ZV194: Hatch | ZW194: Hatch | ZX194: Hatch | ZY194: Hatch | ZZ194: Hatch | AAA194: Hatch | AAB194: Hatch | AAC194: Hatch | AAD194: Hatch | AAE194: Hatch | AAF194: Hatch | AAG194: Hatch | AAH194: Hatch | AAI194: Hatch | AAJ194: Hatch | AAK194: Hatch | AAL194: Hatch | AAM194: Hatch | AAN194: Hatch | AAO194: Hatch | AAP194: Hatch | AAQ194: Hatch | AAR194: Hatch | AAS194: Hatch | AAT194: Hatch | AAU194: Hatch | AAV194: Hatch | AAW194: Hatch | AAX194: Hatch | AAY194: Hatch | AAZ194: Hatch | ABA194: Hatch | ABB194: Hatch | ABC194: Hatch | ABD194: Hatch | ABE194: Hatch | ABF194: Hatch | ABG194: Hatch | ABH194: Hatch | ABI194: Hatch | ABJ194: Hatch | ABK194: Hatch | ABL194: Hatch | ABM194: Hatch | ABN194: Hatch | ABO194: Hatch | ABP194: Hatch | ABQ194: Hatch | ABR194: Hatch | ABS194: Hatch | ABT194: Hatch | ABU194: Hatch | ABV194: Hatch | ABW194: Hatch | ABX194: Hatch | ABY194: Hatch | ABZ194: Hatch | ACA194: Hatch | ACB194: Hatch | ACC194: Hatch | ACD194: Hatch | ACE194: Hatch | ACF194: Hatch | ACG194: Hatch | ACH194: Hatch | ACI194: Hatch | ACJ194: Hatch | ACK194: Hatch | ACL194: Hatch | ACM194: Hatch | ACN194: Hatch | ACO194: Hatch | ACP194: Hatch | ACQ194: Hatch | ACR194: Hatch | ACS194: Hatch | ACT194: Hatch | ACU194: Hatch | ACV194: Hatch | ACW194: Hatch | ACX194: Hatch | ACY194: Hatch | ACZ194: Hatch | ADA194: Hatch | ADB194: Hatch | ADC194: Hatch | ADD194: Hatch | ADE194: Hatch | ADF194: Hatch | ADG194: Hatch | ADH194: Hatch | ADI194: Hatch | ADJ194: Hatch | ADK194: Hatch | ADL194: Hatch | ADM194: Hatch | ADN194: Hatch | ADO194: Hatch | ADP194: Hatch | ADQ194: Hatch | ADR194: Hatch | ADS194: Hatch | ADT194: Hatch | ADU194: Hatch | ADV194: Hatch | ADW194: Hatch | ADX194: Hatch | ADY194: Hatch | ADZ194: Hatch | AEA194: Hatch | AEB194: Hatch | AEC194: Hatch | AED194: Hatch | AEE194: Hatch | AEF194: Hatch | AEG194: Hatch | AEH194: Hatch | AEI194: Hatch | AEJ194: Hatch | AEK194: Hatch | AEL194: Hatch | AEM194: Hatch | AEN194: Hatch | AEO194: Hatch | AEP194: Hatch | AEQ194: Hatch | AER194: Hatch | AES194: Hatch | AET194: Hatch | AEU194: Hatch | AEV194: Hatch | AEW194: Hatch | AEX194: Hatch | AEY194: Hatch | AEZ194: Hatch | AFA194: Hatch | AFB194: Hatch | AFC194: Hatch | AFD194: Hatch | AFE194: Hatch | AFF194: Hatch | AFG194: Hatch | AFH194: Hatch | AFI194: Hatch | AFJ194: Hatch | AFK194: Hatch | AFL194: Casting | AFM194: Casting | AFN194: Casting | AFO194: Casting | AFP194: Casting | AFQ194: Casting | AFR194: Casting | AFS194: Casting | AFT194: Casting | AFU194: Casting
B195: NetSuite Product ID | C195: Product ID | D195: ID | F195: MTO | G195: MTO | I195: CSTEJ1578FCP | J195: CSTEJ1578FCCO | K195: CSTJRHMC82FCP | L195: CSTJRHMC162FCP | M195: CSTJRHMC260FCP | N195: CSTJRHMC260FCST | O195: CSTJRHMC260FCSAN | P195: CSTJRHMC260FCG | Q195: CSTJRHMC260FCW | R195: CSTJRHMC260FCV | S195: CSTJRHMC350FCP | T195: CSTJRHMC350FCST | U195: CSTJRHMC350FCSAN | V195: CSTJRHMC350FCG | W195: CSTJRHMC350FCW | X195: CSTJRHMC350FCV | Y195: CSTJRHMC350FCLFUCGS | Z195: CSTJRHMC350FCFSD | AA195: CSTJRHMC350FCSSS | AB195: CSTJRHMC350FCBDWTS | AC195: CSTJRHMC350WTL | AD195: CSTJRHMC295FCP | AE195: CSTJRHMC295FCST | AF195: CSTJRHMC295FCSAN | AG195: CSTJRHMC295FCG | AH195: CSTJRHMC295FCW | AI195: CSTJRHMC295FCV | AJ195: CSTJRHMC315FCP | AK195: CSTJRHMC315FCST | AL195: CSTJRHMC315FCSAN | AM195: CSTJRHMC315G | AN195: CSTJRHMC315FCW | AO195: CSTJRHMC315FCOW | AP195: CSTJRHMC315FCV | AQ195: CSTJRHMC315FCSTICAST | AR195: CSTJRHMC315FCSANICAST | AS195: CSTJRHMC315GICAST | AT195: CSTJRHMC315FCOWICAST | AU195: CSTJRHMC315FCSTH | AV195: CSTJRHMC315FCSANH | AW195: CSTJRHMC315RWRA | AX195: CSTJRHMC315SSC | AY195: CSTJRHMC315FCBDWTS | AZ195: CSTJRHMC420FCP | BA195: CSTJRHMC420FC | BB195: CSTJRHMC420FC-STM-LOUMSD | BC195: CSTJRHMC420FCSAN | BD195: CSTJRHMC420FC-SWR-LOUMSD | BE195: CSTJRHMC420FCLG | BF195: CSTJRHMC420FCBDWTS | BG195: CSTJRHMC285FCP | BH195: CSTJRHMC285FCST | BI195: CSTJRHMC285FCSAN | BJ195: CSTJRHMC285FCW | BK195: CSTJRHMC285FCV | BL195: CSTJRHMC375FCP | BM195: CSTJRHMC375FCST | BN195: CSTJRHMC375S | BO195: CSTJRHMC375FCW | BP195: CSTJRHMC375FCV | BQ195: CSTJRHMC375FCS-BGMU | BR195: CSTJRHMC375FCG | BS195: CSTJRHMC375FCOW | BT195: CSTJRHMC375FCBIO | BU195: CSTJRHMC375FCSTICAST | BV195: CSTJRHMC375FCSANICAST | BW195: CSTJRHMC375FCGTICAST | BX195: CSTJRHMC375FCOWICAST | BY195: CSTJRHMC375FCSSS | BZ195: CSTJRHMC375FCBDWTS | CA195: CSTJRHMC680FCP | CB195: CSTJRHMC680FCELE | CC195: CSTJRHMC680FCCOM | CD195: CSTJRHMC780FCP | CE195: CSTJRHMC780FCELE | CF195: CSTJRHMC780FCCOM | CG195: CSTJRHMC455FCP | CH195: CSTJRHMC747FCP | CI195: CSTJRHMC900FCP | CJ195: CSTJRHMCS295FGB | CK195: CSTJRHMCS295FC | CL195: CSTJRHMCS295FCST | CM195: CSTJRHMCS295FCSAN | CN195: CSTJRHMCS295FCW | CO195: CSTJRHMCS295FCV | CP195: CSTJRHMCS206FGB | CQ195: CSTJRHMCS288FGB | CR195: CSTJRHMCS288FC | CS195: CSTJRHMCS288FCST | CT195: CSTJRHMCS288FCSAN | CU195: CSTJRHMCS288FCW | CV195: CSTJRHMCS288FCV | CW195: CSTJRHMCS288BHFG6 | CX195: CSTJRHMCS288BHFG9 | CY195: CSTJRHMCS290FGB | CZ195: CSTJRHMCS290FC | DA195: CSTJRHMCS290FCST | DB195: CSTJRHMCS290FCSAN | DC195: CSTJRHMCS290FCW | DD195: CSTJRHMCS290FCV | DE195: CSTJRHMCS455FGB | DF195: CSTJRHMCS455FCP | DG195: CSTJRHMCS455FCP | DH195: CSTJRHMCS455FCW | DI195: CSTJRHMCS520FGB | DJ195: CSTJRHMCS520FCP | DK195: CSTJRHMCS747FGB | DL195: CSTJRHMCS747FCP | DM195: CSTJRHMCS900FGB | DN195: CSTJRHMCS900FCP | DO195: CSTJRHMCB82FG | DP195: CSTJRHMCB162FG | DQ195: CSTJRHMCB260FBG | DR195: CSTJRHMCB260FRG | DS195: CSTJRHMCB260FBHG | DT195: CSTJRHMCB315BFG | DU195: CSTJRHMCB315FRG | DV195: CSTJRHMCB315FBHG | DW195: CSTJRHMCB350FBG | DX195: CSTJRHMCB350FRG | DY195: CSTJRHMCB350FBHG | DZ195: CSTJRHMCB295FBG | EA195: CSTJRHMCB295FRG | EB195: CSTJRHMCB295FBHG | EC195: CSTJRHMCB420FBG | ED195: CSTJRHMCB285FBG | EE195: CSTJRHMCB285FBHG | EF195: CSTJRHMCB375FBG | EG195: CSTJRHMCB375FBHG | EH195: CSTJRHMCB375FBHG9 | EI195: CSTJRHMCB520FBG | EJ195: CSTJRHMCB455FBG | EK195: CSTJRHMCB747FG | EL195: CSTJRHMCB900FG | EM195: CSTJRHHOE165AFG | EN195: CSTJRHHOE280TFG | EO195: CSTJRHHOE280TFGCastIn | EP195: CSTJRHHOE280BH | EQ195: CSTJRHHOE280BHCastIn | ER195: CSTJRHHOE280SOLIDFC | ES195: CSTJRHHOE280SOLIDFCCastIn | ET195: CSTJRHHOE280TFGADA | EU195: CSTJRHHOE280TFGADACastIn | EV195: CSTJRHHOE320 | EW195: CSTJRHMCS320FG | EX195: CSTJRHHOE342FG | EY195: CSTJRHHOE342FGADA | EZ195: CSTJRHHOE275AFG | FA195: CSTJRHHOE275DBLFG | FB195: CSTJRHHOE460FG | FC195: CSTJRHHOE326FBHG | FD195: CSTJRHHOE326FBHGCastIn | FE195: CSTJRHHOE580FGA | FF195: CSTJRHHOE580FGLV | FG195: CSTJRHHOE518FG | FH195: CSTJRHHOE518DBLFG | FI195: CSTJRHHOE468FG | FJ195: CSTJRHHOE468RFG | FK195: CSTJRHHOE468RFC | FL195: CSTJRHHOE918FG | FM195: CSTJRHHOE595 | FN195: CSTJRHHOE595FG | FO195: CSTJRHHOE718FG | FP195: CSTJRHHOE165FG | FQ195: CSTJRHHOE165FGCastIn | FR195: CSTJRHHOE315FG | FS195: CSTJRHHOE315FGCastIn | FT195: CSTJRHHOE555FG | FU195: CSTJRHHOE555FGCastIn | FV195: CSTJRHHOE700FG | FW195: CSTJRHHOE700FGCastIn | FX195: CSTJRHHOE465SET | FY195: CSTJRHHOE360SETF | FZ195: CSTJRHHOE360SETLV | GA195: CSTJRHHOE399SET | GB195: CSTJRHHOE470SETF | GC195: CSTJRHHOE470SETLV | GD195: CSTJRHHOE525SETF | GE195: CSTJRHHOE525LV | GF195: CSTJRHHOE525SETV | GG195: CSTJRHHOE525LV | GH195: CSTJRHHOE525DBLSETLV | GI195: CSTJRHHOE525DBLSETF | GJ195: CSTJRHHOE525TPLSETLV | GK195: CSTJRHHOE405FG | GL195: CSTJRHHOE449FG | GM195: CSTJRHHOE410FG | GN195: CSTJRHHOE698FG | GO195: CSTEJ4510 | GP195: CSTJRHKY206 | GQ195: CSTJRHKY206CastIn | GR195: CSTJRHKY510FC | GS195: CSTJRHKY316FG2 | GT195: CSTJRHKY398FG2 | GU195: CSTJRHKY328FG2 | GV195: CSTJRHKY410FG2 | GW195: CSTJRHKY460-5AFG2 | GX195: CSTJRHKY460-5BFG2 | GY195: CSTJRHKY460-5CFG2 | GZ195: CSTJRHKY460-5DFG2 | HA195: CSTJRHKY460-5EFG2 | HB195: CSTJRHKY460-5FFG2 | HC195: CSTJRHKY426-6AFG2 | HD195: CSTJRHKY426-6BFG2 | HE195: CSTJRHKY426-6CFG2 | HF195: CSTJRHKY426-6DFG2 | HG195: CSTJRHKY426-6EFG2 | HH195: CSTJRHKY426-6FFG2 | HI195: CSTJRHKY328FG (cast in) | HJ195: CSTJRHKY550 | HK195: CSTJRHKY46011 | HL195: CSTJRHKY65 | HM195: CSTJRHKY65A | HN195: CSTJRHKY230GFG | HO195: CSTJRHKY230SFG | HP195: CSTJRHKY210FG | HQ195: CSTJRHKY215FG | HR195: CSTJRHKYSAFETY-SGL | HS195: CSTJRHKYSAFETY-DBL | HT195: CSTJRHHOE169PLAIN | HU195: CSTJRHHOE169GAL | HV195: CSTJRHHOE269PLAIN | HW195: CSTJRHHOE269GAL | HX195: CSTJRHHOE729PLAIN | HY195: CSTJRHHOE729GAL | HZ195: CSTJRHHOE1249PLAIN | IA195: CSTJRHHOE1249GAL | IB195: CSTJRHHOE1799PLAIN | IC195: CSTJRHHOE1799GAL | ID195: CSTJRHKY161 | IE195: CSTJRHKY300 | IF195: CSTJRHKY272 | IG195: CSTJRHKY454 | IH195: CSTJRHKY796 | II195: CSTJRHKY1218 | IJ195: CSTJRHKY298 | IK195: CSTJRHKY206-S | IL195: CSTJRHKY345SET | IM195: CSTJRHKY206CastIn | IN195: CSTJRHKY345 | IO195: CSTJRHHOE465SET | IP195: CSTJRHTFG1.5x8-PLF | IQ195: CSTJRHTFG1.5x10-PLF | IR195: CSTJRHTFG1.5x12-PLF | IS195: CSTJRHTFG1.5x14-PLF | IT195: CSTJRHTFG1.5x17-PLF | IU195: CSTJRHTFG1.5x20-PLF | IV195: CSTJRHTFG1.5x26-PLF | IW195: CSTJRHTCIFG1.5x8-PLF | IX195: CSTJRHTCIFG1.5x10-PLF | IY195: CSTJRHTCIFG1.5x12-PLF | IZ195: CSTJRHTCIFG1.5x14-PLF | JA195: CSTJRHTCIFG1.5x17-PLF | JB195: CSTJRHTCIFG1.5x20-PLF | JC195: CSTJRHTCIFG1.5x26-PLF | JD195: CSTEJ5340 | JE195: CSTEJ7500 | JF195: CSTEJ1925 | JG195: CSTEJ5425 | JH195: CSTEJ5425 | JI195: CSTEJ6610GBH | JJ195: CSTEJ7520 | JK195: CSTEJ7505 | JL195: CSTEJ5400 | JM195: CSTEJ5405 | JN195: CSTEJ5335 | JO195: CSTEJDBL5191F5190G | JP195: CSTEJ542532B01 | JQ195: CSTJRHEJ6500 | JR195: CSTJBS1020FCDR | JS195: CSTJBS1020FCSEW | JT195: CSTJBS1045FCST | JU195: CSTJBS1065FCST | JV195: CSTJBS1065FCSTCastIn | JW195: CSTJBS1072FCP | JX195: CSTJBS1072FCPCastIn | JY195: CSTJBS1072FCST | JZ195: CSTJBS1072FCSTCastIn | KA195: CSTJBS1072FCSAN | KB195: CSTJBS1072FCSANCastIn | KC195: CSTJBS1072FCG | KD195: CSTJBS1072FCGCastIn | KE195: CSTJBS1077FCST | KF195: CSTJBS1077FCSTCastIn | KG195: CSTJBS1090FCBDWTLOU | KH195: CSTJBS1090FCBDWTSAN | KI195: CSTJBS1095FCLAGST | KJ195: CSTJBS1095FCLAGSEW | KK195: CSTJBS1095FCLOUST | KL195: CSTJBS1095FCLOUSEW | KM195: CSTJBS1110FCST | KN195: CSTJBS1110FCSAN | KO195: CSTJBS1111FCPCastIn | KP195: CSTJBS1111FCSTCastIn | KQ195: CSTJBS1111FCSEWCastIn | KR195: CSTJBS1123FCBDWTSAN | KS195: CSTJBS1123FCBDWTKYST | KT195: CSTJBS1123FCKYST | KU195: CSTJBS1123FCBDWTKYSAN | KV195: CSTJBS1123FCKYSAN | KW195: CSTJBS1132FCELE | KX195: CSTJBS1132FCCOM | KY195: CSTJBS1140MFCST | KZ195: CSTJBS1140MFCSAN | LA195: CSTJBS1140MFCLEXSAN | LB195: CSTJBS1140MFCRWRASAN | LC195: CSTJBS1140MFCBDWTSAN | LD195: CSTJBS1140MFCBDWTLEXSAN | LE195: CSTJBS1144FCST | LF195: CSTJBS1144FCSAN | LG195: CSTJBS1150 | LH195: CSTJBS1150ST | LI195: CSTJBS1150FCSAN | LJ195: CSTJBS1150FCBDWTSAN | LK195: CSTJBS1152MFCBGMUSAN | LL195: CSTJBS1154FCST | LM195: CSTJBS1154FCST | LN195: CSTJBS1154FCSAN | LO195: CSTJBS1154FCSAN | LP195: CSTJBS1155FCP | LQ195: CSTJBS1155FCST | LR195: CSTJBS1155SANSEW | LS195: CSTJBS1155SANBDWT | LT195: CSTJBS1220FCP | LU195: CSTJBS1220FCPCastIn | LV195: CSTJBS1220FCE | LW195: CSTJBS1220FCECastIn | LX195: CSTJBS1225FCP | LY195: CSTJBS1225FCPCastIn | LZ195: CSTJBS1247DMFCST | MA195: CSTJBS1247DMFCSAN | MB195: CSTJBS1247DMFCSSS | MC195: CSTJBS1247DMFCGSS | MD195: CSTJBS1247DMFCBDWTSAN | ME195: CSTJBS2020FG | MF195: CSTJBS2072FG | MG195: CSTJBS2072FGCastIn | MH195: CSTJBS2110FG | MI195: CSTJBS2111FGCastIn | MJ195: CSTJBS2140FG | MK195: CSTJBS2150FG | ML195: CSTJBS2214FG | MM195: CSTJBS2215FG | MN195: CSTJBS2220FG | MO195: CSTJBS2220FGCastIn | MP195: CSTJBS2225FG | MQ195: CSTJBS2225FGCastIn | MR195: CSTJBS2230FG | MS195: CSTJBS2230FGCastIn | MT195: CSTJBS2272FBHG | MU195: CSTJBS2272FBHGCastIn | MV195: CSTJBS2280FBHG | MW195: CSTJBS3061FGCastIn | MX195: CSTJBS3062FGCastIn | MY195: CSTJBS3070FG | MZ195: CSTJBS3080 | NA195: CSTJBS3080V | NB195: CSTJBS3080DBL | NC195: CSTJBS3080VDBL | ND195: CSTJBS3080TPL | NE195: CSTJBS3080VTPL | NF195: CSTJBS3085 | NG195: CSTJBS3101 | NH195: CSTJBS3101V | NI195: CSTJBS3101D | NJ195: CSTJBS3101VD | NK195: CSTJBS3101T | NL195: CSTJBS3101VT | NM195: CSTJBS3103 | NN195: CSTJBS3103V | NO195: CSTJBS3103D | NP195: CSTJBS3103VD | NQ195: CSTJBS3103T | NR195: CSTJBS3103VT | NS195: CSTJBS3104SGL | NT195: CSTJBS3104VSGL | NU195: CSTJBS3104D | NV195: CSTJBS3104VD | NW195: CSTJBS3104T | NX195: CSTJBS3104VT | NY195: CSTJBS3105V | NZ195: CSTJBS3106 | OA195: CSTJBS3106V | OB195: CSTJBS3123 | OC195: CSTJBS3123MOD | OD195: CSTJBS3123MODDBL | OE195: CSTJBS3123-13 | OF195: CSTJBS3123-32 | OG195: CSTJBS3123-32DBL | OH195: CSTJBS3123-41 | OI195: CSTJBS3123-41DBL | OJ195: CSTJBS3123-41Q | OK195: CSTJBS3126 | OL195: CSTJBS3157 | OM195: CSTJBS3157V | ON195: CSTJBS3158 | OO195: CSTJBS3158V | OP195: CSTJBS3223V | OQ195: CSTJBS3300 | OR195: CSTJBS3300V | OS195: CSTJBS3300DBL | OT195: CSTJBS3300VDBL | OU195: CSTJBS3300TPL | OV195: CSTJBS3300VTPL | OW195: CSTJBS3305 | OX195: CSTJBS3305M | OY195: CSTJBS3411FG | OZ195: CSTJBS3413FG | PA195: CSTJBS3450FG | PB195: CSTJBS3700FG | PC195: CSTJBS4012FG | PD195: CSTJBS4073FG | PE195: CSTJBS4073FGCastIn | PF195: CSTJBS4074FG | PG195: CSTJBS4074FGCastIn | PH195: CSTJBS4075 | PI195: CSTJBS4075CastIn | PJ195: CSTJBS4076XFG | PK195: CSTJBS4076XFGCastIn | PL195: CSTJBS4077 | PM195: CSTJBS4078 | PN195: CSTJBS4190 | PO195: CSTJBS4200G | PP195: CSTJBS4200GDBL | PQ195: CSTJBS4200GQ | PR195: CSTJBS4220FG | PS195: CSTJBS4250 | PT195: CSTJBS4254 | PU195: CSTJBS4254CastIn | PV195: CSTJBS4260 | PW195: CSTJBS4275 | PX195: CSTJBS4275V | PY195: CSTJBS4300 | PZ195: CSTJBS4310SGL | QA195: CSTJBS4310DBL | QB195: CSTJBS4315 | QC195: CSTJBS4315CastIn | QD195: CSTJBS4315ADA | QE195: CSTJBS4315ADACastIn | QF195: CSTJBS4330 | QG195: CSTJBS4475G | QH195: CSTJBS4480FBHG | QI195: CSTJBS5830FGSTD | QJ195: CSTJBS5830FG | QK195: PSJBS8006FC | QL195: PSJBS8110FCCastIn | QM195: PSJBS8121FCCastIn | QN195: PSJBS8122FCCastIn | QO195: CSTJBS8310FC | QP195: CSTJBSTY38G | QQ195: CSTJBSTY39G | QR195: CSTJBSTY40G | QS195: HWTDOT3-1CD30G | QT195: HWTDOT4-1CD30G | QU195: HWTDOT6-1CD30G | QV195: HWTDOT3-1CD36G | QW195: HWTDOT4-1CD36G | QX195: HWTDOT6-1CD36G | QY195: HWTDOT3-1CD42G | QZ195: HWTDOT4-1CD42G | RA195: HWTDOT6-1CD42G | RB195: HWTDOT3-1CD48G | RC195: HWTDOT4-1CD48G | RD195: HWTDOT6-1CD48G | RE195: HWTDOT6-1SA15C | RF195: HWTDOT6-1SA18C | RG195: HWTDOT6-1SA24C | RH195: HWTDOT6-1SA30C | RI195: HWTDOT6-1SA36C | RJ195: HWTDOT6-1SA42C | RK195: HWTDOT6-1SA48C | RL195: HWTDOT12-1SA18C | RM195: CSTJRHTRLSQ-24 | RN195: CSTJRHTRLSQ-24-G | RO195: CSTJRHTRLSQ-24-AL | RP195: CSTJRHTRLSQ-36 | RQ195: CSTJRHTRLSQ-36-G | RR195: CSTJRHTRLSQ-36-AL | RS195: CSTJRHTRLSQ-3648-P | RT195: CSTJRHTRLSQ-3648-G | RU195: CSTJRHTRLSQ-3648-AL | RV195: CSTJRHTRLSQ-48-P | RW195: CSTJRHTRLSQ-48 | RX195: CSTJRHTRLSQ-48-AL | RY195: CSTJRHTRLSQ-60-P | RZ195: CSTJRHTRLSQ-60-G | SA195: CSTJRHTRLSQ-60-AL | SB195: CSTJRHTRLSQ-72-P | SC195: CSTJRHTRLSQ-72-G | SD195: CSTJRHTRLSQ-72-AL | SE195: CSTJRHTRLDR-36-P | SF195: CSTJRHTRLDR-36-G | SG195: CSTJRHTRLDR-36-AL | SH195: CSTJRHTRLDR-48-P | SI195: CSTJRHTRLDR-48-G | SJ195: CSTJRHTRLDR-48-AL | SK195: CSTJRHTRLDR-60-P | SL195: CSTJRHTRLDR-60-G | SM195: CSTJRHTRLDR-60-AL | SN195: CSTJRHTRLDR-72-P | SO195: CSTJRHTRLDR-72-G | SP195: CSTJRHTRLDR-72-AL | SQ195: CSTJRHTRLFG-36-P | SR195: CSTJRHTRLFG-36-G | SS195: CSTJRHTRLFG-36-AL | ST195: CSTJRHTRLFG-3648-P | SU195: CSTJRHTRLFG-3648-G | SV195: CSTJRHTRLFG-3648-AL | SW195: CSTJRHTRLFG-48-P | SX195: CSTJRHTRLFG-48-G | SY195: CSTJRHTRLFG-48-AL | SZ195: CSTJRHTRLFG-60-P | TA195: CSTJRHTRLFG-60-G | TB195: CSTJRHTRLFG-60-AL | TC195: CSTJRHTRLFG-72-P | TD195: CSTJRHTRLFG-72-G | TE195: CSTJRHTRLFG-72-AL | TF195: CSTJRHTRLFS-36 | TG195: CSTJRHTRLFS-36-G | TH195: CSTJRHTRLFS-36-AL | TI195: CSTJRHTRLFS-48-P | TJ195: CSTJRHTRLFS-48-G | TK195: CSTJRHTRLFS-48-AL | TL195: CSTJRHTRLFS-60-P | TM195: CSTJRHTRLFS-60-G | TN195: CSTJRHTRLFS-60-AL | TO195: CSTJRHTRLFS-72-P | TP195: CSTJRHTRLFS-72-G | TQ195: CSTJRHTRLFS-72-AL | TR195: CSTJRHTRLFR-36-P | TS195: CSTJRHTRLFR-36-G | TT195: CSTJRHTRLFR-36-AL | TU195: CSTJRHTRLFR-48-P | TV195: CSTJRHTRLFR-48-G | TW195: CSTJRHTRLFR-48-AL | TX195: CSTJRHTRLFR-60-P | TY195: CSTJRHTRLFR-60-G | TZ195: CSTJRHTRLFR-60-AL | UA195: CSTJRHTRLFR-72-P | UB195: CSTJRHTRLFR-72-G | UC195: CSTJRHTRLFR-72-AL | UD195: MTO | UE195: MTO | UF195: MTO | UG195: MTO | UH195: MTO | UI195: MTO | UJ195: HATHALS1R2424 | UK195: HATHALS1R2430 | UL195: HATHALS1R2436 | UM195: HATHALS1R2442 | UN195: HATHALS1R2448 | UO195: HATHALS1R2959 | UP195: HATHALS1R3030 | UQ195: HATHALS1R3036 | UR195: HATHALS1R3042 | US195: HATHALS1R3048 | UT195: HATHALS1R3054 | UU195: HATHALS1R3060 | UV195: HATHALS1R3636 | UW195: HATHALS1R3642 | UX195: HATHALS1R3648 | UY195: HATHALS1R3654 | UZ195: HATHALS1R3660 | VA195: HATHALS1R3666 | VB195: HATHALS1R3672 | VC195: HATHALS1R4242 | VD195: HATHALS2R4242 | VE195: HATHALS2R4468 | VF195: HATHALS2R4842 | VG195: HATHALS2R4848 | VH195: HATHALS2R5442 | VI195: HATHALS2R5448 | VJ195: HATHALS2R5452 | VK195: HATHALS2R5454 | VL195: HATHALS2R5858 | VM195: HATHALS2R6030 | VN195: HATHALS2R6036 | VO195: HATHALS2R6042 | VP195: HATHALS2R6048 | VQ195: HATHALS2R6054 | VR195: HATHALS2R6060 | VS195: HATHALS2R6636 | VT195: HATHALS2R6642 | VU195: HATHALS2R6648 | VV195: HATHALS2R6654 | VW195: HATHALS2R6660 | VX195: HATHALS2R6666 | VY195: HATHALS2R7236 | VZ195: HATHALS2R7242 | WA195: HATHALS2R7248 | WB195: HATHALS2R7254 | WC195: HATHALS2R7260 | WD195: HATHALS1S2424 | WE195: HATHALS1S2430 | WF195: HATHALS1S2436 | WG195: HATHALS1S2442 | WH195: HATHALS1S2448 | WI195: HATHALS1S3030 | WJ195: HATHALS1S3036 | WK195: HATHALS1S3042 | WL195: HATHALS1S3048 | WM195: HATHALS1S3054 | WN195: HATHALS1S3060 | WO195: HATHALS1S3636 | WP195: HATHALS1S3642 | WQ195: HATHALS1S3648 | WR195: HATHALS1S3654 | WS195: HATHALS1S3660 | WT195: HATHALS1S3666 | WU195: HATHALS1S3672 | WV195: HATHALS1S4242 | WW195: HATHALS2S3654 | WX195: HATHALS2S4242 | WY195: HATHALS2S4842 | WZ195: HATHALS2S4848 | XA195: HATHALS2S5442 | XB195: HATHALS2S5448 | XC195: HATHALS2S5454 | XD195: HATHALS2S6030 | XE195: HATHALS2S6036 | XF195: HATHALS2S6042 | XG195: HATHALS2S6048 | XH195: HATHALS2S6054 | XI195: HATHALS2S6060 | XJ195: HATHALS2S6636 | XK195: HATHALS2S6642 | XL195: HATHALS2S6648 | XM195: HATHALS2S6654 | XN195: HATHALS2S6660 | XO195: HATHALS2S6666 | XP195: HATHALS2S7236 | XQ195: HATHALS2S7242 | XR195: HATHALS2S7248 | XS195: HATHALS2S7254 | XT195: HATHALS2S7260 | XU195: HATHALW1R2424 | XV195: HATHALW1R2430 | XW195: HATHALW1R2436 | XX195: HATHALW1R2442 | XY195: HATHALW1R2448 | XZ195: HATHALW1R3030 | YA195: HATHALW1R3036 | YB195: HATHALW1R3042 | YC195: HATHALW1R3048 | YD195: HATHALW1R3054 | YE195: HATHALW1R3060 | YF195: HATHALW1R3636 | YG195: HATHALW1R3642 | YH195: HATHALW1R3648 | YI195: HATHALW1R3654 | YJ195: HATHALW1R3660 | YK195: HATHALW1R3666 | YL195: HATHALW1R3672 | YM195: HATHALW1R4242 | YN195: HATHALW2R4242 | YO195: HATHALW2R4842 | YP195: HATHALW2R4848 | YQ195: HATHALW2R5442 | YR195: HATHALW2R5448 | YS195: HATHALW2R5454 | YT195: HATHALW2R5834 | YU195: HATHALW2R6030 | YV195: HATHALW2R6036 | YW195: HATHALW2R6042 | YX195: HATHALW2R6048 | YY195: HATHALW2R6054 | YZ195: HATHALW2R6060 | ZA195: HATHALW2R6636 | ZB195: HATHALW2R6642 | ZC195: HATHALW2R6648 | ZD195: HATHALW2R6654 | ZE195: HATHALW2R6660 | ZF195: HATHALW2R6666 | ZG195: HATHALW2R7236 | ZH195: HATHALW2R7242 | ZI195: HATHALW2R7248 | ZJ195: HATHALW2R7254 | ZK195: HATHALW2R7260 | ZL195: HATHALW1S2424 | ZM195: HATHALW1S2430 | ZN195: HATHALW1S2436 | ZO195: HATHALW1S2442 | ZP195: HATHALW1S2448 | ZQ195: HATHALW1S3030 | ZR195: HATHALW1S3036 | ZS195: HATHALW1S3042 | ZT195: HATHALW1S3048 | ZU195: HATHALW1S3054 | ZV195: HATHALW1S3060 | ZW195: HATHALW1S3636 | ZX195: HATHALW1S3642 | ZY195: HATHALW1S3648 | ZZ195: HATHALW1S3654 | AAA195: HATHALW1S3660 | AAB195: HATHALW1S3666 | AAC195: HATHALW1S3672 | AAD195: HATHALW1S3678 | AAE195: HATHALW1S4242 | AAF195: HATHALW1S4260 | AAG195: HATHALW1S6060 | AAH195: HATHALW2S4242 | AAI195: HATHALW2S4842 | AAJ195: HATHALW2S4848 | AAK195: HATHALW2S5442 | AAL195: HATHALW2S5448 | AAM195: HATHALW2S5454 | AAN195: HATHALW2S6030 | AAO195: HATHALW2S6036 | AAP195: HATHALW2S6042 | AAQ195: HATHALW2S6048 | AAR195: HATHALW2S6054 | AAS195: HATHALW2S6060 | AAT195: HATHALW2S6636 | AAU195: HATHALW2S6642 | AAV195: HATHALW2S6648 | AAW195: HATHALW2S6654 | AAX195: HATHALW2S6660 | AAY195: HATHALW2S6666 | AAZ195: HATHALW2S7236 | ABA195: HATHALW2S7242 | ABB195: HATHALW2S7248 | ABC195: HATHALW2S7254 | ABD195: HATHALW2S7260 | ABE195: HATHALW2S7848 | ABF195: HATHALW2S9672 | ABG195: HATHALW1C2424 | ABH195: HATHALW1C2430 | ABI195: HATHALW1C2436 | ABJ195: HATHALW1C2442 | ABK195: HATHALW1C2448 | ABL195: HATHALW1C3030 | ABM195: HATHALW1C3036 | ABN195: HATHALW1C3042 | ABO195: HATHALW1C3048 | ABP195: HATHALW1C3054 | ABQ195: HATHALW1C3060 | ABR195: HATHALW1C3636 | ABS195: HATHALW1C3642 | ABT195: HATHALW1C3648 | ABU195: HATHALW1C3654 | ABV195: HATHALW1C3660 | ABW195: HATHALW1C3666 | ABX195: HATHALW1C3672 | ABY195: HATHALW1C4242 | ABZ195: HATHALW2C4242 | ACA195: HATHALW2C4842 | ACB195: HATHALW2C4848 | ACC195: HATHALW2C5442 | ACD195: HATHALW2C5448 | ACE195: HATHALW2C5454 | ACF195: HATHALW2C6030 | ACG195: HATHALW2C6036 | ACH195: HATHALW2C6042 | ACI195: HATHALW2C6048 | ACJ195: HATHALW2C6054 | ACK195: HATHALW2C6060 | ACL195: HATHALW2C6636 | ACM195: HATHALW2C6642 | ACN195: HATHALW2C6648 | ACO195: HATHALW2C6654 | ACP195: HATHALW2C6660 | ACQ195: HATHALW2C6666 | ACR195: HATHALW2C7236 | ACS195: HATHALW2C7242 | ACT195: HATHALW2C7248 | ACU195: HATHALW2C7254 | ACV195: HATHALW2C7260 | ACW195: HATHALH1R2424 | ACX195: HATHALH1R2430 | ACY195: HATHALH1R2436 | ACZ195: HATHALH1R2442 | ADA195: HATHALH1R2448 | ADB195: HATHALH1R3030 | ADC195: HATHALH1R3036 | ADD195: HATHALH1R3042 | ADE195: HATHALH1R3048 | ADF195: HATHALH1R3636 | ADG195: HATHALH1R3642 | ADH195: HATHALH1R3648 | ADI195: HATHALH2R4242 | ADJ195: HATHALH2R4842 | ADK195: HATHALH2R4848 | ADL195: HATHALH2R5442 | ADM195: HATHALH2R5448 | ADN195: HATHALH2R6048 | ADO195: HATHALH2R6060 | ADP195: HATHALH2R7248 | ADQ195: HATHALH2R7260 | ADR195: HATHALH2R7272 | ADS195: HATHALH1W2424 | ADT195: HATHALH1W2430 | ADU195: HATHALH1W2436 | ADV195: HATHALH1W2442 | ADW195: HATHALH1W2448 | ADX195: HATHALH1W3030 | ADY195: HATHALH1W3036 | ADZ195: HATHALH1W3042 | AEA195: HATHALH1W3048 | AEB195: HATHALH1W3636 | AEC195: HATHALH1W3642 | AED195: HATHALH1W3648 | AEE195: HATHALH1W3660 | AEF195: HATHALH2W3680 | AEG195: HATHALH2W4242 | AEH195: HATHALH2W4842 | AEI195: HATHALH2W4848 | AEJ195: HATHALH2W5442 | AEK195: HATHALH2W5448 | AEL195: HATHALH2W6048 | AEM195: HATHALH2W6060 | AEN195: HATHALH2W7248 | AEO195: HATHALH2W7260 | AEP195: HATHALH1C2424 | AEQ195: HATHALH1C2430 | AER195: HATHALH1C2436 | AES195: HATHALH1C2442 | AET195: HATHALH1C2448 | AEU195: HATHALH1C3030 | AEV195: HATHALH1C3036 | AEW195: HATHALH1C3042 | AEX195: HATHALH1C3048 | AEY195: HATHALH1C3636 | AEZ195: HATHALH1C3642 | AFA195: HATHALH1C3648 | AFB195: HATHALH2C4242 | AFC195: HATHALH2C4842 | AFD195: HATHALH2C4848 | AFE195: HATHALH2C5442 | AFF195: HATHALH2C5448 | AFG195: HATHALH2C6048 | AFH195: HATHALH2C6060 | AFI195: HATHALH2C7248 | AFJ195: HATHALH2C7260 | AFK195: HATHALH2C7272 | AFL195: MTO | AFM195: MTO | AFN195: MTO | AFO195: MTO | AFP195: MTO | AFQ195: MTO | AFR195: MTO | AFS195: MTO | AFT195: MTO | AFU195: MTO
B196: NetSuite Product ID (Frame) | C196: Product ID | D196: ID | F196: MTO | G196: MTO | K196: CSTJRHMC82F | M196: CSTJRHMC260F | N196: CSTJRHMC260F | O196: CSTJRHMC260F | P196: CSTJRHMC260F | R196: CSTJRHMC260F | S196: CSTJRHMC350F | T196: CSTJRHMC350F | U196: CSTJRHMC350F | V196: CSTJRHMC350F | X196: CSTJRHMC350F | AA196: CSTJRHMC350F | AB196: CSTJRHMC350F | AJ196: CSTJRHMC315F | AK196: CSTJRHMC315F | AL196: CSTJRHMC315F | AM196: CSTJRHMC315F | AN196: CSTJRHMC315F | AO196: CSTJRHMC315F | AP196: CSTJRHMC315F | AU196: CSTJRHMC315F | AV196: CSTJRHMC315F | AW196: CSTJRHMC315F | AX196: CSTJRHMC315F | AY196: CSTJRHMC315F | AZ196: CSTJRHMC420F | BA196: CSTJRHMC420F | BB196: CSTJRHMC420F | BC196: CSTJRHMC420F | BD196: CSTJRHMC420F | BE196: CSTJRHMC420F | BG196: CSTJRHMC285F | BH196: CSTJRHMC285F | BI196: CSTJRHMC285F | BK196: CSTJRHMC285F | BL196: CSTJRHMC375F | BM196: CSTJRHMC375F | BN196: CSTJRHMC375F | BP196: CSTJRHMC375F | BQ196: CSTJRHMC375F | BR196: CSTJRHMC375F | BS196: CSTJRHMC375F | BT196: CSTJRHMC375F | BY196: CSTJRHMC375F | CG196: CSTJRHMC455F | CH196: CSTJRHMC747F | CK196: CSTJRHMCS295F | CL196: CSTJRHMCS295F | CM196: CSTJRHMCS295F | CN196: CSTJRHMCS295F | CR196: CSTJRHMCS288F | CS196: CSTJRHMCS288F | CT196: CSTJRHMCS288F | CU196: CSTJRHMCS288F | CW196: CSTJRHMCS288F | CX196: CSTJRHMCS288F | CZ196: CSTJRHMCS290F | DA196: CSTJRHMCS290F | DB196: CSTJRHMCS290F | DC196: CSTJRHMCS290F | DQ196: CSTJRHMCB260F | DR196: CSTJRHMCB260F | DS196: CSTJRHMCB260F | DT196: CSTJRHMCB315BF | DW196: CSTJRHMCB350F | DX196: CSTJRHMCB350F | DY196: CSTJRHMCB350F | EC196: CSTJRHMCB420F | ED196: CSTJRHMCB285F | EE196: CSTJRHMCB285F | EL196: CSTJRHMCB900F | EM196: CSTJRHHOE165F | EN196: CSTJRHHOE280TF | EO196: CSTJRHHOE280TF | EP196: CSTJRHHOE280TF | EQ196: CSTJRHHOE280TF | ER196: CSTJRHHOE280TF | ES196: CSTJRHHOE280TF | EV196: CSTJRHHOE320F | EX196: CSTJRHHOE342F | FA196: CSTJRHHOE275DBLF | FC196: CSTJRHHOE326F | FD196: CSTJRHHOE326F | FE196: CSTJRHHOE580F | FF196: CSTJRHHOE580F | FG196: CSTJRHHOE518F | FH196: CSTJRHHOE518DBLF | FI196: CSTJRHHOE468F | FL196: CSTJRHHOE918F | FM196: CSTJRHHOE595F | FP196: CSTJRHHOE165AF | FT196: CSTJRHHOE555F | FV196: CSTJRHHOE700F | FX196: CSTJRHHOE465F | FY196: CSTJRHHOE360F | GA196: CSTJRHHOE399F | GB196: CSTJRHHOE470F | GD196: CSTJRHHOE525F | GE196: CSTJRHHOE525F | GF196: CSTJRHHOE525F | GG196: CSTJRHHOE525DBLF | GH196: CSTJRHHOE525DBLF | GM196: CSTJRHHOE410F | GN196: CSTJRHHOE698F | GP196: CSTJRHKY206F | GQ196: CSTJRHKY206F | GR196: CSTJRHKY510F | GS196: CSTJRHKY316F | GT196: CSTJRHKY398F | GU196: CSTJRHKY328F | GV196: CSTJRHKY410F | GW196: CSTJRHKY460-5AF | GX196: CSTJRHKY460-5BF | GY196: CSTJRHKY460-5CF | GZ196: CSTJRHKY460-5DF | HA196: CSTJRHKY460-5EF | HB196: CSTJRHKY460-5FF | HC196: CSTJRHKY426-6AF | HD196: CSTJRHKY426-6BF | HE196: CSTJRHKY426-6CF | HF196: CSTJRHKY426-6DF | HG196: CSTJRHKY426-6EF | HH196: CSTJRHKY426-6FF | HI196: CSTJRHKY328F (cast in) | HJ196: CSTJRHKY550F | HK196: CSTJRHKY46011F | HL196: CSTJRHDBI12F | HM196: CSTJRHDBI12AF | HN196: CSTJRHKY230F | HO196: CSTJRHKY230SF | HP196: CSTJRHKY210F | HQ196: CSTJRHKY215F | IM196: CSTJRHKY206F | IO196: CSTJRHKY465F | JK196: CSTJRHR328710V-F | JR196: CSTJBS1020F | JS196: CSTJBS1020F | JW196: CSTJBS1072F | JX196: CSTJBS1072F | JY196: CSTJBS1072F | JZ196: CSTJBS1072F | KA196: CSTJBS1072F | KB196: CSTJBS1072F | KR196: CSTJBS1123F | KY196: CSTJBS1140MF | KZ196: CSTJBS1140MF | LA196: CSTJBS1140MF | LB196: CSTJBS1140MF | LE196: CSTJBS1144F | LF196: CSTJBS1144F | LG196: CSTJBS1150F | LH196: CSTJBS1150F | LI196: CSTJBS1150F | LL196: CSTJBS1154F | LM196: CSTJBS1154F | LN196: CSTJBS1154F | LO196: CSTJBS1154F | LT196: CSTJBS1220F | LU196: CSTJBS1220F | MF196: CSTJBS1072F | MG196: CSTJBS1072F | MK196: CSTJBS2150F | MY196: CSTJBS3070NF | MZ196: CSTJBS3080F | NA196: CSTJBS3080F | NB196: CSTJBS3080F | NC196: CSTJBS3080F | ND196: CSTJBS3080F | NE196: CSTJBS3080F | OQ196: CSTJBS3300F | PD196: CSTJBS4073F | PE196: CSTJBS4073F | PH196: CSTJBS4075F | PI196: CSTJBS4075F | QB196: CSTJBS4315F | QC196: CSTJBS4315F
B197: NetSuite Product ID (Cover/Grate) | C197: Product ID | D197: ID | F197: MTO | G197: MTO | K197: CSTJRHMC82C | M197: CSTJRHMC260C | N197: CSTJRHMC260C | O197: CSTJRHMC260CSAN | P197: CSTJRHMC260CG | R197: CSTJRHMC260CG | S197: CSTJRHMC350C | T197: CSTJRHMC350CSTM | U197: CSTJRHMC350CS | V197: CSTJRHMC350CG | X197: MTO | AA197: CSTJRHMC350CSS | AB197: CSTJRHMC350CBDWTS | AJ197: CSTJRHMC315P | AK197: CSTJRHMC315ST | AL197: CSTJRHMC315CSAN | AM197: CSTJRHMC315CG | AN197: CSTJRHMC315W | AO197: CSTJRHMC315OW | AP197: MTO | AU197: CSTJRHMC315STH | AV197: MTO | AW197: CSTJRHMC315CRWRA | AX197: CSTJRHMC315CSSSAN | AY197: CSTJRHMC315WTSS | AZ197: CSTJRHMC420C | BA197: CSTJRHMC420C | BB197: CSTJRHMC420C-STM-LOUMSD | BC197: CSTJRHMC420C | BD197: CSTJRHMC420C-SWR-LOUMSD | BE197: CSTJRHMC420CLG | BG197: CSTJRHMC285C | BH197: CSTJRHMC285C | BI197: CSTJRHMC285C | BK197: MTO | BL197: CSTJRHMC375C | BM197: CSTJRHMC375CST | BN197: CSTJRHMC375CS | BP197: MTO | BQ197: CSTJRHMC375CS-BGMU | BR197: CSTJRHMC375CG | BS197: CSTJRHMC375CO | BT197: MTO | BY197: CSTJRHMC375CSSS | BZ197: CSTJRHMC375CWTS | CG197: CSTJRHMC455C | CH197: CSTJRHMC747C | CK197: CSTJRHMCS295C | CL197: MTO | CM197: CSTJRHMCS295CS | CR197: CSTJRHMCS290C | CS197: CSTJRHMCS288STM | CT197: MTO | CU197: MTO | CW197: CSTJRHMCS288BHG | CX197: MTO | CZ197: CSTJRHMCS290C | DA197: MTO | DB197: MTO | DC197: MTO | DQ197: CSTJRHMCB260G | DR197: MTO | DS197: CSTJRHMCB260BHG | DT197: CSTJRHMCB315BG | DU197: CSTJRHMCB315RG | DV197: CSTJRHMCB315BH | DW197: CSTJRHMCB350G | DX197: CSTJRHMCB350RG | DY197: CSTJRHMCB350BHG | EC197: CSTJRHMCB420G | ED197: CSTJRHMCB285G | EE197: CSTJRHMCB285BHG | EF197: CSTJRHMCB375BG | EG197: CSTJRHMCB375BHG | EL197: CSTJRHMCB900G | EM197: CSTJRHHOE165G | EN197: CSTJRHHOE280TG | EO197: CSTJRHHOE280TG | EP197: CSTJRHHOE280BHG | EQ197: CSTJRHHOE280BHG | ER197: CSTJRHHOE280SOLIDF | ES197: CSTJRHHOE280SOLIDF | EV197: CSTJRHHOE320G | EX197: CSTJRHHOE342G | FA197: CSTJRHHOE275DBLG | FC197: CSTJRHHOE326BHG | FD197: CSTJRHHOE326BHG | FE197: CSTJRHHOE580GA | FF197: CSTJRHHOE580GLV | FG197: CSTJRHHOE518G | FH197: CSTJRHHOE518DBLG | FI197: CSTJRHHOE468G | FL197: CSTJRHHOE918G | FM197: CSTJRHHOE595G | FP197: CSTJRHHOE165AG | FT197: CSTJRHHOE555G | FV197: CSTJRHHOE700G | FX197: CSTJRHHOE465G | FY197: CSTJRHHOE360G | GA197: CSTJRHHOE399G | GB197: CSTJRHHOE470G | GD197: CSTJRHHOE525G | GE197: CSTJRHHOE525GLV | GF197: CSTJRHHOE525GV | GG197: CSTJRHHOE525DBLG | GH197: CSTJRHHOE525DBLVG | GM197: CSTJRHHOE410G | GN197: CSTJRHHOE698G | GP197: CSTJRHKY206C | GQ197: CSTJRHKY206C | GR197: CSTJRHKY510C | GS197: CSTJRHKY316G | GT197: CSTJRHKY398G | GU197: CSTJRHKY328G | GV197: CSTJRHKY410G | GW197: CSTJRHKY460-5AG | GX197: CSTJRHKY460-5BG | GY197: CSTJRHKY460-5CG | GZ197: CSTJRHKY460-5DG | HA197: CSTJRHKY460-5EG | HB197: CSTJRHKY460-5FG | HC197: CSTJRHKY426-6AG | HD197: CSTJRHKY426-6BG | HE197: CSTJRHKY426-6CG | HF197: CSTJRHKY426-6DG | HG197: CSTJRHKY426-6EG | HH197: CSTJRHKY426-6FG | HI197: CSTJRHKY328G | HJ197: CSTJRHKY550G | HK197: CSTJRHKY46011G | HL197: CSTJRHDBI12G | HM197: CSTJRHDBI12AG | HN197: CSTJRHKY230G | HO197: CSTJRHKY230SG | HP197: CSTJRHKY210G | HQ197: CSTJRHKY215G | IM197: CSTJRHKY206C | IO197: CSTJRHKY465G | JI197: CSTJRHR4215C | JK197: CSTJRHR328710V-G | JR197: MTO | JS197: MTO | JW197: MTO | JX197: MTO | JY197: MTO | JZ197: MTO | KA197: CSTJBS1072SAN | KB197: CSTJBS1072SAN | KR197: CSTJBS1123WT | KY197: MTO | KZ197: CSTJBS1140SANC | LA197: MTO | LB197: MTO | LE197: MTO | LF197: MTO | LH197: CSTJBS1150STM | LI197: CSTJBS1150SAN | LL197: MTO | LM197: MTO | LN197: MTO | LO197: MTO | LT197: CSTJBS1220C | LU197: CSTJBS1220C | MF197: CSTJBS2072G | MG197: CSTJBS2072G | MK197: CSTJBS2150G | MY197: CSTJBS3070NG | NA197: CSTJBS3080VG | NB197: MTO | NC197: CSTJBS3080VG | ND197: MTO | NE197: CSTJBS3080VG | OQ197: CSTJBS3300G | PD197: CSTJBS4073G | PE197: CSTJBS4073G | PH197: CSTJBS4075G | PI197: CSTJBS4075G | PO197: CSTJBS4200G | QB197: CSTJBS4315G | QC197: CSTJBS4315G
B198: NetSuite Product ID (Curb Box) | C198: Product ID | D198: ID | FY198: CSTJRHHOE360CB | GA198: CSTJRHHOE399CB | GB198: CSTJRHHOE470CB | GD198: CSTJRHHOE525CB | GE198: CSTJRHHOE525CB | GF198: CSTJRHHOE525CB | GG198: CSTJRHHOE525DBLCB | GH198: CSTJRHHOE525DBLCB | IO198: CSTJRHKY465CB | JK198: CSTJRHR328710V-CB | MZ198: CSTJBS3080CP | NA198: CSTJBS3080CP | NB198: CSTJBS3080CP | NC198: CSTJBS3080CP | ND198: CSTJBS3080CP | NE198: CSTJBS3080CP | OQ198: CSTJBS3300CP
B199: Casting Quick Reference | C199: Equivalent 1 | M199: JBS 1144 | N199: JBS 1144 | O199: JBS 1144 | P199: JBS 1144 | Q199: JBS 1144 | R199: JBS 1144 | AJ199: JBS 1140 | AK199: JBS 1140 | AL199: JBS 1140 | AM199: JBS 1140 | AN199: JBS 1140 | AO199: JBS 1140 | AP199: JBS 1140 | AQ199: JBS 1140 | AR199: JBS 1140 | AS199: JBS 1140 | AT199: JBS 1140 | AU199: JBS 1140 | AV199: JBS 1140 | AW199: JBS 1140 | AX199: JBS 1140 | AY199: JBS 1140 | BL199: JBS 1150 | BM199: JBS 1150 | BN199: JBS 1150 | BP199: JBS 1150 | BQ199: JBS 1150 | BR199: JBS 1150 | BS199: JBS 1150 | BT199: JBS 1150 | BU199: JBS 1150 | BV199: JBS 1150 | BW199: JBS 1150 | BX199: JBS 1150 | BY199: JBS 1150 | BZ199: JBS 1150 | CR199: JBS 1072 | CS199: JBS 1072 | CT199: JBS 1072 | CU199: JBS 1072 | DT199: JBS 2140 | EE199: JBS 2272 | EF199: JBS 2150 | EG199: JBS 2280 | EN199: JBS 4075 | EO199: JBS 4075 | FE199: JBS 4275 | FF199: JBS 4275 | FG199: JBS 4254 | FI199: JBS 4315 | FJ199: JBS 4315 | FM199: JBS 4260 | FV199: JBS 3700 | FY199: JBS 3105 | FZ199: JBS 3105 | GB199: JBS 3106 | GC199: JBS 3106 | GD199: JBS 3080 | GE199: JBS 3080 | GF199: JBS 3080 | GG199: JBS 3080 DBL | GH199: JBS 3080 DBL | GO199: JBS 3070 | GP199: JBS 1077 | GQ199: JBS 1077 | GR199: JBS 1123 Mod. | GS199: BOTTOMS DBI 1 | GT199: BOTTOMS DBI 2 | GU199: BOTTOMS DBI 3 | GV199: BOTTOMS DBI 4 | GW199: BOTTOMS DBI 5 | GX199: BOTTOMS DBI 5 | GY199: BOTTOMS DBI 5 | GZ199: BOTTOMS DBI 5 | HA199: BOTTOMS DBI 5 | HB199: BOTTOMS DBI 5 | HC199: BOTTOMS DBI 6 | HD199: BOTTOMS DBI 6 | HE199: BOTTOMS DBI 6 | HF199: BOTTOMS DBI 6 | HG199: BOTTOMS DBI 6 | HH199: BOTTOMS DBI 6 | HI199: BOTTOMS DBI 7 | HJ199: JBS 2501D | HK199: JBS 3411 | HL199: JBS 5830 | HM199: JBS 5830 BOLTED | HN199: JBS 3413 | HO199: JBS 3413D | HP199: JBS 2214 | HQ199: JBS 2215 | ID199: BOTTOMS | IE199: BOTTOMS | IF199: BOTTOMS | IG199: BOTTOMS | IH199: BOTTOMS | II199: BOTTOMS | IJ199: BOTTOMS | IK199: BOTTOMS | IL199: JBS 3450 | IM199: JBS 1077 | IN199: JBS 3450 | IO199: JBS 3085 | JW199: HOE MCS-288 | JX199: HOE MCS-288 | JY199: HOE MCS-288 | JZ199: HOE MCS-288 | KA199: HOE MCS-288 | KB199: HOE MCS-288 | KC199: HOE MCS-288 | KD199: HOE MCS-288 | KE199: HOE KY-206 | KF199: HOE KY-206 | KS199: HOE KY-510 | KU199: HOE KY-510 | KY199: HOE MC-315 | KZ199: HOE MC-315 | LA199: HOE MC-315 | LB199: HOE MC-315 | LC199: HOE WT-315-SAN | LD199: HOE WT-315-SAN | LE199: HOE MC-260 | LF199: HOE MC-260 | LG199: HOE MC-375 | LH199: HOE MC-375 | LI199: HOE MC-375 | LJ199: HOE WT-375-SAN | LZ199: HOE MC-375 | MA199: HOE MC-375 | MB199: HOE MC-375 SS | MC199: HOE MC-375 SS | MD199: HOE WT-375-SAN | MJ199: HOE MCB-315-B | MK199: HOE MCB-375-B | ML199: HOE KY-210 | MM199: HOE KY-215 | MT199: HOE MCB-285-BH | MU199: HOE MCB-285-BH | MY199: EJ 4510 | MZ199: HOE 525 | NA199: HOE 525 | NB199: HOE 525 | NC199: HOE 525 | ND199: HOE 525 | NE199: HOE 525 | NF199: HOE KY-465 | NY199: HOE 360 | NZ199: HOE 470 | OA199: HOE 470 | OL199: HOE 360 | OM199: HOE 360 | ON199: HOE 470 | OO199: HOE 470 | OY199: HOE KY-460-11 | OZ199: HOE KY-240 | PA199: HOE KY-345 | PB199: HOE-700 | PH199: HOE-280T | PI199: HOE-280T | PT199: HOE-518 | PV199: HOE-595 | PW199: HOE-580 | PX199: HOE-580 | QB199: HOE 468 | QI199: HOE DBI 12 | QJ199: HOE DBI 12A
B200: Casting Quick Reference | C200: Equivalent 2 | BL200: JBS 1247DM | BM200: JBS 1247DM | BN200: JBS 1247DM | BP200: JBS 1247DM | BQ200: JBS 1247DM | BR200: JBS 1247DM | BS200: JBS 1247DM | BT200: JBS 1247DM | BU200: JBS 1247DM | BV200: JBS 1247DM | BW200: JBS 1247DM | BX200: JBS 1247DM | BY200: JBS 1247DM | BZ200: JBS 1247DM
B201: Casting Quick Reference | C201: Equivalent 3
B202: Municipal or State Spec. | C202: Specification | FV202: LEX SI TY B | FY202: LOU SINGLE CI | FZ202: LOU SINGLE CI | GB202: LOU DOUBLE CI | GC202: LOU DOUBLE CI | GD202: LEX TYPE D CI | GO202: BGMU CI | GP202: KY MH TY 1 | GQ202: KY MH TY 1 | GR202: KY MH TY 2 | GS202: KY DBI TY 1 | GT202: KY DBI TY 2 | GU202: KY DBI TY 3 | GV202: KY DBI TY 4 | GW202: KY DBI TY 5 | GX202: KY DBI TY 5 | GY202: KY DBI TY 5 | GZ202: KY DBI TY 5 | HA202: KY DBI TY 5 | HB202: KY DBI TY 5 | HC202: KY DBI TY 6 | HD202: KY DBI TY 6 | HE202: KY DBI TY 6 | HF202: KY DBI TY 6 | HG202: KY DBI TY 6 | HH202: KY DBI TY 6 | HI202: KY DBI TY 7 | HJ202: KY DBI TY 10 | HK202: KY DBI TY 11 | HL202: KY DBI TY 12 | HM202: KY DBI TY 12A | HN202: KY DBI TY 13/16G | HO202: KY DBI TY 13/16S | HP202: KY DBI TY 14 | HQ202: KY DBI TY 15 | HT202: 12"-18" SL/FL Headwall | HU202: 12"-18" SL/FL Headwall | HV202: 24" SL/FL Headwall | HW202: 24" SL/FL Headwall | HX202: 30"-36" SL/FL Headwall | HY202: 30"-36" SL/FL Headwall | HZ202: 42"-48" SL/FL Headwall | IA202: 42"-48" SL/FL Headwall | IB202: 54"-60" SL/FL Headwall | IC202: 54"-60" SL/FL Headwall | ID202: 15"-18" SBO TY 1 | IE202: 24" SBO TY 1 | IF202: 18" SFBIO | IG202: 24" SFBIO | IH202: 30" SFBIO | II202: 36" SFBIO | IJ202: SBIO TY 1 | IK202: SBIO TY 2 | IL202: KY CMBBI | IM202: KY CBI TY A | IN202: KY CBI TY B | IO202: KY CBI TY F | JR202: TDOT Type 3 | JS202: TDOT Type 3 | KE202: KDOT Type 1 | KF202: KDOT Type 1 | KK202: LOU KY MH | KL202: LOU KY MH | KR202: NASHVILLE, TN MH | KS202: KY MH TY 2 | KT202: KY MH TY 2 | KU202: KY MH TY 2 | KV202: KY MH TY 2 | ME202: TDOT Std. #2 | ML202: KY DBI TY 14 | MM202: KY DBI TY 15 | MW202: TDOT Std. #18 | MX202: TDOT Std. #6 | MY202: BGMU SCI | NF202: KY CBI TY F | NY202: LOU SINGLE CI | NZ202: LOU DOUBLE CI | OA202: LOU DOUBLE CI | OC202: TDOT Std. #12 | OD202: TDOT Std. Type 12 | OE202: TDOT Std. Type 13 | OF202: TDOT Std. Type 41 | OG202: TDOT Std. Type 41 | OH202: TDOT Std. Type 31 | OI202: TDOT Std. Type 31 | OJ202: TDOT Std. Type 31 | OP202: TDOT #10LPC | OY202: KY DBI TY 11 | OZ202: KY DBI TY 13/16G | PA202: KY CBI TY B | PB202: LFUCG TY B SI | PN202: TDOT STD. #19 | PO202: TDOT STD. #42 | PP202: TDOT STD. #42 | PQ202: TDOT STD. #42 | PW202: LOU DOUBLE SI | PX202: LOU DOUBLE SI | QI202: KY DBI TY 12 | QJ202: KY DBI TY 12A | AFL202: Blank Slot 1 | AFM202: Blank Slot 2 | AFN202: Blank Slot 3 | AFO202: Blank Slot 4 | AFP202: Blank Slot 5 | AFQ202: Blank Slot 6 | AFR202: Blank Slot 7 | AFS202: Blank Slot 8 | AFT202: Blank Slot 9 | AFU202: Blank Slot 10
B203: Municipal or State Spec. | C203: Specification | PA203: KY CMBBI
B204: Municipal or State Spec. | C204: Specification
B207: Table 4 - Pipe Connection & Pipe Seal Product Data
C208: Cell
C209: Reference | D209: Unit | E209: Box Culvert (Grout) | F209: Link Seal (Others) | G209: Doghouse (Grout) | H209: 4" HDPE (Grout) | I209: 6" HDPE (Grout) | J209: 8" HDPE (Grout) | K209: 10" HDPE (Grout) | L209: 12" HDPE (Grout) | M209: 15" HDPE (Grout) | N209: 18" HDPE (Grout) | O209: 24" HDPE (Grout) | P209: 30" HDPE (Grout) | Q209: 36" HDPE (Grout) | R209: 42" HDPE (Grout) | S209: 48" HDPE (Grout) | T209: 54" HDPE (Grout) | U209: 60" HDPE (Grout) | V209: 12" RCP B WALL (Grout) | W209: 15" RCP B WALL (Grout) | X209: 18" RCP B WALL (Grout) | Y209: 21" RCP B WALL (Grout) | Z209: 24" RCP B WALL (Grout) | AA209: 27" RCP B WALL (Grout) | AB209: 30" RCP B WALL (Grout) | AC209: 36" RCP B WALL (Grout) | AD209: 42" RCP B WALL (Grout) | AE209: 48" RCP B WALL (Grout) | AF209: 54" RCP B WALL (Grout) | AG209: 60" RCP B WALL (Grout) | AH209: 66" RCP B WALL (Grout) | AI209: 72" RCP B WALL (Grout) | AJ209: 78" RCP B WALL (Grout) | AK209: 84" RCP B WALL (Grout) | AL209: 90" RCP B WALL (Grout) | AM209: 96" RCP B WALL (Grout) | AN209: 8" CMP (Grout) | AO209: 10" CMP (Grout) | AP209: 12" CMP (Grout) | AQ209: 15" CMP (Grout) | AR209: 18" CMP (Grout) | AS209: 21" CMP (Grout) | AT209: 24" CMP (Grout) | AU209: 27" CMP (Grout) | AV209: 30" CMP (Grout) | AW209: 36" CMP (Grout) | AX209: 42" CMP (Grout) | AY209: 48" CMP (Grout) | AZ209: 54" CMP (Grout) | BA209: 60" CMP (Grout) | BB209: 66" CMP (Grout) | BC209: 72" CMP (Grout) | BD209: 2" PVC SDR35 (Grout) | BE209: 3" PVC SDR35 (Grout) | BF209: 4" PVC SDR35 (Grout) | BG209: 6" PVC SDR35 (Grout) | BH209: 8" PVC SDR35 (Grout) | BI209: 10" PVC SDR35 (Grout) | BJ209: 12" PVC SDR35 (Grout) | BK209: 15" PVC SDR35 (Grout) | BL209: 18" PVC SDR35 (Grout) | BM209: 21" PVC SDR35 (Grout) | BN209: 24" PVC SDR35 (Grout) | BO209: 2" PVC SCH40 (Grout) | BP209: 3" PVC SCH40 (Grout) | BQ209: 4" PVC SCH40 (Grout) | BR209: 6" PVC SCH40 (Grout) | BS209: 8" PVC SCH40 (Grout) | BT209: 10" PVC SCH40 (Grout) | BU209: 12" PVC SCH40 (Grout) | BV209: 15" PVC SCH40 (Grout) | BW209: 18" PVC SCH40 (Grout) | BX209: 21" PVC SCH40 (Grout) | BY209: 24" PVC SCH40 (Grout) | BZ209: 23"x14" HERCP (Grout) | CA209: 30"x19" HERCP (Grout) | CB209: 34"x22" HERCP (Grout) | CC209: 38"x24" HERCP (Grout) | CD209: 42"x27" HERCP (Grout) | CE209: 45"x29" HERCP (Grout) | CF209: 49"x32" HERCP (Grout) | CG209: 53"x34" HERCP (Grout) | CH209: 60"x38" HERCP (Grout) | CI209: 68"x43" HERCP (Grout) | CJ209: 76"x48" HERCP (Grout) | CK209: 2" PVC SDR35 Boot | CL209: 3" PVC SDR35 Boot | CM209: 4" PVC SDR35 Boot | CN209: 6" PVC SDR35 Boot | CO209: 8" PVC SDR35 Boot | CP209: 10" PVC SDR35 Boot | CQ209: 12" PVC SDR35 Boot | CR209: 15" PVC SDR35 Boot | CS209: 18" PVC SDR35 Boot | CT209: 21" PVC SDR35 Boot | CU209: 24" PVC SDR35 Boot | CV209: 27" PVC SDR35 Boot (60" MH Min.) | CW209: 30" PVC SDR35 Boot (72" MH Min.) | CX209: 36" PVC SDR35 Boot (72" MH Min.) | CY209: 42" PVC SDR35 Boot (84" MH Min.) | CZ209: 48" PVC SDR35 Boot (96" MH Min.) | DA209: 4" PVC SDR26 Boot | DB209: 6" PVC SDR26 Boot | DC209: 8" PVC SDR26 Boot | DD209: 10" PVC SDR26 Boot | DE209: 12" PVC SDR26 Boot | DF209: 15" PVC SDR26 Boot | DG209: 18" PVC SDR26 Boot | DH209: 21" PVC SDR26 Boot | DI209: 24" PVC SDR26 Boot | DJ209: 27" PVC SDR26 Boot (60" MH Min.) | DK209: 30" PVC SDR26 Boot (72" MH Min.) | DL209: 36" PVC SDR26 Boot (72" MH Min.) | DM209: 42" PVC SDR26 Boot (84" MH Min.) | DN209: 48" PVC SDR26 Boot (96" MH Min.) | DO209: 1.5" PVC SCH40 Boot | DP209: 2" PVC SCH40 Boot | DQ209: 2.5" PVC SCH40 Boot | DR209: 3" PVC SCH40 Boot | DS209: 3.5" PVC SCH40 Boot | DT209: 4" PVC SCH40 Boot | DU209: 6" PVC SCH40 Boot | DV209: 8" PVC SCH40 Boot | DW209: 10" PVC SCH40 Boot | DX209: 12" PVC SCH40 Boot | DY209: 14" PVC SCH40 Boot | DZ209: 16" PVC SCH40 Boot | EA209: 18" PVC SCH40 Boot | EB209: 20" PVC SCH40 Boot | EC209: 24" PVC SCH40 Boot | ED209: 1.5" PVC SCH80 Boot | EE209: 2" PVC SCH80 Boot | EF209: 2.5" PVC SCH80 Boot | EG209: 3" PVC SCH80 Boot | EH209: 4" PVC SCH80 Boot | EI209: 6" PVC SCH80 Boot | EJ209: 8" PVC SCH80 Boot | EK209: 10" PVC SCH80 Boot | EL209: 12" PVC SCH80 Boot | EM209: 14" PVC SCH80 Boot | EN209: 16" PVC SCH80 Boot | EO209: 3" PVC C900 Boot | EP209: 4" PVC C900 Boot | EQ209: 6" PVC C900 Boot | ER209: 8" PVC C900 Boot | ES209: 10" PVC C900 Boot | ET209: 12" PVC C900 Boot | EU209: 14" PVC C900 Boot | EV209: 16" PVC C900 Boot | EW209: 18" PVC C900 Boot | EX209: 20" PVC C900 Boot | EY209: 24" PVC C900 Boot (60" MH Min.) | EZ209: 30" PVC C900 Boot (72" MH Min.) | FA209: 36" PVC C900 Boot (72" MH Min.) | FB209: 42" PVC C900 Boot (84" MH Min.) | FC209: 48" PVC C900 Boot (96" MH Min.) | FD209: 1.5" DI Boot | FE209: 2" DI Boot | FF209: 3" DI Boot | FG209: 4" DI Boot | FH209: 6" DI Boot | FI209: 8" DI Boot | FJ209: 10" DI Boot | FK209: 12" DI Boot | FL209: 14" DI Boot | FM209: 16" DI Boot | FN209: 18" DI Boot | FO209: 20" DI Boot | FP209: 24" DI Boot (60" MH Min.) | FQ209: 30" DI Boot (72" MH Min.) | FR209: 36" DI Boot (72" MH Min.) | FS209: 42" DI Boot (84" MH Min.) | FT209: 48" DI Boot (96" MH Min.) | FU209: 4" PVC SDR35 A-Lok | FV209: 6" PVC SDR35 A-Lok | FW209: 8" PVC SDR35 A-Lok | FX209: 10" PVC SDR35 A-Lok | FY209: 12" PVC SDR35 A-Lok | FZ209: 15" PVC SDR35 A-Lok | GA209: 18" PVC SDR35 A-Lok | GB209: 21" PVC SDR35 A-Lok | GC209: 24" PVC SDR35 A-Lok | GD209: 27" PVC SDR35 A-Lok | GE209: 30" PVC SDR35 A-Lok (60" MH Min.) | GF209: 36" PVC SDR35 A-Lok (60" MH Min.) | GG209: 42" PVC SDR35 A-Lok (72" MH Min.) | GH209: 48" PVC SDR35 A-Lok (72" MH Min.) | GI209: 54" PVC SDR35 A-Lok (84" MH Min.) | GJ209: 60" PVC SDR35 A-Lok (96" MH Min.) | GK209: 4" PVC SDR26 A-Lok | GL209: 6" PVC SDR26 A-Lok | GM209: 8" PVC SDR26 A-Lok | GN209: 10" PVC SDR26 A-Lok | GO209: 12" PVC SDR26 A-Lok | GP209: 15" PVC SDR26 A-Lok | GQ209: 18" PVC SDR26 A-Lok | GR209: 21" PVC SDR26 A-Lok | GS209: 24" PVC SDR26 A-Lok | GT209: 27" PVC SDR26 A-Lok | GU209: 30" PVC SDR26 A-Lok (60" MH Min.) | GV209: 36" PVC SDR26 A-Lok (60" MH Min.) | GW209: 42" PVC SDR26 A-Lok (72" MH Min.) | GX209: 48" PVC SDR26 A-Lok (72" MH Min.) | GY209: 54" PVC SDR26 A-Lok (84" MH Min.) | GZ209: 60" PVC SDR26 A-Lok (96" MH Min.) | HA209: 4" PVC C900 A-Lok | HB209: 6" PVC C900 A-Lok | HC209: 8" PVC C900 A-Lok | HD209: 10" PVC C900 A-Lok | HE209: 12" PVC C900 A-Lok | HF209: 14" PVC C900 A-Lok | HG209: 16" PVC C900 A-Lok | HH209: 18" PVC C900 A-Lok | HI209: 20" PVC C900 A-Lok | HJ209: 24" PVC C900 A-Lok | HK209: 30" PVC C900 A-Lok (60" MH Min.) | HL209: 36" PVC C900 A-Lok (60" MH Min.) | HM209: 42" PVC C900 A-Lok (72" MH Min.) | HN209: 48" PVC C900 A-Lok (72" MH Min.) | HO209: 54" PVC C900 A-Lok (84" MH Min.) | HP209: 60" PVC C900 A-Lok (96" MH Min.) | HQ209: 4" DI A-Lok | HR209: 6" DI A-Lok | HS209: 8" DI A-Lok | HT209: 10" DI A-Lok | HU209: 12" DI A-Lok | HV209: 14" DI A-Lok | HW209: 16" DI A-Lok | HX209: 18" DI A-Lok | HY209: 20" DI A-Lok | HZ209: 24" DI A-Lok | IA209: 30" DI A-Lok (60" MH Min.) | IB209: 36" DI A-Lok (60" MH Min.) | IC209: 42" DI A-Lok (72" MH Min.) | ID209: 48" DI A-Lok (72" MH Min.) | IE209: 54" DI A-Lok (84" MH Min.) | IF209: A-Lok 1840 Mandrel (84" MH) | IG209: A-Lok 1840 Mandrel (96" MH) | IH209: A-Lok 1840 Mandrel (108" MH) | II209: A-Lok 1840 Mandrel (120" MH) | IJ209: A-Lok 1840 Mandrel (144" MH) | IK209: A-Lok 1840 Mandrel (12" Flat Wall) | IL209: 60" DI A-Lok (96" MH Min.) | IM209: A-Lok 1930 Mandrel (96" MH) | IN209: A-Lok 1930 Mandrel (108" MH) | IO209: A-Lok 1930 Mandrel (120" MH) | IP209: A-Lok 1930 Mandrel (144" MH) | IQ209: A-Lok 1930 Mandrel (12" Flat Wall) | IR209: 64" DI A-Lok (96" MH Min.) | IS209: A-Lok 2050 Mandrel (96" MH) | IT209: A-Lok 2050 Mandrel (108" MH) | IU209: A-Lok 2050 Mandrel (120" MH) | IV209: 36" HOBAS A-Lok (60" MH Min.) | IW209: 42" HOBAS A-Lok (72" MH Min.) | IX209: 48" HOBAS A-Lok (72" MH Min.) | IY209: 54" HOBAS A-Lok (84" MH Min.) | IZ209: A-Lok 1830 Mandrel (84" MH) | JA209: A-Lok 1830 Mandrel (96" MH) | JB209: A-Lok 1830 Mandrel (108" MH) | JC209: A-Lok 1830 Mandrel (120" MH) | JD209: A-Lok 1830 Mandrel (144" MH) | JE209: A-Lok 1830 Mandrel (12" Flat Wall) | JF209: 60" HOBAS A-Lok (96" MH Min.) | JG209: A-Lok 1970 Mandrel (96" MH) | JH209: A-Lok 1970 Mandrel (108" MH) | JI209: A-Lok 1970 Mandrel (120" MH) | JJ209: A-Lok 1970 Mandrel (144" MH) | JK209: A-Lok 1970 Mandrel (12" Flat Wall) | JL209: 66" HOBAS A-Lok (96" MH Min.) | JM209: A-Lok 2210 Mandrel (96" MH) | JN209: A-Lok 2210 Mandrel (108" MH) | JO209: A-Lok 2210 Mandrel (120" MH) | JP209: A-Lok 2210 Mandrel (144" MH) | JQ209: A-Lok 2210 Mandrel (12" Flat Wall) | JR209: 72" HOBAS A-Lok (108" MH Min.) | JS209: A-Lok 2430 Mandrel (108" MH) | JT209: A-Lok 2430 Mandrel (120" MH) | JU209: A-Lok 2430 Mandrel (144" MH) | JV209: A-Lok 2430 Mandrel (12" Flat Wall) | JW209: 12" B-Wall RCP A-Lok | JX209: 15" B-Wall RCP A-Lok | JY209: 18" B-Wall RCP A-Lok | JZ209: 21" B-Wall RCP A-Lok | KA209: 24" B-Wall RCP A-Lok | KB209: 27" B-Wall RCP A-Lok (60" MH Min.) | KC209: 30" B-Wall RCP A-Lok (60" MH Min.) | KD209: A-Lok 1200 Mandrel (60" MH) | KE209: A-Lok 1200 Mandrel (72" MH) | KF209: A-Lok 1200 Mandrel (84" MH) | KG209: A-Lok 1200 Mandrel (96" MH) | KH209: A-Lok 1200 Mandrel (108" MH) | KI209: A-Lok 1200 Mandrel (120" MH) | KJ209: A-Lok 1200 Mandrel (144" MH) | KK209: 36" B-Wall RCP A-Lok (72" MH Min.) | KL209: A-Lok 1420 Mandrel (72" MH) | KM209: A-Lok 1420 Mandrel (84" MH) | KN209: A-Lok 1420 Mandrel (96" MH) | KO209: A-Lok 1420 Mandrel (108" MH) | KP209: A-Lok 1420 Mandrel (120" MH) | KQ209: A-Lok 1420 Mandrel (144" MH) | KR209: 42" B-Wall RCP A-Lok (72" MH Min.) | KS209: A-Lok 1640 Mandrel (72" MH) | KT209: A-Lok 1640 Mandrel (84" MH) | KU209: A-Lok 1640 Mandrel (96" MH) | KV209: A-Lok 1640 Mandrel (108" MH) | KW209: A-Lok 1640 Mandrel (120" MH) | KX209: A-Lok 1640 Mandrel (144" MH) | KY209: 48" B-Wall RCP A-Lok (84" MH Min.) | KZ209: A-Lok 1860 Mandrel (84" MH) | LA209: A-Lok 1860 Mandrel (96" MH) | LB209: A-Lok 1860 Mandrel (108" MH) | LC209: A-Lok 1860 Mandrel (120" MH) | LD209: A-Lok 1860 Mandrel (144" MH) | LE209: 54" B-Wall RCP A-Lok (84" MH Min.) | LF209: A-Lok 2040 Mandrel (84" MH) | LG209: A-Lok 2040 Mandrel (96" MH) | LH209: A-Lok 2040 Mandrel (108" MH) | LI209: A-Lok 2040 Mandrel (120" MH) | LJ209: A-Lok 2040 Mandrel (144" MH) | LK209: 60" B-Wall RCP A-Lok (96" MH Min.) | LL209: A-Lok 2300 Mandrel (96" MH) | LM209: A-Lok 2300 Mandrel (108" MH) | LN209: A-Lok 2300 Mandrel (120" MH) | LO209: A-Lok 2300 Mandrel (144" MH) | LP209: 66" B-Wall RCP A-Lok (Flat Wall Only) | LQ209: A-Lok 2520 Mandrel (120" MH) | LR209: A-Lok 2520 Mandrel (144" MH) | LS209: A-Lok 2520 Mandrel (12" Flat Wall) | LT209: 72" B-Wall RCP A-Lok (Flat Wall Only) | LU209: A-Lok 2740 Mandrel (120" MH) | LV209: A-Lok 2740 Mandrel (144" MH) | LW209: A-Lok 2740 Mandrel (12" Flat Wall) | LX209: 12" B-Wall RCP Boot | LY209: 15" B-Wall RCP Boot | LZ209: 18" B-Wall RCP Boot | MA209: 21" B-Wall RCP Boot (60" MH Min.) | MB209: 24" B-Wall RCP Boot (60" MH Min.) | MC209: 27" B-Wall RCP Boot (72" MH Min.) | MD209: 30" B-Wall RCP Boot (72" MH Min.) | ME209: 36" B-Wall RCP Boot (84" MH Min.) | MF209: 42" B-Wall RCP Boot (96" MH Min.) | MG209: 4" N-12 Boot W/Adapter | MH209: 6" N-12 Boot W/Adapter | MI209: 8" N-12 Boot W/Adapter | MJ209: 10" N-12 Boot W/Adapter | MK209: 12" N-12 Boot W/Adapter | ML209: 15" N-12 Boot W/Adapter | MM209: 18" N-12 Boot W/Adapter | MN209: 24" N-12 Boot W/Adapter (60" MH Min.) | MO209: 30" N-12 Boot W/Adapter (72" MH Min.) | MP209: 36" N-12 Boot W/Adapter (84" MH Min.) | MQ209: 42" N-12 Boot W/Adapter (96" MH Min.) | MR209: Blank Slot 1 (A-Lok) | MS209: Blank Slot 2 (A-Lok) | MT209: Blank Slot 3 (A-Lok) | MU209: Blank Slot 4 (A-Lok) | MV209: Blank Slot 5 (A-Lok) | MW209: Blank Slot 6 (A-Lok)
B210: Pipe Seal Cost | C210: Pipe Seal Cost | D210: Dollar | CK210: 41 | CL210: 41 | CM210: 41 | CN210: 28 | CO210: 28 | CP210: 49 | CQ210: 49 | CR210: 92 | CS210: 133 | CT210: 144 | CU210: 175 | CV210: 200 | CW210: 241 | CX210: 269 | CY210: 393 | CZ210: 825 | DA210: 41 | DB210: 28 | DC210: 28 | DD210: 49 | DE210: 49 | DF210: 92 | DG210: 133 | DH210: 144 | DI210: 175 | DJ210: 200 | DK210: 241 | DL210: 269 | DM210: 393 | DN210: 825 | DO210: 41 | DP210: 41 | DQ210: 41 | DR210: 41 | DS210: 41 | DT210: 41 | DU210: 28 | DV210: 28 | DW210: 49 | DX210: 49 | DY210: 92 | DZ210: 127 | EA210: 127 | EB210: 133 | EC210: 175 | ED210: 41 | EE210: 41 | EF210: 41 | EG210: 41 | EH210: 41 | EI210: 28 | EJ210: 28 | EK210: 49 | EL210: 49 | EM210: 92 | EN210: 127 | EO210: 41 | EP210: 41 | EQ210: 28 | ER210: 28 | ES210: 49 | ET210: 49 | EU210: 92 | EV210: 110 | EW210: 127 | EX210: 133 | EY210: 175 | EZ210: 241 | FA210: 269 | FB210: 393 | FC210: 825 | FD210: 41 | FE210: 41 | FF210: 41 | FG210: 41 | FH210: 28 | FI210: 35 | FJ210: 49 | FK210: 49 | FL210: 103 | FM210: 114 | FN210: 137 | FO210: 144 | FP210: 185 | FQ210: 241 | FR210: 269 | FS210: 393 | FT210: 825 | FU210: 29 | FV210: 29 | FW210: 31 | FX210: 44 | FY210: 52 | FZ210: 80 | GA210: 99 | GB210: 116 | GC210: 130 | GD210: 269 | GE210: 269 | GF210: 327 | GG210: 380 | GH210: 434 | GI210: 475 | GJ210: 535 | GK210: 29 | GL210: 29 | GM210: 31 | GN210: 44 | GO210: 52 | GP210: 80 | GQ210: 99 | GR210: 116 | GS210: 130 | GT210: 269 | GU210: 269 | GV210: 327 | GW210: 380 | GX210: 434 | GY210: 475 | GZ210: 535 | HA210: 29 | HB210: 29 | HC210: 31 | HD210: 44 | HE210: 52 | HF210: 80 | HG210: 99 | HH210: 110 | HI210: 116 | HJ210: 140 | HK210: 269 | HL210: 327 | HM210: 380 | HN210: 434 | HO210: 475 | HP210: 535 | HQ210: 29 | HR210: 29 | HS210: 31 | HT210: 44 | HU210: 52 | HV210: 80 | HW210: 99 | HX210: 110 | HY210: 116 | HZ210: 140 | IA210: 269 | IB210: 327 | IC210: 380 | ID210: 434 | IE210: 475 | IF210: 2472 | IG210: 2784 | IH210: 3060 | II210: 3202 | IJ210: 3480 | IK210: 2784 | IL210: 535 | IM210: 3658 | IN210: 3841 | IO210: 4033 | IP210: 4206 | IQ210: 3505 | IR210: 597 | IS210: 4200 | IT210: 4421 | IU210: 4642 | IV210: 327 | IW210: 380 | IX210: 434 | IY210: 475 | IZ210: 2472 | JA210: 2784 | JB210: 3060 | JC210: 3202 | JD210: 3480 | JE210: 2784 | JF210: 535 | JG210: 3658 | JH210: 3841 | JI210: 4033 | JJ210: 4206 | JK210: 3505 | JL210: 597 | JM210: 4200 | JN210: 4421 | JO210: 4642 | JP210: 4226 | JQ210: 4025 | JR210: 651 | JS210: 4994 | JT210: Don’t Use | JU210: Don’t Use | JV210: 4777 | JW210: 99 | JX210: 116 | JY210: 130 | JZ210: 200 | KA210: 269 | KB210: 269 | KC210: 327 | LQ210: Don’t Use | LR210: Don’t Use | LU210: Don’t Use | LV210: Don’t Use | LX210: 110 | LY210: 127 | LZ210: 147 | MA210: 166 | MB210: 193 | MC210: 206 | MD210: 225 | ME210: 270 | MF210: 615 | MG210: 55 | MH210: 55 | MI210: 59.57 | MJ210: 73.9 | MK210: 79.09 | ML210: 150.1 | MM210: 180.88 | MN210: 243.8 | MO210: 296.23 | MP210: 351.1 | MQ210: 611.57
... 928 more rows

Sheet Stack-It Export
A1: Stack-IT Initial Export Directions: See SOP. Enter all MTO structures and structure data first in Stack-IT. From the "view" screen in stack-it, left click on the Structure ID header (All structures should show a blue fill color), right click on Structure ID header, select "Copy Extended to Clipboard", Select OK. In the excel "Stack-IT Export" tab, right click on cell A4, paste data into cell A4.
A2: Stack-IT Export of Updates or Changes: See SOP. Update all MTO structures and structure data first in Stack-IT. Create another version of the take-off in in excel
A3: QuoteID | B3: JobName1 | C3: JobName2 | D3: Bid Item ID | E3: ID | F3: Spec | G3: Type | H3: Size [in] | I3: Rim [ft] | J3: Reducer [ft] | K3: Inv 1 Elev [ft] | L3: Inv 1 Deg | M3: Inv 1 Offset [in] | N3: Inv 1 Pipe | O3: Inv 1 Dia [in] | P3: Inv 1 Conn | Q3: Inv 2 Elev [ft] | R3: Inv 2 Deg | S3: Inv 2 Offset [in] | T3: Inv 2 Pipe | U3: Inv 2 Dia [in] | V3: Inv 2 Conn | W3: Inv 3 Elev [ft] | X3: Inv 3 Deg | Y3: Inv 3 Offset [in] | Z3: Inv 3 Pipe | AA3: Inv 3 Dia [in] | AB3: Inv 3 Conn | AC3: Inv 4 Elev [ft] | AD3: Inv 4 Deg | AE3: Inv 4 Offset [in] | AF3: Inv 4 Pipe | AG3: Inv 4 Dia [in] | AH3: Inv 4 Conn | AI3: Inv 5 Elev [ft] | AJ3: Inv 5 Deg | AK3: Inv 5 Offset [in] | AL3: Inv 5 Pipe | AM3: Inv 5 Dia [in] | AN3: Inv 5 Conn | AO3: Inv 6 Elev [ft] | AP3: Inv 6 Deg | AQ3: Inv 6 Offset [in] | AR3: Inv 6 Pipe | AS3: Inv 6 Dia [in] | AT3: Inv 6 Conn | AU3: Inv 7 Elev [ft] | AV3: Inv 7 Deg | AW3: Inv 7 Offset [in] | AX3: Inv 7 Pipe | AY3: Inv 7 Dia [in] | AZ3: Inv 7 Conn | BA3: Inv 8 Elev [ft] | BB3: Inv 8 Deg | BC3: Inv 8 Offset [in] | BD3: Inv 8 Pipe | BE3: Inv 8 Dia [in] | BF3: Inv 8 Conn | BG3: Sump [ft] | BH3: Rim to Invert [ft] | BI3: Structure Price | BJ3: Rim1 Part | BK3: Rim1 Height [in] | BL3: Top1 Part | BM3: Top1 Height [in] | BN3: Wall [in] | BO3: Floor [in] | BP3: Extended Floor [in] | BQ3: Invert Channel | BR3: Drop 1 Height [ft] | BS3: Drop 2 Height [ft] | BT3: Steps | BU3: Joint Count | BV3: Joint Perimeter [ft] | BW3: Joint Sealant | BX3: Joint Wrap | BY3: Admixture | BZ3: Coating Int Type | CA3: Coating Int Qty | CB3: Coating Ext Type | CC3: Coating Ext Qty | CD3: Overall Structure Ht [ft] | CE3: Structure Weight (Net) [lb] | CF3: Structure Volume (Net) [cuyd] | CG3: Ancillary | CH3: Status

Sheet Pipe Input
C1: Data Collection | E1: Formula - Unlock Password: I-Cast | I1: Hidden Items. Unide rows on the quote to use these items.
C2: Select RCP/HERCP Market Location: | E2: Price Per LF (Kentucky & Evansville) | I2: Select Offloading (Up to 60" Round): | K2: No Offloading | AL2: =". Estimated "&ROUNDUP(SUM(I4:I33),0)&" Loads with 60"" and Under" -> . Estimated 0 Loads with 60" and Under
B3: Line Item # | C3: Bid Item # | D3: Pipe Specified | E3: Pipe Type Quoted | F3: Alternate Status | G3: Pipe Selection | H3: Pipe Size | I3: # loads Eligible for offloading | J3: Line Item Description | K3: LF Selling Price | L3: List Price | M3: RCP List Price | N3: HERCP List Price | O3: Markup | P3: LF Selling Price | Q3: Freight Per LF | R3: Freight Per LF | S3: Extended Total RCP Price | T3: RCP % of Project | U3: Total RCP Weight | V3: Extended Total HERCP Price | W3: HERCP % of Project | X3: Total HERCP Weight | Y3: Extended Total HDPE Price | Z3: HDPE % of Project | AA3: HDPE % of a Full Load | AB3: HDPE Full Load Fraction | AC3: Extended Total CMP Price | AD3: Freight Cost Per LF (Netsuite) | AE3: Line Item Freight Cost Total | AF3: Product ID | AG3: Eligible for Offloading | AH3: Pipe Weight | AI3: # of Sections | AJ3: Exact Quantity | AK3: Quantity | AM3: INPUT PIPE RUN LENGTHS IN TABLE BELOW
B4: 1 | F4: =IF(AND(OR(D4="HDPE",D4="CMP"),E4="RCP"),"Alternate","") ->  | I4: =IF(AND(AG4="Yes",G4<>""),(U4/45000),"") ->  | J4: =IFERROR(IF(E4="RCP",INDEX(Database!$E$370:$BE$370,MATCH('Pipe Input'!$J$3,Database!$C$370:$BE$370,0),MATCH('Pipe Input'!G4,Database!$E$368:$BE$368,0)),IF(E4="HERCP",INDEX(Database!$E$412:$S$412,MATCH('Pipe Input'!$J$3,Database!$C$412:$S$412,0),MATCH('Pipe Input'!G4,Database!$E$409:$S$409,0)),IF(E4="HDPE",INDEX(Database!$E$434:$S$434,MATCH('Pipe Input'!$J$3,Database!$C$434:$S$434,0),MATCH('Pipe Input'!G4,Database!$E$432:$S$432,0)),IF(E4="CMP",INDEX(Database!$E$451:$AS$451,MATCH('Pipe Input'!$J$3,Database!$C$451:$AS$451,0),MATCH('Pipe Input'!G4,Database!$E$449:$AS$449,0)),"")))),"") ->  | K4: =IFERROR(IF(AK4>0,(ROUNDUP((((L4+Q4))/(1-O4/100)),2)),""), "") ->  | L4: =IFERROR(IF(E4="RCP",M4,IF(E4="HERCP",N4,IF(E4="HDPE",INDEX(Database!$E$438:$S$438,MATCH('Pipe Input'!$L$3,Database!$C$438:$S$438,0),MATCH('Pipe Input'!G4,Database!$E$432:$S$432,0)),IF(E4="CMP",INDEX(Database!$E$456:$AS$456,MATCH('Pipe Input'!$L$3,Database!$C$456:$AS$456,0),MATCH('Pipe Input'!G4,Database!$E$449:$AS$449,0)),"")))),"") ->  | M4: =IF(E4="RCP",INDEX(Database!$E$375:$BE$379,MATCH('Pipe Input'!$E$2,Database!$C$375:$C$379,0),MATCH('Pipe Input'!G4,Database!$E$368:$BE$368,0)),"") ->  | N4: =IF(E4="HERCP",INDEX(Database!$E$416:$S$420,MATCH('Pipe Input'!$E$2,Database!$C$416:$C$420,0),MATCH('Pipe Input'!G4,Database!$E$409:$S$409,0)),"") ->  | O4: =IF(E4="RCP",Summary!$AV$5,IF(E4="HERCP",Summary!$AV$34,IF(E4="HDPE",Summary!$AV$51,IF(E4="CMP",Summary!$AV$73, "")))) ->  | P4: =IFERROR(K4,"") ->  | Q4: =IF(AK4>0,R4, 0) -> 0 | R4: =IFERROR(IF(E4="RCP",((T4*S37)/(AI4*8)),IF(E4="HERCP",((W4*V37)/(AI4*8)),IF(E4="HDPE",((Z4*Y37)/(AI4*20)),0))), "") -> 0 | S4: =IFERROR(IF(E4="RCP",(K4*AK4), ""), "") ->  | T4: =IFERROR(IF(E4="RCP",(U4/U37), ""), "") ->  | U4: =IFERROR(IF(E4="RCP",AI4*8*AH4, 0), 0) -> 0 | V4: =IFERROR(IF(E4="HERCP",(K4*AK4), ""), "") ->  | W4: =IFERROR(IF(E4="HERCP",(X4/X37), ""), "") ->  | X4: =IFERROR(IF(E4="HERCP",AI4*8*AH4, 0), 0) -> 0 | Y4: =IFERROR(IF(E4="HDPE",(K4*AK4), ""), "") ->  | Z4: =IFERROR(IF(E4="HDPE",(AA4/AA37), ""), "") ->  | AA4: =IFERROR(IF(E4="HDPE",(AB4*AI4), ""), "") ->  | AB4: =IFERROR(IF(E4="HDPE",INDEX(Database!$E$441:$S$441,MATCH('Pipe Input'!$AB$3,Database!$C$441:$S$441,0),MATCH('Pipe Input'!G4,Database!$E$432:$S$432,0)),""), "") ->  | AC4: =IFERROR(IF(E4="CMP",(K4*AK4), ""), "") ->  | AD4: =IF(AE4<>0,ROUND((AE4/AK4),2),"") ->  | AE4: =IF(E4="RCP",(T4*$AE$35),IF(E4="HERCP",(W4*$AE$36),0)) -> 0 | AF4: =IF(E4="RCP",INDEX(Database!$E$384:$BE$384,MATCH('Pipe Input'!$AF$3,Database!$C$384:$BE$384,0),MATCH('Pipe Input'!G4,Database!$E$368:$BE$368,0)),IF(E4="HERCP",INDEX(Database!$E$425:$S$425,MATCH('Pipe Input'!$AF$3,Database!$C$425:$S$425,0),MATCH('Pipe Input'!G4,Database!$E$409:$S$409,0)),"")) ->  | AG4: =IF(AND(E4="RCP",J4<>""),INDEX(Database!$E$386:$BE$386,MATCH('Pipe Input'!$AG$3,Database!$C$386:$BE$386,0),MATCH('Pipe Input'!G4,Database!$E$368:$BE$368,0)),"No") -> No | AH4: =IFERROR(IF(E4="RCP",INDEX(Database!$E$381:$BE$381,MATCH('Pipe Input'!$AH$3,Database!$C$381:$BE$381,0),MATCH('Pipe Input'!G4,Database!$E$368:$BE$368,0)),IF(E4="HERCP",INDEX(Database!$E$422:$S$422,MATCH('Pipe Input'!$AH$3,Database!$C$422:$S$422,0),MATCH('Pipe Input'!G4,Database!$E$409:$S$409,0)),IF(E4="HDPE",INDEX(Database!$E$439:$S$439,MATCH('Pipe Input'!$AH$3,Database!$C$439:$S$439,0),MATCH('Pipe Input'!G4,Database!$E$432:$S$432,0)),IF(E4="CMP",INDEX(Database!$E$457:$AS$457,MATCH('Pipe Input'!$AH$3,Database!$C$457:$AS$457,0),MATCH('Pipe Input'!G4,Database!$E$449:$AS$449,0)),"")))),"") ->  | AI4: =IF(OR(E4="RCP",E4="HERCP"),(ROUNDUP(AJ4/8,0)),IF(OR(E4="HDPE",E4="CMP"),(ROUNDUP(AJ4/20,0)),0)) -> 0 | AJ4: =SUM(AM4:AAL4) -> 0 | AK4: =IF(OR(E4="RCP",E4="HERCP"),(AI4*8),IF(OR(E4="HDPE",E4="CMP"),(AI4*20),0)) -> 0
B5: =B4+1 -> 2 | F5: =IF(AND(OR(D5="HDPE",D5="CMP"),E5="RCP"),"Alternate","") ->  | J5: =IFERROR(IF(E5="RCP",INDEX(Database!$E$370:$BE$370,MATCH('Pipe Input'!$J$3,Database!$C$370:$BE$370,0),MATCH('Pipe Input'!G5,Database!$E$368:$BE$368,0)),IF(E5="HERCP",INDEX(Database!$E$412:$S$412,MATCH('Pipe Input'!$J$3,Database!$C$412:$S$412,0),MATCH('Pipe Input'!G5,Database!$E$409:$S$409,0)),IF(E5="HDPE",INDEX(Database!$E$434:$S$434,MATCH('Pipe Input'!$J$3,Database!$C$434:$S$434,0),MATCH('Pipe Input'!G5,Database!$E$432:$S$432,0)),IF(E5="CMP",INDEX(Database!$E$451:$AS$451,MATCH('Pipe Input'!$J$3,Database!$C$451:$AS$451,0),MATCH('Pipe Input'!G5,Database!$E$449:$AS$449,0)),"")))),"") ->  | K5: =IFERROR(IF(AK5>0,(ROUNDUP((((L5+Q5))/(1-O5/100)),2)),""), "") ->  | L5: =IFERROR(IF(E5="RCP",M5,IF(E5="HERCP",N5,IF(E5="HDPE",INDEX(Database!$E$438:$S$438,MATCH('Pipe Input'!$L$3,Database!$C$438:$S$438,0),MATCH('Pipe Input'!G5,Database!$E$432:$S$432,0)),IF(E5="CMP",INDEX(Database!$E$456:$AS$456,MATCH('Pipe Input'!$L$3,Database!$C$456:$AS$456,0),MATCH('Pipe Input'!G5,Database!$E$449:$AS$449,0)),"")))),"") ->  | M5: =IF(E5="RCP",INDEX(Database!$E$375:$BE$379,MATCH('Pipe Input'!$E$2,Database!$C$375:$C$379,0),MATCH('Pipe Input'!G5,Database!$E$368:$BE$368,0)),"") ->  | N5: =IF(E5="HERCP",INDEX(Database!$E$416:$S$420,MATCH('Pipe Input'!$E$2,Database!$C$416:$C$420,0),MATCH('Pipe Input'!G5,Database!$E$409:$S$409,0)),"") ->  | O5: =IF(E5="RCP",Summary!$AV$5,IF(E5="HERCP",Summary!$AV$34,IF(E5="HDPE",Summary!$AV$51,IF(E5="CMP",Summary!$AV$73, "")))) ->  | P5: =IFERROR(K5,"") ->  | Q5: =IF(AK5>0,R5, 0) -> 0 | R5: =IFERROR(IF(E5="RCP",((T5*S38)/(AI5*8)),IF(E5="HERCP",((W5*V38)/(AI5*8)),IF(E5="HDPE",((Z5*Y38)/(AI5*20)),0))), "") -> 0 | U5: =IFERROR(IF(E5="RCP",AI5*8*AH5, 0), 0) -> 0 | X5: =IFERROR(IF(E5="HERCP",AI5*8*AH5, 0), 0) -> 0 | Y5: =IFERROR(IF(E5="HDPE",(K5*AK5), ""), "") ->  | Z5: =IFERROR(IF(E5="HDPE",(AA5/AA38), ""), "") ->  | AA5: =IFERROR(IF(E5="HDPE",(AB5*AI5), ""), "") ->  | AB5: =IFERROR(IF(E5="HDPE",INDEX(Database!$E$441:$S$441,MATCH('Pipe Input'!$AB$3,Database!$C$441:$S$441,0),MATCH('Pipe Input'!G5,Database!$E$432:$S$432,0)),""), "") ->  | AC5: =IFERROR(IF(E5="CMP",(K5*AK5), ""), "") ->  | AD5: =IF(AE5<>0,ROUND((AE5/AK5),2),"") ->  | AE5: =IF(E5="RCP",(T5*$AE$35),IF(E5="HERCP",(W5*$AE$36),0)) -> 0 | AF5: =IF(E5="RCP",INDEX(Database!$E$384:$BE$384,MATCH('Pipe Input'!$AF$3,Database!$C$384:$BE$384,0),MATCH('Pipe Input'!G5,Database!$E$368:$BE$368,0)),IF(E5="HERCP",INDEX(Database!$E$425:$S$425,MATCH('Pipe Input'!$AF$3,Database!$C$425:$S$425,0),MATCH('Pipe Input'!G5,Database!$E$409:$S$409,0)),"")) ->  | AG5: =IF(AND(E5="RCP",J5<>""),INDEX(Database!$E$386:$BE$386,MATCH('Pipe Input'!$AG$3,Database!$C$386:$BE$386,0),MATCH('Pipe Input'!G5,Database!$E$368:$BE$368,0)),"No") -> No | AH5: =IFERROR(IF(E5="RCP",INDEX(Database!$E$381:$BE$381,MATCH('Pipe Input'!$AH$3,Database!$C$381:$BE$381,0),MATCH('Pipe Input'!G5,Database!$E$368:$BE$368,0)),IF(E5="HERCP",INDEX(Database!$E$422:$S$422,MATCH('Pipe Input'!$AH$3,Database!$C$422:$S$422,0),MATCH('Pipe Input'!G5,Database!$E$409:$S$409,0)),IF(E5="HDPE",INDEX(Database!$E$439:$S$439,MATCH('Pipe Input'!$AH$3,Database!$C$439:$S$439,0),MATCH('Pipe Input'!G5,Database!$E$432:$S$432,0)),IF(E5="CMP",INDEX(Database!$E$457:$AS$457,MATCH('Pipe Input'!$AH$3,Database!$C$457:$AS$457,0),MATCH('Pipe Input'!G5,Database!$E$449:$AS$449,0)),"")))),"") ->  | AI5: =IF(OR(E5="RCP",E5="HERCP"),(ROUNDUP(AJ5/8,0)),IF(OR(E5="HDPE",E5="CMP"),(ROUNDUP(AJ5/20,0)),0)) -> 0 | AJ5: 0 | AK5: 0
B6: =B5+1 -> 3 | J6: =IFERROR(IF(E6="RCP",INDEX(Database!$E$370:$BE$370,MATCH('Pipe Input'!$J$3,Database!$C$370:$BE$370,0),MATCH('Pipe Input'!G6,Database!$E$368:$BE$368,0)),IF(E6="HERCP",INDEX(Database!$E$412:$S$412,MATCH('Pipe Input'!$J$3,Database!$C$412:$S$412,0),MATCH('Pipe Input'!G6,Database!$E$409:$S$409,0)),IF(E6="HDPE",INDEX(Database!$E$434:$S$434,MATCH('Pipe Input'!$J$3,Database!$C$434:$S$434,0),MATCH('Pipe Input'!G6,Database!$E$432:$S$432,0)),IF(E6="CMP",INDEX(Database!$E$451:$AS$451,MATCH('Pipe Input'!$J$3,Database!$C$451:$AS$451,0),MATCH('Pipe Input'!G6,Database!$E$449:$AS$449,0)),"")))),"") ->  | L6: =IFERROR(IF(E6="RCP",M6,IF(E6="HERCP",N6,IF(E6="HDPE",INDEX(Database!$E$438:$S$438,MATCH('Pipe Input'!$L$3,Database!$C$438:$S$438,0),MATCH('Pipe Input'!G6,Database!$E$432:$S$432,0)),IF(E6="CMP",INDEX(Database!$E$456:$AS$456,MATCH('Pipe Input'!$L$3,Database!$C$456:$AS$456,0),MATCH('Pipe Input'!G6,Database!$E$449:$AS$449,0)),"")))),"") ->  | M6: =IF(E6="RCP",INDEX(Database!$E$375:$BE$379,MATCH('Pipe Input'!$E$2,Database!$C$375:$C$379,0),MATCH('Pipe Input'!G6,Database!$E$368:$BE$368,0)),"") ->  | N6: =IF(E6="HERCP",INDEX(Database!$E$416:$S$420,MATCH('Pipe Input'!$E$2,Database!$C$416:$C$420,0),MATCH('Pipe Input'!G6,Database!$E$409:$S$409,0)),"") ->  | O6: =IF(E6="RCP",Summary!$AV$5,IF(E6="HERCP",Summary!$AV$34,IF(E6="HDPE",Summary!$AV$51,IF(E6="CMP",Summary!$AV$73, "")))) ->  | P6: =IFERROR(K6,"") ->  | Q6: 0 | R6: 0 | U6: 0 | X6: 0 | AB6: =IFERROR(IF(E6="HDPE",INDEX(Database!$E$441:$S$441,MATCH('Pipe Input'!$AB$3,Database!$C$441:$S$441,0),MATCH('Pipe Input'!G6,Database!$E$432:$S$432,0)),""), "") ->  | AE6: 0 | AF6: =IF(E6="RCP",INDEX(Database!$E$384:$BE$384,MATCH('Pipe Input'!$AF$3,Database!$C$384:$BE$384,0),MATCH('Pipe Input'!G6,Database!$E$368:$BE$368,0)),IF(E6="HERCP",INDEX(Database!$E$425:$S$425,MATCH('Pipe Input'!$AF$3,Database!$C$425:$S$425,0),MATCH('Pipe Input'!G6,Database!$E$409:$S$409,0)),"")) ->  | AG6: =IF(AND(E6="RCP",J6<>""),INDEX(Database!$E$386:$BE$386,MATCH('Pipe Input'!$AG$3,Database!$C$386:$BE$386,0),MATCH('Pipe Input'!G6,Database!$E$368:$BE$368,0)),"No") -> No | AH6: =IFERROR(IF(E6="RCP",INDEX(Database!$E$381:$BE$381,MATCH('Pipe Input'!$AH$3,Database!$C$381:$BE$381,0),MATCH('Pipe Input'!G6,Database!$E$368:$BE$368,0)),IF(E6="HERCP",INDEX(Database!$E$422:$S$422,MATCH('Pipe Input'!$AH$3,Database!$C$422:$S$422,0),MATCH('Pipe Input'!G6,Database!$E$409:$S$409,0)),IF(E6="HDPE",INDEX(Database!$E$439:$S$439,MATCH('Pipe Input'!$AH$3,Database!$C$439:$S$439,0),MATCH('Pipe Input'!G6,Database!$E$432:$S$432,0)),IF(E6="CMP",INDEX(Database!$E$457:$AS$457,MATCH('Pipe Input'!$AH$3,Database!$C$457:$AS$457,0),MATCH('Pipe Input'!G6,Database!$E$449:$AS$449,0)),"")))),"") ->  | AI6: 0 | AJ6: =SUM(AM6:AAL6) -> 0 | AK6: 0
B7: 4 | J7: =IFERROR(IF(E7="RCP",INDEX(Database!$E$370:$BE$370,MATCH('Pipe Input'!$J$3,Database!$C$370:$BE$370,0),MATCH('Pipe Input'!G7,Database!$E$368:$BE$368,0)),IF(E7="HERCP",INDEX(Database!$E$412:$S$412,MATCH('Pipe Input'!$J$3,Database!$C$412:$S$412,0),MATCH('Pipe Input'!G7,Database!$E$409:$S$409,0)),IF(E7="HDPE",INDEX(Database!$E$434:$S$434,MATCH('Pipe Input'!$J$3,Database!$C$434:$S$434,0),MATCH('Pipe Input'!G7,Database!$E$432:$S$432,0)),IF(E7="CMP",INDEX(Database!$E$451:$AS$451,MATCH('Pipe Input'!$J$3,Database!$C$451:$AS$451,0),MATCH('Pipe Input'!G7,Database!$E$449:$AS$449,0)),"")))),"") ->  | L7: =IFERROR(IF(E7="RCP",M7,IF(E7="HERCP",N7,IF(E7="HDPE",INDEX(Database!$E$438:$S$438,MATCH('Pipe Input'!$L$3,Database!$C$438:$S$438,0),MATCH('Pipe Input'!G7,Database!$E$432:$S$432,0)),IF(E7="CMP",INDEX(Database!$E$456:$AS$456,MATCH('Pipe Input'!$L$3,Database!$C$456:$AS$456,0),MATCH('Pipe Input'!G7,Database!$E$449:$AS$449,0)),"")))),"") ->  | M7: =IF(E7="RCP",INDEX(Database!$E$375:$BE$379,MATCH('Pipe Input'!$E$2,Database!$C$375:$C$379,0),MATCH('Pipe Input'!G7,Database!$E$368:$BE$368,0)),"") ->  | N7: =IF(E7="HERCP",INDEX(Database!$E$416:$S$420,MATCH('Pipe Input'!$E$2,Database!$C$416:$C$420,0),MATCH('Pipe Input'!G7,Database!$E$409:$S$409,0)),"") ->  | O7: =IF(E7="RCP",Summary!$AV$5,IF(E7="HERCP",Summary!$AV$34,IF(E7="HDPE",Summary!$AV$51,IF(E7="CMP",Summary!$AV$73, "")))) ->  | P7: =IFERROR(K7,"") ->  | Q7: 0 | R7: 0 | U7: 0 | X7: 0 | AB7: =IFERROR(IF(E7="HDPE",INDEX(Database!$E$441:$S$441,MATCH('Pipe Input'!$AB$3,Database!$C$441:$S$441,0),MATCH('Pipe Input'!G7,Database!$E$432:$S$432,0)),""), "") ->  | AE7: 0 | AF7: =IF(E7="RCP",INDEX(Database!$E$384:$BE$384,MATCH('Pipe Input'!$AF$3,Database!$C$384:$BE$384,0),MATCH('Pipe Input'!G7,Database!$E$368:$BE$368,0)),IF(E7="HERCP",INDEX(Database!$E$425:$S$425,MATCH('Pipe Input'!$AF$3,Database!$C$425:$S$425,0),MATCH('Pipe Input'!G7,Database!$E$409:$S$409,0)),"")) ->  | AG7: =IF(AND(E7="RCP",J7<>""),INDEX(Database!$E$386:$BE$386,MATCH('Pipe Input'!$AG$3,Database!$C$386:$BE$386,0),MATCH('Pipe Input'!G7,Database!$E$368:$BE$368,0)),"No") -> No | AH7: =IFERROR(IF(E7="RCP",INDEX(Database!$E$381:$BE$381,MATCH('Pipe Input'!$AH$3,Database!$C$381:$BE$381,0),MATCH('Pipe Input'!G7,Database!$E$368:$BE$368,0)),IF(E7="HERCP",INDEX(Database!$E$422:$S$422,MATCH('Pipe Input'!$AH$3,Database!$C$422:$S$422,0),MATCH('Pipe Input'!G7,Database!$E$409:$S$409,0)),IF(E7="HDPE",INDEX(Database!$E$439:$S$439,MATCH('Pipe Input'!$AH$3,Database!$C$439:$S$439,0),MATCH('Pipe Input'!G7,Database!$E$432:$S$432,0)),IF(E7="CMP",INDEX(Database!$E$457:$AS$457,MATCH('Pipe Input'!$AH$3,Database!$C$457:$AS$457,0),MATCH('Pipe Input'!G7,Database!$E$449:$AS$449,0)),"")))),"") ->  | AI7: 0 | AJ7: 0 | AK7: 0
B8: 5 | J8: =IFERROR(IF(E8="RCP",INDEX(Database!$E$370:$BE$370,MATCH('Pipe Input'!$J$3,Database!$C$370:$BE$370,0),MATCH('Pipe Input'!G8,Database!$E$368:$BE$368,0)),IF(E8="HERCP",INDEX(Database!$E$412:$S$412,MATCH('Pipe Input'!$J$3,Database!$C$412:$S$412,0),MATCH('Pipe Input'!G8,Database!$E$409:$S$409,0)),IF(E8="HDPE",INDEX(Database!$E$434:$S$434,MATCH('Pipe Input'!$J$3,Database!$C$434:$S$434,0),MATCH('Pipe Input'!G8,Database!$E$432:$S$432,0)),IF(E8="CMP",INDEX(Database!$E$451:$AS$451,MATCH('Pipe Input'!$J$3,Database!$C$451:$AS$451,0),MATCH('Pipe Input'!G8,Database!$E$449:$AS$449,0)),"")))),"") ->  | L8: =IFERROR(IF(E8="RCP",M8,IF(E8="HERCP",N8,IF(E8="HDPE",INDEX(Database!$E$438:$S$438,MATCH('Pipe Input'!$L$3,Database!$C$438:$S$438,0),MATCH('Pipe Input'!G8,Database!$E$432:$S$432,0)),IF(E8="CMP",INDEX(Database!$E$456:$AS$456,MATCH('Pipe Input'!$L$3,Database!$C$456:$AS$456,0),MATCH('Pipe Input'!G8,Database!$E$449:$AS$449,0)),"")))),"") ->  | M8: =IF(E8="RCP",INDEX(Database!$E$375:$BE$379,MATCH('Pipe Input'!$E$2,Database!$C$375:$C$379,0),MATCH('Pipe Input'!G8,Database!$E$368:$BE$368,0)),"") ->  | N8: =IF(E8="HERCP",INDEX(Database!$E$416:$S$420,MATCH('Pipe Input'!$E$2,Database!$C$416:$C$420,0),MATCH('Pipe Input'!G8,Database!$E$409:$S$409,0)),"") ->  | O8: =IF(E8="RCP",Summary!$AV$5,IF(E8="HERCP",Summary!$AV$34,IF(E8="HDPE",Summary!$AV$51,IF(E8="CMP",Summary!$AV$73, "")))) ->  | Q8: 0 | R8: 0 | U8: 0 | X8: 0 | AB8: =IFERROR(IF(E8="HDPE",INDEX(Database!$E$441:$S$441,MATCH('Pipe Input'!$AB$3,Database!$C$441:$S$441,0),MATCH('Pipe Input'!G8,Database!$E$432:$S$432,0)),""), "") ->  | AE8: 0 | AF8: =IF(E8="RCP",INDEX(Database!$E$384:$BE$384,MATCH('Pipe Input'!$AF$3,Database!$C$384:$BE$384,0),MATCH('Pipe Input'!G8,Database!$E$368:$BE$368,0)),IF(E8="HERCP",INDEX(Database!$E$425:$S$425,MATCH('Pipe Input'!$AF$3,Database!$C$425:$S$425,0),MATCH('Pipe Input'!G8,Database!$E$409:$S$409,0)),"")) ->  | AG8: =IF(AND(E8="RCP",J8<>""),INDEX(Database!$E$386:$BE$386,MATCH('Pipe Input'!$AG$3,Database!$C$386:$BE$386,0),MATCH('Pipe Input'!G8,Database!$E$368:$BE$368,0)),"No") -> No | AH8: =IFERROR(IF(E8="RCP",INDEX(Database!$E$381:$BE$381,MATCH('Pipe Input'!$AH$3,Database!$C$381:$BE$381,0),MATCH('Pipe Input'!G8,Database!$E$368:$BE$368,0)),IF(E8="HERCP",INDEX(Database!$E$422:$S$422,MATCH('Pipe Input'!$AH$3,Database!$C$422:$S$422,0),MATCH('Pipe Input'!G8,Database!$E$409:$S$409,0)),IF(E8="HDPE",INDEX(Database!$E$439:$S$439,MATCH('Pipe Input'!$AH$3,Database!$C$439:$S$439,0),MATCH('Pipe Input'!G8,Database!$E$432:$S$432,0)),IF(E8="CMP",INDEX(Database!$E$457:$AS$457,MATCH('Pipe Input'!$AH$3,Database!$C$457:$AS$457,0),MATCH('Pipe Input'!G8,Database!$E$449:$AS$449,0)),"")))),"") ->  | AI8: 0 | AJ8: 0 | AK8: 0
B9: 6 | J9: =IFERROR(IF(E9="RCP",INDEX(Database!$E$370:$BE$370,MATCH('Pipe Input'!$J$3,Database!$C$370:$BE$370,0),MATCH('Pipe Input'!G9,Database!$E$368:$BE$368,0)),IF(E9="HERCP",INDEX(Database!$E$412:$S$412,MATCH('Pipe Input'!$J$3,Database!$C$412:$S$412,0),MATCH('Pipe Input'!G9,Database!$E$409:$S$409,0)),IF(E9="HDPE",INDEX(Database!$E$434:$S$434,MATCH('Pipe Input'!$J$3,Database!$C$434:$S$434,0),MATCH('Pipe Input'!G9,Database!$E$432:$S$432,0)),IF(E9="CMP",INDEX(Database!$E$451:$AS$451,MATCH('Pipe Input'!$J$3,Database!$C$451:$AS$451,0),MATCH('Pipe Input'!G9,Database!$E$449:$AS$449,0)),"")))),"") ->  | L9: =IFERROR(IF(E9="RCP",M9,IF(E9="HERCP",N9,IF(E9="HDPE",INDEX(Database!$E$438:$S$438,MATCH('Pipe Input'!$L$3,Database!$C$438:$S$438,0),MATCH('Pipe Input'!G9,Database!$E$432:$S$432,0)),IF(E9="CMP",INDEX(Database!$E$456:$AS$456,MATCH('Pipe Input'!$L$3,Database!$C$456:$AS$456,0),MATCH('Pipe Input'!G9,Database!$E$449:$AS$449,0)),"")))),"") ->  | M9: =IF(E9="RCP",INDEX(Database!$E$375:$BE$379,MATCH('Pipe Input'!$E$2,Database!$C$375:$C$379,0),MATCH('Pipe Input'!G9,Database!$E$368:$BE$368,0)),"") ->  | N9: =IF(E9="HERCP",INDEX(Database!$E$416:$S$420,MATCH('Pipe Input'!$E$2,Database!$C$416:$C$420,0),MATCH('Pipe Input'!G9,Database!$E$409:$S$409,0)),"") ->  | O9: =IF(E9="RCP",Summary!$AV$5,IF(E9="HERCP",Summary!$AV$34,IF(E9="HDPE",Summary!$AV$51,IF(E9="CMP",Summary!$AV$73, "")))) ->  | Q9: 0 | R9: 0 | U9: 0 | X9: 0 | AB9: =IFERROR(IF(E9="HDPE",INDEX(Database!$E$441:$S$441,MATCH('Pipe Input'!$AB$3,Database!$C$441:$S$441,0),MATCH('Pipe Input'!G9,Database!$E$432:$S$432,0)),""), "") ->  | AE9: 0 | AF9: =IF(E9="RCP",INDEX(Database!$E$384:$BE$384,MATCH('Pipe Input'!$AF$3,Database!$C$384:$BE$384,0),MATCH('Pipe Input'!G9,Database!$E$368:$BE$368,0)),IF(E9="HERCP",INDEX(Database!$E$425:$S$425,MATCH('Pipe Input'!$AF$3,Database!$C$425:$S$425,0),MATCH('Pipe Input'!G9,Database!$E$409:$S$409,0)),"")) ->  | AG9: =IF(AND(E9="RCP",J9<>""),INDEX(Database!$E$386:$BE$386,MATCH('Pipe Input'!$AG$3,Database!$C$386:$BE$386,0),MATCH('Pipe Input'!G9,Database!$E$368:$BE$368,0)),"No") -> No | AH9: =IFERROR(IF(E9="RCP",INDEX(Database!$E$381:$BE$381,MATCH('Pipe Input'!$AH$3,Database!$C$381:$BE$381,0),MATCH('Pipe Input'!G9,Database!$E$368:$BE$368,0)),IF(E9="HERCP",INDEX(Database!$E$422:$S$422,MATCH('Pipe Input'!$AH$3,Database!$C$422:$S$422,0),MATCH('Pipe Input'!G9,Database!$E$409:$S$409,0)),IF(E9="HDPE",INDEX(Database!$E$439:$S$439,MATCH('Pipe Input'!$AH$3,Database!$C$439:$S$439,0),MATCH('Pipe Input'!G9,Database!$E$432:$S$432,0)),IF(E9="CMP",INDEX(Database!$E$457:$AS$457,MATCH('Pipe Input'!$AH$3,Database!$C$457:$AS$457,0),MATCH('Pipe Input'!G9,Database!$E$449:$AS$449,0)),"")))),"") ->  | AI9: 0 | AJ9: 0 | AK9: 0
B10: 7 | J10: =IFERROR(IF(E10="RCP",INDEX(Database!$E$370:$BE$370,MATCH('Pipe Input'!$J$3,Database!$C$370:$BE$370,0),MATCH('Pipe Input'!G10,Database!$E$368:$BE$368,0)),IF(E10="HERCP",INDEX(Database!$E$412:$S$412,MATCH('Pipe Input'!$J$3,Database!$C$412:$S$412,0),MATCH('Pipe Input'!G10,Database!$E$409:$S$409,0)),IF(E10="HDPE",INDEX(Database!$E$434:$S$434,MATCH('Pipe Input'!$J$3,Database!$C$434:$S$434,0),MATCH('Pipe Input'!G10,Database!$E$432:$S$432,0)),IF(E10="CMP",INDEX(Database!$E$451:$AS$451,MATCH('Pipe Input'!$J$3,Database!$C$451:$AS$451,0),MATCH('Pipe Input'!G10,Database!$E$449:$AS$449,0)),"")))),"") ->  | L10: =IFERROR(IF(E10="RCP",M10,IF(E10="HERCP",N10,IF(E10="HDPE",INDEX(Database!$E$438:$S$438,MATCH('Pipe Input'!$L$3,Database!$C$438:$S$438,0),MATCH('Pipe Input'!G10,Database!$E$432:$S$432,0)),IF(E10="CMP",INDEX(Database!$E$456:$AS$456,MATCH('Pipe Input'!$L$3,Database!$C$456:$AS$456,0),MATCH('Pipe Input'!G10,Database!$E$449:$AS$449,0)),"")))),"") ->  | M10: =IF(E10="RCP",INDEX(Database!$E$375:$BE$379,MATCH('Pipe Input'!$E$2,Database!$C$375:$C$379,0),MATCH('Pipe Input'!G10,Database!$E$368:$BE$368,0)),"") ->  | N10: =IF(E10="HERCP",INDEX(Database!$E$416:$S$420,MATCH('Pipe Input'!$E$2,Database!$C$416:$C$420,0),MATCH('Pipe Input'!G10,Database!$E$409:$S$409,0)),"") ->  | O10: =IF(E10="RCP",Summary!$AV$5,IF(E10="HERCP",Summary!$AV$34,IF(E10="HDPE",Summary!$AV$51,IF(E10="CMP",Summary!$AV$73, "")))) ->  | Q10: 0 | R10: 0 | U10: 0 | X10: 0 | AB10: =IFERROR(IF(E10="HDPE",INDEX(Database!$E$441:$S$441,MATCH('Pipe Input'!$AB$3,Database!$C$441:$S$441,0),MATCH('Pipe Input'!G10,Database!$E$432:$S$432,0)),""), "") ->  | AE10: 0 | AF10: =IF(E10="RCP",INDEX(Database!$E$384:$BE$384,MATCH('Pipe Input'!$AF$3,Database!$C$384:$BE$384,0),MATCH('Pipe Input'!G10,Database!$E$368:$BE$368,0)),IF(E10="HERCP",INDEX(Database!$E$425:$S$425,MATCH('Pipe Input'!$AF$3,Database!$C$425:$S$425,0),MATCH('Pipe Input'!G10,Database!$E$409:$S$409,0)),"")) ->  | AG10: =IF(AND(E10="RCP",J10<>""),INDEX(Database!$E$386:$BE$386,MATCH('Pipe Input'!$AG$3,Database!$C$386:$BE$386,0),MATCH('Pipe Input'!G10,Database!$E$368:$BE$368,0)),"No") -> No | AH10: =IFERROR(IF(E10="RCP",INDEX(Database!$E$381:$BE$381,MATCH('Pipe Input'!$AH$3,Database!$C$381:$BE$381,0),MATCH('Pipe Input'!G10,Database!$E$368:$BE$368,0)),IF(E10="HERCP",INDEX(Database!$E$422:$S$422,MATCH('Pipe Input'!$AH$3,Database!$C$422:$S$422,0),MATCH('Pipe Input'!G10,Database!$E$409:$S$409,0)),IF(E10="HDPE",INDEX(Database!$E$439:$S$439,MATCH('Pipe Input'!$AH$3,Database!$C$439:$S$439,0),MATCH('Pipe Input'!G10,Database!$E$432:$S$432,0)),IF(E10="CMP",INDEX(Database!$E$457:$AS$457,MATCH('Pipe Input'!$AH$3,Database!$C$457:$AS$457,0),MATCH('Pipe Input'!G10,Database!$E$449:$AS$449,0)),"")))),"") ->  | AI10: 0 | AJ10: 0 | AK10: 0
B11: 8 | I11: =IF(AND(AG11="Yes",G11<>""),(U11/45000),"") ->  | J11: =IFERROR(IF(E11="RCP",INDEX(Database!$E$370:$BE$370,MATCH('Pipe Input'!$J$3,Database!$C$370:$BE$370,0),MATCH('Pipe Input'!G11,Database!$E$368:$BE$368,0)),IF(E11="HERCP",INDEX(Database!$E$412:$S$412,MATCH('Pipe Input'!$J$3,Database!$C$412:$S$412,0),MATCH('Pipe Input'!G11,Database!$E$409:$S$409,0)),IF(E11="HDPE",INDEX(Database!$E$434:$S$434,MATCH('Pipe Input'!$J$3,Database!$C$434:$S$434,0),MATCH('Pipe Input'!G11,Database!$E$432:$S$432,0)),IF(E11="CMP",INDEX(Database!$E$451:$AS$451,MATCH('Pipe Input'!$J$3,Database!$C$451:$AS$451,0),MATCH('Pipe Input'!G11,Database!$E$449:$AS$449,0)),"")))),"") ->  | L11: =IFERROR(IF(E11="RCP",M11,IF(E11="HERCP",N11,IF(E11="HDPE",INDEX(Database!$E$438:$S$438,MATCH('Pipe Input'!$L$3,Database!$C$438:$S$438,0),MATCH('Pipe Input'!G11,Database!$E$432:$S$432,0)),IF(E11="CMP",INDEX(Database!$E$456:$AS$456,MATCH('Pipe Input'!$L$3,Database!$C$456:$AS$456,0),MATCH('Pipe Input'!G11,Database!$E$449:$AS$449,0)),"")))),"") ->  | M11: =IF(E11="RCP",INDEX(Database!$E$375:$BE$379,MATCH('Pipe Input'!$E$2,Database!$C$375:$C$379,0),MATCH('Pipe Input'!G11,Database!$E$368:$BE$368,0)),"") ->  | N11: =IF(E11="HERCP",INDEX(Database!$E$416:$S$420,MATCH('Pipe Input'!$E$2,Database!$C$416:$C$420,0),MATCH('Pipe Input'!G11,Database!$E$409:$S$409,0)),"") ->  | O11: =IF(E11="RCP",Summary!$AV$5,IF(E11="HERCP",Summary!$AV$34,IF(E11="HDPE",Summary!$AV$51,IF(E11="CMP",Summary!$AV$73, "")))) ->  | Q11: 0 | R11: 0 | U11: 0 | X11: 0 | AB11: =IFERROR(IF(E11="HDPE",INDEX(Database!$E$441:$S$441,MATCH('Pipe Input'!$AB$3,Database!$C$441:$S$441,0),MATCH('Pipe Input'!G11,Database!$E$432:$S$432,0)),""), "") ->  | AE11: 0 | AF11: =IF(E11="RCP",INDEX(Database!$E$384:$BE$384,MATCH('Pipe Input'!$AF$3,Database!$C$384:$BE$384,0),MATCH('Pipe Input'!G11,Database!$E$368:$BE$368,0)),IF(E11="HERCP",INDEX(Database!$E$425:$S$425,MATCH('Pipe Input'!$AF$3,Database!$C$425:$S$425,0),MATCH('Pipe Input'!G11,Database!$E$409:$S$409,0)),"")) ->  | AG11: =IF(AND(E11="RCP",J11<>""),INDEX(Database!$E$386:$BE$386,MATCH('Pipe Input'!$AG$3,Database!$C$386:$BE$386,0),MATCH('Pipe Input'!G11,Database!$E$368:$BE$368,0)),"No") -> No | AH11: =IFERROR(IF(E11="RCP",INDEX(Database!$E$381:$BE$381,MATCH('Pipe Input'!$AH$3,Database!$C$381:$BE$381,0),MATCH('Pipe Input'!G11,Database!$E$368:$BE$368,0)),IF(E11="HERCP",INDEX(Database!$E$422:$S$422,MATCH('Pipe Input'!$AH$3,Database!$C$422:$S$422,0),MATCH('Pipe Input'!G11,Database!$E$409:$S$409,0)),IF(E11="HDPE",INDEX(Database!$E$439:$S$439,MATCH('Pipe Input'!$AH$3,Database!$C$439:$S$439,0),MATCH('Pipe Input'!G11,Database!$E$432:$S$432,0)),IF(E11="CMP",INDEX(Database!$E$457:$AS$457,MATCH('Pipe Input'!$AH$3,Database!$C$457:$AS$457,0),MATCH('Pipe Input'!G11,Database!$E$449:$AS$449,0)),"")))),"") ->  | AI11: 0 | AJ11: 0 | AK11: 0
B12: 9 | I12: =IF(AND(AG12="Yes",G12<>""),(U12/45000),"") ->  | J12: =IFERROR(IF(E12="RCP",INDEX(Database!$E$370:$BE$370,MATCH('Pipe Input'!$J$3,Database!$C$370:$BE$370,0),MATCH('Pipe Input'!G12,Database!$E$368:$BE$368,0)),IF(E12="HERCP",INDEX(Database!$E$412:$S$412,MATCH('Pipe Input'!$J$3,Database!$C$412:$S$412,0),MATCH('Pipe Input'!G12,Database!$E$409:$S$409,0)),IF(E12="HDPE",INDEX(Database!$E$434:$S$434,MATCH('Pipe Input'!$J$3,Database!$C$434:$S$434,0),MATCH('Pipe Input'!G12,Database!$E$432:$S$432,0)),IF(E12="CMP",INDEX(Database!$E$451:$AS$451,MATCH('Pipe Input'!$J$3,Database!$C$451:$AS$451,0),MATCH('Pipe Input'!G12,Database!$E$449:$AS$449,0)),"")))),"") ->  | L12: =IFERROR(IF(E12="RCP",M12,IF(E12="HERCP",N12,IF(E12="HDPE",INDEX(Database!$E$438:$S$438,MATCH('Pipe Input'!$L$3,Database!$C$438:$S$438,0),MATCH('Pipe Input'!G12,Database!$E$432:$S$432,0)),IF(E12="CMP",INDEX(Database!$E$456:$AS$456,MATCH('Pipe Input'!$L$3,Database!$C$456:$AS$456,0),MATCH('Pipe Input'!G12,Database!$E$449:$AS$449,0)),"")))),"") ->  | M12: =IF(E12="RCP",INDEX(Database!$E$375:$BE$379,MATCH('Pipe Input'!$E$2,Database!$C$375:$C$379,0),MATCH('Pipe Input'!G12,Database!$E$368:$BE$368,0)),"") ->  | N12: =IF(E12="HERCP",INDEX(Database!$E$416:$S$420,MATCH('Pipe Input'!$E$2,Database!$C$416:$C$420,0),MATCH('Pipe Input'!G12,Database!$E$409:$S$409,0)),"") ->  | O12: =IF(E12="RCP",Summary!$AV$5,IF(E12="HERCP",Summary!$AV$34,IF(E12="HDPE",Summary!$AV$51,IF(E12="CMP",Summary!$AV$73, "")))) ->  | Q12: 0 | R12: 0 | U12: 0 | X12: 0 | AB12: =IFERROR(IF(E12="HDPE",INDEX(Database!$E$441:$S$441,MATCH('Pipe Input'!$AB$3,Database!$C$441:$S$441,0),MATCH('Pipe Input'!G12,Database!$E$432:$S$432,0)),""), "") ->  | AE12: 0 | AF12: =IF(E12="RCP",INDEX(Database!$E$384:$BE$384,MATCH('Pipe Input'!$AF$3,Database!$C$384:$BE$384,0),MATCH('Pipe Input'!G12,Database!$E$368:$BE$368,0)),IF(E12="HERCP",INDEX(Database!$E$425:$S$425,MATCH('Pipe Input'!$AF$3,Database!$C$425:$S$425,0),MATCH('Pipe Input'!G12,Database!$E$409:$S$409,0)),"")) ->  | AG12: =IF(AND(E12="RCP",J12<>""),INDEX(Database!$E$386:$BE$386,MATCH('Pipe Input'!$AG$3,Database!$C$386:$BE$386,0),MATCH('Pipe Input'!G12,Database!$E$368:$BE$368,0)),"No") -> No | AH12: =IFERROR(IF(E12="RCP",INDEX(Database!$E$381:$BE$381,MATCH('Pipe Input'!$AH$3,Database!$C$381:$BE$381,0),MATCH('Pipe Input'!G12,Database!$E$368:$BE$368,0)),IF(E12="HERCP",INDEX(Database!$E$422:$S$422,MATCH('Pipe Input'!$AH$3,Database!$C$422:$S$422,0),MATCH('Pipe Input'!G12,Database!$E$409:$S$409,0)),IF(E12="HDPE",INDEX(Database!$E$439:$S$439,MATCH('Pipe Input'!$AH$3,Database!$C$439:$S$439,0),MATCH('Pipe Input'!G12,Database!$E$432:$S$432,0)),IF(E12="CMP",INDEX(Database!$E$457:$AS$457,MATCH('Pipe Input'!$AH$3,Database!$C$457:$AS$457,0),MATCH('Pipe Input'!G12,Database!$E$449:$AS$449,0)),"")))),"") ->  | AI12: 0 | AJ12: 0 | AK12: 0
B13: 10 | J13: =IFERROR(IF(E13="RCP",INDEX(Database!$E$370:$BE$370,MATCH('Pipe Input'!$J$3,Database!$C$370:$BE$370,0),MATCH('Pipe Input'!G13,Database!$E$368:$BE$368,0)),IF(E13="HERCP",INDEX(Database!$E$412:$S$412,MATCH('Pipe Input'!$J$3,Database!$C$412:$S$412,0),MATCH('Pipe Input'!G13,Database!$E$409:$S$409,0)),IF(E13="HDPE",INDEX(Database!$E$434:$S$434,MATCH('Pipe Input'!$J$3,Database!$C$434:$S$434,0),MATCH('Pipe Input'!G13,Database!$E$432:$S$432,0)),IF(E13="CMP",INDEX(Database!$E$451:$AS$451,MATCH('Pipe Input'!$J$3,Database!$C$451:$AS$451,0),MATCH('Pipe Input'!G13,Database!$E$449:$AS$449,0)),"")))),"") ->  | L13: =IFERROR(IF(E13="RCP",M13,IF(E13="HERCP",N13,IF(E13="HDPE",INDEX(Database!$E$438:$S$438,MATCH('Pipe Input'!$L$3,Database!$C$438:$S$438,0),MATCH('Pipe Input'!G13,Database!$E$432:$S$432,0)),IF(E13="CMP",INDEX(Database!$E$456:$AS$456,MATCH('Pipe Input'!$L$3,Database!$C$456:$AS$456,0),MATCH('Pipe Input'!G13,Database!$E$449:$AS$449,0)),"")))),"") ->  | M13: =IF(E13="RCP",INDEX(Database!$E$375:$BE$379,MATCH('Pipe Input'!$E$2,Database!$C$375:$C$379,0),MATCH('Pipe Input'!G13,Database!$E$368:$BE$368,0)),"") ->  | N13: =IF(E13="HERCP",INDEX(Database!$E$416:$S$420,MATCH('Pipe Input'!$E$2,Database!$C$416:$C$420,0),MATCH('Pipe Input'!G13,Database!$E$409:$S$409,0)),"") ->  | O13: =IF(E13="RCP",Summary!$AV$5,IF(E13="HERCP",Summary!$AV$34,IF(E13="HDPE",Summary!$AV$51,IF(E13="CMP",Summary!$AV$73, "")))) ->  | Q13: 0 | R13: 0 | U13: 0 | X13: 0 | AB13: =IFERROR(IF(E13="HDPE",INDEX(Database!$E$441:$S$441,MATCH('Pipe Input'!$AB$3,Database!$C$441:$S$441,0),MATCH('Pipe Input'!G13,Database!$E$432:$S$432,0)),""), "") ->  | AE13: 0 | AF13: =IF(E13="RCP",INDEX(Database!$E$384:$BE$384,MATCH('Pipe Input'!$AF$3,Database!$C$384:$BE$384,0),MATCH('Pipe Input'!G13,Database!$E$368:$BE$368,0)),IF(E13="HERCP",INDEX(Database!$E$425:$S$425,MATCH('Pipe Input'!$AF$3,Database!$C$425:$S$425,0),MATCH('Pipe Input'!G13,Database!$E$409:$S$409,0)),"")) ->  | AG13: =IF(AND(E13="RCP",J13<>""),INDEX(Database!$E$386:$BE$386,MATCH('Pipe Input'!$AG$3,Database!$C$386:$BE$386,0),MATCH('Pipe Input'!G13,Database!$E$368:$BE$368,0)),"No") -> No | AH13: =IFERROR(IF(E13="RCP",INDEX(Database!$E$381:$BE$381,MATCH('Pipe Input'!$AH$3,Database!$C$381:$BE$381,0),MATCH('Pipe Input'!G13,Database!$E$368:$BE$368,0)),IF(E13="HERCP",INDEX(Database!$E$422:$S$422,MATCH('Pipe Input'!$AH$3,Database!$C$422:$S$422,0),MATCH('Pipe Input'!G13,Database!$E$409:$S$409,0)),IF(E13="HDPE",INDEX(Database!$E$439:$S$439,MATCH('Pipe Input'!$AH$3,Database!$C$439:$S$439,0),MATCH('Pipe Input'!G13,Database!$E$432:$S$432,0)),IF(E13="CMP",INDEX(Database!$E$457:$AS$457,MATCH('Pipe Input'!$AH$3,Database!$C$457:$AS$457,0),MATCH('Pipe Input'!G13,Database!$E$449:$AS$449,0)),"")))),"") ->  | AI13: 0 | AJ13: 0 | AK13: 0
B14: 11 | J14: =IFERROR(IF(E14="RCP",INDEX(Database!$E$370:$BE$370,MATCH('Pipe Input'!$J$3,Database!$C$370:$BE$370,0),MATCH('Pipe Input'!G14,Database!$E$368:$BE$368,0)),IF(E14="HERCP",INDEX(Database!$E$412:$S$412,MATCH('Pipe Input'!$J$3,Database!$C$412:$S$412,0),MATCH('Pipe Input'!G14,Database!$E$409:$S$409,0)),IF(E14="HDPE",INDEX(Database!$E$434:$S$434,MATCH('Pipe Input'!$J$3,Database!$C$434:$S$434,0),MATCH('Pipe Input'!G14,Database!$E$432:$S$432,0)),IF(E14="CMP",INDEX(Database!$E$451:$AS$451,MATCH('Pipe Input'!$J$3,Database!$C$451:$AS$451,0),MATCH('Pipe Input'!G14,Database!$E$449:$AS$449,0)),"")))),"") ->  | L14: =IFERROR(IF(E14="RCP",M14,IF(E14="HERCP",N14,IF(E14="HDPE",INDEX(Database!$E$438:$S$438,MATCH('Pipe Input'!$L$3,Database!$C$438:$S$438,0),MATCH('Pipe Input'!G14,Database!$E$432:$S$432,0)),IF(E14="CMP",INDEX(Database!$E$456:$AS$456,MATCH('Pipe Input'!$L$3,Database!$C$456:$AS$456,0),MATCH('Pipe Input'!G14,Database!$E$449:$AS$449,0)),"")))),"") ->  | M14: =IF(E14="RCP",INDEX(Database!$E$375:$BE$379,MATCH('Pipe Input'!$E$2,Database!$C$375:$C$379,0),MATCH('Pipe Input'!G14,Database!$E$368:$BE$368,0)),"") ->  | N14: =IF(E14="HERCP",INDEX(Database!$E$416:$S$420,MATCH('Pipe Input'!$E$2,Database!$C$416:$C$420,0),MATCH('Pipe Input'!G14,Database!$E$409:$S$409,0)),"") ->  | O14: =IF(E14="RCP",Summary!$AV$5,IF(E14="HERCP",Summary!$AV$34,IF(E14="HDPE",Summary!$AV$51,IF(E14="CMP",Summary!$AV$73, "")))) ->  | Q14: 0 | R14: 0 | U14: 0 | X14: 0 | AB14: =IFERROR(IF(E14="HDPE",INDEX(Database!$E$441:$S$441,MATCH('Pipe Input'!$AB$3,Database!$C$441:$S$441,0),MATCH('Pipe Input'!G14,Database!$E$432:$S$432,0)),""), "") ->  | AE14: 0 | AF14: =IF(E14="RCP",INDEX(Database!$E$384:$BE$384,MATCH('Pipe Input'!$AF$3,Database!$C$384:$BE$384,0),MATCH('Pipe Input'!G14,Database!$E$368:$BE$368,0)),IF(E14="HERCP",INDEX(Database!$E$425:$S$425,MATCH('Pipe Input'!$AF$3,Database!$C$425:$S$425,0),MATCH('Pipe Input'!G14,Database!$E$409:$S$409,0)),"")) ->  | AG14: =IF(AND(E14="RCP",J14<>""),INDEX(Database!$E$386:$BE$386,MATCH('Pipe Input'!$AG$3,Database!$C$386:$BE$386,0),MATCH('Pipe Input'!G14,Database!$E$368:$BE$368,0)),"No") -> No | AH14: =IFERROR(IF(E14="RCP",INDEX(Database!$E$381:$BE$381,MATCH('Pipe Input'!$AH$3,Database!$C$381:$BE$381,0),MATCH('Pipe Input'!G14,Database!$E$368:$BE$368,0)),IF(E14="HERCP",INDEX(Database!$E$422:$S$422,MATCH('Pipe Input'!$AH$3,Database!$C$422:$S$422,0),MATCH('Pipe Input'!G14,Database!$E$409:$S$409,0)),IF(E14="HDPE",INDEX(Database!$E$439:$S$439,MATCH('Pipe Input'!$AH$3,Database!$C$439:$S$439,0),MATCH('Pipe Input'!G14,Database!$E$432:$S$432,0)),IF(E14="CMP",INDEX(Database!$E$457:$AS$457,MATCH('Pipe Input'!$AH$3,Database!$C$457:$AS$457,0),MATCH('Pipe Input'!G14,Database!$E$449:$AS$449,0)),"")))),"") ->  | AI14: 0 | AJ14: 0 | AK14: 0
B15: =B14+1 -> 12 | J15: =IFERROR(IF(E15="RCP",INDEX(Database!$E$370:$BE$370,MATCH('Pipe Input'!$J$3,Database!$C$370:$BE$370,0),MATCH('Pipe Input'!G15,Database!$E$368:$BE$368,0)),IF(E15="HERCP",INDEX(Database!$E$412:$S$412,MATCH('Pipe Input'!$J$3,Database!$C$412:$S$412,0),MATCH('Pipe Input'!G15,Database!$E$409:$S$409,0)),IF(E15="HDPE",INDEX(Database!$E$434:$S$434,MATCH('Pipe Input'!$J$3,Database!$C$434:$S$434,0),MATCH('Pipe Input'!G15,Database!$E$432:$S$432,0)),IF(E15="CMP",INDEX(Database!$E$451:$AS$451,MATCH('Pipe Input'!$J$3,Database!$C$451:$AS$451,0),MATCH('Pipe Input'!G15,Database!$E$449:$AS$449,0)),"")))),"") ->  | L15: =IFERROR(IF(E15="RCP",M15,IF(E15="HERCP",N15,IF(E15="HDPE",INDEX(Database!$E$438:$S$438,MATCH('Pipe Input'!$L$3,Database!$C$438:$S$438,0),MATCH('Pipe Input'!G15,Database!$E$432:$S$432,0)),IF(E15="CMP",INDEX(Database!$E$456:$AS$456,MATCH('Pipe Input'!$L$3,Database!$C$456:$AS$456,0),MATCH('Pipe Input'!G15,Database!$E$449:$AS$449,0)),"")))),"") ->  | M15: =IF(E15="RCP",INDEX(Database!$E$375:$BE$379,MATCH('Pipe Input'!$E$2,Database!$C$375:$C$379,0),MATCH('Pipe Input'!G15,Database!$E$368:$BE$368,0)),"") ->  | N15: =IF(E15="HERCP",INDEX(Database!$E$416:$S$420,MATCH('Pipe Input'!$E$2,Database!$C$416:$C$420,0),MATCH('Pipe Input'!G15,Database!$E$409:$S$409,0)),"") ->  | O15: =IF(E15="RCP",Summary!$AV$5,IF(E15="HERCP",Summary!$AV$34,IF(E15="HDPE",Summary!$AV$51,IF(E15="CMP",Summary!$AV$73, "")))) ->  | Q15: 0 | R15: 0 | U15: 0 | X15: 0 | AB15: =IFERROR(IF(E15="HDPE",INDEX(Database!$E$441:$S$441,MATCH('Pipe Input'!$AB$3,Database!$C$441:$S$441,0),MATCH('Pipe Input'!G15,Database!$E$432:$S$432,0)),""), "") ->  | AE15: 0 | AF15: =IF(E15="RCP",INDEX(Database!$E$384:$BE$384,MATCH('Pipe Input'!$AF$3,Database!$C$384:$BE$384,0),MATCH('Pipe Input'!G15,Database!$E$368:$BE$368,0)),IF(E15="HERCP",INDEX(Database!$E$425:$S$425,MATCH('Pipe Input'!$AF$3,Database!$C$425:$S$425,0),MATCH('Pipe Input'!G15,Database!$E$409:$S$409,0)),"")) ->  | AG15: =IF(AND(E15="RCP",J15<>""),INDEX(Database!$E$386:$BE$386,MATCH('Pipe Input'!$AG$3,Database!$C$386:$BE$386,0),MATCH('Pipe Input'!G15,Database!$E$368:$BE$368,0)),"No") -> No | AH15: =IFERROR(IF(E15="RCP",INDEX(Database!$E$381:$BE$381,MATCH('Pipe Input'!$AH$3,Database!$C$381:$BE$381,0),MATCH('Pipe Input'!G15,Database!$E$368:$BE$368,0)),IF(E15="HERCP",INDEX(Database!$E$422:$S$422,MATCH('Pipe Input'!$AH$3,Database!$C$422:$S$422,0),MATCH('Pipe Input'!G15,Database!$E$409:$S$409,0)),IF(E15="HDPE",INDEX(Database!$E$439:$S$439,MATCH('Pipe Input'!$AH$3,Database!$C$439:$S$439,0),MATCH('Pipe Input'!G15,Database!$E$432:$S$432,0)),IF(E15="CMP",INDEX(Database!$E$457:$AS$457,MATCH('Pipe Input'!$AH$3,Database!$C$457:$AS$457,0),MATCH('Pipe Input'!G15,Database!$E$449:$AS$449,0)),"")))),"") ->  | AI15: 0 | AJ15: 0 | AK15: 0
